Workbook

Sheet Home
C2: =CONCATENATE("WELCOME TO UNITED TEACHERS' FEDERATION :: ",UPPER(#REF!)," DISTRICT") -> 
B3: visit at www.ibknellore.tk
B4: Reimbursement of Educational Tution Fee Excell Programme
C5: New Updations are available Visit Our Blogs
C6: http://ibknellore.tk
C7: Updation on 19/03/2012
C8: This Programme Used upto 500 Members
C9: Developped By
C10: I.BALAKRISHNAIAH
C11: SA (MATHE MATICS)
C12: GMHS, NELLORE
B13: Note: | C13: Phone No: 9492268881
B14: Please verify with experts before submission. Any Mistakes This Programme Iam not Responsible
B17: This Programme Working MS Office-2007/2003

Sheet T
A1: The following Information is Required For Updation of Our Progrrams. Hence I Request You, The information ( Known ) Fill and Send me through Email: ibknellore@hotmail.com.
A2: Sl No | B2: District | C2: Treasury | D2: STO Code | E2: Name of the Bank | F2: Bank Code
A3: 1 | B3: Adilabad | C3: Adilabad | D3: 1301
A4: 2 | B4: Adilabad | C4: Adilabad | D4: 1302
A5: 3 | B5: Adilabad | C5: Asifabad | D5: 1303
A6: 4 | B6: Adilabad | C6: Bhainsa | D6: 1304
A7: 5 | B7: Adilabad | C7: Boath | D7: 1305
A8: 6 | B8: Adilabad | C8: Chinnor | D8: 1306
A9: 7 | B9: Adilabad | C9: Kagaznagar | D9: 1307
A10: 8 | B10: Adilabad | C10: Khanapur | D10: 1308
A11: 9 | B11: Adilabad | C11: Laksettipet | D11: 1309
A12: 10 | B12: Adilabad | C12: Mancherial | D12: 1310
A13: 11 | B13: Adilabad | C13: Mudhole | D13: 1311
A14: 12 | B14: Adilabad | C14: Nirmal | D14: 1312
A15: 13 | B15: Adilabad | C15: Nirmal Adilabad | D15: 1341
A16: 14 | B16: Adilabad | C16: Sirpur | D16: 1313
A17: 15 | B17: Adilabad | C17: Utnoor | D17: 1314
A18: 16 | B18: Adilabad | C18: Wankidi | D18: 1315
A19: 17 | B19: Anantapur | C19: Anantapur | D19: 1001
A20: 18 | B20: Anantapur | C20: Anantapur | D20: 1002
A21: 19 | B21: Anantapur | C21: Anantapur | D21: 1041
A22: 20 | B22: Anantapur | C22: Dharmavaram | D22: 1003
A23: 21 | B23: Anantapur | C23: Gooty | D23: 1004
A24: 22 | B24: Anantapur | C24: Guntakal | D24: 1005
A25: 23 | B25: Anantapur | C25: Hindupur | D25: 1006
A26: 24 | B26: Anantapur | C26: Kadiri | D26: 1007
A27: 25 | B27: Anantapur | C27: Kalyandurg | D27: 1008
A28: 26 | B28: Anantapur | C28: Kambadur | D28: 1009
A29: 27 | B29: Anantapur | C29: Kanekal | D29: 1010
A30: 28 | B30: Anantapur | C30: Kothacheruvu | D30: 1011
A31: 29 | B31: Anantapur | C31: Madakasira | D31: 1012
A32: 30 | B32: Anantapur | C32: Penukonda | D32: 1013
A33: 31 | B33: Anantapur | C33: Rayadurg | D33: 1014
A34: 32 | B34: Anantapur | C34: Singanamala | D34: 1015
A35: 33 | B35: Anantapur | C35: Tadipatri | D35: 1016
A36: 34 | B36: Anantapur | C36: Uravakonda | D36: 1017
A37: 35 | B37: Chittoor | C37: Bangarupalem | D37: 1103
A38: 36 | B38: Chittoor | C38: Chandragiri | D38: 1104
A39: 37 | B39: Chittoor | C39: Chittoor | D39: 1101
A40: 38 | B40: Chittoor | C40: Chittoor | D40: 1102
A41: 39 | B41: Chittoor | C41: Chittoor | D41: 1142
A42: 40 | B42: Chittoor | C42: Kuppam | D42: 1105
A43: 41 | B43: Chittoor | C43: Madanapalli | D43: 1106
A44: 42 | B44: Chittoor | C44: Nagari | D44: 1107
A45: 43 | B45: Chittoor | C45: Pakala | D45: 1108
A46: 44 | B46: Chittoor | C46: Palamaner | D46: 1109
A47: 45 | B47: Chittoor | C47: Piler | D47: 1110
A48: 46 | B48: Chittoor | C48: Punganur | D48: 1111
A49: 47 | B49: Chittoor | C49: Puttur | D49: 1112
A50: 48 | B50: Chittoor | C50: Satyavedu | D50: 1113
A51: 49 | B51: Chittoor | C51: Srikalahasti | D51: 1114
A52: 50 | B52: Chittoor | C52: Thamballapalle | D52: 1115
A53: 51 | B53: Chittoor | C53: Thottambedu | D53: 1117
A54: 52 | B54: Chittoor | C54: Tirupati | D54: 1116
A55: 53 | B55: Chittoor | C55: Tirupati | D55: 1141
A56: 54 | B56: Chittoor | C56: Vayalpad | D56: 1118
A57: 55 | B57: East Godavari | C57: Addatheegala | D57: 0302
A58: 56 | B58: East Godavari | C58: Alamur | D58: 0303
A59: 57 | B59: East Godavari | C59: Amalapuram | D59: 0304
A60: 58 | B60: East Godavari | C60: Dawaleswaram Ego | D60: 0343
A61: 59 | B61: East Godavari | C61: East Godavari | D61: 0301
A62: 60 | B62: East Godavari | C62: Jaggampet | D62: 0318
A63: 61 | B63: East Godavari | C63: Kakinada Ego | D63: 0342
A64: 62 | B64: East Godavari | C64: Kakinada Local | D64: 0305
A65: 63 | B65: East Godavari | C65: Korukonda | D65: 0319
A66: 64 | B66: East Godavari | C66: Kothapeta | D66: 0306
A67: 65 | B67: East Godavari | C67: Mummidivaram | D67: 0307
A68: 66 | B68: East Godavari | C68: Peddapuram | D68: 0308
A69: 67 | B69: East Godavari | C69: Pithapuram | D69: 0309
A70: 68 | B70: East Godavari | C70: Prathipadu | D70: 0310
A71: 69 | B71: East Godavari | C71: Rajamundry(N) | D71: 0312
A72: 70 | B72: East Godavari | C72: Ramachandrapuram | D72: 0313
A73: 71 | B73: East Godavari | C73: Rampachodavaram | D73: 0314
A74: 72 | B74: East Godavari | C74: Rayavaram | D74: 0315
A75: 73 | B75: East Godavari | C75: Razole | D75: 0316
A76: 74 | B76: East Godavari | C76: Tuni | D76: 0317
A77: 75 | B77: Guntur | C77: Bapatla | D77: 0602
A78: 76 | B78: Guntur | C78: Chilakaluripet | D78: 0603
A79: 77 | B79: Guntur | C79: Emani-At-Duggirala | D79: 0604
A80: 78 | B80: Guntur | C80: Guntur | D80: 0601
A81: 79 | B81: Guntur | C81: Guntur | D81: 0641
A82: 80 | B82: Guntur | C82: Guntur () | D82: 0605
A83: 81 | B83: Guntur | C83: Gurajala(Palnad) | D83: 0606
A84: 82 | B84: Guntur | C84: Macherla | D84: 0607
A85: 83 | B85: Guntur | C85: Mangalagiri | D85: 0608
A86: 84 | B86: Guntur | C86: Nagaram | D86: 0609
A87: 85 | B87: Guntur | C87: Narsarao Pet | D87: 0642
A88: 86 | B88: Guntur | C88: Narsaraopeta | D88: 0610
A89: 87 | B89: Guntur | C89: Pedakurapadu | D89: 0611
A90: 88 | B90: Guntur | C90: Piduguralla | D90: 0612
A91: 89 | B91: Guntur | C91: Ponnuru | D91: 0617
A92: 90 | B92: Guntur | C92: Rajupalem | D92: 0613
A93: 91 | B93: Guntur | C93: Repalle | D93: 0614
A94: 92 | B94: Guntur | C94: Sattenapalli | D94: 0615
A95: 93 | B95: Guntur | C95: Tenali | D95: 0616
A96: 94 | B96: Guntur | C96: Vinukonda | D96: 0618
A97: 95 | B97: Hyderabad | C97: Hyderabad | D97: 2502
A98: 96 | B98: Hyderabad | C98: Hyderabad | D98: 2503
A99: 97 | B99: Hyderabad | C99: Hyderabad | D99: 2504
A100: 98 | B100: Hyderabad | C100: Hyderabad | D100: 2505
A101: 99 | B101: Hyderabad | C101: Hyderabad | D101: 2506
A102: 100 | B102: Hyderabad | C102: Hyderabad | D102: 2507
A103: 101 | B103: Hyderabad | C103: Hyderbad | D103: 2552
A104: 102 | B104: Hyderabad | C104: Pao,Hyd | D104: 2500
A105: 103 | B105: Hyderabad | C105: W And P Hyderabad | D105: 2541
A106: 104 | B106: Hyderabad | C106: Works_Pao,Hyd | D106: 2700
A107: 105 | B107: Karimnagar | C107: Bhimadevarapalli | D107: 1502
A108: 106 | B108: Karimnagar | C108: Gangadhara | D108: 1503
A109: 107 | B109: Karimnagar | C109: Husnabad | D109: 1504
A110: 108 | B110: Karimnagar | C110: Huzurabad | D110: 1505
A111: 109 | B111: Karimnagar | C111: Jagtial | D111: 1506
A112: 110 | B112: Karimnagar | C112: Karimanagar | D112: 1507
A113: 111 | B113: Karimnagar | C113: Karimnagar | D113: 1501
A114: 112 | B114: Karimnagar | C114: Karimnagar | D114: 1541
A115: 113 | B115: Karimnagar | C115: Karimnagar | D115: 1542
A116: 114 | B116: Karimnagar | C116: Korutla | D116: 1508
A117: 115 | B117: Karimnagar | C117: Mahadevpur | D117: 1509
A118: 116 | B118: Karimnagar | C118: Mallial | D118: 1510
A119: 117 | B119: Karimnagar | C119: Manthani | D119: 1511
A120: 118 | B120: Karimnagar | C120: Metpalli | D120: 1512
A121: 119 | B121: Karimnagar | C121: Peddapalli | D121: 1513
A122: 120 | B122: Karimnagar | C122: Sircilla | D122: 1514
A123: 121 | B123: Karimnagar | C123: Sultanabad | D123: 1515
A124: 122 | B124: Karimnagar | C124: Vemulawada | D124: 1516
A125: 123 | B125: Khammam | C125: Bhadrachalam | D125: 1602
A126: 124 | B126: Khammam | C126: Burgampahad | D126: 1603
A127: 125 | B127: Khammam | C127: Kammam | D127: 1641
A128: 126 | B128: Khammam | C128: Khammam | D128: 1601
A129: 127 | B129: Khammam | C129: Khammam | D129: 1604
A130: 128 | B130: Khammam | C130: Kothagudem | D130: 1605
A131: 129 | B131: Khammam | C131: Madhira | D131: 1606
A132: 130 | B132: Khammam | C132: Nelakondapalli | D132: 1607
A133: 131 | B133: Khammam | C133: Sattupalli | D133: 1608
A134: 132 | B134: Khammam | C134: Venkatapuram | D134: 1609
A135: 133 | B135: Khammam | C135: Yellandu | D135: 1610
A136: 134 | B136: Krishna | C136: Avanigadda | D136: 0502
A137: 135 | B137: Krishna | C137: Bandar | D137: 0503
A138: 136 | B138: Krishna | C138: Bantumilli | D138: 0504
A139: 137 | B139: Krishna | C139: Gannavaram | D139: 0505
A140: 138 | B140: Krishna | C140: Gudivada | D140: 0506
A141: 139 | B141: Krishna | C141: Jaggaiahpeta | D141: 0507
A142: 140 | B142: Krishna | C142: Kaikaluru | D142: 0508
A143: 141 | B143: Krishna | C143: Kanchika Charla | D143: 0519
A144: 142 | B144: Krishna | C144: Krishna | D144: 0501
A145: 143 | B145: Krishna | C145: Movva | D145: 0509
A146: 144 | B146: Krishna | C146: Mylavaram | D146: 0510
A147: 145 | B147: Krishna | C147: Nandigama | D147: 0511
A148: 146 | B148: Krishna | C148: Nuzvid | D148: 0512
A149: 147 | B149: Krishna | C149: Pamarru | D149: 0513
A150: 148 | B150: Krishna | C150: Tiruvur | D150: 0514
A151: 149 | B151: Krishna | C151: Vijayawada | D151: 0541
A152: 150 | B152: Krishna | C152: Vijayawada(East) | D152: 0515
A153: 151 | B153: Krishna | C153: Vijayawada(West) | D153: 0516
A154: 152 | B154: Krishna | C154: Vissannapeta | D154: 0517
A155: 153 | B155: Krishna | C155: Vuyyuru | D155: 0518
A156: 154 | B156: Kurnool | C156: Adoni | D156: 0902
A157: 155 | B157: Kurnool | C157: Allagadda | D157: 0903
A158: 156 | B158: Kurnool | C158: Alur | D158: 0904
A159: 157 | B159: Kurnool | C159: Atmakur | D159: 0905
A160: 158 | B160: Kurnool | C160: Banganapalle | D160: 0906
A161: 159 | B161: Kurnool | C161: Dhone | D161: 0907
A162: 160 | B162: Kurnool | C162: Kodumur At Gudur | D162: 0908
A163: 161 | B163: Kurnool | C163: Koilkuntla | D163: 0909
A164: 162 | B164: Kurnool | C164: Kurnool | D164: 0901
A165: 163 | B165: Kurnool | C165: Kurnool | D165: 0910
A166: 164 | B166: Kurnool | C166: Kurnool | D166: 0941
A167: 165 | B167: Kurnool | C167: Nandikotkur | D167: 0911
A168: 166 | B168: Kurnool | C168: Nandyal | D168: 0912
A169: 167 | B169: Kurnool | C169: Nandyal | D169: 0942
A170: 168 | B170: Kurnool | C170: Pattikonda | D170: 0913
A171: 169 | B171: Kurnool | C171: Srisailam | D171: 0915
A172: 170 | B172: Kurnool | C172: Yemmiganur | D172: 0914
A173: 171 | B173: Mahabubnagar | C173: Achampet | D173: 1702
A174: 172 | B174: Mahabubnagar | C174: Alampur | D174: 1703
A175: 173 | B175: Mahabubnagar | C175: Atmakur | D175: 1704
A176: 174 | B176: Mahabubnagar | C176: Gadwal | D176: 1705
A177: 175 | B177: Mahabubnagar | C177: Gadwal | D177: 1742
A178: 176 | B178: Mahabubnagar | C178: Jadcherla | D178: 1706
A179: 177 | B179: Mahabubnagar | C179: Kalwakurthy | D179: 1707
A180: 178 | B180: Mahabubnagar | C180: Kodangal | D180: 1708
A181: 179 | B181: Mahabubnagar | C181: Kollapur | D181: 1709
A182: 180 | B182: Mahabubnagar | C182: Mahaboob Nagar | D182: 1701
A183: 181 | B183: Mahabubnagar | C183: Mahaboobnagar | D183: 1741
A184: 182 | B184: Mahabubnagar | C184: Mahabubnagar() | D184: 1710
A185: 183 | B185: Mahabubnagar | C185: Makthal | D185: 1711
A186: 184 | B186: Mahabubnagar | C186: Nagarkurnool | D186: 1712
A187: 185 | B187: Mahabubnagar | C187: Narayanpeta | D187: 1713
A188: 186 | B188: Mahabubnagar | C188: Shadnagar | D188: 1714
A189: 187 | B189: Mahabubnagar | C189: Wanaparthy | D189: 1715
A190: 188 | B190: Medak | C190: Andol | D190: 1802
A191: 189 | B191: Medak | C191: Dubbak | D191: 1803
A192: 190 | B192: Medak | C192: Gazwel | D192: 1804
A193: 191 | B193: Medak | C193: Medak | D193: 1801
A194: 192 | B194: Medak | C194: Medak | D194: 1805
A195: 193 | B195: Medak | C195: Medak | D195: 1842
A196: 194 | B196: Medak | C196: Narayankhed | D196: 1806
A197: 195 | B197: Medak | C197: Narsapur | D197: 1807
A198: 196 | B198: Medak | C198: Patancheru | D198: 1813
A199: 197 | B199: Medak | C199: Ramayampet | D199: 1808
A200: 198 | B200: Medak | C200: Sadasivapet | D200: 1809
... 167 more rows

Sheet Info
A1: Welcome To UTF | J1: 'Name of The Banks - Bank Code (Personal Account Nos of the Individuals) | BN1: Major Head | BP1: Sub-Major Head | BR1: Minor Head | BT1: Group Sub Head | BV1: Subhead | CL1: Treasury | CM1: =PROPER(VLOOKUP(F17,CS2:CU366,3,FALSE)) -> Udayagiri | CN1: District | CO1: =E12 -> Sri Pottisreeramulu Nellore | CP1: 1 | CQ1: District Assending Order Codes | CR1: District | CS1: Stocode - Description | CT1: STO Code | CU1: Treasury | CV1: District Code | CW1: STO | CX1: Bank Code | CY1: Name of the Bank
A2: =A1 -> Welcome To UTF | B2: OFFICE INFORMATION | H2: =A1 -> Welcome To UTF | J2: State Bank Of India (SBI) ADB , Atmakur | K2: 4828 | L2: RPS-2010 | M2: Class | BK2: 1 | BL2: HOA | BM2: SL No | BN2: Code | BO2: Description | BP2: Code | BQ2: Description | BR2: Code | BS2: Description | BT2: Code | BU2: Description | BV2: Code | BW2: Description | BY2: MH | BZ2: SMH | CA2: Min H | CB2: GSH | CC2: SH | CD2: =BN1 -> Major Head | CE2: =IF(ISNA(CF8),"",VLOOKUP(CF8,Info!BM3:BW1013,2,FALSE)) -> 2202 | CF2: =IF(ISNA(CF8),"",VLOOKUP(CF8,Info!BM3:BW1013,3,FALSE)) -> General Education | CM2: District Treasury | CN2: 2 | CO2: =IF(ISNA(VLOOKUP(CN2,$CP$2:$CS$366,4,FALSE)),"",VLOOKUP(CN2,$CP$2:$CS$366,4,FALSE)) -> 0804- ATMAKUR | CP2: =IF(EXACT($CO$1,CR2),CP1+1,1) -> 1 | CQ2: 1 | CR2: Adilabad | CS2: 1301- ADILABAD | CT2: 1301 | CU2: ADILABAD | CV2: 13 | CW2: 01
B3: Proceeding Authority | C3: Disgnation Of Sanction Authority | D3: : | E3: Mandal Educational Officer | G3: Executive Engineer | J3: Syndicate Bank, Buchireddipalem | K3: 3472 | L3: 6900-20680 | BH3: 2009-2010 | BI3: 2 | BJ3: =IF(ISNA(VLOOKUP(BI3,$BK$3:$BM$1013,2,FALSE)),"",VLOOKUP(BI3,$BK$3:$BM$1013,2,FALSE)) -> 2202-01-101-00-04 | BK3: =IF(EXACT($E$25,BN3),BK2+1,1) -> 1 | BL3: =CONCATENATE(BN3,"-",BP3,"-",BR3,"-",BT3,"-",BV3) -> 2011-02-101-00-04 | BM3: 1 | BN3: 2011 | BO3: State Legislature | BP3: 02 | BQ3: State Legislatures | BR3: 101 | BS3: Legislative Assembly | BT3: 00 | BV3: 04 | BW3: Speaker and Deputy Speaker (Charged) | BY3: 2011 | BZ3: 01 | CA3: 001 | CB3: 03 | CC3: 01 | CD3: =BP1 -> Sub-Major Head | CE3: =IF(ISNA(CF8),"",VLOOKUP(CF8,Info!BM3:BW1013,4,FALSE)) -> 01 | CF3: =IF(ISNA(CF8),"",IF(Info!CE3="00","",VLOOKUP(CF8,Info!BM3:BW1013,5,FALSE))) -> Elementary Education | CM3: Sub- Treasury | CN3: =IF(CN2="","",IF(CN2=MIN(CN2+1,MAX(CP3:CP1013)),"",MIN(CN2+1,MAX(CP3:CP1013)))) -> 3 | CO3: =IF(ISNA(VLOOKUP(CN3,$CP$2:$CS$366,4,FALSE)),"",VLOOKUP(CN3,$CP$2:$CS$366,4,FALSE)) -> 0809- BUCHIREDDYPALEM | CP3: 1 | CQ3: 1 | CR3: Adilabad | CS3: 1302- ADILABAD | CT3: 1302 | CU3: ADILABAD | CV3: 13 | CW3: 02
C4: Name of The Office | D4: : | E4: Mandal Parishad Udayagiri | J4: State Bank Of India (SBI), Gudur | K4: 0843 | L4: 7100-21250 | M4: LKG | BH4: 2010-2011 | BI4: =IF(BI3="","",IF(BI3=MIN(BI3+1,MAX(BK4:BK1014)),"",MIN(BI3+1,MAX(BK4:BK1014)))) -> 3 | BJ4: =IF(ISNA(VLOOKUP(BI4,$BK$3:$BM$1013,2,FALSE)),"",VLOOKUP(BI4,$BK$3:$BM$1013,2,FALSE)) -> 2202-01-102-00-04 | BK4: =IF(EXACT($E$25,BN4),BK3+1,1) -> 1 | BL4: 2011-02-101-00-05 | BM4: 2 | BN4: 2011 | BO4: State Legislature | BP4: 02 | BQ4: State Legislatures | BR4: 101 | BS4: Legislative Assembly | BT4: 00 | BV4: 05 | BW4: Members | BY4: 2012 | BZ4: 02 | CA4: 003 | CB4: 06 | CC4: 02 | CD4: =BR1 -> Minor Head | CE4: =IF(ISNA(CF8),"",VLOOKUP(CF8,Info!BM3:BW1013,6,FALSE)) -> 103 | CF4: =IF(ISNA(CF8),"",VLOOKUP(CF8,Info!BM3:BW1013,7,FALSE)) -> Assistance to Local Bodies for Primary Education | CN4: =IF(CN3="","",IF(CN3=MIN(CN3+1,MAX(CP4:CP1014)),"",MIN(CN3+1,MAX(CP4:CP1014)))) -> 4 | CO4: =IF(ISNA(VLOOKUP(CN4,$CP$2:$CS$366,4,FALSE)),"",VLOOKUP(CN4,$CP$2:$CS$366,4,FALSE)) -> 0803- GUDUR | CP4: 1 | CQ4: 1 | CR4: Adilabad | CS4: 1303- ASIFABAD | CT4: 1303 | CU4: ASIFABAD | CV4: 13 | CW4: 03
C5: District | D5: : | E5: Sri Pottisreeramulu Nellore | G5: UPDATION PROGRAMME AVAILABLE AT | J5: State Bank Of India (SBI), Indukurpet | K5: 3353 | L5: 7520-22430 | M5: UKG | BH5: 2011-2012 | BI5: =IF(BI4="","",IF(BI4=MIN(BI4+1,MAX(BK5:BK1015)),"",MIN(BI4+1,MAX(BK5:BK1015)))) -> 4 | BJ5: =IF(ISNA(VLOOKUP(BI5,$BK$3:$BM$1013,2,FALSE)),"",VLOOKUP(BI5,$BK$3:$BM$1013,2,FALSE)) -> 2202-01-103-00-04 | BK5: 1 | BL5: 2011-02-102-00-03 | BM5: 3 | BN5: 2011 | BO5: State Legislature | BP5: 02 | BQ5: State Legislatures | BR5: 102 | BS5: Legislative Council | BT5: 00 | BV5: 03 | BW5: Chairman and Deputy Chairman (Charged) | BY5: 2013 | BZ5: 03 | CA5: 004 | CB5: 07 | CC5: 03 | CD5: =BT1 -> Group Sub Head | CE5: =IF(ISNA(CF8),"",VLOOKUP(CF8,Info!BM3:BW1013,8,FALSE)) -> 00 | CF5: =IF(ISNA(CF8),"",IF(Info!CE5="00","",VLOOKUP(CF8,Info!BM3:BW1013,9,FALSE))) ->  | CN5: 5 | CO5: 0815- INDUKURPETA | CP5: 1 | CQ5: 1 | CR5: Adilabad | CS5: 1304- BHAINSA | CT5: 1304 | CU5: BHAINSA | CV5: 13 | CW5: 04
C6: Mandal | D6: : | E6: Udayagiri | J6: State Bank Of India (SBI), Kavali | K6: 0858 | L6: 7740-23040 | M6: I | BH6: 2012-2013 | BI6: 5 | BJ6: 2202-01-103-00-05 | BK6: 1 | BL6: 2011-02-102-00-04 | BM6: 4 | BN6: 2011 | BO6: State Legislature | BP6: 02 | BQ6: State Legislatures | BR6: 102 | BS6: Legislative Council | BT6: 00 | BV6: 04 | BW6: Legislative Council Secretariat | BY6: 2014 | BZ6: 04 | CA6: 005 | CB6: 08 | CC6: 04 | CD6: =BV1 -> Subhead | CE6: =IF(ISNA(CF8),"",VLOOKUP(CF8,Info!BM3:BW1013,10,FALSE)) -> 05 | CF6: =IF(ISNA(CF8),"",VLOOKUP(CF8,Info!BM3:BW1013,11,FALSE)) -> Teaching Grants to Mandal Praja Parishads | CN6: 6 | CO6: 0805- KAVALI | CP6: 1 | CQ6: 1 | CR6: Adilabad | CS6: 1305- BOATH | CT6: 1305 | CU6: BOATH | CV6: 13 | CW6: 05
C7: Name of The Sanction Authority | D7: : | E7: Sri _____________ | J7: State Bank Of India (SBI), Kovur | K7: 0798 | L7: 7960-23650 | M7: II | BH7: 2013-2014 | BI7: 6 | BJ7: 2202-01-107-10-11 | BK7: 1 | BL7: 2011-02-102-00-05 | BM7: 5 | BN7: 2011 | BO7: State Legislature | BP7: 02 | BQ7: State Legislatures | BR7: 102 | BS7: Legislative Council | BT7: 00 | BV7: 05 | BW7: Members | BY7: 2015 | BZ7: 05 | CA7: 053 | CB7: 10 | CC7: 05 | CN7: 7 | CO7: 0806- KOVUR | CP7: 1 | CQ7: 1 | CR7: Adilabad | CS7: 1306- CHINNOR | CT7: 1306 | CU7: CHINNOR | CV7: 13 | CW7: 06
C8: AAS Proceedings | D8: : | E8: R.C.No: | F8: ____________ | G8: http://ibknellore.tk | J8: State Bank Of India (SBI) ADB , Naidupet | K8: 5917 | L8: 8440-24950 | M8: III | BH8: 2014-2015 | BI8: 7 | BJ8: 2202-01-800-00-05 | BK8: 1 | BL8: 2011-02-103-00-04 | BM8: 6 | BN8: 2011 | BO8: State Legislature | BP8: 02 | BQ8: State Legislatures | BR8: 103 | BS8: Legislative Secretariat | BT8: 00 | BV8: 04 | BW8: Assembly Secretariat | BY8: 2029 | BZ8: 06 | CA8: 090 | CB8: 11 | CC8: 06 | CE8: =F25 -> 2202-01-103-00-05 | CF8: =VLOOKUP(Info!CE8,Info!BL3:BW1013,2,FALSE) -> 166 | CN8: 8 | CO8: 0813- NAIDUPETA | CP8: 1 | CQ8: 1 | CR8: Adilabad | CS8: 1307- KAGAZNAGAR | CT8: 1307 | CU8: KAGAZNAGAR | CV8: 13 | CW8: 07
C9: UTF NELLORE | D9: : | E9: Date: | F9: _______________ | J9: State Bank Of India (SBI), Nellore | K9: 0887 | L9: 9200-27000 | M9: IV | BH9: 2015-2016 | BI9: 8 | BJ9: 2202-01-800-00-10 | BK9: 1 | BL9: 2011-02-104-00-04 | BM9: 7 | BN9: 2011 | BO9: State Legislature | BP9: 02 | BQ9: State Legislatures | BR9: 104 | BS9: Legislators' Hostel | BT9: 00 | BV9: 04 | BW9: Legislators' Hostel | BY9: 2030 | BZ9: 08 | CA9: 092 | CB9: 00 | CC9: 07 | CE9: =CONCATENATE(CE2,"-",CE3,"-",CE4,"-",CE5,"-",CE6) -> 2202-01-103-00-05 | CN9: 9 | CO9: 0801- NELLORE | CP9: 1 | CQ9: 1 | CR9: Adilabad | CS9: 1308- KHANAPUR | CT9: 1308 | CU9: KHANAPUR | CV9: 13 | CW9: 08
B10: Salary Bill Authority | C10: Disgnation Of The DDO | D10: : | E10: =E3 -> Mandal Educational Officer | G10: Hostel Welfare Officer | J10: State Bank Of India (SBI) ADB , Podalakur | K10: 6052 | L10: 9460-27700 | M10: V | BH10: 2016-2017 | BI10: 9 | BJ10: 2202-01-800-00-75 | BK10: 1 | BL10: 2011-02-104-00-73 | BM10: 8 | BN10: 2011 | BO10: State Legislature | BP10: 02 | BQ10: State Legislatures | BR10: 104 | BS10: Legislators' Hostel | BT10: 00 | BV10: 73 | BW10: Residential Buildings (MLA Quarters) | BY10: 2039 | BZ10: 60 | CA10: 093 | CC10: 08 | CN10: 10 | CO10: 0802- NELLORE | CP10: 1 | CQ10: 1 | CR10: Adilabad | CS10: 1309- LAKSETTIPET | CT10: 1309 | CU10: LAKSETTIPET | CV10: 13 | CW10: 09
C11: Name of The Office | D11: : | E11: =E4 -> Mandal Parishad Udayagiri | J11: Syndicate Bank, Rapur | K11: 3468 | L11: 10020-29200 | M11: VI | BH11: 2017-2018 | BI11: 10 | BJ11: 2202-01-800-10-15 | BK11: 1 | BL11: 2012-03-090-00-04 | BM11: 9 | BN11: 2012 | BO11: Governor | BP11: 03 | BQ11: Governor | BR11: 090 | BS11: Secretariat | BT11: 00 | BV11: 04 | BW11: Secretariat (Charged) | BY11: 2040 | BZ11: 80 | CA11: 094 | CC11: 09 | CN11: 11 | CO11: 0812- PODALAKUR | CP11: 1 | CQ11: 1 | CR11: Adilabad | CS11: 1310- MANCHERIAL | CT11: 1310 | CU11: MANCHERIAL | CV11: 13 | CW11: 10
C12: District- Mandal | D12: : | E12: =E5 -> Sri Pottisreeramulu Nellore | G12: =E6 -> Udayagiri | J12: State Bank Of India (SBI), Sullurpet | K12: 0773 | L12: 10900-31550 | M12: VII | BH12: 2018-2019 | BI12: 11 | BJ12: 2202-01-800-10-16 | BK12: 1 | BL12: 2012-03-101-00-04 | BM12: 10 | BN12: 2012 | BO12: Governor | BP12: 03 | BQ12: Governor | BR12: 101 | BS12: Emoluments and Allowances of the Governor | BT12: 00 | BV12: 04 | BW12: Emoluments and Allowances of the Governor (Charged) | BY12: 2041 | BZ12: 00 | CA12: 095 | CC12: 10 | CN12: 12 | CO12: 0814- RAPUR | CP12: 1 | CQ12: 1 | CR12: Adilabad | CS12: 1311- MUDHOLE | CT12: 1311 | CU12: MUDHOLE | CV12: 13 | CW12: 11
C13: Messenger Name | D13: : | E13: _________________________ | G13: Programme Developed By | J13: Syndicate Bank, Udayagiri | K13: 3470 | L13: 11530-33200 | M13: VIII | BH13: 2019-2020 | BI13: 12 | BJ13: 2202-01-800-10-29 | BK13: 1 | BL13: 2012-03-103-00-04 | BM13: 11 | BN13: 2012 | BO13: Governor | BP13: 03 | BQ13: Governor | BR13: 103 | BS13: Household Establishment | BT13: 00 | BV13: 04 | BW13: Household Establishment (Charged) | BY13: 2045 | CA13: 096 | CC13: 11 | CN13: 13 | CO13: 0843-SP NELLORE | CP13: 1 | CQ13: 1 | CR13: Adilabad | CS13: 1312- NIRMAL | CT13: 1312 | CU13: NIRMAL | CV13: 13 | CW13: 12
C14: Designation | D14: : | E14: ___________________ | G14: I.BALAKRISHNAIAH | J14: State Bank Of India (SBI), Venkatagiri | K14: 0969 | L14: 11860-34050 | M14: IX | BH14: 2020-2021 | BI14: 13 | BJ14: 2202-01-800-11-36 | BK14: 1 | BL14: 2012-03-105-00-04 | BM14: 12 | BN14: 2012 | BO14: Governor | BP14: 03 | BQ14: Governor | BR14: 105 | BS14: Medical Facilities | BT14: 00 | BV14: 04 | BW14: Medical Facilities (Charged) | BY14: 2047 | CA14: 097 | CC14: 12 | CN14: 14 | CO14: 0808- SULLURPETA | CP14: 1 | CQ14: 1 | CR14: Adilabad | CS14: 1341-NIRMAL ADILABAD | CT14: 1341 | CU14: NIRMAL ADILABAD | CV14: 13 | CW14: 41
C15: DDO Phone No | D15: : | E15: _________ | G15: SA (Maths) | J15: State Bank Of India (SBI), Vidyanagar (Vakadu) | K15: 2811 | L15: 12550-35800 | M15: X | BH15: 2021-2022 | BI15: 14 | BJ15: 2202-02-001-00-04 | BK15: 1 | BL15: 2012-03-800-00-07 | BM15: 13 | BN15: 2012 | BO15: Governor | BP15: 03 | BQ15: Governor | BR15: 800 | BS15: Other Expenditure | BT15: 00 | BV15: 07 | BW15: Maintenance of Rajbhavan Gardens (Charged) | BY15: 2051 | CA15: 098 | CC15: 13 | CN15: 15 | CO15: 0842-TGP NELLORE | CP15: 1 | CQ15: 1 | CR15: Adilabad | CS15: 1313- SIRPUR | CT15: 1313 | CU15: SIRPUR | CV15: 13 | CW15: 13
B16: APTC-47 Information | C16: DDO Code | D16: : | E16: 08120308028 | G16: GMHS, Nellore | J16: State Bank Of India (SBI) ADB , Vinjamur | K16: 3177 | L16: 12910-36700 | M16: Inter-I | BH16: 2022-2023 | BI16: 15 | BJ16: 2202-02-004-00-04 | BK16: 1 | BL16: 2013-00-101-00-04 | BM16: 14 | BN16: 2013 | BO16: Council of Ministers | BP16: 00 | BR16: 101 | BS16: Salary of Ministers and Deputy Ministers | BT16: 00 | BV16: 04 | BW16: Salary of Ministers and Deputy Ministers | BY16: 2052 | CA16: 101 | CC16: 14 | CN16: 16 | CO16: 0807- UDAYAGIRI | CP16: 1 | CQ16: 1 | CR16: Adilabad | CS16: 1314- UTNOOR | CT16: 1314 | CU16: UTNOOR | CV16: 13 | CW16: 14
C17: Name of The Treasury | D17: : | E17: =IF(VLOOKUP(F17,CS2:CW366,5,FALSE)="01",CM2,CM3) -> Sub- Treasury | F17: 0807- UDAYAGIRI | G17: 9492268881 | J17: Designations | L17: 13660-38570 | M17: Inter-II | BH17: 2023-2024 | BI17: 16 | BJ17: 2202-02-004-06-04 | BK17: 1 | BL17: 2014-00-102-00-04 | BM17: 15 | BN17: 2014 | BO17: Administration of Justice | BP17: 00 | BR17: 102 | BS17: High Court | BT17: 00 | BV17: 04 | BW17: High Court (Charged) | BY17: 2053 | CA17: 102 | CC17: 15 | CN17: 17 | CO17: 0816- VAKADU | CP17: 1 | CQ17: 1 | CR17: Adilabad | CS17: 1315- WANKIDI | CT17: 1315 | CU17: WANKIDI | CV17: 13 | CW17: 15
C18: Treasury / P.A.O Code | D18: : | E18: =VLOOKUP(F17,CS2:CU366,2,FALSE) -> 0807 | J18: SA (Telugu) | L18: 14860-39540 | BH18: 2024-2025 | BI18: 17 | BJ18: 2202-02-004-10-04 | BK18: 1 | BL18: 2014-00-103-00-04 | BM18: 16 | BN18: 2014 | BO18: Administration of Justice | BP18: 00 | BR18: 103 | BS18: Special Courts | BT18: 00 | BV18: 04 | BW18: Special Courts for the Trial of Economic offences | BY18: 2054 | CA18: 103 | CC18: 16 | CN18: 18 | CO18: 0810- VENKATAGIRI | CP18: 1 | CQ18: 2 | CR18: Anantapur | CS18: 1001- ANANTAPUR | CT18: 1001 | CU18: ANANTAPUR | CV18: 10 | CW18: 01
C19: Name of the Bank & Address | D19: : | E19: =IF(VLOOKUP(F17,CS2:CY366,7,FALSE)=0,G19,VLOOKUP(F17,CS2:CY366,7,FALSE)) -> Syndicate Bank, Udayagiri | G19: State Bank of India, Kandukur | J19: SA (Hindi) | L19: 15280-40510 | BH19: 2025-2026 | BI19: 18 | BJ19: 2202-02-101-00-03 | BK19: 1 | BL19: 2014-00-103-00-05 | BM19: 17 | BN19: 2014 | BO19: Administration of Justice | BP19: 00 | BR19: 103 | BS19: Special Courts | BT19: 00 | BV19: 05 | BW19: Special Courts for the Trial of Prohibition and Excise Offences | BY19: 2055 | CA19: 104 | CC19: 17 | CN19: 19 | CO19: 0811- VINJAMURU | CP19: 1 | CQ19: 2 | CR19: Anantapur | CS19: 1002- ANANTAPUR | CT19: 1002 | CU19: ANANTAPUR | CV19: 10 | CW19: 02
C20: Bank Code | D20: : | E20: =IF(VLOOKUP(F17,CS2:CY366,6,FALSE)=0,G20,VLOOKUP(F17,CS2:CY366,6,FALSE)) -> 3470 | G20: 0854 | J20: SA (English) | L20: 16150-42590 | BH20: 2026-2027 | BI20: 19 | BJ20: 2202-02-105-00-04 | BK20: 1 | BL20: 2014-00-105-00-04 | BM20: 18 | BN20: 2014 | BO20: Administration of Justice | BP20: 00 | BR20: 105 | BS20: Civil & Sessions Courts | BT20: 00 | BV20: 04 | BW20: Civil and Sessions Courts | BY20: 2056 | CA20: 105 | CC20: 18 | CP20: 1 | CQ20: 2 | CR20: Anantapur | CS20: 1041-ANANTAPUR | CT20: 1041 | CU20: ANANTAPUR | CV20: 10 | CW20: 41
C21: Tan NO | D21: : | E21: _____________ | G21: Programme Updation On | J21: SA (Maths) | L21: 18030-43630 | BH21: 2027-2028 | BI21: 20 | BJ21: 2202-02-105-00-09 | BK21: 1 | BL21: 2014-00-105-00-05 | BM21: 19 | BN21: 2014 | BO21: Administration of Justice | BP21: 00 | BR21: 105 | BS21: Civil & Sessions Courts | BT21: 00 | BV21: 05 | BW21: Additional Session Courts (Fast Track Courts) | BY21: 2058 | CA21: 106 | CC21: 19 | CP21: 1 | CQ21: 2 | CR21: Anantapur | CS21: 1003- DHARMAVARAM | CT21: 1003 | CU21: DHARMAVARAM | CV21: 10 | CW21: 03
C22: Financial Year- Educational Consession Financial Year | D22: : | E22: 2012-2013 | G22: 19/03/2012 | J22: SA (PS) | L22: 19050-45850 | BH22: 2028-2029 | BI22: 21 | BJ22: 2202-02-106-00-05 | BK22: 1 | BL22: 2014-00-105-00-06 | BM22: 20 | BN22: 2014 | BO22: Administration of Justice | BP22: 00 | BR22: 105 | BS22: Civil & Sessions Courts | BT22: 00 | BV22: 06 | BW22: Mahila Courts | BY22: 2059 | CA22: 107 | CC22: 20 | CP22: 1 | CQ22: 2 | CR22: Anantapur | CS22: 1004- GOOTY | CT22: 1004 | CU22: GOOTY | CV22: 10 | CW22: 04
C23: Pay Bill For The Month | E23: April | F23: 2012 | J23: SA (BS) | L23: 20680-46960 | BH23: 2029-2030 | BI23: 22 | BJ23: 2202-02-108-00-04 | BK23: 1 | BL23: 2014-00-106-00-04 | BM23: 21 | BN23: 2014 | BO23: Administration of Justice | BP23: 00 | BR23: 106 | BS23: Small Causes Courts | BT23: 00 | BV23: 04 | BW23: Small Causes Courts | BY23: 2070 | CA23: 108 | CC23: 21 | CP23: 1 | CQ23: 2 | CR23: Anantapur | CS23: 1005- GUNTAKAL | CT23: 1005 | CU23: GUNTAKAL | CV23: 10 | CW23: 05
C24: TBR NO | E24: ___________ | F24: Date | G24: ____________ | J24: SA (SS) | L24: 21820-48160 | BH24: 2030-2031 | BI24: 23 | BJ24: 2202-02-109-00-04 | BK24: 1 | BL24: 2014-00-108-00-04 | BM24: 22 | BN24: 2014 | BO24: Administration of Justice | BP24: 00 | BR24: 108 | BS24: Criminal Courts | BT24: 00 | BV24: 04 | BW24: Honarary Railway Magistrates Courts | BY24: 2071 | CA24: 109 | CC24: 22 | CP24: 1 | CQ24: 2 | CR24: Anantapur | CS24: 1006- HINDUPUR | CT24: 1006 | CU24: HINDUPUR | CV24: 10 | CW24: 06
B25: Head of Account | C25: Major Head - Head of Account | D25: : | E25: 2202 | F25: 2202-01-103-00-05 | G25: =CF2 -> General Education | J25: SA (PD) | L25: 23650-49360 | BH25: 2031-2032 | BI25: 24 | BJ25: 2202-02-110-00-04 | BK25: 1 | BL25: 2014-00-108-00-05 | BM25: 23 | BN25: 2014 | BO25: Administration of Justice | BP25: 00 | BR25: 108 | BS25: Criminal Courts | BT25: 00 | BV25: 05 | BW25: Other Courts | BY25: 2202 | CA25: 110 | CC25: 23 | CP25: 1 | CQ25: 2 | CR25: Anantapur | CS25: 1007- KADIRI | CT25: 1007 | CU25: KADIRI | CV25: 10 | CW25: 07
C26: Sub Major | D26: : | E26: =IF(CE3="00","",CE3) -> 01 | F26: =CF3 -> Elementary Education | J26: LFLHM | L26: 25600-50560 | BH26: 2032-2033 | BI26: 25 | BJ26: 2202-02-110-00-06 | BK26: 1 | BL26: 2014-00-108-00-07 | BM26: 24 | BN26: 2014 | BO26: Administration of Justice | BP26: 00 | BR26: 108 | BS26: Criminal Courts | BT26: 00 | BV26: 07 | BW26: Mobile Courts for Eradicating Ticketless Travel and other offences in the stage carriage of A.P.S.R.T.C | BY26: 2203 | CA26: 111 | CC26: 24 | CP26: 1 | CQ26: 2 | CR26: Anantapur | CS26: 1008- KALYANDURG | CT26: 1008 | CU26: KALYANDURG | CV26: 10 | CW26: 08
C27: Minor Head | D27: : | E27: =IF(CE4="00","",CE4) -> 103 | F27: =CF4 -> Assistance to Local Bodies for Primary Education | J27: SGT | L27: 27000-51760 | BH27: 2033-2034 | BI27: 26 | BJ27: 2202-02-191-00-04 | BK27: 1 | BL27: 2014-00-108-00-11 | BM27: 25 | BN27: 2014 | BO27: Administration of Justice | BP27: 00 | BR27: 108 | BS27: Criminal Courts | BT27: 00 | BV27: 11 | BW27: Special Courts for dealing C.B.I Cases | BY27: 2204 | CA27: 112 | CC27: 25 | CP27: 1 | CQ27: 2 | CR27: Anantapur | CS27: 1009- KAMBADUR | CT27: 1009 | CU27: KAMBADUR | CV27: 10 | CW27: 09
C28: Group Sub-Head | D28: : | E28: =IF(CE5="00","",CE5) ->  | F28: =CF5 ->  | J28: LP (Telugu) | L28: 29200-53060 | BH28: 2034-2035 | BI28: 27 | BJ28: 2202-02-191-00-05 | BK28: 1 | BL28: 2014-00-110-00-04 | BM28: 26 | BN28: 2014 | BO28: Administration of Justice | BP28: 00 | BR28: 110 | BS28: Administrator General and Official Trustees | BT28: 00 | BV28: 04 | BW28: Administrator-General and Official Trustees | BY28: 2205 | CA28: 113 | CC28: 26 | CP28: 1 | CQ28: 2 | CR28: Anantapur | CS28: 1010- KANEKAL | CT28: 1010 | CU28: KANEKAL | CV28: 10 | CW28: 10
C29: Sub Head | D29: : | E29: =IF(CE6="00","",CE6) -> 05 | F29: Teaching Grants to Mandal Praja Parishads | J29: LP (Hindi) | L29: 31550-53060 | BH29: 2035-2036 | BI29: 28 | BJ29: 2202-02-789-06-05 | BK29: 1 | BL29: 2014-00-112-00-04 | BM29: 27 | BN29: 2014 | BO29: Administration of Justice | BP29: 00 | BR29: 112 | BS29: Official Receivers | BT29: 00 | BV29: 04 | BW29: Official Receivers | BY29: 2210 | CA29: 114 | CC29: 27 | CP29: 1 | CQ29: 2 | CR29: Anantapur | CS29: 1011- KOTHACHERUVU | CT29: 1011 | CU29: KOTHACHERUVU | CV29: 10 | CW29: 11
C30: Detail Head | D30: : | E30: 010 | F30: Salaries | J30: PET | L30: 34050-54360 | BH30: 2036-2037 | BI30: 29 | BJ30: 2202-02-796-06-05 | BK30: 1 | BL30: 2014-00-114-00-04 | BM30: 28 | BN30: 2014 | BO30: Administration of Justice | BP30: 00 | BR30: 114 | BS30: Legal Advisers and Counsels | BT30: 00 | BV30: 04 | BW30: Legal Advisers and Counsels | BY30: 2211 | CA30: 115 | CC30: 28 | CP30: 1 | CQ30: 2 | CR30: Anantapur | CS30: 1012- MADAKASIRA | CT30: 1012 | CU30: MADAKASIRA | CV30: 10 | CW30: 12
C31: Non-plan=N/Plan=P | D31: : | E31: N | J31: Drawing Teacher | L31: 37600-54360 | BH31: 2037-2038 | BI31: 30 | BJ31: 2202-02-800-10-20 | BK31: 1 | BL31: 2014-00-114-00-09 | BM31: 29 | BN31: 2014 | BO31: Administration of Justice | BP31: 00 | BR31: 114 | BS31: Legal Advisers and Counsels | BT31: 00 | BV31: 09 | BW31: Andhra Pradesh State Legal Services Authority | BY31: 2215 | CA31: 116 | CC31: 29 | CP31: 1 | CQ31: 2 | CR31: Anantapur | CS31: 1013- PENUKONDA | CT31: 1013 | CU31: PENUKONDA | CV31: 10 | CW31: 13
C32: Charged=C/Voted=V | D32: : | E32: V | J32: Music Teacher | L32: 41550-55660 | BH32: 2038-2039 | BI32: 31 | BJ32: 2202-03-001-00-01 | BK32: 1 | BL32: 2014-00-114-00-10 | BM32: 30 | BN32: 2014 | BO32: Administration of Justice | BP32: 00 | BR32: 114 | BS32: Legal Advisers and Counsels | BT32: 00 | BV32: 10 | BW32: High Court Legal Service Committee | BY32: 2216 | CA32: 117 | CC32: 30 | CP32: 1 | CQ32: 2 | CR32: Anantapur | CS32: 1014- RAYADURG | CT32: 1014 | CU32: RAYADURG | CV32: 10 | CW32: 14
C33: Contingency Fund/MH Service Major Head | D33: : | E33: =E25 -> 2202 | J33: Dance Teacher | L33: 44740-55660 | BH33: 2039-2040 | BI33: 32 | BJ33: 2202-03-001-00-02 | BK33: 1 | BL33: 2014-00-114-00-13 | BM33: 31 | BN33: 2014 | BO33: Administration of Justice | BP33: 00 | BR33: 114 | BS33: Legal Advisers and Counsels | BT33: 00 | BV33: 13 | BW33: Directorate of Prosecutions (Headquarters office) | BY33: 2217 | CA33: 119 | CC33: 31 | CP33: 1 | CQ33: 2 | CR33: Anantapur | CS33: 1015- SINGANAMALA | CT33: 1015 | CU33: SINGANAMALA | CV33: 10 | CW33: 15
B34: =A1 -> Welcome To UTF | J34: Vocational Training Instructor | BH34: 2040-2041 | BI34: 33 | BJ34: 2202-03-001-00-03 | BK34: 1 | BL34: 2014-00-114-00-14 | BM34: 32 | BN34: 2014 | BO34: Administration of Justice | BP34: 00 | BR34: 114 | BS34: Legal Advisers and Counsels | BT34: 00 | BV34: 14 | BW34: District Offices of Prosecutions | BY34: 2220 | CA34: 120 | CC34: 32 | CP34: 1 | CQ34: 2 | CR34: Anantapur | CS34: 1016- TADIPATRI | CT34: 1016 | CU34: TADIPATRI | CV34: 10 | CW34: 16
C35: UTF NELLORE | J35: Superintendent | BH35: 2041-2042 | BI35: 34 | BJ35: 2202-03-001-00-05 | BK35: 1 | BL35: 2014-00-114-00-15 | BM35: 33 | BN35: 2014 | BO35: Administration of Justice | BP35: 00 | BR35: 114 | BS35: Legal Advisers and Counsels | BT35: 00 | BV35: 15 | BW35: A.P. State Legal Services Authority (District Offices) | BY35: 2225 | CA35: 122 | CC35: 33 | CP35: 1 | CQ35: 2 | CR35: Anantapur | CS35: 1017- URAVAKONDA | CT35: 1017 | CU35: URAVAKONDA | CV35: 10 | CW35: 17
C36: Programme Developed by | J36: Senior Assistant | BH36: 2042-2043 | BI36: 35 | BJ36: 2202-03-001-00-75 | BK36: 1 | BL36: 2014-00-114-00-16 | BM36: 34 | BN36: 2014 | BO36: Administration of Justice | BP36: 00 | BR36: 114 | BS36: Legal Advisers and Counsels | BT36: 00 | BV36: 16 | BW36: A.P.State Legal Services Authority ( Mandal Offices) | BY36: 2230 | CA36: 123 | CC36: 34 | CP36: 1 | CQ36: 3 | CR36: Chittoor | CS36: 1103- BANGARUPALEM | CT36: 1103 | CU36: BANGARUPALEM | CV36: 11 | CW36: 03
C37: I.BALAKRISHNAIAH | J37: Junior Assistant | BH37: 2043-2044 | BI37: 36 | BJ37: 2202-03-001-10-01 | BK37: 1 | BL37: 2014-00-114-00-18 | BM37: 35 | BN37: 2014 | BO37: Administration of Justice | BP37: 00 | BR37: 114 | BS37: Legal Advisers and Counsels | BT37: 00 | BV37: 18 | BW37: Permanent Lok Adalaths for Public Utility Services | BY37: 2235 | CA37: 125 | CC37: 35 | CP37: 1 | CQ37: 3 | CR37: Chittoor | CS37: 1104- CHANDRAGIRI | CT37: 1104 | CU37: CHANDRAGIRI | CV37: 11 | CW37: 04
C38: SCHOOL ASSISTANT (MATHE MATICS) | J38: Librarian High Schools | BH38: 2044-2045 | BI38: 37 | BJ38: 2202-03-001-11-03 | BK38: 1 | BL38: 2014-00-116-00-04 | BM38: 36 | BN38: 2014 | BO38: Administration of Justice | BP38: 00 | BR38: 116 | BS38: State Administrative Tribunals | BT38: 00 | BV38: 04 | BW38: Andhra Pradesh Administrative Tribunal | BY38: 2236 | CA38: 127 | CC38: 36 | CP38: 1 | CQ38: 3 | CR38: Chittoor | CS38: 1101- CHITTOOR | CT38: 1101 | CU38: CHITTOOR | CV38: 11 | CW38: 01
C39: GOVT MODEL HIGH SCHOOL, NELLORE | J39: Film Operator | BH39: 2045-2046 | BI39: 38 | BJ39: 2202-03-102-00-17 | BK39: 1 | BL39: 2014-00-117-00-05 | BM39: 37 | BN39: 2014 | BO39: Administration of Justice | BP39: 00 | BR39: 117 | BS39: Family Courts | BT39: 00 | BV39: 05 | BW39: Family Courts | BY39: 2245 | CA39: 129 | CC39: 37 | CP39: 1 | CQ39: 3 | CR39: Chittoor | CS39: 1102- CHITTOOR | CT39: 1102 | CU39: CHITTOOR | CV39: 11 | CW39: 02
C40: Phone No: 9492268881 | J40: Record Assistant | BH40: 2046-2047 | BI40: 39 | BJ40: 2202-03-102-00-75 | BK40: 1 | BL40: 2014-00-800-00-05 | BM40: 38 | BN40: 2014 | BO40: Administration of Justice | BP40: 00 | BR40: 800 | BS40: Other Expenditure | BT40: 00 | BV40: 05 | BW40: Andhra Pradesh Judicial Academy | BY40: 2250 | CA40: 133 | CC40: 38 | CP40: 1 | CQ40: 3 | CR40: Chittoor | CS40: 1142-CHITTOOR | CT40: 1142 | CU40: CHITTOOR | CV40: 11 | CW40: 42
C41: Email: ibknellore@hotmail.com / iruvuru.balakrishnaiah@gmail.com | J41: Office Subordinate | BH41: 2047-2048 | BI41: 40 | BJ41: 2202-03-102-11-04 | BK41: 1 | BL41: 2014-00-800-00-14 | BM41: 39 | BN41: 2014 | BO41: Administration of Justice | BP41: 00 | BR41: 800 | BS41: Other Expenditure | BT41: 00 | BV41: 14 | BW41: State Human Rights Commission | BY41: 2251 | CA41: 134 | CC41: 39 | CP41: 1 | CQ41: 3 | CR41: Chittoor | CS41: 1105- KUPPAM | CT41: 1105 | CU41: KUPPAM | CV41: 11 | CW41: 05
J42: Sweeper | BI42: 41 | BJ42: 2202-03-102-11-05 | BK42: 1 | BL42: 2014-00-800-00-15 | BM42: 40 | BN42: 2014 | BO42: Administration of Justice | BP42: 00 | BR42: 800 | BS42: Other Expenditure | BT42: 00 | BV42: 15 | BW42: A.P. State Human Rights Commission | BY42: 2401 | CA42: 135 | CC42: 40 | CP42: 1 | CQ42: 3 | CR42: Chittoor | CS42: 1106- MADANAPALLI | CT42: 1106 | CU42: MADANAPALLI | CV42: 11 | CW42: 06
J43: Gardinar | BI43: 42 | BJ43: 2202-03-102-11-06 | BK43: 1 | BL43: 2015-00-102-00-01 | BM43: 41 | BN43: 2015 | BO43: Elections | BP43: 00 | BR43: 102 | BS43: Electoral Officers | BT43: 00 | BV43: 01 | BW43: Headquarters Office | BY43: 2402 | CA43: 138 | CC43: 41 | CP43: 1 | CQ43: 3 | CR43: Chittoor | CS43: 1107- NAGARI | CT43: 1107 | CU43: NAGARI | CV43: 11 | CW43: 07
J44: Scavenger | BI44: 43 | BJ44: 2202-03-102-11-07 | BK44: 1 | BL44: 2015-00-102-00-03 | BM44: 42 | BN44: 2015 | BO44: Elections | BP44: 00 | BR44: 102 | BS44: Electoral Officers | BT44: 00 | BV44: 03 | BW44: District Offices | BY44: 2403 | CA44: 140 | CC44: 42 | CP44: 1 | CQ44: 3 | CR44: Chittoor | CS44: 1108- PAKALA | CT44: 1108 | CU44: PAKALA | CV44: 11 | CW44: 08
BI45: 44 | BJ45: 2202-03-102-11-08 | BK45: 1 | BL45: 2015-00-103-00-04 | BM45: 43 | BN45: 2015 | BO45: Elections | BP45: 00 | BR45: 103 | BS45: Preparation and Printing of Electoral Rolls | BT45: 00 | BV45: 04 | BW45: Assembly and Parliamentary Constituencies | BY45: 2405 | CA45: 155 | CC45: 43 | CP45: 1 | CQ45: 3 | CR45: Chittoor | CS45: 1109- PALAMANER | CT45: 1109 | CU45: PALAMANER | CV45: 11 | CW45: 09
BI46: 45 | BJ46: 2202-03-102-11-09 | BK46: 1 | BL46: 2015-00-103-00-07 | BM46: 44 | BN46: 2015 | BO46: Elections | BP46: 00 | BR46: 103 | BS46: Preparation and Printing of Electoral Rolls | BT46: 00 | BV46: 07 | BW46: Legislative Council | BY46: 2406 | CA46: 156 | CC46: 44 | CP46: 1 | CQ46: 3 | CR46: Chittoor | CS46: 1110- PILER | CT46: 1110 | CU46: PILER | CV46: 11 | CW46: 10
BI47: 46 | BJ47: 2202-03-102-11-10 | BK47: 1 | BL47: 2015-00-104-00-04 | BM47: 45 | BN47: 2015 | BO47: Elections | BP47: 00 | BR47: 104 | BS47: Charges for Conduct of Elections for Loksabha and State Legislative Assemblies when held simultaneously | BT47: 00 | BV47: 04 | BW47: Conduct of Elections to Loksabha and State Assembly | BY47: 2415 | CA47: 165 | CC47: 45 | CP47: 1 | CQ47: 3 | CR47: Chittoor | CS47: 1111- PUNGANUR | CT47: 1111 | CU47: PUNGANUR | CV47: 11 | CW47: 11
BI48: 47 | BJ48: 2202-03-102-11-11 | BK48: 1 | BL48: 2015-00-108-00-04 | BM48: 46 | BN48: 2015 | BO48: Elections | BP48: 00 | BR48: 108 | BS48: Issue of Photo Identity Cards to Voters | BT48: 00 | BV48: 04 | BW48: Photo Identity Cards to Voters | BY48: 2425 | CA48: 167 | CC48: 47 | CP48: 1 | CQ48: 3 | CR48: Chittoor | CS48: 1112- PUTTUR | CT48: 1112 | CU48: PUTTUR | CV48: 11 | CW48: 12
E49: =CONCATENATE(E23,"-",F23) -> April-2012 | BI49: 48 | BJ49: 2202-03-102-11-16 | BK49: 1 | BL49: 2029-00-001-00-01 | BM49: 47 | BN49: 2029 | BO49: Land Revenue | BP49: 00 | BR49: 001 | BS49: Direction and Administration | BT49: 00 | BV49: 01 | BW49: Headquarters Office (Chief Commissioner of Land Administration) | BY49: 2435 | CA49: 190 | CC49: 64 | CP49: 1 | CQ49: 3 | CR49: Chittoor | CS49: 1113- SATYAVEDU | CT49: 1113 | CU49: SATYAVEDU | CV49: 11 | CW49: 13
E50: Month | F50: Year | BI50: 49 | BJ50: 2202-03-102-11-20 | BK50: 1 | BL50: 2029-00-001-00-04 | BM50: 48 | BN50: 2029 | BO50: Land Revenue | BP50: 00 | BR50: 001 | BS50: Direction and Administration | BT50: 00 | BV50: 04 | BW50: Director of Settlements | BY50: 2501 | CA50: 191 | CC50: 70 | CP50: 1 | CQ50: 3 | CR50: Chittoor | CS50: 1114- SRIKALAHASTI | CT50: 1114 | CU50: SRIKALAHASTI | CV50: 11 | CW50: 14
E51: =E23 -> April | F51: =F23 -> 2012 | BI51: 50 | BJ51: 2202-03-102-11-21 | BK51: 1 | BL51: 2029-00-001-00-05 | BM51: 49 | BN51: 2029 | BO51: Land Revenue | BP51: 00 | BR51: 001 | BS51: Direction and Administration | BT51: 00 | BV51: 05 | BW51: Director of Survey and Land Records | BY51: 2506 | CA51: 196 | CC51: 73 | CP51: 1 | CQ51: 3 | CR51: Chittoor | CS51: 1115- THAMBALLAPALLE | CT51: 1115 | CU51: THAMBALLAPALLE | CV51: 11 | CW51: 15
E52: January | F52: 2010 | BI52: 51 | BJ52: 2202-03-102-11-22 | BK52: 1 | BL52: 2029-00-102-00-07 | BM52: 50 | BN52: 2029 | BO52: Land Revenue | BP52: 00 | BR52: 102 | BS52: Survey and Settlement Operations | BT52: 00 | BV52: 07 | BW52: District Survey Establishment | BY52: 2515 | CA52: 197 | CC52: 74 | CP52: 1 | CQ52: 3 | CR52: Chittoor | CS52: 1117- THOTTAMBEDU | CT52: 1117 | CU52: THOTTAMBEDU | CV52: 11 | CW52: 17
E53: February | F53: 2011 | BI53: 52 | BJ53: 2202-03-102-11-23 | BK53: 1 | BL53: 2029-00-102-11-11 | BM53: 51 | BN53: 2029 | BO53: Land Revenue | BP53: 00 | BR53: 102 | BS53: Survey and Settlement Operations | BT53: 11 | BU53: Normal State Plan | BV53: 11 | BW53: Survey and Settlement of Forest Boundaries | BY53: 2700 | CA53: 198 | CC53: 75 | CP53: 1 | CQ53: 3 | CR53: Chittoor | CS53: 1116- TIRUPATI | CT53: 1116 | CU53: TIRUPATI | CV53: 11 | CW53: 16
E54: March | F54: 2012 | BI54: 53 | BJ54: 2202-03-102-11-35 | BK54: 1 | BL54: 2029-00-800-11-04 | BM54: 52 | BN54: 2029 | BO54: Land Revenue | BP54: 00 | BR54: 800 | BS54: Other Expenditure | BT54: 11 | BU54: Normal State Plan | BV54: 04 | BW54: Survey Training School (D.S.S. & L.R.) | BY54: 2701 | CA54: 200 | CP54: 1 | CQ54: 3 | CR54: Chittoor | CS54: 1141-TIRUPATI | CT54: 1141 | CU54: TIRUPATI | CV54: 11 | CW54: 41
E55: April | F55: 2013 | BI55: 54 | BJ55: 2202-03-102-11-36 | BK55: 1 | BL55: 2030-03-001-00-01 | BM55: 53 | BN55: 2030 | BO55: Stamps and Registration | BP55: 03 | BQ55: Registration | BR55: 001 | BS55: Direction and Administration | BT55: 00 | BV55: 01 | BW55: Headquarters Office | BY55: 2702 | CA55: 201 | CP55: 1 | CQ55: 3 | CR55: Chittoor | CS55: 1118- VAYALPAD | CT55: 1118 | CU55: VAYALPAD | CV55: 11 | CW55: 18
E56: May | F56: 2014 | BI56: 55 | BJ56: 2202-03-102-11-37 | BK56: 1 | BL56: 2030-03-001-00-03 | BM56: 54 | BN56: 2030 | BO56: Stamps and Registration | BP56: 03 | BQ56: Registration | BR56: 001 | BS56: Direction and Administration | BT56: 00 | BV56: 03 | BW56: District Offices | BY56: 2705 | CA56: 277 | CP56: 1 | CQ56: 4 | CR56: East Godavari | CS56: 0302- ADDATHEEGALA | CT56: 0302 | CU56: ADDATHEEGALA | CV56: 03 | CW56: 02
E57: June | F57: 2015 | BI57: 56 | BJ57: 2202-03-102-11-38 | BK57: 1 | BL57: 2039-00-001-00-01 | BM57: 55 | BN57: 2039 | BO57: State Excise | BP57: 00 | BR57: 001 | BS57: Direction and Administration | BT57: 00 | BV57: 01 | BW57: Headquarters Office | BY57: 2711 | CA57: 282 | CP57: 1 | CQ57: 4 | CR57: East Godavari | CS57: 0303- ALAMUR | CT57: 0303 | CU57: ALAMUR | CV57: 03 | CW57: 03
E58: July | F58: 2016 | BI58: 57 | BJ58: 2202-03-102-11-39 | BK58: 1 | BL58: 2039-00-001-00-03 | BM58: 56 | BN58: 2039 | BO58: State Excise | BP58: 00 | BR58: 001 | BS58: Direction and Administration | BT58: 00 | BV58: 03 | BW58: District Offices | BY58: 2801 | CA58: 337 | CP58: 1 | CQ58: 4 | CR58: East Godavari | CS58: 0304- AMALAPURAM | CT58: 0304 | CU58: AMALAPURAM | CV58: 03 | CW58: 04
E59: August | F59: 2017 | BI59: 58 | BJ59: 2202-03-102-11-40 | BK59: 1 | BL59: 2039-00-001-00-70 | BM59: 57 | BN59: 2039 | BO59: State Excise | BP59: 00 | BR59: 001 | BS59: Direction and Administration | BT59: 00 | BV59: 70 | BW59: Training Colleges | BY59: 2810 | CA59: 789 | CP59: 1 | CQ59: 4 | CR59: East Godavari | CS59: 0343-DAWALESWARAM EGO | CT59: 0343 | CU59: DAWALESWARAM EGO | CV59: 03 | CW59: 43
E60: September | F60: 2018 | BI60: 59 | BJ60: 2202-03-102-11-41 | BK60: 1 | BL60: 2039-00-800-00-05 | BM60: 58 | BN60: 2039 | BO60: State Excise | BP60: 00 | BR60: 800 | BS60: Other Expenditure | BT60: 00 | BV60: 05 | BW60: Assistance to A.P. Toddy Tappers Co-operative Finance Corporation Ltd., | BY60: 2851 | CA60: 796 | CP60: 1 | CQ60: 4 | CR60: East Godavari | CS60: 0301- EAST GODAVARI | CT60: 0301 | CU60: EAST GODAVARI | CV60: 03 | CW60: 01
E61: October | F61: 2019 | BI61: 60 | BJ61: 2202-03-103-00-04 | BK61: 1 | BL61: 2040-00-001-00-01 | BM61: 59 | BN61: 2040 | BO61: Taxes on Sales, Trade etc., | BP61: 00 | BR61: 001 | BS61: Direction and Administration | BT61: 00 | BV61: 01 | BW61: Headquarters Office | BY61: 2852 | CA61: 800 | CP61: 1 | CQ61: 4 | CR61: East Godavari | CS61: 0318- JAGGAMPET | CT61: 0318 | CU61: JAGGAMPET | CV61: 03 | CW61: 18
E62: November | F62: 2020 | BI62: 61 | BJ62: 2202-03-103-00-07 | BK62: 1 | BL62: 2040-00-001-00-03 | BM62: 60 | BN62: 2040 | BO62: Taxes on Sales, Trade etc., | BP62: 00 | BR62: 001 | BS62: Direction and Administration | BT62: 00 | BV62: 03 | BW62: District Offices | BY62: 2853 | CP62: 1 | CQ62: 4 | CR62: East Godavari | CS62: 0342-KAKINADA EGO | CT62: 0342 | CU62: KAKINADA EGO | CV62: 03 | CW62: 42
E63: December | F63: 2021 | BI63: 62 | BJ63: 2202-03-103-11-04 | BK63: 1 | BL63: 2040-00-001-00-04 | BM63: 61 | BN63: 2040 | BO63: Taxes on Sales, Trade etc., | BP63: 00 | BR63: 001 | BS63: Direction and Administration | BT63: 00 | BV63: 04 | BW63: Sales Tax Appellate Tribunal | BY63: 3051 | CP63: 1 | CQ63: 4 | CR63: East Godavari | CS63: 0305- KAKINADA LOCAL | CT63: 0305 | CU63: KAKINADA LOCAL | CV63: 03 | CW63: 05
BI64: 63 | BJ64: 2202-03-103-11-05 | BK64: 1 | BL64: 2040-00-001-00-05 | BM64: 62 | BN64: 2040 | BO64: Taxes on Sales, Trade etc., | BP64: 00 | BR64: 001 | BS64: Direction and Administration | BT64: 00 | BV64: 05 | BW64: Training Institute | BY64: 3053 | CP64: 1 | CQ64: 4 | CR64: East Godavari | CS64: 0319-KORUKONDA | CT64: 0319 | CU64: KORUKONDA | CV64: 03 | CW64: 19
BI65: 64 | BJ65: 2202-03-103-11-07 | BK65: 1 | BL65: 2040-00-001-00-08 | BM65: 63 | BN65: 2040 | BO65: Taxes on Sales, Trade etc., | BP65: 00 | BR65: 001 | BS65: Direction and Administration | BT65: 00 | BV65: 08 | BW65: Integrated Check Posts | BY65: 3054 | CP65: 1 | CQ65: 4 | CR65: East Godavari | CS65: 0306- KOTHAPETA | CT65: 0306 | CU65: KOTHAPETA | CV65: 03 | CW65: 06
C66: District | E66: Mandal | G66: District | J66: =LOOKUP(K66,$C$67:$D$1188) -> 46 | K66: =E5 -> Sri Pottisreeramulu Nellore | L66: =LOOKUP(M66,$C$67:$D$1189) -> 46 | M66: =E12 -> Sri Pottisreeramulu Nellore | N66: =LOOKUP(O66,$C$67:$D$1189) -> 59 | O66: =G70 -> East Godavari | P66: =LOOKUP(Q66,$C$67:$D$1189) -> 57 | Q66: =G71 -> Guntur | S66: 1 | T66: One | U66: Tution Fee | V66: =Pro!I1018 -> 371000 | W66: =UPPER(IF(V66=0,"NIL",IF(AND(Y66=0,AB66=0,AE66=0,AH66=0),AK66,IF(AND(Y66=0,AB66=0,AE66=0),CONCATENATE(AI66,IF(AJ66>0,"and "," "),AK66),IF(AND(Y66=0,AB66=0),CONCATENATE(AF66,IF(AND(AJ66=0,AH66>0),"and ", ""),AI66,IF(AJ66>0,"and "," "),AK66),IF(Y66=0,CONCATENATE(AC66,IF(AND(AJ66=0,AH66=0,AE66>0),"and ", ""),AF66,IF(AND(AJ66=0,AH66>0),"and ", ""),AI66,IF(AJ66>0,"and "," "),AK66),CONCATENATE(Z66,IF(AND(AJ66=0,AH66=0,AE66=0,AB66>0),"and ", ""),AC66,IF(AND(AJ66=0,AH66=0,AE66>0),"and ", ""),AF66,IF(AND(AJ66=0,AH66>0),"and ", ""),AI66,IF(AJ66>0,"and "," "),AK66))))))) -> THREE LAKHS AND SEVENTY ONE THOUSAND | X66: =INT(V66/10000000)*10000000 -> 0 | Y66: =INT(V66/10000000) -> 0 | Z66: =IF(Y66=1,CONCATENATE(VLOOKUP(Y66,$S$66:$T$164,2)," Crore "),IF(Y66>1,CONCATENATE(VLOOKUP(Y66,$S$66:$T$164,2)," Crores "),"")) ->  | AA66: =INT(V66/100000)*100000-X66 -> 300000 | AB66: =INT(AA66/100000) -> 3 | AC66: =IF(AB66=1,CONCATENATE(VLOOKUP(AB66,$S$66:$T$164,2)," Lakh "),IF(AB66>1,CONCATENATE(VLOOKUP(AB66,$S$66:$T$164,2)," Lakhs "),"")) -> Three Lakhs | AD66: =INT(V66/1000)*1000-X66-AA66 -> 71000 | AE66: =INT(AD66/1000) -> 71 | AF66: =IF(AE66>0,CONCATENATE(VLOOKUP(AE66,$S$66:$T$164,2)," Thousand "),"") -> Seventy One Thousand | AG66: =INT(V66/100)*100-X66-AA66-AD66 -> 0 | AH66: =INT(AG66/100) -> 0 | AI66: =IF(AH66>0,CONCATENATE(VLOOKUP(AH66,$S$66:$T$164,2)," Hundred "),"") ->  | AJ66: =V66-X66-AA66-AD66-AG66 -> 0 | AK66: =IF(AJ66>0, VLOOKUP(AJ66,$S$66:$T$164,2),"") ->  | BI66: 65 | BJ66: 2202-03-104-00-04 | BK66: 1 | BL66: 2040-00-001-00-09 | BM66: 64 | BN66: 2040 | BO66: Taxes on Sales, Trade etc., | BP66: 00 | BR66: 001 | BS66: Direction and Administration | BT66: 00 | BV66: 09 | BW66: Project Management Team for implementing V.A.T. | BY66: 3056 | CP66: =IF(EXACT($CO$1,CR66),CP65+1,1) -> 1 | CQ66: 4 | CR66: East Godavari | CS66: 0307- MUMMIDIVARAM | CT66: 0307 | CU66: MUMMIDIVARAM | CV66: 03 | CW66: 07
A67: 1 | B67: 1 | C67: Adilabad | D67: 1 | E67: Adilabad | G67: Adilabad | H67: 1 | I67: =LOOKUP(G67,$C$67:$D$1188) -> 52 | J67: =LOOKUP(K66,$G$92:$H$114) -> 862 | K67: Mandal -1 | L67: =LOOKUP(M66,$G$92:$H$114) -> 862 | M67: Mandal-2 | N67: =LOOKUP(O66,$G$92:$H$114) -> 240 | O67: Mandal-3 | P67: =LOOKUP(Q66,$G$92:$H$114) -> 297 | Q67: Mandal-4 | S67: 2 | T67: Two | U67: =Main!D851 -> 0 | V67: =V66+1 -> 371001 | W67: =UPPER(IF(V67=0,"NIL",IF(AND(Y67=0,AB67=0,AE67=0,AH67=0),AK67,IF(AND(Y67=0,AB67=0,AE67=0),CONCATENATE(AI67,IF(AJ67>0,"and "," "),AK67),IF(AND(Y67=0,AB67=0),CONCATENATE(AF67,IF(AND(AJ67=0,AH67>0),"and ", ""),AI67,IF(AJ67>0,"and "," "),AK67),IF(Y67=0,CONCATENATE(AC67,IF(AND(AJ67=0,AH67=0,AE67>0),"and ", ""),AF67,IF(AND(AJ67=0,AH67>0),"and ", ""),AI67,IF(AJ67>0,"and "," "),AK67),CONCATENATE(Z67,IF(AND(AJ67=0,AH67=0,AE67=0,AB67>0),"and ", ""),AC67,IF(AND(AJ67=0,AH67=0,AE67>0),"and ", ""),AF67,IF(AND(AJ67=0,AH67>0),"and ", ""),AI67,IF(AJ67>0,"and "," "),AK67))))))) -> THREE LAKHS SEVENTY ONE THOUSAND AND ONE | X67: 0 | Y67: 0 | AA67: 300000 | AB67: 3 | AC67: Three Lakhs | AD67: 71000 | AE67: 71 | AF67: Seventy One Thousand | AG67: 0 | AH67: 0 | AJ67: 1 | AK67: One | BI67: 66 | BJ67: 2202-03-104-00-05 | BK67: 1 | BL67: =CONCATENATE(BN67,"-",BP67,"-",BR67,"-",BT67,"-",BV67) -> 2040-00-001-00-10 | BM67: 65 | BN67: 2040 | BO67: Taxes on Sales, Trade etc., | BP67: 00 | BR67: 001 | BS67: Direction and Administration | BT67: 00 | BV67: 10 | BW67: Sales Tax Appellate Tribunal, Additional Bench, Visakhapatnam | BY67: 3425 | CP67: 1 | CQ67: 4 | CR67: East Godavari | CS67: 0308- PEDDAPURAM | CT67: 0308 | CU67: PEDDAPURAM | CV67: 03 | CW67: 08
A68: 2 | B68: 1 | C68: Adilabad | D68: 2 | E68: Asifabad | F68: 1 | G68: Anantapur | H68: =I67+H67 -> 53 | I68: =LOOKUP(G68,$C$67:$D$1189) -> 63 | J68: =LOOKUP(K66,$G$67:$H$89) -> 817 | K68: =IF(J68>$J$67,"",VLOOKUP(J68,$A$67:$E$1189,5)) -> Allur | L68: =LOOKUP(M66,$G$67:$H$89) -> 817 | M68: =IF(L68>$L$67,"",VLOOKUP(L68,$A$67:$E$1189,5)) -> Allur | N68: =LOOKUP(O66,$G$67:$H$89) -> 182 | O68: =IF(N68>$N$67,"",VLOOKUP(N68,$A$67:$E$1189,5)) -> Addateegala | P68: =LOOKUP(Q66,$G$67:$H$89) -> 241 | Q68: =IF(P68>$P$67,"",VLOOKUP(P68,$A$67:$E$1189,5)) -> Achampeta | S68: 3 | T68: Three | U68: Bank | V68: ='BA-I'!E510 -> 332000 | W68: THREE LAKHS AND THIRTY TWO THOUSAND | X68: 0 | Y68: 0 | AA68: 300000 | AB68: 3 | AC68: Three Lakhs | AD68: 32000 | AE68: 32 | AF68: Thirty Two Thousand | AG68: 0 | AH68: 0 | AJ68: 0 | BI68: 67 | BJ68: 2202-03-104-00-06 | BK68: =IF(EXACT($E$25,BN68),BK67+1,1) -> 1 | BL68: 2041-00-001-00-01 | BM68: 66 | BN68: 2041 | BO68: Taxes on Vehicles | BP68: 00 | BR68: 001 | BS68: Direction and Administration | BT68: 00 | BV68: 01 | BW68: Headquarters Office | BY68: 3435 | CP68: 1 | CQ68: 4 | CR68: East Godavari | CS68: 0309- PITHAPURAM | CT68: 0309 | CU68: PITHAPURAM | CV68: 03 | CW68: 09
A69: 3 | B69: 1 | C69: Adilabad | D69: 3 | E69: Bazarhathnoor | F69: 2 | G69: Chittoor | H69: 116 | I69: =LOOKUP(G69,$C$67:$D$1189) -> 66 | J69: =IF(J68=$J$67+1,$J$67+1,J68+1) -> 818 | K69: =IF(J69>$J$67,"",VLOOKUP(J69,$A$67:$E$1189,5)) -> Ananthasagaram | L69: =IF(L68=$L$67+1,$L$67+1,L68+1) -> 818 | M69: =IF(L69>$L$67,"",VLOOKUP(L69,$A$67:$E$1189,5)) -> Ananthasagaram | N69: =IF(N68=$L$67+1,$L$67+1,N68+1) -> 183 | O69: =IF(N69>$N$67,"",VLOOKUP(N69,$A$67:$E$1189,5)) -> Ainavilli | P69: =IF(P68=$L$67+1,$L$67+1,P68+1) -> 242 | Q69: =IF(P69>$P$67,"",VLOOKUP(P69,$A$67:$E$1189,5)) -> Amaravathi | S69: 4 | T69: Four | U69: =Main!D853 -> 0 | V69: =Main!G853 -> 0 | W69: NIL | X69: 0 | Y69: 0 | AA69: 0 | AB69: 0 | AD69: 0 | AE69: 0 | AG69: 0 | AH69: 0 | AJ69: 0 | BI69: =IF(BI68="","",IF(BI68=MIN(BI68+1,MAX(BK69:BK1079)),"",MIN(BI68+1,MAX(BK69:BK1079)))) -> 68 | BJ69: =IF(ISNA(VLOOKUP(BI69,$BK$3:$BM$1013,2,FALSE)),"",VLOOKUP(BI69,$BK$3:$BM$1013,2,FALSE)) -> 2202-03-104-00-08 | BK69: 1 | BL69: 2041-00-001-00-03 | BM69: 67 | BN69: 2041 | BO69: Taxes on Vehicles | BP69: 00 | BR69: 001 | BS69: Direction and Administration | BT69: 00 | BV69: 03 | BW69: District Offices | BY69: 3451 | CP69: 1 | CQ69: 4 | CR69: East Godavari | CS69: 0310- PRATHIPADU | CT69: 0310 | CU69: PRATHIPADU | CV69: 03 | CW69: 10
A70: 4 | B70: 1 | C70: Adilabad | D70: 4 | E70: Bejjur | F70: 3 | G70: East Godavari | H70: 182 | I70: 59 | J70: 819 | K70: Anumasamudrampeta | L70: 819 | M70: Anumasamudrampeta | N70: 184 | O70: Alamuru | P70: 243 | Q70: Amruthalur | S70: 5 | T70: Five | U70: =Main!D854 -> 0 | V70: =Main!G854 -> 0 | W70: NIL | X70: 0 | Y70: 0 | AA70: 0 | AB70: 0 | AD70: 0 | AE70: 0 | AG70: 0 | AH70: 0 | AJ70: 0 | BI70: 69 | BJ70: 2202-03-104-00-09 | BK70: 1 | BL70: 2045-00-103-00-01 | BM70: 68 | BN70: 2045 | BO70: Other Taxes and Duties on Commodities and Services | BP70: 00 | BR70: 103 | BS70: Collection Charges-Electricity Duty | BT70: 00 | BV70: 01 | BW70: Headquarter's Office | BY70: 3452 | CP70: 1 | CQ70: 4 | CR70: East Godavari | CS70: 0312- RAJAMUNDRY(N) | CT70: 0312 | CU70: RAJAMUNDRY(N) | CV70: 03 | CW70: 12
A71: 5 | B71: 1 | C71: Adilabad | D71: 5 | E71: Bela | F71: 4 | G71: Guntur | H71: 241 | I71: 57 | J71: 820 | K71: Atmakur | L71: 820 | M71: Atmakur | N71: 185 | O71: Allavaram | P71: 244 | Q71: Bapatla | S71: 6 | T71: Six | U71: S-I | V71: =APPLICATION!F47 -> 6500 | W71: SIX THOUSAND AND FIVE HUNDRED | X71: 0 | Y71: 0 | AA71: 0 | AB71: 0 | AD71: 6000 | AE71: 6 | AF71: Six Thousand | AG71: 500 | AH71: 5 | AI71: Five Hundred | AJ71: 0 | BI71: 70 | BJ71: 2202-03-104-00-75 | BK71: 1 | BL71: 2045-00-103-00-02 | BM71: 69 | BN71: 2045 | BO71: Other Taxes and Duties on Commodities and Services | BP71: 00 | BR71: 103 | BS71: Collection Charges-Electricity Duty | BT71: 00 | BV71: 02 | BW71: Regional Offices | BY71: 3453 | CP71: 1 | CQ71: 4 | CR71: East Godavari | CS71: 0313- RAMACHANDRAPURAM | CT71: 0313 | CU71: RAMACHANDRAPURAM | CV71: 03 | CW71: 13
A72: 6 | B72: 1 | C72: Adilabad | D72: 6 | E72: Bellampalle | F72: 5 | G72: Hyderabad | H72: 298 | I72: 16 | J72: 821 | K72: Balayapalle | L72: 821 | M72: Balayapalle | N72: 186 | O72: Amalapuram | P72: 245 | Q72: Bellamkonda | S72: 7 | T72: Seven | U72: S-II | V72: =APPLICATION!F64 -> 6450 | W72: =UPPER(IF(V72=0,"NIL",IF(AND(Y72=0,AB72=0,AE72=0,AH72=0),AK72,IF(AND(Y72=0,AB72=0,AE72=0),CONCATENATE(AI72,IF(AJ72>0,"and "," "),AK72),IF(AND(Y72=0,AB72=0),CONCATENATE(AF72,IF(AND(AJ72=0,AH72>0),"and ", ""),AI72,IF(AJ72>0,"and "," "),AK72),IF(Y72=0,CONCATENATE(AC72,IF(AND(AJ72=0,AH72=0,AE72>0),"and ", ""),AF72,IF(AND(AJ72=0,AH72>0),"and ", ""),AI72,IF(AJ72>0,"and "," "),AK72),CONCATENATE(Z72,IF(AND(AJ72=0,AH72=0,AE72=0,AB72>0),"and ", ""),AC72,IF(AND(AJ72=0,AH72=0,AE72>0),"and ", ""),AF72,IF(AND(AJ72=0,AH72>0),"and ", ""),AI72,IF(AJ72>0,"and "," "),AK72))))))) -> SIX THOUSAND FOUR HUNDRED AND FIFTY | X72: 0 | Y72: 0 | AA72: 0 | AB72: 0 | AD72: 6000 | AE72: 6 | AF72: Six Thousand | AG72: 400 | AH72: 4 | AI72: Four Hundred | AJ72: 50 | AK72: Fifty | BI72: 71 | BJ72: 2202-03-106-00-04 | BK72: 1 | BL72: 2047-00-103-00-01 | BM72: 70 | BN72: 2047 | BO72: Other Fiscal Services | BP72: 00 | BR72: 103 | BS72: Promotion of Small Savings | BT72: 00 | BV72: 01 | BW72: Headquarters Office | BY72: 3454 | CP72: 1 | CQ72: 4 | CR72: East Godavari | CS72: 0314- RAMPACHODAVARAM | CT72: 0314 | CU72: RAMPACHODAVARAM | CV72: 03 | CW72: 14
A73: 7 | B73: 1 | C73: Adilabad | D73: 7 | E73: Bhainsa | F73: 6 | G73: Karimnagar | H73: 314 | I73: 56 | J73: 822 | K73: Bogole | L73: 822 | M73: Bogole | N73: 187 | O73: Ambajipeta | P73: 246 | Q73: Bhattiprolu | S73: 8 | T73: Eight | U73: =Main!G823 -> 0 | V73: =Main!N877 -> 0 | W73: =UPPER(IF(V73=0,"NIL",IF(AND(Y73=0,AB73=0,AE73=0,AH73=0),AK73,IF(AND(Y73=0,AB73=0,AE73=0),CONCATENATE(AI73,IF(AJ73>0,"and "," "),AK73),IF(AND(Y73=0,AB73=0),CONCATENATE(AF73,IF(AND(AJ73=0,AH73>0),"and ", ""),AI73,IF(AJ73>0,"and "," "),AK73),IF(Y73=0,CONCATENATE(AC73,IF(AND(AJ73=0,AH73=0,AE73>0),"and ", ""),AF73,IF(AND(AJ73=0,AH73>0),"and ", ""),AI73,IF(AJ73>0,"and "," "),AK73),CONCATENATE(Z73,IF(AND(AJ73=0,AH73=0,AE73=0,AB73>0),"and ", ""),AC73,IF(AND(AJ73=0,AH73=0,AE73>0),"and ", ""),AF73,IF(AND(AJ73=0,AH73>0),"and ", ""),AI73,IF(AJ73>0,"and "," "),AK73))))))) -> NIL | X73: 0 | Y73: 0 | AA73: 0 | AB73: 0 | AD73: 0 | AE73: 0 | AG73: 0 | AH73: 0 | AJ73: 0 | BI73: 72 | BJ73: 2202-03-106-10-04 | BK73: 1 | BL73: 2047-00-103-00-03 | BM73: 71 | BN73: 2047 | BO73: Other Fiscal Services | BP73: 00 | BR73: 103 | BS73: Promotion of Small Savings | BT73: 00 | BV73: 03 | BW73: District Offices | BY73: 3456 | CP73: 1 | CQ73: 4 | CR73: East Godavari | CS73: 0315- RAYAVARAM | CT73: 0315 | CU73: RAYAVARAM | CV73: 03 | CW73: 15
A74: 8 | B74: 1 | C74: Adilabad | D74: 8 | E74: Bheemini | F74: 7 | G74: Khammam | H74: 370 | I74: 46 | J74: 823 | K74: Butchireddipalem | L74: 823 | M74: Butchireddipalem | N74: 188 | O74: Anaparthi | P74: 247 | Q74: Bollapalle | S74: 9 | T74: Nine | U74: AAS EOL | V74: =Main!L897 -> 0 | W74: NIL | X74: 0 | Y74: 0 | AA74: 0 | AB74: 0 | AD74: 0 | AE74: 0 | AG74: 0 | AH74: 0 | AJ74: 0 | BI74: 73 | BJ74: 2202-03-112-00-04 | BK74: 1 | BL74: 2051-00-102-00-04 | BM74: 72 | BN74: 2051 | BO74: Public Service Commission | BP74: 00 | BR74: 102 | BS74: State Public Service Commission | BT74: 00 | BV74: 04 | BW74: Andhra Pradesh Public Service Commission (Charged) | BY74: 3475 | CP74: 1 | CQ74: 4 | CR74: East Godavari | CS74: 0316- RAZOLE | CT74: 0316 | CU74: RAZOLE | CV74: 03 | CW74: 16
A75: 9 | B75: 1 | C75: Adilabad | D75: 9 | E75: Boath | F75: 8 | G75: Krishna | H75: 416 | I75: 50 | J75: 824 | K75: Chejerla | L75: 824 | M75: Chejerla | N75: 189 | O75: Atreyapuram | P75: 248 | Q75: Chebrole | S75: 10 | T75: Ten | U75: Ist In EOL | V75: =Main!Z927 -> 0 | W75: NIL | X75: 0 | Y75: 0 | AA75: 0 | AB75: 0 | AD75: 0 | AE75: 0 | AG75: 0 | AH75: 0 | AJ75: 0 | BI75: 74 | BJ75: 2202-03-112-11-04 | BK75: 1 | BL75: 2052-00-090-00-04 | BM75: 73 | BN75: 2052 | BO75: Secretariat General Services | BP75: 00 | BR75: 090 | BS75: Secretariat | BT75: 00 | BV75: 04 | BW75: General Administration Department | BY75: 4059 | CP75: 1 | CQ75: 4 | CR75: East Godavari | CS75: 0317- TUNI | CT75: 0317 | CU75: TUNI | CV75: 03 | CW75: 17
A76: 10 | B76: 1 | C76: Adilabad | D76: 10 | E76: Chennur | F76: 9 | G76: Kurnool | H76: 466 | I76: 54 | J76: 825 | K76: Chillakur | L76: 825 | M76: Chillakur | N76: 190 | O76: Biccavolu | P76: 249 | Q76: Cherukupalle | S76: 11 | T76: Eleven | U76: 2nd EOL | V76: =Main!AB927 -> 0 | W76: =IF(V76=0,"NIL",IF(AND(Y76=0,AB76=0,AE76=0,AH76=0),AK76,IF(AND(Y76=0,AB76=0,AE76=0),CONCATENATE(AI76,IF(AJ76>0,"and "," "),AK76),IF(AND(Y76=0,AB76=0),CONCATENATE(AF76,IF(AND(AJ76=0,AH76>0),"and ", ""),AI76,IF(AJ76>0,"and "," "),AK76),IF(Y76=0,CONCATENATE(AC76,IF(AND(AJ76=0,AH76=0,AE76>0),"and ", ""),AF76,IF(AND(AJ76=0,AH76>0),"and ", ""),AI76,IF(AJ76>0,"and "," "),AK76),CONCATENATE(Z76,IF(AND(AJ76=0,AH76=0,AE76=0,AB76>0),"and ", ""),AC76,IF(AND(AJ76=0,AH76=0,AE76>0),"and ", ""),AF76,IF(AND(AJ76=0,AH76>0),"and ", ""),AI76,IF(AJ76>0,"and "," "),AK76)))))) -> NIL | X76: 0 | Y76: 0 | AA76: 0 | AB76: 0 | AD76: 0 | AE76: 0 | AG76: 0 | AH76: 0 | AJ76: 0 | BI76: 75 | BJ76: 2202-03-789-11-12 | BK76: 1 | BL76: 2052-00-090-00-05 | BM76: 74 | BN76: 2052 | BO76: Secretariat General Services | BP76: 00 | BR76: 090 | BS76: Secretariat | BT76: 00 | BV76: 05 | BW76: Personal Staff attached to Ministers | BY76: 4215 | CP76: 1 | CQ76: 5 | CR76: Guntur | CS76: 0602- BAPATLA | CT76: 0602 | CU76: BAPATLA | CV76: 06 | CW76: 02
A77: 11 | B77: 1 | C77: Adilabad | D77: 11 | E77: Dahegaon | F77: 10 | G77: Mahabubnagar | H77: 520 | I77: 64 | J77: 826 | K77: Chittamur | L77: 826 | M77: Chittamur | N77: 191 | O77: Devipatnam | P77: 250 | Q77: Chilakaluripet | S77: 12 | T77: Twelve | U77: Leaves | W77: NIL | X77: 0 | Y77: 0 | AA77: 0 | AB77: 0 | AD77: 0 | AE77: 0 | AG77: 0 | AH77: 0 | AJ77: 0 | BI77: 76 | BJ77: 2202-03-789-11-13 | BK77: 1 | BL77: 2052-00-090-00-06 | BM77: 75 | BN77: 2052 | BO77: Secretariat General Services | BP77: 00 | BR77: 090 | BS77: Secretariat | BT77: 00 | BV77: 06 | BW77: Finance Department | BY77: 4250 | CP77: 1 | CQ77: 5 | CR77: Guntur | CS77: 0603- CHILAKALURIPET | CT77: 0603 | CU77: CHILAKALURIPET | CV77: 06 | CW77: 03
A78: 12 | B78: 1 | C78: Adilabad | D78: 12 | E78: Dandepalle | F78: 11 | G78: Medak | H78: 584 | I78: 45 | J78: 827 | K78: Dagadarthi | L78: 827 | M78: Dagadarthi | N78: 192 | O78: Gandepalle | P78: 251 | Q78: Dachepalle | S78: 13 | T78: Thirteen | W78: NIL | X78: 0 | Y78: 0 | AA78: 0 | AB78: 0 | AD78: 0 | AE78: 0 | AG78: 0 | AH78: 0 | AJ78: 0 | BI78: 77 | BJ78: 2202-03-789-11-14 | BK78: 1 | BL78: 2052-00-090-00-07 | BM78: 76 | BN78: 2052 | BO78: Secretariat General Services | BP78: 00 | BR78: 090 | BS78: Secretariat | BT78: 00 | BV78: 07 | BW78: Planning Department | BY78: 4406 | CP78: 1 | CQ78: 5 | CR78: Guntur | CS78: 0604- EMANI-AT-DUGGIRALA | CT78: 0604 | CU78: EMANI-AT-DUGGIRALA | CV78: 06 | CW78: 04
A79: 13 | B79: 1 | C79: Adilabad | D79: 13 | E79: Dilawarpur | F79: 12 | G79: Nalgonda | H79: 629 | I79: 59 | J79: 828 | K79: Dakkili | L79: 828 | M79: Dakkili | N79: 193 | O79: Gangavaram | P79: 252 | Q79: Duggirala | S79: 14 | T79: Fourteen | W79: NIL | X79: 0 | Y79: 0 | AA79: 0 | AB79: 0 | AD79: 0 | AE79: 0 | AG79: 0 | AH79: 0 | AJ79: 0 | BI79: 78 | BJ79: 2202-03-789-11-15 | BK79: 1 | BL79: 2052-00-090-00-08 | BM79: 77 | BN79: 2052 | BO79: Secretariat General Services | BP79: 00 | BR79: 090 | BS79: Secretariat | BT79: 00 | BV79: 08 | BW79: Home Department | BY79: 4700 | CP79: 1 | CQ79: 5 | CR79: Guntur | CS79: 0601- GUNTUR | CT79: 0601 | CU79: GUNTUR | CV79: 06 | CW79: 01
A80: 14 | B80: 1 | C80: Adilabad | D80: 14 | E80: Gudihathnur | F80: 13 | G80: Nizamabad | H80: 688 | I80: 36 | J80: 829 | K80: Doravarisatram | L80: 829 | M80: Doravarisatram | N80: 194 | O80: Gokavaram | P80: 253 | Q80: Durgi | S80: 15 | T80: Fifteen | W80: NIL | X80: 0 | Y80: 0 | AA80: 0 | AB80: 0 | AD80: 0 | AE80: 0 | AG80: 0 | AH80: 0 | AJ80: 0 | BI80: 79 | BJ80: 2202-03-789-11-16 | BK80: 1 | BL80: 2052-00-090-00-09 | BM80: 78 | BN80: 2052 | BO80: Secretariat General Services | BP80: 00 | BR80: 090 | BS80: Secretariat | BT80: 00 | BV80: 09 | BW80: Revenue Department | BY80: 4701 | CP80: 1 | CQ80: 5 | CR80: Guntur | CS80: 0641-GUNTUR | CT80: 0641 | CU80: GUNTUR | CV80: 06 | CW80: 41
A81: 15 | B81: 1 | C81: Adilabad | D81: 15 | E81: Ichoda | F81: 14 | G81: Prakasam | H81: 724 | I81: 56 | J81: 830 | K81: Duttalur | L81: 830 | M81: Duttalur | N81: 195 | O81: Gollaprolu | P81: 254 | Q81: Edlapadu | S81: 16 | T81: Sixteen | W81: NIL | X81: 0 | Y81: 0 | AA81: 0 | AB81: 0 | AD81: 0 | AE81: 0 | AG81: 0 | AH81: 0 | AJ81: 0 | BI81: 80 | BJ81: 2202-03-789-11-17 | BK81: 1 | BL81: 2052-00-090-00-10 | BM81: 79 | BN81: 2052 | BO81: Secretariat General Services | BP81: 00 | BR81: 090 | BS81: Secretariat | BT81: 00 | BV81: 10 | BW81: Law Department | BY81: 4702 | CP81: 1 | CQ81: 5 | CR81: Guntur | CS81: 0605- GUNTUR () | CT81: 0605 | CU81: GUNTUR () | CV81: 06 | CW81: 05
A82: 16 | B82: 1 | C82: Adilabad | D82: 16 | E82: Inderavelly | F82: 15 | G82: Ranga Reddy | H82: 780 | I82: 37 | J82: 831 | K82: Gudur | L82: 831 | M82: Gudur | N82: 196 | O82: I Polavaram | P82: 255 | Q82: Guntur | S82: 17 | T82: Seventeen | W82: NIL | X82: 0 | Y82: 0 | AA82: 0 | AB82: 0 | AD82: 0 | AE82: 0 | AG82: 0 | AH82: 0 | AJ82: 0 | BI82: 81 | BJ82: 2202-03-789-11-18 | BK82: 1 | BL82: 2052-00-090-00-17 | BM82: 80 | BN82: 2052 | BO82: Secretariat General Services | BP82: 00 | BR82: 090 | BS82: Secretariat | BT82: 00 | BV82: 17 | BW82: Godavari Valley Development Authority | BY82: 4711 | CP82: 1 | CQ82: 5 | CR82: Guntur | CS82: 0606- GURAJALA(PALNAD) | CT82: 0606 | CU82: GURAJALA(PALNAD) | CV82: 06 | CW82: 06
A83: 17 | B83: 1 | C83: Adilabad | D83: 17 | E83: Jainad | F83: 16 | G83: Sri Pottisreeramulu Nellore | H83: 817 | I83: 46 | J83: 832 | K83: Indukurpet | L83: 832 | M83: Indukurpet | N83: 197 | O83: Jaggampeta | P83: 256 | Q83: Gurazala | S83: 18 | T83: Eighteen | W83: NIL | X83: 0 | Y83: 0 | AA83: 0 | AB83: 0 | AD83: 0 | AE83: 0 | AG83: 0 | AH83: 0 | AJ83: 0 | BI83: 82 | BJ83: 2202-03-789-11-19 | BK83: 1 | BL83: 2052-00-090-00-20 | BM83: 81 | BN83: 2052 | BO83: Secretariat General Services | BP83: 00 | BR83: 090 | BS83: Secretariat | BT83: 00 | BV83: 20 | BW83: Finance (Works & Projects) Department | BY83: 4801 | CP83: 1 | CQ83: 5 | CR83: Guntur | CS83: 0607- MACHERLA | CT83: 0607 | CU83: MACHERLA | CV83: 06 | CW83: 07
A84: 18 | B84: 1 | C84: Adilabad | D84: 18 | E84: Jainoor | F84: 17 | G84: Srikakulam | H84: 863 | I84: =LOOKUP(G84,$C$67:$D$1189) -> 38 | J84: 833 | K84: Jaladanki | L84: 833 | M84: Jaladanki | N84: 198 | O84: Kadiam | P84: 257 | Q84: Ipuru | S84: 19 | T84: Ninteen | W84: NIL | X84: 0 | Y84: 0 | AA84: 0 | AB84: 0 | AD84: 0 | AE84: 0 | AG84: 0 | AH84: 0 | AJ84: 0 | BI84: 83 | BJ84: 2202-03-789-11-21 | BK84: 1 | BL84: 2052-00-090-00-74 | BM84: 82 | BN84: 2052 | BO84: Secretariat General Services | BP84: 00 | BR84: 090 | BS84: Secretariat | BT84: 00 | BV84: 74 | BW84: Buildings | BY84: 5051 | CP84: 1 | CQ84: 5 | CR84: Guntur | CS84: 0608- MANGALAGIRI | CT84: 0608 | CU84: MANGALAGIRI | CV84: 06 | CW84: 08
A85: 19 | B85: 1 | C85: Adilabad | D85: 19 | E85: Jaipur | F85: 18 | G85: Visakhapatnam | H85: 901 | I85: 43 | J85: 834 | K85: Kaligiri | L85: 834 | M85: Kaligiri | N85: 199 | O85: Kajuluru | P85: 258 | Q85: Kakumanu | S85: 20 | T85: Twenty | W85: NIL | X85: 0 | Y85: 0 | AA85: 0 | AB85: 0 | AD85: 0 | AE85: 0 | AG85: 0 | AH85: 0 | AJ85: 0 | BI85: 84 | BJ85: 2202-03-789-11-22 | BK85: 1 | BL85: 2052-00-090-00-75 | BM85: 83 | BN85: 2052 | BO85: Secretariat General Services | BP85: 00 | BR85: 090 | BS85: Secretariat | BT85: 00 | BV85: 75 | BW85: Lumpsum Provision | BY85: 5054 | CP85: 1 | CQ85: 5 | CR85: Guntur | CS85: 0609- NAGARAM | CT85: 0609 | CU85: NAGARAM | CV85: 06 | CW85: 09
A86: 20 | B86: 1 | C86: Adilabad | D86: 20 | E86: Jannaram | F86: 19 | G86: Vizianagaram | H86: 944 | I86: 34 | J86: 835 | K86: Kaluvoya | L86: 835 | M86: Kaluvoya | N86: 200 | O86: Kakinada (Rural) | P86: 259 | Q86: Karempudi | S86: 21 | T86: Twenty One | W86: NIL | X86: 0 | Y86: 0 | AA86: 0 | AB86: 0 | AD86: 0 | AE86: 0 | AG86: 0 | AH86: 0 | AJ86: 0 | BI86: 85 | BJ86: 2202-03-789-11-23 | BK86: 1 | BL86: 2052-00-090-11-16 | BM86: 84 | BN86: 2052 | BO86: Secretariat General Services | BP86: 00 | BR86: 090 | BS86: Secretariat | BT86: 11 | BU86: Normal State Plan | BV86: 16 | BW86: Project Management Unit | CP86: 1 | CQ86: 5 | CR86: Guntur | CS86: 0642-NARSARAO PET | CT86: 0642 | CU86: NARSARAO PET | CV86: 06 | CW86: 42
A87: 21 | B87: 1 | C87: Adilabad | D87: 21 | E87: Kaddampeddur | F87: 20 | G87: Warangal | H87: 978 | I87: 50 | J87: 836 | K87: Kavali | L87: 836 | M87: Kavali | N87: 201 | O87: Kakunada (Urban) | P87: 260 | Q87: Karlapalem | S87: 22 | T87: Twenty Two | W87: NIL | X87: 0 | Y87: 0 | AA87: 0 | AB87: 0 | AD87: 0 | AE87: 0 | AG87: 0 | AH87: 0 | AJ87: 0 | BI87: 86 | BJ87: 2202-03-789-11-24 | BK87: 1 | BL87: 2052-00-090-11-29 | BM87: 85 | BN87: 2052 | BO87: Secretariat General Services | BP87: 00 | BR87: 090 | BS87: Secretariat | BT87: 11 | BU87: Normal State Plan | BV87: 29 | BW87: Establishment of Public Private Partnership (PPP) Cell | CP87: 1 | CQ87: 5 | CR87: Guntur | CS87: 0610- NARSARAOPETA | CT87: 0610 | CU87: NARSARAOPETA | CV87: 06 | CW87: 10
A88: 22 | B88: 1 | C88: Adilabad | D88: 22 | E88: Kagaz Nagar | F88: 21 | G88: West Godavari | H88: 1028 | I88: 46 | J88: 837 | K88: Kodavalur | L88: 837 | M88: Kodavalur | N88: 202 | O88: Kapileswarapuram | P88: 261 | Q88: Kollipara | S88: 23 | T88: Twenty Three | V88: 123450017 | W88: Twelve Crores Thirty Four Lakhs Fifty Thousand and Seventeen | X88: 120000000 | Y88: 12 | Z88: Twelve Crores | AA88: 3400000 | AB88: 34 | AC88: Thirty Four Lakhs | AD88: 50000 | AE88: 50 | AF88: Fifty Thousand | AG88: 0 | AH88: 0 | AJ88: 17 | AK88: Seventeen | BI88: 87 | BJ88: 2202-03-789-11-25 | BK88: 1 | BL88: 2052-00-092-00-04 | BM88: 86 | BN88: 2052 | BO88: Secretariat General Services | BP88: 00 | BR88: 092 | BS88: Other Offices | BT88: 00 | BV88: 04 | BW88: Anti Corruption Bureau - Headquarter's Office | CP88: 1 | CQ88: 5 | CR88: Guntur | CS88: 0611- PEDAKURAPADU | CT88: 0611 | CU88: PEDAKURAPADU | CV88: 06 | CW88: 11
A89: 23 | B89: 1 | C89: Adilabad | D89: 23 | E89: Kasipet | F89: 22 | G89: Y.S.R (Kaddapah) | H89: 1074 | I89: 50 | J89: 838 | K89: Kondapuram | L89: 838 | M89: Kondapuram | N89: 203 | O89: Karapa | P89: 262 | Q89: Kollur | S89: 24 | T89: Twenty Four | V89: 123450018 | W89: Twelve Crores Thirty Four Lakhs Fifty Thousand and Eighteen | X89: 120000000 | Y89: 12 | Z89: Twelve Crores | AA89: 3400000 | AB89: 34 | AC89: Thirty Four Lakhs | AD89: 50000 | AE89: 50 | AF89: Fifty Thousand | AG89: 0 | AH89: 0 | AJ89: 18 | AK89: Eighteen | BI89: 88 | BJ89: 2202-03-789-11-32 | BK89: 1 | BL89: 2052-00-092-00-05 | BM89: 87 | BN89: 2052 | BO89: Secretariat General Services | BP89: 00 | BR89: 092 | BS89: Other Offices | BT89: 00 | BV89: 05 | BW89: Anti Corruption Bureau (District Offices) | CP89: 1 | CQ89: 5 | CR89: Guntur | CS89: 0612- PIDUGURALLA | CT89: 0612 | CU89: PIDUGURALLA | CV89: 06 | CW89: 12
A90: 24 | B90: 1 | C90: Adilabad | D90: 24 | E90: Kerameri | F90: 23 | J90: 839 | K90: Kota | L90: 839 | M90: Kota | N90: 204 | O90: Katrenikona | P90: 263 | Q90: Krosuru | S90: 25 | T90: Twenty Five | V90: 123450019 | W90: Twelve Crores Thirty Four Lakhs Fifty Thousand and Ninteen | X90: 120000000 | Y90: 12 | Z90: Twelve Crores | AA90: 3400000 | AB90: 34 | AC90: Thirty Four Lakhs | AD90: 50000 | AE90: 50 | AF90: Fifty Thousand | AG90: 0 | AH90: 0 | AJ90: 19 | AK90: Ninteen | BI90: 89 | BJ90: 2202-03-789-11-33 | BK90: 1 | BL90: 2052-00-092-00-06 | BM90: 88 | BN90: 2052 | BO90: Secretariat General Services | BP90: 00 | BR90: 092 | BS90: Other Offices | BT90: 00 | BV90: 06 | BW90: Tribunal for Disciplinary Proceedings | CP90: 1 | CQ90: 5 | CR90: Guntur | CS90: 0617- PONNURU | CT90: 0617 | CU90: PONNURU | CV90: 06 | CW90: 17
A91: 25 | B91: 1 | C91: Adilabad | D91: 25 | E91: Khanpur | J91: 840 | K91: Kovur | L91: 840 | M91: Kovur | N91: 205 | O91: Kirlampudi | P91: 264 | Q91: Machavaram | S91: 26 | T91: Twenty Six | V91: 123450020 | W91: Twelve Crores Thirty Four Lakhs Fifty Thousand and Twenty | X91: 120000000 | Y91: 12 | Z91: Twelve Crores | AA91: 3400000 | AB91: 34 | AC91: Thirty Four Lakhs | AD91: 50000 | AE91: 50 | AF91: Fifty Thousand | AG91: 0 | AH91: 0 | AJ91: 20 | AK91: Twenty | BI91: 90 | BJ91: 2202-03-789-11-41 | BK91: 1 | BL91: 2052-00-092-00-07 | BM91: 89 | BN91: 2052 | BO91: Secretariat General Services | BP91: 00 | BR91: 092 | BS91: Other Offices | BT91: 00 | BV91: 07 | BW91: Director of Translations | CP91: 1 | CQ91: 5 | CR91: Guntur | CS91: 0613- RAJUPALEM | CT91: 0613 | CU91: RAJUPALEM | CV91: 06 | CW91: 13
A92: 26 | B92: 1 | C92: Adilabad | D92: 26 | E92: Kotapalle | G92: Adilabad | H92: =I92 -> 52 | I92: =LOOKUP(G92,$C$67:$D$1189) -> 52 | J92: 841 | K92: Manubolu | L92: 841 | M92: Manubolu | N92: 206 | O92: Korukonda | P92: 265 | Q92: Macherla | S92: 27 | T92: Twenty Seven | V92: 123450021 | W92: Twelve Crores Thirty Four Lakhs Fifty Thousand and Twenty One | X92: 120000000 | Y92: 12 | Z92: Twelve Crores | AA92: 3400000 | AB92: 34 | AC92: Thirty Four Lakhs | AD92: 50000 | AE92: 50 | AF92: Fifty Thousand | AG92: 0 | AH92: 0 | AJ92: 21 | AK92: Twenty One | BI92: 91 | BJ92: 2202-03-796-11-04 | BK92: 1 | BL92: 2052-00-092-00-08 | BM92: 90 | BN92: 2052 | BO92: Secretariat General Services | BP92: 00 | BR92: 092 | BS92: Other Offices | BT92: 00 | BV92: 08 | BW92: Office of the Special Commissioner, Andhra Pradesh at New Delhi | CP92: 1 | CQ92: 5 | CR92: Guntur | CS92: 0614- REPALLE | CT92: 0614 | CU92: REPALLE | CV92: 06 | CW92: 14
A93: 27 | B93: 1 | C93: Adilabad | D93: 27 | E93: Kouthala | F93: 1 | G93: Anantapur | H93: =H92+I93 -> 115 | I93: =LOOKUP(G93,$C$67:$D$1189) -> 63 | J93: 842 | K93: Marripadu | L93: 842 | M93: Marripadu | N93: 207 | O93: Kotananduru | P93: 266 | Q93: Mangalagiri | S93: 28 | T93: Twenty Eight | V93: 123450022 | W93: Twelve Crores Thirty Four Lakhs Fifty Thousand and Twenty Two | X93: 120000000 | Y93: 12 | Z93: Twelve Crores | AA93: 3400000 | AB93: 34 | AC93: Thirty Four Lakhs | AD93: 50000 | AE93: 50 | AF93: Fifty Thousand | AG93: 0 | AH93: 0 | AJ93: 22 | AK93: Twenty Two | BI93: 92 | BJ93: 2202-03-796-11-06 | BK93: 1 | BL93: 2052-00-092-00-09 | BM93: 91 | BN93: 2052 | BO93: Secretariat General Services | BP93: 00 | BR93: 092 | BS93: Other Offices | BT93: 00 | BV93: 09 | BW93: Estate Officer | CP93: 1 | CQ93: 5 | CR93: Guntur | CS93: 0615- SATTENAPALLI | CT93: 0615 | CU93: SATTENAPALLI | CV93: 06 | CW93: 15
A94: 28 | B94: 1 | C94: Adilabad | D94: 28 | E94: Kubeer | F94: 2 | G94: Chittoor | H94: 181 | I94: 66 | J94: 843 | K94: Muthukur | L94: 843 | M94: Muthukur | N94: 208 | O94: Kothapalli | P94: 267 | Q94: Medikonduru | S94: 29 | T94: Twenty Nine | V94: 123450023 | W94: Twelve Crores Thirty Four Lakhs Fifty Thousand and Twenty Three | X94: 120000000 | Y94: 12 | Z94: Twelve Crores | AA94: 3400000 | AB94: 34 | AC94: Thirty Four Lakhs | AD94: 50000 | AE94: 50 | AF94: Fifty Thousand | AG94: 0 | AH94: 0 | AJ94: 23 | AK94: Twenty Three | BI94: 93 | BJ94: 2202-03-796-11-12 | BK94: 1 | BL94: 2053-00-093-00-03 | BM94: 92 | BN94: 2053 | BO94: District Administration | BP94: 00 | BR94: 093 | BS94: District Establishments | BT94: 00 | BV94: 03 | BW94: District Offices Collectors' Establishment | CP94: 1 | CQ94: 5 | CR94: Guntur | CS94: 0616- TENALI | CT94: 0616 | CU94: TENALI | CV94: 06 | CW94: 16
A95: 29 | B95: 1 | C95: Adilabad | D95: 29 | E95: Kuntala | F95: 3 | G95: East Godavari | H95: 240 | I95: 59 | J95: 844 | K95: Naidupeta | L95: 844 | M95: Naidupeta | N95: 209 | O95: Kothapeta | P95: 268 | Q95: Muppalla | S95: 30 | T95: Thirty | V95: 123450024 | W95: Twelve Crores Thirty Four Lakhs Fifty Thousand and Twenty Four | X95: 120000000 | Y95: 12 | Z95: Twelve Crores | AA95: 3400000 | AB95: 34 | AC95: Thirty Four Lakhs | AD95: 50000 | AE95: 50 | AF95: Fifty Thousand | AG95: 0 | AH95: 0 | AJ95: 24 | AK95: Twenty Four | BI95: 94 | BJ95: 2202-03-796-11-13 | BK95: 1 | BL95: 2053-00-094-00-04 | BM95: 93 | BN95: 2053 | BO95: District Administration | BP95: 00 | BR95: 094 | BS95: Other Establishments | BT95: 00 | BV95: 04 | BW95: Sub-Divisional Establishment | CP95: 1 | CQ95: 5 | CR95: Guntur | CS95: 0618- VINUKONDA | CT95: 0618 | CU95: VINUKONDA | CV95: 06 | CW95: 18
A96: 30 | B96: 1 | C96: Adilabad | D96: 30 | E96: Laxmanchanda | F96: 4 | G96: Guntur | H96: 297 | I96: 57 | J96: 845 | K96: Nellore | L96: 845 | M96: Nellore | N96: 210 | O96: Malikipuram | P96: 269 | Q96: Nadendla | S96: 31 | T96: Thirty One | V96: 123450025 | W96: Twelve Crores Thirty Four Lakhs Fifty Thousand and Twenty Five | X96: 120000000 | Y96: 12 | Z96: Twelve Crores | AA96: 3400000 | AB96: 34 | AC96: Thirty Four Lakhs | AD96: 50000 | AE96: 50 | AF96: Fifty Thousand | AG96: 0 | AH96: 0 | AJ96: 25 | AK96: Twenty Five | BI96: 95 | BJ96: 2202-03-796-11-14 | BK96: 1 | BL96: 2053-00-094-00-06 | BM96: 94 | BN96: 2053 | BO96: District Administration | BP96: 00 | BR96: 094 | BS96: Other Establishments | BT96: 00 | BV96: 06 | BW96: Village Establishment | CP96: 1 | CQ96: 6 | CR96: Hyderabad | CS96: 2502-Hyderabad | CT96: 2502 | CU96: HYDERABAD | CV96: 25 | CW96: 02
A97: 31 | B97: 1 | C97: Adilabad | D97: 31 | E97: Lohesra | F97: 5 | G97: Hyderabad | H97: 313 | I97: 16 | J97: 846 | K97: Ojili | L97: 846 | M97: Ojili | N97: 211 | O97: Mamidikuduru | P97: 270 | Q97: Nagaram | S97: 32 | T97: Thirty Two | V97: 123450026 | W97: Twelve Crores Thirty Four Lakhs Fifty Thousand and Twenty Six | X97: 120000000 | Y97: 12 | Z97: Twelve Crores | AA97: 3400000 | AB97: 34 | AC97: Thirty Four Lakhs | AD97: 50000 | AE97: 50 | AF97: Fifty Thousand | AG97: 0 | AH97: 0 | AJ97: 26 | AK97: Twenty Six | BI97: 96 | BJ97: 2202-03-796-11-15 | BK97: 1 | BL97: 2053-00-094-00-07 | BM97: 95 | BN97: 2053 | BO97: District Administration | BP97: 00 | BR97: 094 | BS97: Other Establishments | BT97: 00 | BV97: 07 | BW97: Land Acquisition Staff for Steel Plant, Visakhapatnam | CP97: 1 | CQ97: 6 | CR97: Hyderabad | CS97: 2503-Hyderabad | CT97: 2503 | CU97: HYDERABAD | CV97: 25 | CW97: 03
A98: 32 | B98: 1 | C98: Adilabad | D98: 32 | E98: Luxettipet | F98: 6 | G98: Karimnagar | H98: 369 | I98: 56 | J98: 847 | K98: Pellakur | L98: 847 | M98: Pellakur | N98: 212 | O98: Mandapeta | P98: 271 | Q98: Nakarikallu | S98: 33 | T98: Thirty Three | V98: 123450027 | W98: =IF(V98=0,"NIL",IF(AND(Y98=0,AB98=0,AE98=0,AH98=0),AK98,IF(AND(Y98=0,AB98=0,AE98=0),CONCATENATE(AI98,IF(AJ98>0,"and "," "),AK98),IF(AND(Y98=0,AB98=0),CONCATENATE(AF98,IF(AND(AJ98=0,AH98>0),"and ", ""),AI98,IF(AJ98>0,"and "," "),AK98),IF(Y98=0,CONCATENATE(AC98,IF(AND(AJ98=0,AH98=0,AE98>0),"and ", ""),AF98,IF(AND(AJ98=0,AH98>0),"and ", ""),AI98,IF(AJ98>0,"and "," "),AK98),CONCATENATE(Z98,IF(AND(AJ98=0,AH98=0,AE98=0,AB98>0),"and ", ""),AC98,IF(AND(AJ98=0,AH98=0,AE98>0),"and ", ""),AF98,IF(AND(AJ98=0,AH98>0),"and ", ""),AI98,IF(AJ98>0,"and "," "),AK98)))))) -> Twelve Crores Thirty Four Lakhs Fifty Thousand and Twenty Seven | X98: =INT(V98/10000000)*10000000 -> 120000000 | Y98: =INT(V98/10000000) -> 12 | Z98: =IF(Y98=1,CONCATENATE(VLOOKUP(Y98,$S$66:$T$164,2)," Crore "),IF(Y98>1,CONCATENATE(VLOOKUP(Y98,$S$66:$T$164,2)," Crores "),"")) -> Twelve Crores | AA98: =INT(V98/100000)*100000-X98 -> 3400000 | AB98: =INT(AA98/100000) -> 34 | AC98: =IF(AB98=1,CONCATENATE(VLOOKUP(AB98,$S$66:$T$164,2)," Lakh "),IF(AB98>1,CONCATENATE(VLOOKUP(AB98,$S$66:$T$164,2)," Lakhs "),"")) -> Thirty Four Lakhs | AD98: =INT(V98/1000)*1000-X98-AA98 -> 50000 | AE98: =INT(AD98/1000) -> 50 | AF98: =IF(AE98>0,CONCATENATE(VLOOKUP(AE98,$S$66:$T$164,2)," Thousand "),"") -> Fifty Thousand | AG98: =INT(V98/100)*100-X98-AA98-AD98 -> 0 | AH98: =INT(AG98/100) -> 0 | AI98: =IF(AH98>0,CONCATENATE(VLOOKUP(AH98,$S$66:$T$164,2)," Hundred "),"") ->  | AJ98: =V98-X98-AA98-AD98-AG98 -> 27 | AK98: =IF(AJ98>0, VLOOKUP(AJ98,$S$66:$T$164,2),"") -> Twenty Seven | BI98: 97 | BJ98: 2202-03-796-11-16 | BK98: 1 | BL98: 2053-00-094-00-09 | BM98: 96 | BN98: 2053 | BO98: District Administration | BP98: 00 | BR98: 094 | BS98: Other Establishments | BT98: 00 | BV98: 09 | BW98: Land Acquisition staff for acquiring Lands to Central Government Departments | CP98: 1 | CQ98: 6 | CR98: Hyderabad | CS98: 2504-Hyderabad | CT98: 2504 | CU98: HYDERABAD | CV98: 25 | CW98: 04
A99: 33 | B99: 1 | C99: Adilabad | D99: 33 | E99: Mamda | F99: 7 | G99: Khammam | H99: 415 | I99: 46 | J99: 848 | K99: Podlakur | L99: 848 | M99: Podlakur | N99: 213 | O99: Maredumilli | P99: 272 | Q99: Narasaraopeta | S99: 34 | T99: Thirty Four | V99: 123450028 | W99: Twelve Crores Thirty Four Lakhs Fifty Thousand and Twenty Eight | X99: 120000000 | Y99: 12 | Z99: Twelve Crores | AA99: 3400000 | AB99: 34 | AC99: Thirty Four Lakhs | AD99: 50000 | AE99: 50 | AF99: Fifty Thousand | AG99: 0 | AH99: 0 | AJ99: 28 | AK99: Twenty Eight | BI99: 98 | BJ99: 2202-03-796-11-17 | BK99: 1 | BL99: 2053-00-094-00-11 | BM99: 97 | BN99: 2053 | BO99: District Administration | BP99: 00 | BR99: 094 | BS99: Other Establishments | BT99: 00 | BV99: 11 | BW99: Land Acquisition staff for Acquiring Lands for Autonomous Institutions etc., | CP99: 1 | CQ99: 6 | CR99: Hyderabad | CS99: 2505-Hyderabad | CT99: 2505 | CU99: HYDERABAD | CV99: 25 | CW99: 05
A100: 34 | B100: 1 | C100: Adilabad | D100: 34 | E100: Mancherial | F100: 8 | G100: Krishna | H100: 465 | I100: 50 | J100: 849 | K100: Rapur | L100: 849 | M100: Rapur | N100: 214 | O100: Mummidivaram | P100: 273 | Q100: Nizampatnam | S100: 35 | T100: Thirty Five | V100: 123450029 | W100: Twelve Crores Thirty Four Lakhs Fifty Thousand and Twenty Nine | X100: 120000000 | Y100: 12 | Z100: Twelve Crores | AA100: 3400000 | AB100: 34 | AC100: Thirty Four Lakhs | AD100: 50000 | AE100: 50 | AF100: Fifty Thousand | AG100: 0 | AH100: 0 | AJ100: 29 | AK100: Twenty Nine | BI100: 99 | BJ100: 2202-03-796-11-18 | BK100: 1 | BL100: 2053-00-094-00-12 | BM100: 98 | BN100: 2053 | BO100: District Administration | BP100: 00 | BR100: 094 | BS100: Other Establishments | BT100: 00 | BV100: 12 | BW100: Mandal Administration | CP100: 1 | CQ100: 6 | CR100: Hyderabad | CS100: 2506-Hyderabad | CT100: 2506 | CU100: HYDERABAD | CV100: 25 | CW100: 06
A101: 35 | B101: 1 | C101: Adilabad | D101: 35 | E101: Mandamarri | F101: 9 | G101: Kurnool | H101: 519 | I101: 54 | J101: =IF(J100=$J$67+1,$J$67+1,J100+1) -> 850 | K101: Sangam | L101: =IF(L100=$L$67+1,$L$67+1,L100+1) -> 850 | M101: Sangam | N101: =IF(N100=$L$67+1,$L$67+1,N100+1) -> 215 | O101: P Gannavaram | P101: =IF(P100=$L$67+1,$L$67+1,P100+1) -> 274 | Q101: Nuzendla | S101: 36 | T101: Thirty Six | V101: 123450030 | W101: Twelve Crores Thirty Four Lakhs Fifty Thousand and Thirty | X101: 120000000 | Y101: 12 | Z101: Twelve Crores | AA101: 3400000 | AB101: 34 | AC101: Thirty Four Lakhs | AD101: 50000 | AE101: 50 | AF101: Fifty Thousand | AG101: 0 | AH101: 0 | AJ101: 30 | AK101: Thirty | BI101: 100 | BJ101: 2202-03-796-11-19 | BK101: 1 | BL101: 2053-00-094-00-13 | BM101: 99 | BN101: 2053 | BO101: District Administration | BP101: 00 | BR101: 094 | BS101: Other Establishments | BT101: 00 | BV101: 13 | BW101: Special Courts for Land Grabbing Prohibition Act, 1982 | CP101: 1 | CQ101: 6 | CR101: Hyderabad | CS101: 2507-Hyderabad | CT101: 2507 | CU101: HYDERABAD | CV101: 25 | CW101: 07
A102: 36 | B102: 1 | C102: Adilabad | D102: 36 | E102: Mudhole | F102: 10 | G102: Mahabubnagar | H102: 583 | I102: 64 | J102: 851 | K102: Seetharamapuram | L102: 851 | M102: Seetharamapuram | N102: 216 | O102: Pamarru | P102: 275 | Q102: Pedakakani | S102: 37 | T102: Thirty Seven | V102: 123450031 | W102: Twelve Crores Thirty Four Lakhs Fifty Thousand and Thirty One | X102: 120000000 | Y102: 12 | Z102: Twelve Crores | AA102: 3400000 | AB102: 34 | AC102: Thirty Four Lakhs | AD102: 50000 | AE102: 50 | AF102: Fifty Thousand | AG102: 0 | AH102: 0 | AJ102: 31 | AK102: Thirty One | BI102: 101 | BJ102: 2202-03-796-11-21 | BK102: 1 | BL102: 2054-00-001-00-01 | BM102: 100 | BN102: 2054 | BO102: Treasury and Accounts Administration | BP102: 00 | BR102: 001 | BS102: Direction and Administration | BT102: 00 | BV102: 01 | BW102: Headquarters Office | CP102: 1 | CQ102: 6 | CR102: Hyderabad | CS102: 2552-Hyderbad | CT102: 2552 | CU102: HYDERBAD | CV102: 25 | CW102: 52
A103: 37 | B103: 1 | C103: Adilabad | D103: 37 | E103: Narnoor | F103: 11 | G103: Medak | H103: 628 | I103: 45 | J103: 852 | K103: Sullurpeta | L103: 852 | M103: Sullurpeta | N103: 217 | O103: Pedapudi | P103: 276 | Q103: Pedakurapadu | S103: 38 | T103: Thirty Eight | V103: 123450032 | W103: Twelve Crores Thirty Four Lakhs Fifty Thousand and Thirty Two | X103: 120000000 | Y103: 12 | Z103: Twelve Crores | AA103: 3400000 | AB103: 34 | AC103: Thirty Four Lakhs | AD103: 50000 | AE103: 50 | AF103: Fifty Thousand | AG103: 0 | AH103: 0 | AJ103: 32 | AK103: Thirty Two | BI103: 102 | BJ103: 2202-03-796-11-22 | BK103: 1 | BL103: 2054-00-001-00-02 | BM103: 101 | BN103: 2054 | BO103: Treasury and Accounts Administration | BP103: 00 | BR103: 001 | BS103: Direction and Administration | BT103: 00 | BV103: 02 | BW103: Regional and District Offices | CP103: 1 | CQ103: 6 | CR103: Hyderabad | CS103: 2500-PAO,HYD | CT103: 2500 | CU103: PAO,HYD | CV103: 25 | CW103: 00
A104: 38 | B104: 1 | C104: Adilabad | D104: 38 | E104: Nennal | F104: 12 | G104: Nalgonda | H104: 687 | I104: 59 | J104: 853 | K104: Sydapuram | L104: 853 | M104: Sydapuram | N104: 218 | O104: Peddapuram | P104: 277 | Q104: Pedanandipadu | S104: 39 | T104: Thirty Nine | V104: 123450033 | W104: Twelve Crores Thirty Four Lakhs Fifty Thousand and Thirty Three | X104: 120000000 | Y104: 12 | Z104: Twelve Crores | AA104: 3400000 | AB104: 34 | AC104: Thirty Four Lakhs | AD104: 50000 | AE104: 50 | AF104: Fifty Thousand | AG104: 0 | AH104: 0 | AJ104: 33 | AK104: Thirty Three | BI104: 103 | BJ104: 2202-03-796-11-23 | BK104: 1 | BL104: 2054-00-095-00-01 | BM104: 102 | BN104: 2054 | BO104: Treasury and Accounts Administration | BP104: 00 | BR104: 095 | BS104: Directorate of Accounts and Treasuries | BT104: 00 | BV104: 01 | BW104: Headquarters Office | CP104: 1 | CQ104: 6 | CR104: Hyderabad | CS104: 2541-W AND P HYDERABAD | CT104: 2541 | CU104: W AND P HYDERABAD | CV104: 25 | CW104: 41
A105: 39 | B105: 1 | C105: Adilabad | D105: 39 | E105: Neradigonda | F105: 13 | G105: Nizamabad | H105: 723 | I105: 36 | J105: 854 | K105: Tada | L105: 854 | M105: Tada | N105: 219 | O105: Pithapuram | P105: 278 | Q105: Phirangipuram | S105: 40 | T105: Fourty | V105: 123450034 | W105: Twelve Crores Thirty Four Lakhs Fifty Thousand and Thirty Four | X105: 120000000 | Y105: 12 | Z105: Twelve Crores | AA105: 3400000 | AB105: 34 | AC105: Thirty Four Lakhs | AD105: 50000 | AE105: 50 | AF105: Fifty Thousand | AG105: 0 | AH105: 0 | AJ105: 34 | AK105: Thirty Four | BI105: 104 | BJ105: 2202-03-796-11-24 | BK105: 1 | BL105: 2054-00-096-00-01 | BM105: 103 | BN105: 2054 | BO105: Treasury and Accounts Administration | BP105: 00 | BR105: 096 | BS105: Pay and Accounts Office | BT105: 00 | BV105: 01 | BW105: Headquarters Office | CP105: 1 | CQ105: 6 | CR105: Hyderabad | CS105: 2700-WORKS_PAO,HYD | CT105: 2700 | CU105: WORKS_PAO,HYD | CV105: 27 | CW105: 00
A106: 40 | B106: 1 | C106: Adilabad | D106: 40 | E106: Nirmal | F106: 14 | G106: Prakasam | H106: 779 | I106: 56 | J106: 855 | K106: Thotapalligudur | L106: 855 | M106: Thotapalligudur | N106: 220 | O106: Prathipadu | P106: 279 | Q106: Piduguralla | S106: 41 | T106: Fourty One | V106: 123450035 | W106: Twelve Crores Thirty Four Lakhs Fifty Thousand and Thirty Five | X106: 120000000 | Y106: 12 | Z106: Twelve Crores | AA106: 3400000 | AB106: 34 | AC106: Thirty Four Lakhs | AD106: 50000 | AE106: 50 | AF106: Fifty Thousand | AG106: 0 | AH106: 0 | AJ106: 35 | AK106: Thirty Five | BI106: 105 | BJ106: 2202-03-796-11-32 | BK106: 1 | BL106: 2054-00-097-00-03 | BM106: 104 | BN106: 2054 | BO106: Treasury and Accounts Administration | BP106: 00 | BR106: 097 | BS106: Treasury Establishment | BT106: 00 | BV106: 03 | BW106: District Treasuries | CP106: 1 | CQ106: 7 | CR106: Karimnagar | CS106: 1502- BHIMADEVARAPALLI | CT106: 1502 | CU106: BHIMADEVARAPALLI | CV106: 15 | CW106: 02
A107: 41 | B107: 1 | C107: Adilabad | D107: 41 | E107: Rebbana | F107: 15 | G107: Ranga Reddy | H107: 816 | I107: 37 | J107: 856 | K107: Udayagiri | L107: 856 | M107: Udayagiri | N107: 221 | O107: Rajahmundry(Rural) | P107: 280 | Q107: Pittalavanipalem | S107: 42 | T107: Fourty Two | V107: 123450036 | W107: Twelve Crores Thirty Four Lakhs Fifty Thousand and Thirty Six | X107: 120000000 | Y107: 12 | Z107: Twelve Crores | AA107: 3400000 | AB107: 34 | AC107: Thirty Four Lakhs | AD107: 50000 | AE107: 50 | AF107: Fifty Thousand | AG107: 0 | AH107: 0 | AJ107: 36 | AK107: Thirty Six | BI107: 106 | BJ107: 2202-03-796-11-33 | BK107: 1 | BL107: 2054-00-097-00-04 | BM107: 105 | BN107: 2054 | BO107: Treasury and Accounts Administration | BP107: 00 | BR107: 097 | BS107: Treasury Establishment | BT107: 00 | BV107: 04 | BW107: Pension Payment Offices | CP107: 1 | CQ107: 7 | CR107: Karimnagar | CS107: 1503- GANGADHARA | CT107: 1503 | CU107: GANGADHARA | CV107: 15 | CW107: 03
A108: 42 | B108: 1 | C108: Adilabad | D108: 42 | E108: Sarangapur | F108: 16 | G108: Sri Pottisreeramulu Nellore | H108: 862 | I108: 46 | J108: 857 | K108: Vakadu | L108: 857 | M108: Vakadu | N108: 222 | O108: Rajahmundry(Urban) | P108: 281 | Q108: Ponnur | S108: 43 | T108: Fourty Three | V108: 123450037 | W108: Twelve Crores Thirty Four Lakhs Fifty Thousand and Thirty Seven | X108: 120000000 | Y108: 12 | Z108: Twelve Crores | AA108: 3400000 | AB108: 34 | AC108: Thirty Four Lakhs | AD108: 50000 | AE108: 50 | AF108: Fifty Thousand | AG108: 0 | AH108: 0 | AJ108: 37 | AK108: Thirty Seven | BI108: 107 | BJ108: 2202-03-796-11-41 | BK108: 1 | BL108: 2054-00-098-00-01 | BM108: 106 | BN108: 2054 | BO108: Treasury and Accounts Administration | BP108: 00 | BR108: 098 | BS108: Local Fund Audit | BT108: 00 | BV108: 01 | BW108: Headquarters Office | CP108: 1 | CQ108: 7 | CR108: Karimnagar | CS108: 1504- HUSNABAD | CT108: 1504 | CU108: HUSNABAD | CV108: 15 | CW108: 04
A109: 43 | B109: 1 | C109: Adilabad | D109: 43 | E109: Sirpur (T) | F109: 17 | G109: Srikakulam | H109: 900 | I109: =LOOKUP(G109,$C$67:$D$1189) -> 38 | J109: 858 | K109: Varikuntapadu | L109: 858 | M109: Varikuntapadu | N109: 223 | O109: Rajanagaram | P109: 282 | Q109: Prathipadu | S109: 44 | T109: Fourty Four | V109: 123450038 | W109: Twelve Crores Thirty Four Lakhs Fifty Thousand and Thirty Eight | X109: 120000000 | Y109: 12 | Z109: Twelve Crores | AA109: 3400000 | AB109: 34 | AC109: Thirty Four Lakhs | AD109: 50000 | AE109: 50 | AF109: Fifty Thousand | AG109: 0 | AH109: 0 | AJ109: 38 | AK109: Thirty Eight | BI109: 108 | BJ109: 2202-04-001-00-01 | BK109: 1 | BL109: 2054-00-098-00-03 | BM109: 107 | BN109: 2054 | BO109: Treasury and Accounts Administration | BP109: 00 | BR109: 098 | BS109: Local Fund Audit | BT109: 00 | BV109: 03 | BW109: District Offices | CP109: 1 | CQ109: 7 | CR109: Karimnagar | CS109: 1505- HUZURABAD | CT109: 1505 | CU109: HUZURABAD | CV109: 15 | CW109: 05
A110: 44 | B110: 1 | C110: Adilabad | D110: 44 | E110: Sirpur (U) | F110: 18 | G110: Visakhapatnam | H110: 943 | I110: 43 | J110: 859 | K110: Venkatachalam | L110: 859 | M110: Venkatachalam | N110: 224 | O110: Rajavommangi | P110: 283 | Q110: Rajupalem | S110: 45 | T110: Fourty Five | V110: 123450039 | W110: Twelve Crores Thirty Four Lakhs Fifty Thousand and Thirty Nine | X110: 120000000 | Y110: 12 | Z110: Twelve Crores | AA110: 3400000 | AB110: 34 | AC110: Thirty Four Lakhs | AD110: 50000 | AE110: 50 | AF110: Fifty Thousand | AG110: 0 | AH110: 0 | AJ110: 39 | AK110: Thirty Nine | BI110: 109 | BJ110: 2202-04-001-00-03 | BK110: 1 | BL110: 2055-00-001-00-01 | BM110: 108 | BN110: 2055 | BO110: Police | BP110: 00 | BR110: 001 | BS110: Direction and Administration | BT110: 00 | BV110: 01 | BW110: Headquarters Office | CP110: 1 | CQ110: 7 | CR110: Karimnagar | CS110: 1506- JAGTIAL | CT110: 1506 | CU110: JAGTIAL | CV110: 15 | CW110: 06
A111: 45 | B111: 1 | C111: Adilabad | D111: 45 | E111: Talamadugu | F111: 19 | G111: Vizianagaram | H111: 977 | I111: 34 | J111: 860 | K111: Venkatagiri | L111: 860 | M111: Venkatagiri | N111: 225 | O111: Ramachandrapuram | P111: 284 | Q111: Rentacrintala | S111: 46 | T111: Fourty Six | V111: 123450040 | W111: Twelve Crores Thirty Four Lakhs Fifty Thousand and Fourty | X111: 120000000 | Y111: 12 | Z111: Twelve Crores | AA111: 3400000 | AB111: 34 | AC111: Thirty Four Lakhs | AD111: 50000 | AE111: 50 | AF111: Fifty Thousand | AG111: 0 | AH111: 0 | AJ111: 40 | AK111: Fourty | BI111: 110 | BJ111: 2202-05-102-00-05 | BK111: 1 | BL111: 2055-00-001-00-03 | BM111: 109 | BN111: 2055 | BO111: Police | BP111: 00 | BR111: 001 | BS111: Direction and Administration | BT111: 00 | BV111: 03 | BW111: District Offices (Superintendents of Police) | CP111: 1 | CQ111: 7 | CR111: Karimnagar | CS111: 1507- KARIMANAGAR | CT111: 1507 | CU111: KARIMANAGAR | CV111: 15 | CW111: 07
A112: 46 | B112: 1 | C112: Adilabad | D112: 46 | E112: Tamsi | F112: 20 | G112: Warangal | H112: 1027 | I112: 50 | J112: 861 | K112: Vidavalur | L112: 861 | M112: Vidavalur | N112: 226 | O112: Rampachodavaram | P112: 285 | Q112: Repalle | S112: 47 | T112: Fourty Seven | V112: 123450041 | W112: Twelve Crores Thirty Four Lakhs Fifty Thousand and Fourty One | X112: 120000000 | Y112: 12 | Z112: Twelve Crores | AA112: 3400000 | AB112: 34 | AC112: Thirty Four Lakhs | AD112: 50000 | AE112: 50 | AF112: Fifty Thousand | AG112: 0 | AH112: 0 | AJ112: 41 | AK112: Fourty One | BI112: 111 | BJ112: 2202-05-103-00-06 | BK112: 1 | BL112: 2055-00-001-00-07 | BM112: 110 | BN112: 2055 | BO112: Police | BP112: 00 | BR112: 001 | BS112: Direction and Administration | BT112: 00 | BV112: 07 | BW112: Police Recruitment Board | CP112: 1 | CQ112: 7 | CR112: Karimnagar | CS112: 1501- KARIMNAGAR | CT112: 1501 | CU112: KARIMNAGAR | CV112: 15 | CW112: 01
A113: 47 | B113: 1 | C113: Adilabad | D113: 47 | E113: Tandur | F113: 21 | G113: West Godavari | H113: 1073 | I113: 46 | J113: 862 | K113: Vinjamur | L113: 862 | M113: Vinjamur | N113: 227 | O113: Rangampeta | P113: 286 | Q113: Rompicherla | S113: 48 | T113: Fourty Eight | V113: 123450042 | W113: Twelve Crores Thirty Four Lakhs Fifty Thousand and Fourty Two | X113: 120000000 | Y113: 12 | Z113: Twelve Crores | AA113: 3400000 | AB113: 34 | AC113: Thirty Four Lakhs | AD113: 50000 | AE113: 50 | AF113: Fifty Thousand | AG113: 0 | AH113: 0 | AJ113: 42 | AK113: Fourty Two | BI113: 112 | BJ113: 2202-05-103-10-08 | BK113: 1 | BL113: 2055-00-001-00-10 | BM113: 111 | BN113: 2055 | BO113: Police | BP113: 00 | BR113: 001 | BS113: Direction and Administration | BT113: 00 | BV113: 10 | BW113: Marine Police | CP113: 1 | CQ113: 7 | CR113: Karimnagar | CS113: 1541-KARIMNAGAR | CT113: 1541 | CU113: KARIMNAGAR | CV113: 15 | CW113: 41
A114: 48 | B114: 1 | C114: Adilabad | D114: 48 | E114: Tanur | F114: 22 | G114: Y.S.R (Kaddapah) | H114: 1123 | I114: 50 | J114: 863 | L114: 863 | N114: 228 | O114: Ravulapalem | P114: 287 | Q114: Sattenapalle | S114: 49 | T114: Fourty Nine | V114: 123450043 | W114: Twelve Crores Thirty Four Lakhs Fifty Thousand and Fourty Three | X114: 120000000 | Y114: 12 | Z114: Twelve Crores | AA114: 3400000 | AB114: 34 | AC114: Thirty Four Lakhs | AD114: 50000 | AE114: 50 | AF114: Fifty Thousand | AG114: 0 | AH114: 0 | AJ114: 43 | AK114: Fourty Three | BI114: 113 | BJ114: 2202-80-001-00-01 | BK114: 1 | BL114: 2055-00-003-00-04 | BM114: 112 | BN114: 2055 | BO114: Police | BP114: 00 | BR114: 003 | BS114: Education and Training | BT114: 00 | BV114: 04 | BW114: Police Training Institutions | CP114: 1 | CQ114: 7 | CR114: Karimnagar | CS114: 1542-KARIMNAGAR | CT114: 1542 | CU114: KARIMNAGAR | CV114: 15 | CW114: 42
A115: 49 | B115: 1 | C115: Adilabad | D115: 49 | E115: Tiryani | F115: 23 | J115: 863 | L115: 863 | N115: 229 | O115: Rayavaram | P115: 288 | Q115: Savalyapuram | S115: 50 | T115: Fifty | V115: 123450044 | W115: Twelve Crores Thirty Four Lakhs Fifty Thousand and Fourty Four | X115: 120000000 | Y115: 12 | Z115: Twelve Crores | AA115: 3400000 | AB115: 34 | AC115: Thirty Four Lakhs | AD115: 50000 | AE115: 50 | AF115: Fifty Thousand | AG115: 0 | AH115: 0 | AJ115: 44 | AK115: Fourty Four | BI115: 114 | BJ115: 2202-80-001-00-03 | BK115: 1 | BL115: 2055-00-003-00-05 | BM115: 113 | BN115: 2055 | BO115: Police | BP115: 00 | BR115: 003 | BS115: Education and Training | BT115: 00 | BV115: 05 | BW115: A.P. State Police Academy | CP115: 1 | CQ115: 7 | CR115: Karimnagar | CS115: 1508- KORUTLA | CT115: 1508 | CU115: KORUTLA | CV115: 15 | CW115: 08
A116: 50 | B116: 1 | C116: Adilabad | D116: 50 | E116: Utnur | J116: 863 | L116: 863 | N116: 230 | O116: Razole | P116: 289 | Q116: Tadikonda | S116: 51 | T116: Fifty One | V116: 123450045 | W116: Twelve Crores Thirty Four Lakhs Fifty Thousand and Fourty Five | X116: 120000000 | Y116: 12 | Z116: Twelve Crores | AA116: 3400000 | AB116: 34 | AC116: Thirty Four Lakhs | AD116: 50000 | AE116: 50 | AF116: Fifty Thousand | AG116: 0 | AH116: 0 | AJ116: 45 | AK116: Fourty Five | BI116: 115 | BJ116: 2202-80-003-00-04 | BK116: 1 | BL116: 2055-00-101-00-05 | BM116: 114 | BN116: 2055 | BO116: Police | BP116: 00 | BR116: 101 | BS116: Criminal Investigation and Vigilance | BT116: 00 | BV116: 05 | BW116: Intelligence Branch | CP116: 1 | CQ116: 7 | CR116: Karimnagar | CS116: 1509- MAHADEVPUR | CT116: 1509 | CU116: MAHADEVPUR | CV116: 15 | CW116: 09
A117: 51 | B117: 1 | C117: Adilabad | D117: 51 | E117: Vemanpalle | J117: 863 | L117: 863 | N117: 231 | O117: Sakhinetipalle | P117: 290 | Q117: Tenali | S117: 52 | T117: Fifty Two | V117: 123450046 | W117: Twelve Crores Thirty Four Lakhs Fifty Thousand and Fourty Six | X117: 120000000 | Y117: 12 | Z117: Twelve Crores | AA117: 3400000 | AB117: 34 | AC117: Thirty Four Lakhs | AD117: 50000 | AE117: 50 | AF117: Fifty Thousand | AG117: 0 | AH117: 0 | AJ117: 46 | AK117: Fourty Six | BI117: 116 | BJ117: 2202-80-003-11-11 | BK117: 1 | BL117: 2055-00-104-00-01 | BM117: 115 | BN117: 2055 | BO117: Police | BP117: 00 | BR117: 104 | BS117: Special Police | BT117: 00 | BV117: 01 | BW117: Headquarters Office (Special Protection Force) | CP117: 1 | CQ117: 7 | CR117: Karimnagar | CS117: 1510- MALLIAL | CT117: 1510 | CU117: MALLIAL | CV117: 15 | CW117: 10
A118: 52 | B118: 1 | C118: Adilabad | D118: 52 | E118: Wankdi | J118: 863 | L118: 863 | N118: 232 | O118: Samalkota | P118: 291 | Q118: Thadepalle | S118: 53 | T118: Fifty Three | V118: 123450047 | W118: Twelve Crores Thirty Four Lakhs Fifty Thousand and Fourty Seven | X118: 120000000 | Y118: 12 | Z118: Twelve Crores | AA118: 3400000 | AB118: 34 | AC118: Thirty Four Lakhs | AD118: 50000 | AE118: 50 | AF118: Fifty Thousand | AG118: 0 | AH118: 0 | AJ118: 47 | AK118: Fourty Seven | BI118: 117 | BJ118: 2202-80-800-00-05 | BK118: 1 | BL118: 2055-00-104-00-04 | BM118: 116 | BN118: 2055 | BO118: Police | BP118: 00 | BR118: 104 | BS118: Special Police | BT118: 00 | BV118: 04 | BW118: Andhra Pradesh Special Police Units | CP118: 1 | CQ118: 7 | CR118: Karimnagar | CS118: 1511- MANTHANI | CT118: 1511 | CU118: MANTHANI | CV118: 15 | CW118: 11
A119: 53 | B119: 2 | C119: Anantapur | D119: 1 | E119: Agali | J119: 863 | L119: 863 | N119: 233 | O119: Sankhavaram | P119: 292 | Q119: Thullur | S119: 54 | T119: Fifty Four | V119: 123450048 | W119: Twelve Crores Thirty Four Lakhs Fifty Thousand and Fourty Eight | X119: 120000000 | Y119: 12 | Z119: Twelve Crores | AA119: 3400000 | AB119: 34 | AC119: Thirty Four Lakhs | AD119: 50000 | AE119: 50 | AF119: Fifty Thousand | AG119: 0 | AH119: 0 | AJ119: 48 | AK119: Fourty Eight | BI119: 118 | BJ119: 2202-80-800-00-07 | BK119: 1 | BL119: 2055-00-104-00-06 | BM119: 117 | BN119: 2055 | BO119: Police | BP119: 00 | BR119: 104 | BS119: Special Police | BT119: 00 | BV119: 06 | BW119: A.P. Special Armed Force | CP119: 1 | CQ119: 7 | CR119: Karimnagar | CS119: 1512- METPALLI | CT119: 1512 | CU119: METPALLI | CV119: 15 | CW119: 12
A120: 54 | B120: 2 | C120: Anantapur | D120: 2 | E120: Amadagur | J120: 863 | L120: 863 | N120: 234 | O120: Seethanagaram | P120: 293 | Q120: Tsundur | S120: 55 | T120: Fifty Five | V120: 123450049 | W120: Twelve Crores Thirty Four Lakhs Fifty Thousand and Fourty Nine | X120: 120000000 | Y120: 12 | Z120: Twelve Crores | AA120: 3400000 | AB120: 34 | AC120: Thirty Four Lakhs | AD120: 50000 | AE120: 50 | AF120: Fifty Thousand | AG120: 0 | AH120: 0 | AJ120: 49 | AK120: Fourty Nine | BI120: 119 | BJ120: 2202-80-800-00-08 | BK120: 1 | BL120: 2055-00-104-08-01 | BM120: 118 | BN120: 2055 | BO120: Police | BP120: 00 | BR120: 104 | BS120: Special Police | BT120: 08 | BU120: Special Protection Force | BV120: 01 | BW120: Headquarters Office | CP120: 1 | CQ120: 7 | CR120: Karimnagar | CS120: 1513- PEDDAPALLI | CT120: 1513 | CU120: PEDDAPALLI | CV120: 15 | CW120: 13
A121: 55 | B121: 2 | C121: Anantapur | D121: 3 | E121: Amarapuram | J121: 863 | L121: 863 | N121: 235 | O121: Thallarevu | P121: 294 | Q121: Vatticherukuru | S121: 56 | T121: Fifty Six | V121: 123450050 | W121: Twelve Crores Thirty Four Lakhs Fifty Thousand and Fifty | X121: 120000000 | Y121: 12 | Z121: Twelve Crores | AA121: 3400000 | AB121: 34 | AC121: Thirty Four Lakhs | AD121: 50000 | AE121: 50 | AF121: Fifty Thousand | AG121: 0 | AH121: 0 | AJ121: 50 | AK121: Fifty | BI121: 120 | BJ121: 2202-80-800-00-15 | BK121: 1 | BL121: 2055-00-108-00-04 | BM121: 119 | BN121: 2055 | BO121: Police | BP121: 00 | BR121: 108 | BS121: State Headquarters Police | BT121: 00 | BV121: 04 | BW121: Office of the Commissioner of City Police | CP121: 1 | CQ121: 7 | CR121: Karimnagar | CS121: 1514- SIRCILLA | CT121: 1514 | CU121: SIRCILLA | CV121: 15 | CW121: 14
A122: 56 | B122: 2 | C122: Anantapur | D122: 4 | E122: Anantapur | J122: 863 | L122: 863 | N122: 236 | O122: Thondangi | P122: 295 | Q122: Veldurthi | S122: 57 | T122: Fifty Seven | V122: 123450051 | W122: Twelve Crores Thirty Four Lakhs Fifty Thousand and Fifty One | X122: 120000000 | Y122: 12 | Z122: Twelve Crores | AA122: 3400000 | AB122: 34 | AC122: Thirty Four Lakhs | AD122: 50000 | AE122: 50 | AF122: Fifty Thousand | AG122: 0 | AH122: 0 | AJ122: 51 | AK122: Fifty One | BI122: 121 | BJ122: 2202-80-800-11-05 | BK122: 1 | BL122: 2055-00-108-00-05 | BM122: 120 | BN122: 2055 | BO122: Police | BP122: 00 | BR122: 108 | BS122: State Headquarters Police | BT122: 00 | BV122: 05 | BW122: City Police Force | CP122: 1 | CQ122: 7 | CR122: Karimnagar | CS122: 1515- SULTANABAD | CT122: 1515 | CU122: SULTANABAD | CV122: 15 | CW122: 15
A123: 57 | B123: 2 | C123: Anantapur | D123: 5 | E123: Atmakur | J123: 863 | L123: 863 | N123: 237 | O123: Tuni | P123: 296 | Q123: Vemuru | S123: 58 | T123: Fifty Eight | V123: 123450052 | W123: Twelve Crores Thirty Four Lakhs Fifty Thousand and Fifty Two | X123: 120000000 | Y123: 12 | Z123: Twelve Crores | AA123: 3400000 | AB123: 34 | AC123: Thirty Four Lakhs | AD123: 50000 | AE123: 50 | AF123: Fifty Thousand | AG123: 0 | AH123: 0 | AJ123: 52 | AK123: Fifty Two | BI123: 122 | BJ123: 2202-80-800-11-08 | BK123: 1 | BL123: 2055-00-108-00-06 | BM123: 121 | BN123: 2055 | BO123: Police | BP123: 00 | BR123: 108 | BS123: State Headquarters Police | BT123: 00 | BV123: 06 | BW123: Armed Guard at Deputy Intelligence Bureau Office | CP123: 1 | CQ123: 7 | CR123: Karimnagar | CS123: 1516- VEMULAWADA | CT123: 1516 | CU123: VEMULAWADA | CV123: 15 | CW123: 16
A124: 58 | B124: 2 | C124: Anantapur | D124: 6 | E124: Bathalapalle | J124: 863 | L124: 863 | N124: 238 | O124: Uppalaguptam | P124: 297 | Q124: Vinukonda | S124: 59 | T124: Fifty Nine | V124: 123450053 | W124: Twelve Crores Thirty Four Lakhs Fifty Thousand and Fifty Three | X124: 120000000 | Y124: 12 | Z124: Twelve Crores | AA124: 3400000 | AB124: 34 | AC124: Thirty Four Lakhs | AD124: 50000 | AE124: 50 | AF124: Fifty Thousand | AG124: 0 | AH124: 0 | AJ124: 53 | AK124: Fifty Three | BK124: 1 | BL124: 2055-00-108-00-08 | BM124: 122 | BN124: 2055 | BO124: Police | BP124: 00 | BR124: 108 | BS124: State Headquarters Police | BT124: 00 | BV124: 08 | BW124: Establishment for issue of Indo-Pakistan Passports and Visa | CP124: 1 | CQ124: 8 | CR124: Khammam | CS124: 1602- BHADRACHALAM | CT124: 1602 | CU124: BHADRACHALAM | CV124: 16 | CW124: 02
A125: 59 | B125: 2 | C125: Anantapur | D125: 7 | E125: Beluguppa | J125: 863 | L125: 863 | N125: 239 | O125: Y Ramavaram | P125: 298 | S125: 60 | T125: Sixty | V125: 123450054 | W125: Twelve Crores Thirty Four Lakhs Fifty Thousand and Fifty Four | X125: 120000000 | Y125: 12 | Z125: Twelve Crores | AA125: 3400000 | AB125: 34 | AC125: Thirty Four Lakhs | AD125: 50000 | AE125: 50 | AF125: Fifty Thousand | AG125: 0 | AH125: 0 | AJ125: 54 | AK125: Fifty Four | BK125: 1 | BL125: 2055-00-109-00-03 | BM125: 123 | BN125: 2055 | BO125: Police | BP125: 00 | BR125: 109 | BS125: District Police | BT125: 00 | BV125: 03 | BW125: District Police Force | CP125: 1 | CQ125: 8 | CR125: Khammam | CS125: 1603- BURGAMPAHAD | CT125: 1603 | CU125: BURGAMPAHAD | CV125: 16 | CW125: 03
A126: 60 | B126: 2 | C126: Anantapur | D126: 8 | E126: Bommanahal | J126: 863 | L126: 863 | N126: 240 | O126: Yeleswaram | P126: 299 | S126: 61 | T126: Sixty One | V126: 123450055 | W126: Twelve Crores Thirty Four Lakhs Fifty Thousand and Fifty Five | X126: 120000000 | Y126: 12 | Z126: Twelve Crores | AA126: 3400000 | AB126: 34 | AC126: Thirty Four Lakhs | AD126: 50000 | AE126: 50 | AF126: Fifty Thousand | AG126: 0 | AH126: 0 | AJ126: 55 | AK126: Fifty Five | BK126: 1 | BL126: 2055-00-109-00-04 | BM126: 124 | BN126: 2055 | BO126: Police | BP126: 00 | BR126: 109 | BS126: District Police | BT126: 00 | BV126: 04 | BW126: Office of the Commissioner of Cyberabad Police | CP126: 1 | CQ126: 8 | CR126: Khammam | CS126: 1641-KAMMAM | CT126: 1641 | CU126: KAMMAM | CV126: 16 | CW126: 41
A127: 61 | B127: 2 | C127: Anantapur | D127: 9 | E127: Brahmasamudram | J127: 863 | L127: 863 | N127: 241 | P127: 300 | S127: 62 | T127: Sixty Two | V127: 123450056 | W127: Twelve Crores Thirty Four Lakhs Fifty Thousand and Fifty Six | X127: 120000000 | Y127: 12 | Z127: Twelve Crores | AA127: 3400000 | AB127: 34 | AC127: Thirty Four Lakhs | AD127: 50000 | AE127: 50 | AF127: Fifty Thousand | AG127: 0 | AH127: 0 | AJ127: 56 | AK127: Fifty Six | BK127: 1 | BL127: 2055-00-111-00-04 | BM127: 125 | BN127: 2055 | BO127: Police | BP127: 00 | BR127: 111 | BS127: Railway Police | BT127: 00 | BV127: 04 | BW127: Railway Police | CP127: 1 | CQ127: 8 | CR127: Khammam | CS127: 1601- KHAMMAM | CT127: 1601 | CU127: KHAMMAM | CV127: 16 | CW127: 01
A128: 62 | B128: 2 | C128: Anantapur | D128: 10 | E128: Bukkapatnam | J128: 863 | L128: 863 | N128: 242 | P128: 301 | S128: 63 | T128: Sixty Three | V128: 123450057 | W128: Twelve Crores Thirty Four Lakhs Fifty Thousand and Fifty Seven | X128: 120000000 | Y128: 12 | Z128: Twelve Crores | AA128: 3400000 | AB128: 34 | AC128: Thirty Four Lakhs | AD128: 50000 | AE128: 50 | AF128: Fifty Thousand | AG128: 0 | AH128: 0 | AJ128: 57 | AK128: Fifty Seven | BK128: 1 | BL128: 2055-00-113-00-04 | BM128: 126 | BN128: 2055 | BO128: Police | BP128: 00 | BR128: 113 | BS128: Welfare of Police Personnel | BT128: 00 | BV128: 04 | BW128: Welfare of Police Personnel | CP128: 1 | CQ128: 8 | CR128: Khammam | CS128: 1604- KHAMMAM | CT128: 1604 | CU128: KHAMMAM | CV128: 16 | CW128: 04
A129: 63 | B129: 2 | C129: Anantapur | D129: 11 | E129: Bukkarayasamudram | J129: 863 | L129: 863 | N129: 243 | P129: 302 | S129: 64 | T129: Sixty Four | V129: 123450058 | W129: Twelve Crores Thirty Four Lakhs Fifty Thousand and Fifty Eight | X129: 120000000 | Y129: 12 | Z129: Twelve Crores | AA129: 3400000 | AB129: 34 | AC129: Thirty Four Lakhs | AD129: 50000 | AE129: 50 | AF129: Fifty Thousand | AG129: 0 | AH129: 0 | AJ129: 58 | AK129: Fifty Eight | BK129: 1 | BL129: 2055-00-114-00-04 | BM129: 127 | BN129: 2055 | BO129: Police | BP129: 00 | BR129: 114 | BS129: Wireless and Computers | BT129: 00 | BV129: 04 | BW129: Police Communications and Computer Services | CP129: 1 | CQ129: 8 | CR129: Khammam | CS129: 1605- KOTHAGUDEM | CT129: 1605 | CU129: KOTHAGUDEM | CV129: 16 | CW129: 05
A130: 64 | B130: 2 | C130: Anantapur | D130: 12 | E130: Chenne Kothapalle | J130: 863 | L130: 863 | N130: 244 | P130: 303 | S130: 65 | T130: Sixty Five | V130: 123450059 | W130: =IF(V130=0,"NIL",IF(AND(Y130=0,AB130=0,AE130=0,AH130=0),AK130,IF(AND(Y130=0,AB130=0,AE130=0),CONCATENATE(AI130,IF(AJ130>0,"and "," "),AK130),IF(AND(Y130=0,AB130=0),CONCATENATE(AF130,IF(AND(AJ130=0,AH130>0),"and ", ""),AI130,IF(AJ130>0,"and "," "),AK130),IF(Y130=0,CONCATENATE(AC130,IF(AND(AJ130=0,AH130=0,AE130>0),"and ", ""),AF130,IF(AND(AJ130=0,AH130>0),"and ", ""),AI130,IF(AJ130>0,"and "," "),AK130),CONCATENATE(Z130,IF(AND(AJ130=0,AH130=0,AE130=0,AB130>0),"and ", ""),AC130,IF(AND(AJ130=0,AH130=0,AE130>0),"and ", ""),AF130,IF(AND(AJ130=0,AH130>0),"and ", ""),AI130,IF(AJ130>0,"and "," "),AK130)))))) -> Twelve Crores Thirty Four Lakhs Fifty Thousand and Fifty Nine | X130: =INT(V130/10000000)*10000000 -> 120000000 | Y130: =INT(V130/10000000) -> 12 | Z130: =IF(Y130=1,CONCATENATE(VLOOKUP(Y130,$S$66:$T$164,2)," Crore "),IF(Y130>1,CONCATENATE(VLOOKUP(Y130,$S$66:$T$164,2)," Crores "),"")) -> Twelve Crores | AA130: =INT(V130/100000)*100000-X130 -> 3400000 | AB130: =INT(AA130/100000) -> 34 | AC130: =IF(AB130=1,CONCATENATE(VLOOKUP(AB130,$S$66:$T$164,2)," Lakh "),IF(AB130>1,CONCATENATE(VLOOKUP(AB130,$S$66:$T$164,2)," Lakhs "),"")) -> Thirty Four Lakhs | AD130: =INT(V130/1000)*1000-X130-AA130 -> 50000 | AE130: =INT(AD130/1000) -> 50 | AF130: =IF(AE130>0,CONCATENATE(VLOOKUP(AE130,$S$66:$T$164,2)," Thousand "),"") -> Fifty Thousand | AG130: =INT(V130/100)*100-X130-AA130-AD130 -> 0 | AH130: =INT(AG130/100) -> 0 | AI130: =IF(AH130>0,CONCATENATE(VLOOKUP(AH130,$S$66:$T$164,2)," Hundred "),"") ->  | AJ130: =V130-X130-AA130-AD130-AG130 -> 59 | AK130: =IF(AJ130>0, VLOOKUP(AJ130,$S$66:$T$164,2),"") -> Fifty Nine | BK130: 1 | BL130: 2055-00-116-00-04 | BM130: 128 | BN130: 2055 | BO130: Police | BP130: 00 | BR130: 116 | BS130: Forensic Science | BT130: 00 | BV130: 04 | BW130: Forensic Science Laboratory | CP130: =IF(EXACT($CO$1,CR130),CP129+1,1) -> 1 | CQ130: 8 | CR130: Khammam | CS130: 1606- MADHIRA | CT130: 1606 | CU130: MADHIRA | CV130: 16 | CW130: 06
A131: 65 | B131: 2 | C131: Anantapur | D131: 13 | E131: Chilamathur | J131: 863 | L131: 863 | N131: 245 | P131: 304 | S131: 66 | T131: Sixty Six | V131: 123450060 | W131: Twelve Crores Thirty Four Lakhs Fifty Thousand and Sixty | X131: 120000000 | Y131: 12 | Z131: Twelve Crores | AA131: 3400000 | AB131: 34 | AC131: Thirty Four Lakhs | AD131: 50000 | AE131: 50 | AF131: Fifty Thousand | AG131: 0 | AH131: 0 | AJ131: 60 | AK131: Sixty | BK131: 1 | BL131: =CONCATENATE(BN131,"-",BP131,"-",BR131,"-",BT131,"-",BV131) -> 2055-00-117-11-06 | BM131: 129 | BN131: 2055 | BO131: Police | BP131: 00 | BR131: 117 | BS131: Internal Security | BT131: 11 | BU131: Normal State Plan | BV131: 06 | BW131: Organisation of Counter Terrorist Operations (OCTOPUS) | CP131: 1 | CQ131: 8 | CR131: Khammam | CS131: 1607- NELAKONDAPALLI | CT131: 1607 | CU131: NELAKONDAPALLI | CV131: 16 | CW131: 07
A132: 66 | B132: 2 | C132: Anantapur | D132: 14 | E132: D.Hirchal | J132: 863 | L132: 863 | N132: 246 | P132: 305 | S132: 67 | T132: Sixty Seven | V132: 123450061 | W132: Twelve Crores Thirty Four Lakhs Fifty Thousand and Sixty One | X132: 120000000 | Y132: 12 | Z132: Twelve Crores | AA132: 3400000 | AB132: 34 | AC132: Thirty Four Lakhs | AD132: 50000 | AE132: 50 | AF132: Fifty Thousand | AG132: 0 | AH132: 0 | AJ132: 61 | AK132: Sixty One | BK132: =IF(EXACT($E$25,BN132),BK131+1,1) -> 1 | BL132: 2056-00-001-00-01 | BM132: 130 | BN132: 2056 | BO132: Jails | BP132: 00 | BR132: 001 | BS132: Direction and Administration | BT132: 00 | BV132: 01 | BW132: Headquarters Office | CP132: 1 | CQ132: 8 | CR132: Khammam | CS132: 1608- SATTUPALLI | CT132: 1608 | CU132: SATTUPALLI | CV132: 16 | CW132: 08
A133: 67 | B133: 2 | C133: Anantapur | D133: 15 | E133: Dharmavaram | J133: 863 | K133: =IF(J133>$J$67,"",VLOOKUP(J133,$A$67:$E$1189,5)) ->  | L133: 863 | M133: =IF(L133>$L$67,"",VLOOKUP(L133,$A$67:$E$1189,5)) ->  | N133: 247 | O133: =IF(N133>$N$67,"",VLOOKUP(N133,$A$67:$E$1189,5)) ->  | P133: 306 | Q133: =IF(P133>$P$67,"",VLOOKUP(P133,$A$67:$E$1189,5)) ->  | S133: 68 | T133: Sixty Eight | V133: 123450062 | W133: Twelve Crores Thirty Four Lakhs Fifty Thousand and Sixty Two | X133: 120000000 | Y133: 12 | Z133: Twelve Crores | AA133: 3400000 | AB133: 34 | AC133: Thirty Four Lakhs | AD133: 50000 | AE133: 50 | AF133: Fifty Thousand | AG133: 0 | AH133: 0 | AJ133: 62 | AK133: Sixty Two | BI133: =IF(BI132="","",IF(BI132=MIN(BI132+1,MAX(BK133:BK1143)),"",MIN(BI132+1,MAX(BK133:BK1143)))) ->  | BJ133: =IF(ISNA(VLOOKUP(BI133,$BK$3:$BM$1013,2,FALSE)),"",VLOOKUP(BI133,$BK$3:$BM$1013,2,FALSE)) ->  | BK133: 1 | BL133: 2056-00-001-00-02 | BM133: 131 | BN133: 2056 | BO133: Jails | BP133: 00 | BR133: 001 | BS133: Direction and Administration | BT133: 00 | BV133: 02 | BW133: Regional Offices | CP133: 1 | CQ133: 8 | CR133: Khammam | CS133: 1609- VENKATAPURAM | CT133: 1609 | CU133: VENKATAPURAM | CV133: 16 | CW133: 09
A134: 68 | B134: 2 | C134: Anantapur | D134: 16 | E134: Gandlapenta | J134: 863 | L134: 863 | N134: 248 | P134: 307 | S134: 69 | T134: Sixty Nine | V134: 123450063 | W134: Twelve Crores Thirty Four Lakhs Fifty Thousand and Sixty Three | X134: 120000000 | Y134: 12 | Z134: Twelve Crores | AA134: 3400000 | AB134: 34 | AC134: Thirty Four Lakhs | AD134: 50000 | AE134: 50 | AF134: Fifty Thousand | AG134: 0 | AH134: 0 | AJ134: 63 | AK134: Sixty Three | BK134: 1 | BL134: 2056-00-101-00-04 | BM134: 132 | BN134: 2056 | BO134: Jails | BP134: 00 | BR134: 101 | BS134: Jails | BT134: 00 | BV134: 04 | BW134: Jails | CP134: 1 | CQ134: 8 | CR134: Khammam | CS134: 1610- YELLANDU | CT134: 1610 | CU134: YELLANDU | CV134: 16 | CW134: 10
A135: 69 | B135: 2 | C135: Anantapur | D135: 17 | E135: Garladinne | S135: 70 | T135: Seventy | V135: 123450064 | W135: Twelve Crores Thirty Four Lakhs Fifty Thousand and Sixty Four | X135: 120000000 | Y135: 12 | Z135: Twelve Crores | AA135: 3400000 | AB135: 34 | AC135: Thirty Four Lakhs | AD135: 50000 | AE135: 50 | AF135: Fifty Thousand | AG135: 0 | AH135: 0 | AJ135: 64 | AK135: Sixty Four | BK135: 1 | BL135: 2056-00-102-00-04 | BM135: 133 | BN135: 2056 | BO135: Jails | BP135: 00 | BR135: 102 | BS135: Jail Manufactures | BT135: 00 | BV135: 04 | BW135: Jail Manufactures | CP135: 1 | CQ135: 9 | CR135: Krishna | CS135: 0502- AVANIGADDA | CT135: 0502 | CU135: AVANIGADDA | CV135: 05 | CW135: 02
A136: 70 | B136: 2 | C136: Anantapur | D136: 18 | E136: Gooty | S136: 71 | T136: Seventy One | V136: 123450065 | W136: Twelve Crores Thirty Four Lakhs Fifty Thousand and Sixty Five | X136: 120000000 | Y136: 12 | Z136: Twelve Crores | AA136: 3400000 | AB136: 34 | AC136: Thirty Four Lakhs | AD136: 50000 | AE136: 50 | AF136: Fifty Thousand | AG136: 0 | AH136: 0 | AJ136: 65 | AK136: Sixty Five | BK136: 1 | BL136: 2056-00-800-00-70 | BM136: 134 | BN136: 2056 | BO136: Jails | BP136: 00 | BR136: 800 | BS136: Other Expenditure | BT136: 00 | BV136: 70 | BW136: Training | CP136: 1 | CQ136: 9 | CR136: Krishna | CS136: 0503- BANDAR | CT136: 0503 | CU136: BANDAR | CV136: 05 | CW136: 03
A137: 71 | B137: 2 | C137: Anantapur | D137: 19 | E137: Gorantla | S137: 72 | T137: Seventy Two | V137: 123450066 | W137: Twelve Crores Thirty Four Lakhs Fifty Thousand and Sixty Six | X137: 120000000 | Y137: 12 | Z137: Twelve Crores | AA137: 3400000 | AB137: 34 | AC137: Thirty Four Lakhs | AD137: 50000 | AE137: 50 | AF137: Fifty Thousand | AG137: 0 | AH137: 0 | AJ137: 66 | AK137: Sixty Six | BK137: 1 | BL137: 2058-00-001-00-01 | BM137: 135 | BN137: 2058 | BO137: Stationery and Printing | BP137: 00 | BR137: 001 | BS137: Direction and Administration | BT137: 00 | BV137: 01 | BW137: Headquarter's Office | CP137: 1 | CQ137: 9 | CR137: Krishna | CS137: 0504- BANTUMILLI | CT137: 0504 | CU137: BANTUMILLI | CV137: 05 | CW137: 04
A138: 72 | B138: 2 | C138: Anantapur | D138: 20 | E138: Gudibanda | S138: 73 | T138: Seventy Three | V138: 123450067 | W138: Twelve Crores Thirty Four Lakhs Fifty Thousand and Sixty Seven | X138: 120000000 | Y138: 12 | Z138: Twelve Crores | AA138: 3400000 | AB138: 34 | AC138: Thirty Four Lakhs | AD138: 50000 | AE138: 50 | AF138: Fifty Thousand | AG138: 0 | AH138: 0 | AJ138: 67 | AK138: Sixty Seven | BK138: 1 | BL138: 2058-00-003-00-04 | BM138: 136 | BN138: 2058 | BO138: Stationery and Printing | BP138: 00 | BR138: 003 | BS138: Training | BT138: 00 | BV138: 04 | BW138: Training | CP138: 1 | CQ138: 9 | CR138: Krishna | CS138: 0505- GANNAVARAM | CT138: 0505 | CU138: GANNAVARAM | CV138: 05 | CW138: 05
A139: 73 | B139: 2 | C139: Anantapur | D139: 21 | E139: Gummagatta | S139: 74 | T139: Seventy Four | V139: 123450068 | W139: Twelve Crores Thirty Four Lakhs Fifty Thousand and Sixty Eight | X139: 120000000 | Y139: 12 | Z139: Twelve Crores | AA139: 3400000 | AB139: 34 | AC139: Thirty Four Lakhs | AD139: 50000 | AE139: 50 | AF139: Fifty Thousand | AG139: 0 | AH139: 0 | AJ139: 68 | AK139: Sixty Eight | BK139: 1 | BL139: 2058-00-103-00-04 | BM139: 137 | BN139: 2058 | BO139: Stationery and Printing | BP139: 00 | BR139: 103 | BS139: Government Presses | BT139: 00 | BV139: 04 | BW139: Government Presses | CP139: 1 | CQ139: 9 | CR139: Krishna | CS139: 0506- GUDIVADA | CT139: 0506 | CU139: GUDIVADA | CV139: 05 | CW139: 06
A140: 74 | B140: 2 | C140: Anantapur | D140: 22 | E140: Guntakal | S140: 75 | T140: Seventy Five | V140: 123450069 | W140: Twelve Crores Thirty Four Lakhs Fifty Thousand and Sixty Nine | X140: 120000000 | Y140: 12 | Z140: Twelve Crores | AA140: 3400000 | AB140: 34 | AC140: Thirty Four Lakhs | AD140: 50000 | AE140: 50 | AF140: Fifty Thousand | AG140: 0 | AH140: 0 | AJ140: 69 | AK140: Sixty Nine | BK140: 1 | BL140: 2059-01-053-00-04 | BM140: 138 | BN140: 2059 | BO140: Public Works | BP140: 01 | BQ140: Office Buildings | BR140: 053 | BS140: Maintenance and Repairs | BT140: 00 | BV140: 04 | BW140: Maintenance and Repairs of Buildings | CP140: 1 | CQ140: 9 | CR140: Krishna | CS140: 0507- JAGGAIAHPETA | CT140: 0507 | CU140: JAGGAIAHPETA | CV140: 05 | CW140: 07
A141: 75 | B141: 2 | C141: Anantapur | D141: 23 | E141: Hindupur | S141: 76 | T141: Seventy Six | V141: 123450070 | W141: Twelve Crores Thirty Four Lakhs Fifty Thousand and Seventy | X141: 120000000 | Y141: 12 | Z141: Twelve Crores | AA141: 3400000 | AB141: 34 | AC141: Thirty Four Lakhs | AD141: 50000 | AE141: 50 | AF141: Fifty Thousand | AG141: 0 | AH141: 0 | AJ141: 70 | AK141: Seventy | BK141: 1 | BL141: 2059-01-053-00-08 | BM141: 139 | BN141: 2059 | BO141: Public Works | BP141: 01 | BQ141: Office Buildings | BR141: 053 | BS141: Maintenance and Repairs | BT141: 00 | BV141: 08 | BW141: Buildings of Legislature | CP141: 1 | CQ141: 9 | CR141: Krishna | CS141: 0508- KAIKALURU | CT141: 0508 | CU141: KAIKALURU | CV141: 05 | CW141: 08
A142: 76 | B142: 2 | C142: Anantapur | D142: 24 | E142: Kadiri | S142: 77 | T142: Seventy Seven | V142: 123450071 | W142: Twelve Crores Thirty Four Lakhs Fifty Thousand and Seventy One | X142: 120000000 | Y142: 12 | Z142: Twelve Crores | AA142: 3400000 | AB142: 34 | AC142: Thirty Four Lakhs | AD142: 50000 | AE142: 50 | AF142: Fifty Thousand | AG142: 0 | AH142: 0 | AJ142: 71 | AK142: Seventy One | BK142: 1 | BL142: 2059-80-001-00-01 | BM142: 140 | BN142: 2059 | BO142: Public Works | BP142: 80 | BQ142: General | BR142: 001 | BS142: Direction and Administration | BT142: 00 | BV142: 01 | BW142: Headquarters Office | CP142: 1 | CQ142: 9 | CR142: Krishna | CS142: 0519- KANCHIKA CHARLA | CT142: 0519 | CU142: KANCHIKA CHARLA | CV142: 05 | CW142: 19
A143: 77 | B143: 2 | C143: Anantapur | D143: 25 | E143: Kalyandurg | S143: 78 | T143: Seventy Eight | V143: 123450072 | W143: Twelve Crores Thirty Four Lakhs Fifty Thousand and Seventy Two | X143: 120000000 | Y143: 12 | Z143: Twelve Crores | AA143: 3400000 | AB143: 34 | AC143: Thirty Four Lakhs | AD143: 50000 | AE143: 50 | AF143: Fifty Thousand | AG143: 0 | AH143: 0 | AJ143: 72 | AK143: Seventy Two | BK143: 1 | BL143: 2059-80-001-00-03 | BM143: 141 | BN143: 2059 | BO143: Public Works | BP143: 80 | BQ143: General | BR143: 001 | BS143: Direction and Administration | BT143: 00 | BV143: 03 | BW143: District Offices (Divisional and Sub-Divisional Offices) | CP143: 1 | CQ143: 9 | CR143: Krishna | CS143: 0501- KRISHNA | CT143: 0501 | CU143: KRISHNA | CV143: 05 | CW143: 01
A144: 78 | B144: 2 | C144: Anantapur | D144: 26 | E144: Kambadur | S144: 79 | T144: Seventy Nine | V144: 123450073 | W144: Twelve Crores Thirty Four Lakhs Fifty Thousand and Seventy Three | X144: 120000000 | Y144: 12 | Z144: Twelve Crores | AA144: 3400000 | AB144: 34 | AC144: Thirty Four Lakhs | AD144: 50000 | AE144: 50 | AF144: Fifty Thousand | AG144: 0 | AH144: 0 | AJ144: 73 | AK144: Seventy Three | BK144: 1 | BL144: 2070-00-003-00-04 | BM144: 142 | BN144: 2070 | BO144: Other Administrative Services | BP144: 00 | BR144: 003 | BS144: Training | BT144: 00 | BV144: 04 | BW144: Allowances to I.A.S. Probationers | CP144: 1 | CQ144: 9 | CR144: Krishna | CS144: 0509- MOVVA | CT144: 0509 | CU144: MOVVA | CV144: 05 | CW144: 09
A145: 79 | B145: 2 | C145: Anantapur | D145: 27 | E145: Kanaganapalle | S145: 80 | T145: Eighty | V145: 123450074 | W145: Twelve Crores Thirty Four Lakhs Fifty Thousand and Seventy Four | X145: 120000000 | Y145: 12 | Z145: Twelve Crores | AA145: 3400000 | AB145: 34 | AC145: Thirty Four Lakhs | AD145: 50000 | AE145: 50 | AF145: Fifty Thousand | AG145: 0 | AH145: 0 | AJ145: 74 | AK145: Seventy Four | BK145: 1 | BL145: 2070-00-003-00-04 | BM145: 143 | BN145: 2070 | BO145: Other Administrative Services | BP145: 00 | BR145: 003 | BS145: Training | BT145: 00 | BV145: 04 | BW145: Training | CP145: 1 | CQ145: 9 | CR145: Krishna | CS145: 0510- MYLAVARAM | CT145: 0510 | CU145: MYLAVARAM | CV145: 05 | CW145: 10
A146: 80 | B146: 2 | C146: Anantapur | D146: 28 | E146: Kanekal | S146: 81 | T146: Eighty One | V146: 123450075 | W146: Twelve Crores Thirty Four Lakhs Fifty Thousand and Seventy Five | X146: 120000000 | Y146: 12 | Z146: Twelve Crores | AA146: 3400000 | AB146: 34 | AC146: Thirty Four Lakhs | AD146: 50000 | AE146: 50 | AF146: Fifty Thousand | AG146: 0 | AH146: 0 | AJ146: 75 | AK146: Seventy Five | BK146: 1 | BL146: 2070-00-003-00-05 | BM146: 144 | BN146: 2070 | BO146: Other Administrative Services | BP146: 00 | BR146: 003 | BS146: Training | BT146: 00 | BV146: 05 | BW146: MCR HRD Institute | CP146: 1 | CQ146: 9 | CR146: Krishna | CS146: 0511- NANDIGAMA | CT146: 0511 | CU146: NANDIGAMA | CV146: 05 | CW146: 11
A147: 81 | B147: 2 | C147: Anantapur | D147: 29 | E147: Kothacheruvu | S147: 82 | T147: Eighty Two | V147: 123450076 | W147: Twelve Crores Thirty Four Lakhs Fifty Thousand and Seventy Six | X147: 120000000 | Y147: 12 | Z147: Twelve Crores | AA147: 3400000 | AB147: 34 | AC147: Thirty Four Lakhs | AD147: 50000 | AE147: 50 | AF147: Fifty Thousand | AG147: 0 | AH147: 0 | AJ147: 76 | AK147: Seventy Six | BK147: 1 | BL147: 2070-00-003-00-07 | BM147: 145 | BN147: 2070 | BO147: Other Administrative Services | BP147: 00 | BR147: 003 | BS147: Training | BT147: 00 | BV147: 07 | BW147: Training in Accounts and Audit | CP147: 1 | CQ147: 9 | CR147: Krishna | CS147: 0512- NUZVID | CT147: 0512 | CU147: NUZVID | CV147: 05 | CW147: 12
A148: 82 | B148: 2 | C148: Anantapur | D148: 30 | E148: Kudair | S148: 83 | T148: Eighty Three | V148: 123450077 | W148: Twelve Crores Thirty Four Lakhs Fifty Thousand and Seventy Seven | X148: 120000000 | Y148: 12 | Z148: Twelve Crores | AA148: 3400000 | AB148: 34 | AC148: Thirty Four Lakhs | AD148: 50000 | AE148: 50 | AF148: Fifty Thousand | AG148: 0 | AH148: 0 | AJ148: 77 | AK148: Seventy Seven | BK148: 1 | BL148: 2070-00-003-11-05 | BM148: 146 | BN148: 2070 | BO148: Other Administrative Services | BP148: 00 | BR148: 003 | BS148: Training | BT148: 11 | BU148: Normal State Plan | BV148: 05 | BW148: MCR HRD Institute | CP148: 1 | CQ148: 9 | CR148: Krishna | CS148: 0513- PAMARRU | CT148: 0513 | CU148: PAMARRU | CV148: 05 | CW148: 13
A149: 83 | B149: 2 | C149: Anantapur | D149: 31 | E149: Kundurpi | S149: 84 | T149: Eighty Four | V149: 123450078 | W149: Twelve Crores Thirty Four Lakhs Fifty Thousand and Seventy Eight | X149: 120000000 | Y149: 12 | Z149: Twelve Crores | AA149: 3400000 | AB149: 34 | AC149: Thirty Four Lakhs | AD149: 50000 | AE149: 50 | AF149: Fifty Thousand | AG149: 0 | AH149: 0 | AJ149: 78 | AK149: Seventy Eight | BK149: 1 | BL149: 2070-00-104-00-04 | BM149: 147 | BN149: 2070 | BO149: Other Administrative Services | BP149: 00 | BR149: 104 | BS149: Vigilance | BT149: 00 | BV149: 04 | BW149: Lokayukta - Upa Lokayukta | CP149: 1 | CQ149: 9 | CR149: Krishna | CS149: 0514- TIRUVUR | CT149: 0514 | CU149: TIRUVUR | CV149: 05 | CW149: 14
A150: 84 | B150: 2 | C150: Anantapur | D150: 32 | E150: Lepakshi | S150: 85 | T150: Eighty Five | V150: 123450079 | W150: Twelve Crores Thirty Four Lakhs Fifty Thousand and Seventy Nine | X150: 120000000 | Y150: 12 | Z150: Twelve Crores | AA150: 3400000 | AB150: 34 | AC150: Thirty Four Lakhs | AD150: 50000 | AE150: 50 | AF150: Fifty Thousand | AG150: 0 | AH150: 0 | AJ150: 79 | AK150: Seventy Nine | BK150: 1 | BL150: 2070-00-104-00-05 | BM150: 148 | BN150: 2070 | BO150: Other Administrative Services | BP150: 00 | BR150: 104 | BS150: Vigilance | BT150: 00 | BV150: 05 | BW150: Department of Vigilance and Enforcement - Head Quarters | CP150: 1 | CQ150: 9 | CR150: Krishna | CS150: 0541-VIJAYAWADA | CT150: 0541 | CU150: VIJAYAWADA | CV150: 05 | CW150: 41
A151: 85 | B151: 2 | C151: Anantapur | D151: 33 | E151: Madakasira | S151: 86 | T151: Eighty Six | V151: 123450080 | W151: Twelve Crores Thirty Four Lakhs Fifty Thousand and Eighty | X151: 120000000 | Y151: 12 | Z151: Twelve Crores | AA151: 3400000 | AB151: 34 | AC151: Thirty Four Lakhs | AD151: 50000 | AE151: 50 | AF151: Fifty Thousand | AG151: 0 | AH151: 0 | AJ151: 80 | AK151: Eighty | BK151: 1 | BL151: 2070-00-104-00-06 | BM151: 149 | BN151: 2070 | BO151: Other Administrative Services | BP151: 00 | BR151: 104 | BS151: Vigilance | BT151: 00 | BV151: 06 | BW151: Department of Vigilance and Enforcement - District Task Force | CP151: 1 | CQ151: 9 | CR151: Krishna | CS151: 0515- VIJAYAWADA(EAST) | CT151: 0515 | CU151: VIJAYAWADA(EAST) | CV151: 05 | CW151: 15
A152: 86 | B152: 2 | C152: Anantapur | D152: 34 | E152: Mudigubba | S152: 87 | T152: Eighty Seven | V152: 123450081 | W152: Twelve Crores Thirty Four Lakhs Fifty Thousand and Eighty One | X152: 120000000 | Y152: 12 | Z152: Twelve Crores | AA152: 3400000 | AB152: 34 | AC152: Thirty Four Lakhs | AD152: 50000 | AE152: 50 | AF152: Fifty Thousand | AG152: 0 | AH152: 0 | AJ152: 81 | AK152: Eighty One | BK152: 1 | BL152: 2070-00-104-00-08 | BM152: 150 | BN152: 2070 | BO152: Other Administrative Services | BP152: 00 | BR152: 104 | BS152: Vigilance | BT152: 00 | BV152: 08 | BW152: Andhra Pradesh Vigilance Commission | CP152: 1 | CQ152: 9 | CR152: Krishna | CS152: 0516- VIJAYAWADA(WEST) | CT152: 0516 | CU152: VIJAYAWADA(WEST) | CV152: 05 | CW152: 16
A153: 87 | B153: 2 | C153: Anantapur | D153: 35 | E153: Nallacheruvu | S153: 88 | T153: Eighty Eight | V153: 123450082 | W153: Twelve Crores Thirty Four Lakhs Fifty Thousand and Eighty Two | X153: 120000000 | Y153: 12 | Z153: Twelve Crores | AA153: 3400000 | AB153: 34 | AC153: Thirty Four Lakhs | AD153: 50000 | AE153: 50 | AF153: Fifty Thousand | AG153: 0 | AH153: 0 | AJ153: 82 | AK153: Eighty Two | BK153: 1 | BL153: 2070-00-106-00-05 | BM153: 151 | BN153: 2070 | BO153: Other Administrative Services | BP153: 00 | BR153: 106 | BS153: Civil Defence | BT153: 00 | BV153: 05 | BW153: Civil Defence Organisation | CP153: 1 | CQ153: 9 | CR153: Krishna | CS153: 0517- VISSANNAPETA | CT153: 0517 | CU153: VISSANNAPETA | CV153: 05 | CW153: 17
A154: 88 | B154: 2 | C154: Anantapur | D154: 36 | E154: Nallamada | S154: 89 | T154: Eighty Nine | V154: 0 | W154: NIL | X154: 0 | Y154: 0 | AA154: 0 | AB154: 0 | AD154: 0 | AE154: 0 | AG154: 0 | AH154: 0 | AJ154: 0 | BK154: 1 | BL154: 2070-00-107-00-04 | BM154: 152 | BN154: 2070 | BO154: Other Administrative Services | BP154: 00 | BR154: 107 | BS154: Home Guards | BT154: 00 | BV154: 04 | BW154: Headquarters Home Guards Organisation | CP154: 1 | CQ154: 9 | CR154: Krishna | CS154: 0518- VUYYURU | CT154: 0518 | CU154: VUYYURU | CV154: 05 | CW154: 18
A155: 89 | B155: 2 | C155: Anantapur | D155: 37 | E155: Nambulipulikunta | S155: 90 | T155: Ninty | V155: 123450084 | W155: Twelve Crores Thirty Four Lakhs Fifty Thousand and Eighty Four | X155: 120000000 | Y155: 12 | Z155: Twelve Crores | AA155: 3400000 | AB155: 34 | AC155: Thirty Four Lakhs | AD155: 50000 | AE155: 50 | AF155: Fifty Thousand | AG155: 0 | AH155: 0 | AJ155: 84 | AK155: Eighty Four | BK155: 1 | BL155: 2070-00-107-00-05 | BM155: 153 | BN155: 2070 | BO155: Other Administrative Services | BP155: 00 | BR155: 107 | BS155: Home Guards | BT155: 00 | BV155: 05 | BW155: District Home Guards Organization | CP155: 1 | CQ155: 10 | CR155: Kurnool | CS155: 0902- ADONI | CT155: 0902 | CU155: ADONI | CV155: 09 | CW155: 02
A156: 90 | B156: 2 | C156: Anantapur | D156: 38 | E156: Narpala | S156: 91 | T156: Ninty One | V156: 10150000 | W156: One Crore One Lakh and Fifty Thousand | X156: 10000000 | Y156: 1 | Z156: One Crore | AA156: 100000 | AB156: 1 | AC156: One Lakh | AD156: 50000 | AE156: 50 | AF156: Fifty Thousand | AG156: 0 | AH156: 0 | AJ156: 0 | BK156: 1 | BL156: 2070-00-108-00-01 | BM156: 154 | BN156: 2070 | BO156: Other Administrative Services | BP156: 00 | BR156: 108 | BS156: Fire Protection and Control | BT156: 00 | BV156: 01 | BW156: Headquarters Office | CP156: 1 | CQ156: 10 | CR156: Kurnool | CS156: 0903- ALLAGADDA | CT156: 0903 | CU156: ALLAGADDA | CV156: 09 | CW156: 03
A157: 91 | B157: 2 | C157: Anantapur | D157: 39 | E157: Obuladevaracheruvu | S157: 92 | T157: Ninty Two | V157: 10150001 | W157: One Crore One Lakh Fifty Thousand and One | X157: 10000000 | Y157: 1 | Z157: One Crore | AA157: 100000 | AB157: 1 | AC157: One Lakh | AD157: 50000 | AE157: 50 | AF157: Fifty Thousand | AG157: 0 | AH157: 0 | AJ157: 1 | AK157: One | BK157: 1 | BL157: 2070-00-108-00-03 | BM157: 155 | BN157: 2070 | BO157: Other Administrative Services | BP157: 00 | BR157: 108 | BS157: Fire Protection and Control | BT157: 00 | BV157: 03 | BW157: District Offices | CP157: 1 | CQ157: 10 | CR157: Kurnool | CS157: 0904- ALUR | CT157: 0904 | CU157: ALUR | CV157: 09 | CW157: 04
A158: 92 | B158: 2 | C158: Anantapur | D158: 40 | E158: Pamidi | S158: 93 | T158: Ninty Three | V158: 10150002 | W158: One Crore One Lakh Fifty Thousand and Two | X158: 10000000 | Y158: 1 | Z158: One Crore | AA158: 100000 | AB158: 1 | AC158: One Lakh | AD158: 50000 | AE158: 50 | AF158: Fifty Thousand | AG158: 0 | AH158: 0 | AJ158: 2 | AK158: Two | BK158: 1 | BL158: 2070-00-115-00-04 | BM158: 156 | BN158: 2070 | BO158: Other Administrative Services | BP158: 00 | BR158: 115 | BS158: Guest Houses, Govt. Hostels, etc., | BT158: 00 | BV158: 04 | BW158: The Director, Protocol | CP158: 1 | CQ158: 10 | CR158: Kurnool | CS158: 0905- ATMAKUR | CT158: 0905 | CU158: ATMAKUR | CV158: 09 | CW158: 05
A159: 93 | B159: 2 | C159: Anantapur | D159: 41 | E159: Parigi | S159: 94 | T159: Ninty Four | V159: 10150003 | W159: One Crore One Lakh Fifty Thousand and Three | X159: 10000000 | Y159: 1 | Z159: One Crore | AA159: 100000 | AB159: 1 | AC159: One Lakh | AD159: 50000 | AE159: 50 | AF159: Fifty Thousand | AG159: 0 | AH159: 0 | AJ159: 3 | AK159: Three | BK159: 1 | BL159: 2070-00-115-00-05 | BM159: 157 | BN159: 2070 | BO159: Other Administrative Services | BP159: 00 | BR159: 115 | BS159: Guest Houses, Govt. Hostels, etc., | BT159: 00 | BV159: 05 | BW159: Andhra Pradesh Guest House, New Delhi | CP159: 1 | CQ159: 10 | CR159: Kurnool | CS159: 0906- BANGANAPALLE | CT159: 0906 | CU159: BANGANAPALLE | CV159: 09 | CW159: 06
A160: 94 | B160: 2 | C160: Anantapur | D160: 42 | E160: Peddapappur | S160: 95 | T160: Ninty Five | V160: 10150004 | W160: One Crore One Lakh Fifty Thousand and Four | X160: 10000000 | Y160: 1 | Z160: One Crore | AA160: 100000 | AB160: 1 | AC160: One Lakh | AD160: 50000 | AE160: 50 | AF160: Fifty Thousand | AG160: 0 | AH160: 0 | AJ160: 4 | AK160: Four | BK160: 1 | BL160: 2070-00-115-00-06 | BM160: 158 | BN160: 2070 | BO160: Other Administrative Services | BP160: 00 | BR160: 115 | BS160: Guest Houses, Govt. Hostels, etc., | BT160: 00 | BV160: 06 | BW160: State Guest Houses | CP160: 1 | CQ160: 10 | CR160: Kurnool | CS160: 0907- DHONE | CT160: 0907 | CU160: DHONE | CV160: 09 | CW160: 07
A161: 95 | B161: 2 | C161: Anantapur | D161: 43 | E161: Peddavadugur | S161: 96 | T161: Ninty Six | V161: 10150005 | W161: One Crore One Lakh Fifty Thousand and Five | X161: 10000000 | Y161: 1 | Z161: One Crore | AA161: 100000 | AB161: 1 | AC161: One Lakh | AD161: 50000 | AE161: 50 | AF161: Fifty Thousand | AG161: 0 | AH161: 0 | AJ161: 5 | AK161: Five | BK161: 1 | BL161: 2070-00-115-00-74 | BM161: 159 | BN161: 2070 | BO161: Other Administrative Services | BP161: 00 | BR161: 115 | BS161: Guest Houses, Govt. Hostels, etc., | BT161: 00 | BV161: 74 | BW161: Buildings (APGHC) | CP161: 1 | CQ161: 10 | CR161: Kurnool | CS161: 0908- KODUMUR AT GUDUR | CT161: 0908 | CU161: KODUMUR AT GUDUR | CV161: 09 | CW161: 08
A162: 96 | B162: 2 | C162: Anantapur | D162: 44 | E162: Penu Konda | S162: 97 | T162: Ninty Seven | V162: 10150006 | W162: =IF(V162=0,"NIL",IF(AND(Y162=0,AB162=0,AE162=0,AH162=0),AK162,IF(AND(Y162=0,AB162=0,AE162=0),CONCATENATE(AI162,IF(AJ162>0,"and "," "),AK162),IF(AND(Y162=0,AB162=0),CONCATENATE(AF162,IF(AND(AJ162=0,AH162>0),"and ", ""),AI162,IF(AJ162>0,"and "," "),AK162),IF(Y162=0,CONCATENATE(AC162,IF(AND(AJ162=0,AH162=0,AE162>0),"and ", ""),AF162,IF(AND(AJ162=0,AH162>0),"and ", ""),AI162,IF(AJ162>0,"and "," "),AK162),CONCATENATE(Z162,IF(AND(AJ162=0,AH162=0,AE162=0,AB162>0),"and ", ""),AC162,IF(AND(AJ162=0,AH162=0,AE162>0),"and ", ""),AF162,IF(AND(AJ162=0,AH162>0),"and ", ""),AI162,IF(AJ162>0,"and "," "),AK162)))))) -> One Crore One Lakh Fifty Thousand and Six | X162: 10000000 | Y162: 1 | Z162: =IF(Y162=1,CONCATENATE(VLOOKUP(Y162,$S$66:$T$164,2)," Crore "),IF(Y162>1,CONCATENATE(VLOOKUP(Y162,$S$66:$T$164,2)," Crores "),"")) -> One Crore | AA162: 100000 | AB162: =INT(AA162/100000) -> 1 | AC162: =IF(AB162=1,CONCATENATE(VLOOKUP(AB162,$S$66:$T$164,2)," Lakh "),IF(AB162>1,CONCATENATE(VLOOKUP(AB162,$S$66:$T$164,2)," Lakhs "),"")) -> One Lakh | AD162: 50000 | AE162: =INT(AD162/1000) -> 50 | AF162: =IF(AE162>0,CONCATENATE(VLOOKUP(AE162,$S$66:$T$164,2)," Thousand "),"") -> Fifty Thousand | AG162: 0 | AH162: =INT(AG162/100) -> 0 | AI162: =IF(AH162>0,CONCATENATE(VLOOKUP(AH162,$S$66:$T$164,2)," Hundred "),"") ->  | AJ162: 6 | AK162: =IF(AJ162>0, VLOOKUP(AJ162,$S$66:$T$164,2),"") -> Six | BK162: 1 | BL162: 2070-00-800-00-05 | BM162: 160 | BN162: 2070 | BO162: Other Administrative Services | BP162: 00 | BR162: 800 | BS162: Other Expenditure | BT162: 00 | BV162: 05 | BW162: Charges in Connection with State Functions | CP162: 1 | CQ162: 10 | CR162: Kurnool | CS162: 0909- KOILKUNTLA | CT162: 0909 | CU162: KOILKUNTLA | CV162: 09 | CW162: 09
A163: 97 | B163: 2 | C163: Anantapur | D163: 45 | E163: Putlur | S163: 98 | T163: Ninty Eight | V163: 10150007 | W163: One Crore One Lakh Fifty Thousand and Seven | X163: 10000000 | Y163: 1 | Z163: One Crore | AA163: 100000 | AB163: 1 | AC163: One Lakh | AD163: 50000 | AE163: 50 | AF163: Fifty Thousand | AG163: 0 | AH163: 0 | AJ163: 7 | AK163: Seven | BK163: 1 | BL163: 2070-00-800-00-08 | BM163: 161 | BN163: 2070 | BO163: Other Administrative Services | BP163: 00 | BR163: 800 | BS163: Other Expenditure | BT163: 00 | BV163: 08 | BW163: Non I.S.F. Records Office | CP163: 1 | CQ163: 10 | CR163: Kurnool | CS163: 0901- KURNOOL | CT163: 0901 | CU163: KURNOOL | CV163: 09 | CW163: 01
A164: 98 | B164: 2 | C164: Anantapur | D164: 46 | E164: Puttaparthi | S164: 99 | T164: Ninty Nine | V164: 10150008 | W164: One Crore One Lakh Fifty Thousand and Eight | X164: 10000000 | Y164: 1 | Z164: One Crore | AA164: 100000 | AB164: 1 | AC164: One Lakh | AD164: 50000 | AE164: 50 | AF164: Fifty Thousand | AG164: 0 | AH164: 0 | AJ164: 8 | AK164: Eight | BK164: 1 | BL164: 2071-01-101-00-04 | BM164: 162 | BN164: 2071 | BO164: Pension and Other Retirement Benefits | BP164: 01 | BQ164: Civil | BR164: 101 | BS164: Superannuation and Retirement Allowances | BT164: 00 | BV164: 04 | BW164: Service Pensions | CP164: 1 | CQ164: 10 | CR164: Kurnool | CS164: 0910- KURNOOL | CT164: 0910 | CU164: KURNOOL | CV164: 09 | CW164: 10
A165: 99 | B165: 2 | C165: Anantapur | D165: 47 | E165: Ramagiri | BK165: 2 | BL165: 2202-01-101-00-04 | BM165: 163 | BN165: 2202 | BO165: General Education | BP165: 01 | BQ165: Elementary Education | BR165: 101 | BS165: Government Primary Schools | BT165: 00 | BV165: 04 | BW165: Primary Schools | CP165: 1 | CQ165: 10 | CR165: Kurnool | CS165: 0941-KURNOOL | CT165: 0941 | CU165: KURNOOL | CV165: 09 | CW165: 41
A166: 100 | B166: 2 | C166: Anantapur | D166: 48 | E166: Raptadu | BK166: 3 | BL166: 2202-01-102-00-04 | BM166: 164 | BN166: 2202 | BO166: General Education | BP166: 01 | BQ166: Elementary Education | BR166: 102 | BS166: Assistance to Non-Government Primary Schools | BT166: 00 | BV166: 04 | BW166: Teaching Grants | CP166: 1 | CQ166: 10 | CR166: Kurnool | CS166: 0911- NANDIKOTKUR | CT166: 0911 | CU166: NANDIKOTKUR | CV166: 09 | CW166: 11
A167: 101 | B167: 2 | C167: Anantapur | D167: 49 | E167: Rayadurg | S167: DDO | U167: Old AAS | V167: New AAS | BK167: 4 | BL167: 2202-01-103-00-04 | BM167: 165 | BN167: 2202 | BO167: General Education | BP167: 01 | BQ167: Elementary Education | BR167: 103 | BS167: Assistance to Local Bodies for Primary Education | BT167: 00 | BV167: 04 | BW167: Teaching Grants to Municipalities | CP167: 1 | CQ167: 10 | CR167: Kurnool | CS167: 0912- NANDYAL | CT167: 0912 | CU167: NANDYAL | CV167: 09 | CW167: 12
A168: 102 | B168: 2 | C168: Anantapur | D168: 50 | E168: Roddam | S168: Principal | U168: (O) | V168: (O) | X168: (O) | BK168: 5 | BL168: 2202-01-103-00-05 | BM168: 166 | BN168: 2202 | BO168: General Education | BP168: 01 | BQ168: Elementary Education | BR168: 103 | BS168: Assistance to Local Bodies for Primary Education | BT168: 00 | BV168: 05 | BW168: Teaching Grants to Mandal Praja Parishads | CP168: 1 | CQ168: 10 | CR168: Kurnool | CS168: 0942-NANDYAL | CT168: 0942 | CU168: NANDYAL | CV168: 09 | CW168: 42
A169: 103 | B169: 2 | C169: Anantapur | D169: 51 | E169: Rolla | S169: District Educational Officer | U169: (SG) | V169: (SG) | W169: 6 | X169: (SG) | BK169: 6 | BL169: 2202-01-107-10-11 | BM169: 167 | BN169: 2202 | BO169: General Education | BP169: 01 | BQ169: Elementary Education | BR169: 107 | BS169: Teachers Training | BT169: 10 | BU169: Centrally Sponsored Schemes | BV169: 11 | BW169: District Institute of Educational Training | CP169: 1 | CQ169: 10 | CR169: Kurnool | CS169: 0913- PATTIKONDA | CT169: 0913 | CU169: PATTIKONDA | CV169: 09 | CW169: 13
A170: 104 | B170: 2 | C170: Anantapur | D170: 52 | E170: Settur | S170: Commissioner | U170: (SPP-I) | V170: (SPP-IA) | W170: 12 | X170: (SPP-I) | BK170: 7 | BL170: 2202-01-800-00-05 | BM170: 168 | BN170: 2202 | BO170: General Education | BP170: 01 | BQ170: Elementary Education | BR170: 800 | BS170: Other Expenditure | BT170: 00 | BV170: 05 | BW170: Assistance to State Institute of Educational Technology | CP170: 1 | CQ170: 10 | CR170: Kurnool | CS170: 0915- SRISAILAM | CT170: 0915 | CU170: SRISAILAM | CV170: 09 | CW170: 15
A171: 105 | B171: 2 | C171: Anantapur | D171: 53 | E171: Singanamala | S171: Deputy Educational Officer | U171: (SPP-II) | V171: (SPP-IB) | W171: 18 | X171: (SPP-IA) | BK171: 8 | BL171: 2202-01-800-00-10 | BM171: 169 | BN171: 2202 | BO171: General Education | BP171: 01 | BQ171: Elementary Education | BR171: 800 | BS171: Other Expenditure | BT171: 00 | BV171: 10 | BW171: Operation Black Board Scheme | CP171: 1 | CQ171: 10 | CR171: Kurnool | CS171: 0914- YEMMIGANUR | CT171: 0914 | CU171: YEMMIGANUR | CV171: 09 | CW171: 14
A172: 106 | B172: 2 | C172: Anantapur | D172: 54 | E172: Somandepalle | S172: Mandal Educational Officer | U172: (SAPP-I) | V172: (SPP-II) | W172: 24 | X172: (SPP-IB) | BK172: 9 | BL172: 2202-01-800-00-75 | BM172: 170 | BN172: 2202 | BO172: General Education | BP172: 01 | BQ172: Elementary Education | BR172: 800 | BS172: Other Expenditure | BT172: 00 | BV172: 75 | BW172: Lumpsum Provision | CP172: 1 | CQ172: 11 | CR172: Mahabubnagar | CS172: 1702- ACHAMPET | CT172: 1702 | CU172: ACHAMPET | CV172: 17 | CW172: 02
A173: 107 | B173: 2 | C173: Anantapur | D173: 55 | E173: Tadimarri | S173: Gazetted Headmaster Grade-I | U173: (SAPP-II) | V173: (SAPP-IA) | W173: 12 | X173: (SPP-II) | BK173: 10 | BL173: 2202-01-800-10-15 | BM173: 171 | BN173: 2202 | BO173: General Education | BP173: 01 | BQ173: Elementary Education | BR173: 800 | BS173: Other Expenditure | BT173: 10 | BU173: Centrally Sponsored Schemes | BV173: 15 | BW173: Integrated Education for Disabled Children | CP173: 1 | CQ173: 11 | CR173: Mahabubnagar | CS173: 1703- ALAMPUR | CT173: 1703 | CU173: ALAMPUR | CV173: 17 | CW173: 03
A174: 108 | B174: 2 | C174: Anantapur | D174: 56 | E174: Tadpatri | S174: Gazetted Headmistress Grade- I | V174: (SAPP-IB) | W174: 18 | X174: (SAPP-IA) | BK174: 11 | BL174: 2202-01-800-10-16 | BM174: 172 | BN174: 2202 | BO174: General Education | BP174: 01 | BQ174: Elementary Education | BR174: 800 | BS174: Other Expenditure | BT174: 10 | BU174: Centrally Sponsored Schemes | BV174: 16 | BW174: Assistance to Hindi Pandits in Non-Hindi speaking States | CP174: 1 | CQ174: 11 | CR174: Mahabubnagar | CS174: 1704- ATMAKUR | CT174: 1704 | CU174: ATMAKUR | CV174: 17 | CW174: 04
A175: 109 | B175: 2 | C175: Anantapur | D175: 57 | E175: Talupula | S175: Gazetted Headmaster Grade-II | V175: (SAPP-II) | W175: 24 | X175: (SAPP-I) | BK175: 12 | BL175: 2202-01-800-10-29 | BM175: 173 | BN175: 2202 | BO175: General Education | BP175: 01 | BQ175: Elementary Education | BR175: 800 | BS175: Other Expenditure | BT175: 10 | BU175: Centrally Sponsored Schemes | BV175: 29 | BW175: Improvement of Urdu Education | CP175: 1 | CQ175: 11 | CR175: Mahabubnagar | CS175: 1705- GADWAL | CT175: 1705 | CU175: GADWAL | CV175: 17 | CW175: 05
A176: 110 | B176: 2 | C176: Anantapur | D176: 58 | E176: Tanakal | S176: Gazetted Headmistress Grade- II | X176: (SAPP-IB) | BK176: 13 | BL176: 2202-01-800-11-36 | BM176: 174 | BN176: 2202 | BO176: General Education | BP176: 01 | BQ176: Elementary Education | BR176: 800 | BS176: Other Expenditure | BT176: 11 | BU176: Normal State Plan | BV176: 36 | BW176: Primary Schools | CP176: 1 | CQ176: 11 | CR176: Mahabubnagar | CS176: 1742-GADWAL | CT176: 1742 | CU176: GADWAL | CV176: 17 | CW176: 42
A177: 111 | B177: 2 | C177: Anantapur | D177: 59 | E177: Uravakonda | S177: =G3 -> Executive Engineer | X177: (SAPP-II) | BK177: 14 | BL177: 2202-02-001-00-04 | BM177: 175 | BN177: 2202 | BO177: General Education | BP177: 02 | BQ177: Secondary Education | BR177: 001 | BS177: Direction and Administration | BT177: 00 | BV177: 04 | BW177: Zilla Praja Parishad Educational Officers | CP177: 1 | CQ177: 11 | CR177: Mahabubnagar | CS177: 1706- JADCHERLA | CT177: 1706 | CU177: JADCHERLA | CV177: 17 | CW177: 06
A178: 112 | B178: 2 | C178: Anantapur | D178: 60 | E178: Vajrakarur | S178: =G10 -> Hostel Welfare Officer | BK178: 15 | BL178: 2202-02-004-00-04 | BM178: 176 | BN178: 2202 | BO178: General Education | BP178: 02 | BQ178: Secondary Education | BR178: 004 | BS178: Research and Training | BT178: 00 | BV178: 04 | BW178: Vocationalisation of Education | CP178: 1 | CQ178: 11 | CR178: Mahabubnagar | CS178: 1707- KALWAKURTHY | CT178: 1707 | CU178: KALWAKURTHY | CV178: 17 | CW178: 07
A179: 113 | B179: 2 | C179: Anantapur | D179: 61 | E179: Vidapanakal | S179: Deputy Commissioner | BK179: 16 | BL179: 2202-02-004-06-04 | BM179: 177 | BN179: 2202 | BO179: General Education | BP179: 02 | BQ179: Secondary Education | BR179: 004 | BS179: Research and Training | BT179: 06 | BU179: Matching State Share of Centrally Sponsored Schemes | BV179: 04 | BW179: Vocationalisation of Education | CP179: 1 | CQ179: 11 | CR179: Mahabubnagar | CS179: 1708- KODANGAL | CT179: 1708 | CU179: KODANGAL | CV179: 17 | CW179: 08
A180: 114 | B180: 2 | C180: Anantapur | D180: 62 | E180: Yadiki | S180: GPF | U180: Servicess | BK180: 17 | BL180: 2202-02-004-10-04 | BM180: 178 | BN180: 2202 | BO180: General Education | BP180: 02 | BQ180: Secondary Education | BR180: 004 | BS180: Research and Training | BT180: 10 | BU180: Centrally Sponsored Schemes | BV180: 04 | BW180: Vocationalisation of Education | CP180: 1 | CQ180: 11 | CR180: Mahabubnagar | CS180: 1709- KOLLAPUR | CT180: 1709 | CU180: KOLLAPUR | CV180: 17 | CW180: 09
A181: 115 | B181: 2 | C181: Anantapur | D181: 63 | E181: Yellanur | S181: ZPGPF | BK181: 18 | BL181: 2202-02-101-00-03 | BM181: 179 | BN181: 2202 | BO181: General Education | BP181: 02 | BQ181: Secondary Education | BR181: 101 | BS181: Inspection | BT181: 00 | BV181: 03 | BW181: District Officers-Deputy Educational Officers | CP181: 1 | CQ181: 11 | CR181: Mahabubnagar | CS181: 1701- MAHABOOB NAGAR | CT181: 1701 | CU181: MAHABOOB NAGAR | CV181: 17 | CW181: 01
A182: 116 | B182: 3 | C182: Chittoor | D182: 1 | E182: B Kothakota | S182: Class-IV-DTO | U182: Dyeo Above | V182: APSES | BK182: 19 | BL182: 2202-02-105-00-04 | BM182: 180 | BN182: 2202 | BO182: General Education | BP182: 02 | BQ182: Secondary Education | BR182: 105 | BS182: Teachers Training | BT182: 00 | BV182: 04 | BW182: Government Training Colleges | CP182: 1 | CQ182: 11 | CR182: Mahabubnagar | CS182: 1741-MAHABOOBNAGAR | CT182: 1741 | CU182: MAHABOOBNAGAR | CV182: 17 | CW182: 41
A183: 117 | B183: 3 | C183: Chittoor | D183: 2 | E183: Baireddi Palle | S183: CPS | U183: Teachers | V183: APSESS | BK183: 20 | BL183: 2202-02-105-00-09 | BM183: 181 | BN183: 2202 | BO183: General Education | BP183: 02 | BQ183: Secondary Education | BR183: 105 | BS183: Teachers Training | BT183: 00 | BV183: 09 | BW183: Vocationalisation of Secondary Education | CP183: 1 | CQ183: 11 | CR183: Mahabubnagar | CS183: 1710- MAHABUBNAGAR() | CT183: 1710 | CU183: MAHABUBNAGAR() | CV183: 17 | CW183: 10
A184: 118 | B184: 3 | C184: Chittoor | D184: 3 | E184: Bangarupalem | U184: Jr Assistant To Sup | V184: APMS | BK184: 21 | BL184: 2202-02-106-00-05 | BM184: 182 | BN184: 2202 | BO184: General Education | BP184: 02 | BQ184: Secondary Education | BR184: 106 | BS184: Text Books | BT184: 00 | BV184: 05 | BW184: A.P. Text Book Press | CP184: 1 | CQ184: 11 | CR184: Mahabubnagar | CS184: 1711- MAKTHAL | CT184: 1711 | CU184: MAKTHAL | CV184: 17 | CW184: 11
A185: 119 | B185: 3 | C185: Chittoor | D185: 4 | E185: Buchinaidu Khandriga | U185: Record Ass | V185: APGSS | BK185: 22 | BL185: 2202-02-108-00-04 | BM185: 183 | BN185: 2202 | BO185: General Education | BP185: 02 | BQ185: Secondary Education | BR185: 108 | BS185: Examinations | BT185: 00 | BV185: 04 | BW185: Conduct of Common Examinations (CGE) | CP185: 1 | CQ185: 11 | CR185: Mahabubnagar | CS185: 1712- NAGARKURNOOL | CT185: 1712 | CU185: NAGARKURNOOL | CV185: 17 | CW185: 12
A186: 120 | B186: 3 | C186: Chittoor | D186: 5 | E186: Chandragiri | U186: Attenders | V186: APLGS | BK186: 23 | BL186: 2202-02-109-00-04 | BM186: 184 | BN186: 2202 | BO186: General Education | BP186: 02 | BQ186: Secondary Education | BR186: 109 | BS186: Government Secondary Schools | BT186: 00 | BV186: 04 | BW186: Government Secondary Schools | CP186: 1 | CQ186: 11 | CR186: Mahabubnagar | CS186: 1713- NARAYANPETA | CT186: 1713 | CU186: NARAYANPETA | CV186: 17 | CW186: 13
A187: 121 | B187: 3 | C187: Chittoor | D187: 6 | E187: Chinnagottigallu | U187: General | V187: Public Services | BK187: 24 | BL187: 2202-02-110-00-04 | BM187: 185 | BN187: 2202 | BO187: General Education | BP187: 02 | BQ187: Secondary Education | BR187: 110 | BS187: Assistance to Non-Government Secondary Schools | BT187: 00 | BV187: 04 | BW187: Assistance to Private Aided Institutions | CP187: 1 | CQ187: 11 | CR187: Mahabubnagar | CS187: 1714- SHADNAGAR | CT187: 1714 | CU187: SHADNAGAR | CV187: 17 | CW187: 14
A188: 122 | B188: 3 | C188: Chittoor | D188: 7 | E188: Chittoor | BK188: 25 | BL188: 2202-02-110-00-06 | BM188: 186 | BN188: 2202 | BO188: General Education | BP188: 02 | BQ188: Secondary Education | BR188: 110 | BS188: Assistance to Non-Government Secondary Schools | BT188: 00 | BV188: 06 | BW188: Assistance to the A.P. Residential Educational Institutions Society | CP188: 1 | CQ188: 11 | CR188: Mahabubnagar | CS188: 1715- WANAPARTHY | CT188: 1715 | CU188: WANAPARTHY | CV188: 17 | CW188: 15
A189: 123 | B189: 3 | C189: Chittoor | D189: 8 | E189: Chowdepalle | BK189: 26 | BL189: 2202-02-191-00-04 | BM189: 187 | BN189: 2202 | BO189: General Education | BP189: 02 | BQ189: Secondary Education | BR189: 191 | BS189: Assistance to Local Bodies for Secondary Education | BT189: 00 | BV189: 04 | BW189: Teaching Grants to Municipalities | CP189: 1 | CQ189: 12 | CR189: Medak | CS189: 1802- ANDOL | CT189: 1802 | CU189: ANDOL | CV189: 18 | CW189: 02
A190: 124 | B190: 3 | C190: Chittoor | D190: 9 | E190: Gangadhara Nellore | T190: 6700-20110 | U190: Employee Designations | V190: Services | W190: Oridinary | X190: SG | Y190: SPP-IA | Z190: SPP-IB | AA190: SPP-II | AB190: O | AC190: SG | AD190: SAPP-IA | AE190: SAPP-IB | AF190: SAPP-II | BK190: 27 | BL190: 2202-02-191-00-05 | BM190: 188 | BN190: 2202 | BO190: General Education | BP190: 02 | BQ190: Secondary Education | BR190: 191 | BS190: Assistance to Local Bodies for Secondary Education | BT190: 00 | BV190: 05 | BW190: Teaching Grants to Zilla Praja Parishads | CP190: 1 | CQ190: 12 | CR190: Medak | CS190: 1803- DUBBAK | CT190: 1803 | CU190: DUBBAK | CV190: 18 | CW190: 03
A191: 125 | B191: 3 | C191: Chittoor | D191: 10 | E191: Gangavaram | S191: =VALUE(IF(TYPE(VALUE(MID(T190,1,5)))=16,VALUE(MID(T190,1,4)),VALUE(MID(T190,1,5)))) -> 6700 | T191: 6900-20680 | U191: Principal | V191: APSES | W191: 27000-51760 | X191: =LOOKUP(VALUE(IF(TYPE(VALUE(MID(W191,1,5)))=16,VALUE(MID(W191,1,4)),VALUE(MID(W191,1,5)))),$S$191:$T$222) -> 29200-53060 | AB191: 27000-51760 | AC191: =IF(V191="APLGS",$T$193,LOOKUP(VALUE(IF(TYPE(VALUE(MID(AB191,1,5)))=16,VALUE(MID(AB191,1,4)),VALUE(MID(AB191,1,5)))),$S$191:$T$222)) -> 29200-53060 | AD191: =IF(V191="APLGS",$T$194,VLOOKUP(VALUE(IF(TYPE(VALUE(MID(AB191,1,5)))=16,VALUE(MID(AB191,1,4)),VALUE(MID(AB191,1,5)))),$R$191:$T$222,3)) -> 31550-53060 | AE191: =AD191 -> 31550-53060 | AF191: =IF(V191="APLGS",$T$195,VLOOKUP(VALUE(IF(TYPE(VALUE(MID(AB191,1,5)))=16,VALUE(MID(AB191,1,4)),VALUE(MID(AB191,1,5)))),$Q$193:$T$222,4)) -> 34050-54360 | BK191: 28 | BL191: 2202-02-789-06-05 | BM191: 189 | BN191: 2202 | BO191: General Education | BP191: 02 | BQ191: Secondary Education | BR191: 789 | BS191: Special Component Plan for Scheduled Castes | BT191: 06 | BU191: Matching State Share of Centrally Sponsored Schemes | BV191: 05 | BW191: Vocationalisation of Education | CP191: 1 | CQ191: 12 | CR191: Medak | CS191: 1804- GAZWEL | CT191: 1804 | CU191: GAZWEL | CV191: 18 | CW191: 04
A192: 126 | B192: 3 | C192: Chittoor | D192: 11 | E192: Gudi Palle | R192: =S191 -> 6700 | S192: =VALUE(IF(TYPE(VALUE(MID(T191,1,5)))=16,VALUE(MID(T191,1,4)),VALUE(MID(T191,1,5)))) -> 6900 | T192: 7100-21250 | U192: District Educational Officer | V192: APSES | W192: 21820-48160 | X192: 23650-49360 | AB192: 21820-48160 | AC192: =IF(V192="APLGS",$T$193,LOOKUP(VALUE(IF(TYPE(VALUE(MID(AB192,1,5)))=16,VALUE(MID(AB192,1,4)),VALUE(MID(AB192,1,5)))),$S$191:$T$222)) -> 23650-49360 | AD192: =IF(V192="APLGS",$T$194,VLOOKUP(VALUE(IF(TYPE(VALUE(MID(AB192,1,5)))=16,VALUE(MID(AB192,1,4)),VALUE(MID(AB192,1,5)))),$R$191:$T$222,3)) -> 25600-50560 | AE192: =AD192 -> 25600-50560 | AF192: =IF(V192="APLGS",$T$195,VLOOKUP(VALUE(IF(TYPE(VALUE(MID(AB192,1,5)))=16,VALUE(MID(AB192,1,4)),VALUE(MID(AB192,1,5)))),$Q$193:$T$222,4)) -> 27000-51760 | BK192: 29 | BL192: 2202-02-796-06-05 | BM192: 190 | BN192: 2202 | BO192: General Education | BP192: 02 | BQ192: Secondary Education | BR192: 796 | BS192: Tribal Areas Sub-Plan | BT192: 06 | BU192: Matching State Share of Centrally Sponsored Schemes | BV192: 05 | BW192: Vocationalisation of Education | CP192: 1 | CQ192: 12 | CR192: Medak | CS192: 1801- MEDAK | CT192: 1801 | CU192: MEDAK | CV192: 18 | CW192: 01
A193: 127 | B193: 3 | C193: Chittoor | D193: 12 | E193: Gudipala | Q193: =R192 -> 6700 | R193: =S192 -> 6900 | S193: =VALUE(IF(TYPE(VALUE(MID(T192,1,5)))=16,VALUE(MID(T192,1,4)),VALUE(MID(T192,1,5)))) -> 7100 | T193: 7520-22430 | U193: Deputy Educational Officer | V193: APSES | W193: 18030-43630 | X193: 19050-45850 | AB193: 18030-43630 | AC193: 19050-45850 | AD193: 20680-46960 | AE193: 20680-46960 | AF193: 21820-48160 | BK193: 30 | BL193: 2202-02-800-10-20 | BM193: 191 | BN193: 2202 | BO193: General Education | BP193: 02 | BQ193: Secondary Education | BR193: 800 | BS193: Other Expenditure | BT193: 10 | BU193: Centrally Sponsored Schemes | BV193: 20 | BW193: Improvement of Urdu Education | CP193: 1 | CQ193: 12 | CR193: Medak | CS193: 1805-MEDAK | CT193: 1805 | CU193: MEDAK | CV193: 18 | CW193: 05
A194: 128 | B194: 3 | C194: Chittoor | D194: 13 | E194: Gurramkonda | Q194: =R193 -> 6900 | R194: 7100 | S194: 7520 | T194: 7740-23040 | U194: Lecturer | V194: APSES | W194: 20680-46960 | X194: 21820-48160 | AB194: 20680-46960 | AC194: 21820-48160 | AD194: 23650-49360 | AE194: 23650-49360 | AF194: 25600-50560 | BK194: 31 | BL194: 2202-03-001-00-01 | BM194: 192 | BN194: 2202 | BO194: General Education | BP194: 03 | BQ194: University and Higher Education | BR194: 001 | BS194: Direction and Administration | BT194: 00 | BV194: 01 | BW194: Headquarters Office - Commissioner of Collegiate Education | CP194: =IF(EXACT($CO$1,CR194),CP193+1,1) -> 1 | CQ194: 12 | CR194: Medak | CS194: 1842-MEDAK | CT194: 1842 | CU194: MEDAK | CV194: 18 | CW194: 42
A195: 129 | B195: 3 | C195: Chittoor | D195: 14 | E195: Irala | Q195: 7100 | R195: 7520 | S195: 7740 | T195: 7960-23650 | U195: Mandal Educational Officer | V195: APSESS | W195: 16150-42590 | X195: 18030-43630 | AB195: 16150-42590 | AC195: 18030-43630 | AD195: 19050-45850 | AE195: 19050-45850 | AF195: 20680-46960 | BK195: 32 | BL195: =CONCATENATE(BN195,"-",BP195,"-",BR195,"-",BT195,"-",BV195) -> 2202-03-001-00-02 | BM195: 193 | BN195: 2202 | BO195: General Education | BP195: 03 | BQ195: University and Higher Education | BR195: 001 | BS195: Direction and Administration | BT195: 00 | BV195: 02 | BW195: Regional Offices - Collegiate Education | CP195: 1 | CQ195: 12 | CR195: Medak | CS195: 1806- NARAYANKHED | CT195: 1806 | CU195: NARAYANKHED | CV195: 18 | CW195: 06
A196: 130 | B196: 3 | C196: Chittoor | D196: 15 | E196: K V P Puram | Q196: 7520 | R196: 7740 | S196: 7960 | T196: 8440-24950 | U196: Gazetted Head Master Grade-II | V196: APSESS | W196: 18030-43630 | X196: 19050-45850 | AB196: 18030-43630 | AC196: 19050-45850 | AD196: 20680-46960 | AE196: 20680-46960 | AF196: 21820-48160 | BK196: =IF(EXACT($E$25,BN196),BK195+1,1) -> 33 | BL196: 2202-03-001-00-03 | BM196: 194 | BN196: 2202 | BO196: General Education | BP196: 03 | BQ196: University and Higher Education | BR196: 001 | BS196: Direction and Administration | BT196: 00 | BV196: 03 | BW196: Headquarters Office Director of Intermediate Education | CP196: 1 | CQ196: 12 | CR196: Medak | CS196: 1807- NARSAPUR | CT196: 1807 | CU196: NARSAPUR | CV196: 18 | CW196: 07
A197: 131 | B197: 3 | C197: Chittoor | D197: 16 | E197: Kalakada | Q197: 7740 | R197: 7960 | S197: 8440 | T197: 9200-27000 | U197: Gazetted Head Mistress Grade-II | V197: APSESS | W197: 18030-43630 | X197: 19050-45850 | AB197: 18030-43630 | AC197: 19050-45850 | AD197: 20680-46960 | AE197: 20680-46960 | AF197: 21820-48160 | BI197: =IF(BI196="","",IF(BI196=MIN(BI196+1,MAX(BK197:BK1207)),"",MIN(BI196+1,MAX(BK197:BK1207)))) ->  | BJ197: =IF(ISNA(VLOOKUP(BI197,$BK$3:$BM$1013,2,FALSE)),"",VLOOKUP(BI197,$BK$3:$BM$1013,2,FALSE)) ->  | BK197: 34 | BL197: 2202-03-001-00-05 | BM197: 195 | BN197: 2202 | BO197: General Education | BP197: 03 | BQ197: University and Higher Education | BR197: 001 | BS197: Direction and Administration | BT197: 00 | BV197: 05 | BW197: Regional Offices of Intermediate Education | CP197: 1 | CQ197: 12 | CR197: Medak | CS197: 1813-PATANCHERU | CT197: 1813 | CU197: PATANCHERU | CV197: 18 | CW197: 13
A198: 132 | B198: 3 | C198: Chittoor | D198: 17 | E198: Kalikiri | Q198: 7960 | R198: 8440 | S198: 9200 | T198: 9460-27700 | U198: School Assistant ( Telugu ) | V198: APSESS | W198: 14860-39540 | X198: 15280-40510 | AB198: 14860-39540 | AC198: 15280-40510 | AD198: 16150-42590 | AE198: 16150-42590 | AF198: 18030-43630 | BK198: 35 | BL198: 2202-03-001-00-75 | BM198: 196 | BN198: 2202 | BO198: General Education | BP198: 03 | BQ198: University and Higher Education | BR198: 001 | BS198: Direction and Administration | BT198: 00 | BV198: 75 | BW198: Lumpsum Provision | CP198: 1 | CQ198: 12 | CR198: Medak | CS198: 1808- RAMAYAMPET | CT198: 1808 | CU198: RAMAYAMPET | CV198: 18 | CW198: 08
A199: 133 | B199: 3 | C199: Chittoor | D199: 18 | E199: Kambhamvaripalle | Q199: 8440 | R199: 9200 | S199: 9460 | T199: 10020-29200 | U199: School Assistant ( Hindi ) | V199: APSESS | W199: 14860-39540 | X199: 15280-40510 | AB199: 14860-39540 | AC199: 15280-40510 | AD199: 16150-42590 | AE199: 16150-42590 | AF199: 18030-43630 | BK199: 36 | BL199: 2202-03-001-10-01 | BM199: 197 | BN199: 2202 | BO199: General Education | BP199: 03 | BQ199: University and Higher Education | BR199: 001 | BS199: Direction and Administration | BT199: 10 | BU199: Centrally Sponsored Schemes | BV199: 01 | BW199: Headquarters Office, National Service Scheme cell (Commissioner of Collegiate Education) | CP199: 1 | CQ199: 12 | CR199: Medak | CS199: 1809- SADASIVAPET | CT199: 1809 | CU199: SADASIVAPET | CV199: 18 | CW199: 09
A200: 134 | B200: 3 | C200: Chittoor | D200: 19 | E200: Karvetinagar | Q200: 9200 | R200: 9460 | S200: 10020 | T200: 10900-31550 | U200: School Assistant ( English ) | V200: APSESS | W200: 14860-39540 | X200: 15280-40510 | AB200: 14860-39540 | AC200: 15280-40510 | AD200: 16150-42590 | AE200: 16150-42590 | AF200: 18030-43630 | BK200: 37 | BL200: 2202-03-001-11-03 | BM200: 198 | BN200: 2202 | BO200: General Education | BP200: 03 | BQ200: University and Higher Education | BR200: 001 | BS200: Direction and Administration | BT200: 11 | BU200: Normal State Plan | BV200: 03 | BW200: Headquarters Office Director of Intermediate Education | CP200: 1 | CQ200: 12 | CR200: Medak | CS200: 1810-SANGA REDDY | CT200: 1810 | CU200: SANGA REDDY | CV200: 18 | CW200: 10
... 989 more rows

Sheet Main
B1: ID No | C1: Name Of the Employee | D1: Designation | E1: Scale of Pay | F1: Name of the School (IF The Mandal Parishad Schools Must be Filled . Others Must Be empty) | G1: Gross | H1: Name of The Bank | I1: Bank Account No | J1: PUPIL-I | O1: PUPIL-II
J2: Name | K2: Class | L2: Academic year | M2: Name of the school | N2: Reimbursement of tuition fee Amount | O2: Name | P2: Class | Q2: Academic year | R2: Name of the school | S2: Reimbursement of tuition fee Amount | T2: Bank Code | U2: Total Reimbursement
A3: 1 | B3: 2 | C3: 3 | D3: 4 | E3: 5 | F3: 6 | G3: 7 | H3: 8 | I3: 9 | J3: 10 | K3: 11 | L3: 12 | M3: 13 | N3: 14 | O3: 15 | P3: 16 | Q3: 17 | R3: 18 | S3: 19
A4: =CONCATENATE(C4," ( ",B4," )") -> K.V.RAVANAMMA ( 0807541 ) | B4: 0807541 | C4: K.V.RAVANAMMA | D4: SA (English) | E4: 15280-40510 | F4: MPUPS, Dasaripalli | G4: 21860 | H4: State Bank Of India (SBI), Nellore | I4: 10555653 | J4: K.V.Sai Sujith | K4: VIII | L4: 2010-2011 | M4: Rathnam High School, Nelore | N4: 1000 | O4: XXXXXXXXXX | P4: Inter-I | Q4: 2010-2011 | R4: Abdul Kalam Jr Coolege | S4: 1000 | T4: =IF(ISNA(VLOOKUP(H4,Info!$J$2:$K$16,2,FALSE)),"",VLOOKUP(H4,Info!$J$2:$K$16,2,FALSE)) -> 0887 | U4: =SUM(N4,S4) -> 2000
A5: =CONCATENATE(C5," ( ",B5," )") -> K.V.RAVANAMMA ( 0807541 ) | B5: 0807541 | C5: K.V.RAVANAMMA | D5: SA (English) | E5: 15280-40510 | F5: MPUPS, Dasaripalli | G5: 21860 | H5: Syndicate Bank, Udayagiri | I5: 10555653 | J5: K.V.Sai Sujith | K5: VIII | L5: 2010-2011 | M5: Rathnam High School, Nelore | N5: 1000 | O5: XXXXXXXXXX | P5: Inter-I | Q5: 2010-2011 | R5: Abdul Kalam Jr Coolege | T5: =IF(ISNA(VLOOKUP(H5,Info!$J$2:$K$16,2,FALSE)),"",VLOOKUP(H5,Info!$J$2:$K$16,2,FALSE)) -> 3470 | U5: =SUM(N5,S5) -> 1000
A6: K.V.RAVANAMMA ( 0807541 ) | B6: 0807541 | C6: K.V.RAVANAMMA | D6: SA (English) | E6: 15280-40510 | F6: MPUPS, Dasaripalli | G6: 21860 | H6: State Bank Of India (SBI) ADB , Vinjamur | I6: 10555653 | J6: K.V.Sai Sujith | K6: VIII | L6: 2010-2011 | M6: Rathnam High School, Nelore | N6: 1000 | O6: XXXXXXXXXX | P6: Inter-I | Q6: 2010-2011 | R6: Abdul Kalam Jr Coolege | T6: =IF(ISNA(VLOOKUP(H6,Info!$J$2:$K$16,2,FALSE)),"",VLOOKUP(H6,Info!$J$2:$K$16,2,FALSE)) -> 3177 | U6: 1000
A7: K.V.RAVANAMMA ( 0807541 ) | B7: 0807541 | C7: K.V.RAVANAMMA | D7: SA (English) | E7: 15280-40510 | F7: MPUPS, Dasaripalli | G7: 21860 | H7: State Bank Of India (SBI), Vidyanagar (Vakadu) | I7: 10555653 | J7: K.V.Sai Sujith | K7: VIII | L7: 2010-2011 | M7: Rathnam High School, Nelore | N7: 1000 | O7: XXXXXXXXXX | P7: Inter-I | Q7: 2010-2011 | R7: Abdul Kalam Jr Coolege | T7: =IF(ISNA(VLOOKUP(H7,Info!$J$2:$K$16,2,FALSE)),"",VLOOKUP(H7,Info!$J$2:$K$16,2,FALSE)) -> 2811 | U7: 1000
A8: K.V.RAVANAMMA ( 0807541 ) | B8: 0807541 | C8: K.V.RAVANAMMA | D8: SA (English) | E8: 15280-40510 | F8: MPUPS, Dasaripalli | G8: 21860 | H8: Syndicate Bank, Udayagiri | I8: 10555653 | J8: K.V.Sai Sujith | K8: VIII | L8: 2010-2011 | M8: Rathnam High School, Nelore | N8: 1000 | O8: XXXXXXXXXX | P8: Inter-I | Q8: 2010-2011 | R8: Abdul Kalam Jr Coolege | T8: =IF(ISNA(VLOOKUP(H8,Info!$J$2:$K$16,2,FALSE)),"",VLOOKUP(H8,Info!$J$2:$K$16,2,FALSE)) -> 3470 | U8: 1000
A9: K.V.RAVANAMMA ( 0807541 ) | B9: 0807541 | C9: K.V.RAVANAMMA | D9: SA (English) | E9: 15280-40510 | F9: MPUPS, Dasaripalli | G9: 21860 | H9: Syndicate Bank, Rapur | I9: 10555653 | J9: K.V.Sai Sujith | K9: VIII | L9: 2010-2011 | M9: Rathnam High School, Nelore | N9: 1000 | O9: XXXXXXXXXX | P9: Inter-I | Q9: 2010-2011 | R9: Abdul Kalam Jr Coolege | T9: =IF(ISNA(VLOOKUP(H9,Info!$J$2:$K$16,2,FALSE)),"",VLOOKUP(H9,Info!$J$2:$K$16,2,FALSE)) -> 3468 | U9: 1000
A10: K.V.RAVANAMMA ( 0807541 ) | B10: 0807541 | C10: K.V.RAVANAMMA | D10: SA (English) | E10: 15280-40510 | F10: MPUPS, Dasaripalli | G10: 21860 | H10: Syndicate Bank, Rapur | I10: 10555653 | J10: K.V.Sai Sujith | K10: VIII | L10: 2010-2011 | M10: Rathnam High School, Nelore | N10: 1000 | O10: XXXXXXXXXX | P10: Inter-I | Q10: 2010-2011 | R10: Abdul Kalam Jr Coolege | T10: =IF(ISNA(VLOOKUP(H10,Info!$J$2:$K$16,2,FALSE)),"",VLOOKUP(H10,Info!$J$2:$K$16,2,FALSE)) -> 3468 | U10: 1000
A11: K.V.RAVANAMMA ( 0807541 ) | B11: 0807541 | C11: K.V.RAVANAMMA | D11: SA (English) | E11: 15280-40510 | F11: MPUPS, Dasaripalli | G11: 21860 | H11: Syndicate Bank, Rapur | I11: 10555653 | J11: K.V.Sai Sujith | K11: VIII | L11: 2010-2011 | M11: Rathnam High School, Nelore | N11: 1000 | O11: XXXXXXXXXX | P11: Inter-I | Q11: 2010-2011 | R11: Abdul Kalam Jr Coolege | T11: =IF(ISNA(VLOOKUP(H11,Info!$J$2:$K$16,2,FALSE)),"",VLOOKUP(H11,Info!$J$2:$K$16,2,FALSE)) -> 3468 | U11: 1000
A12: K.V.RAVANAMMA ( 0807541 ) | B12: 0807541 | C12: K.V.RAVANAMMA | D12: SA (English) | E12: 15280-40510 | F12: MPUPS, Dasaripalli | G12: 21860 | H12: Syndicate Bank, Rapur | I12: 10555653 | J12: K.V.Sai Sujith | K12: VIII | L12: 2010-2011 | M12: Rathnam High School, Nelore | N12: 1000 | O12: XXXXXXXXXX | P12: Inter-I | Q12: 2010-2011 | R12: Abdul Kalam Jr Coolege | T12: =IF(ISNA(VLOOKUP(H12,Info!$J$2:$K$16,2,FALSE)),"",VLOOKUP(H12,Info!$J$2:$K$16,2,FALSE)) -> 3468 | U12: 1000
A13: K.V.RAVANAMMA ( 0807541 ) | B13: 0807541 | C13: K.V.RAVANAMMA | D13: SA (English) | E13: 15280-40510 | F13: MPUPS, Dasaripalli | G13: 21860 | H13: Syndicate Bank, Rapur | I13: 10555653 | J13: K.V.Sai Sujith | K13: VIII | L13: 2010-2011 | M13: Rathnam High School, Nelore | N13: 1000 | O13: XXXXXXXXXX | P13: Inter-I | Q13: 2010-2011 | R13: Abdul Kalam Jr Coolege | T13: =IF(ISNA(VLOOKUP(H13,Info!$J$2:$K$16,2,FALSE)),"",VLOOKUP(H13,Info!$J$2:$K$16,2,FALSE)) -> 3468 | U13: 1000
A14: K.V.RAVANAMMA ( 0807541 ) | B14: 0807541 | C14: K.V.RAVANAMMA | D14: SA (English) | E14: 15280-40510 | F14: MPUPS, Dasaripalli | G14: 21860 | H14: Syndicate Bank, Rapur | I14: 10555653 | J14: K.V.Sai Sujith | K14: VIII | L14: 2010-2011 | M14: Rathnam High School, Nelore | N14: 1000 | O14: XXXXXXXXXX | P14: Inter-I | Q14: 2010-2011 | R14: Abdul Kalam Jr Coolege | S14: 1000 | T14: =IF(ISNA(VLOOKUP(H14,Info!$J$2:$K$16,2,FALSE)),"",VLOOKUP(H14,Info!$J$2:$K$16,2,FALSE)) -> 3468 | U14: 2000
A15: K.V.RAVANAMMA ( 0807541 ) | B15: 0807541 | C15: K.V.RAVANAMMA | D15: SA (English) | E15: 15280-40510 | F15: MPUPS, Dasaripalli | G15: 21860 | H15: Syndicate Bank, Rapur | I15: 10555653 | J15: K.V.Sai Sujith | K15: VIII | L15: 2010-2011 | M15: Rathnam High School, Nelore | N15: 1000 | O15: XXXXXXXXXX | P15: Inter-I | Q15: 2010-2011 | R15: Abdul Kalam Jr Coolege | S15: 1000 | T15: =IF(ISNA(VLOOKUP(H15,Info!$J$2:$K$16,2,FALSE)),"",VLOOKUP(H15,Info!$J$2:$K$16,2,FALSE)) -> 3468 | U15: 2000
A16: K.V.RAVANAMMA ( 0807541 ) | B16: 0807541 | C16: K.V.RAVANAMMA | D16: SA (English) | E16: 15280-40510 | F16: MPUPS, Dasaripalli | G16: 21860 | H16: Syndicate Bank, Rapur | I16: 10555653 | J16: K.V.Sai Sujith | K16: VIII | L16: 2010-2011 | M16: Rathnam High School, Nelore | N16: 1000 | O16: XXXXXXXXXX | P16: Inter-I | Q16: 2010-2011 | R16: Abdul Kalam Jr Coolege | S16: 1000 | T16: =IF(ISNA(VLOOKUP(H16,Info!$J$2:$K$16,2,FALSE)),"",VLOOKUP(H16,Info!$J$2:$K$16,2,FALSE)) -> 3468 | U16: 2000
A17: K.V.RAVANAMMA ( 0807541 ) | B17: 0807541 | C17: K.V.RAVANAMMA | D17: SA (English) | E17: 15280-40510 | F17: MPUPS, Dasaripalli | G17: 21860 | H17: State Bank Of India (SBI) ADB , Atmakur | I17: 10555653 | J17: K.V.Sai Sujith | K17: VIII | L17: 2010-2011 | M17: Rathnam High School, Nelore | N17: 1000 | O17: XXXXXXXXXX | P17: Inter-I | Q17: 2010-2011 | R17: Abdul Kalam Jr Coolege | S17: 1000 | T17: =IF(ISNA(VLOOKUP(H17,Info!$J$2:$K$16,2,FALSE)),"",VLOOKUP(H17,Info!$J$2:$K$16,2,FALSE)) -> 4828 | U17: 2000
A18: K.V.RAVANAMMA ( 0807541 ) | B18: 0807541 | C18: K.V.RAVANAMMA | D18: SA (English) | E18: 15280-40510 | F18: MPUPS, Dasaripalli | G18: 21860 | H18: State Bank Of India (SBI) ADB , Atmakur | I18: 10555653 | J18: K.V.Sai Sujith | K18: VIII | L18: 2010-2011 | M18: Rathnam High School, Nelore | N18: 1000 | O18: XXXXXXXXXX | P18: Inter-I | Q18: 2010-2011 | R18: Abdul Kalam Jr Coolege | S18: 1000 | T18: =IF(ISNA(VLOOKUP(H18,Info!$J$2:$K$16,2,FALSE)),"",VLOOKUP(H18,Info!$J$2:$K$16,2,FALSE)) -> 4828 | U18: 2000
A19: K.V.RAVANAMMA ( 0807541 ) | B19: 0807541 | C19: K.V.RAVANAMMA | D19: SA (English) | E19: 15280-40510 | F19: MPUPS, Dasaripalli | G19: 21860 | H19: State Bank Of India (SBI) ADB , Atmakur | I19: 10555653 | J19: K.V.Sai Sujith | K19: VIII | L19: 2010-2011 | M19: Rathnam High School, Nelore | N19: 1000 | O19: XXXXXXXXXX | P19: Inter-I | Q19: 2010-2011 | R19: Abdul Kalam Jr Coolege | S19: 1000 | T19: =IF(ISNA(VLOOKUP(H19,Info!$J$2:$K$16,2,FALSE)),"",VLOOKUP(H19,Info!$J$2:$K$16,2,FALSE)) -> 4828 | U19: 2000
A20: K.V.RAVANAMMA ( 0807541 ) | B20: 0807541 | C20: K.V.RAVANAMMA | D20: SA (English) | E20: 15280-40510 | F20: MPUPS, Dasaripalli | G20: 21860 | H20: State Bank Of India (SBI) ADB , Atmakur | I20: 10555653 | J20: K.V.Sai Sujith | K20: VIII | L20: 2010-2011 | M20: Rathnam High School, Nelore | N20: 1000 | O20: XXXXXXXXXX | P20: Inter-I | Q20: 2010-2011 | R20: Abdul Kalam Jr Coolege | S20: 1000 | T20: =IF(ISNA(VLOOKUP(H20,Info!$J$2:$K$16,2,FALSE)),"",VLOOKUP(H20,Info!$J$2:$K$16,2,FALSE)) -> 4828 | U20: 2000
A21: K.V.RAVANAMMA ( 0807541 ) | B21: 0807541 | C21: K.V.RAVANAMMA | D21: SA (English) | E21: 15280-40510 | F21: MPUPS, Dasaripalli | G21: 21860 | H21: State Bank Of India (SBI) ADB , Atmakur | I21: 10555653 | J21: K.V.Sai Sujith | K21: VIII | L21: 2010-2011 | M21: Rathnam High School, Nelore | N21: 1000 | O21: XXXXXXXXXX | P21: Inter-I | Q21: 2010-2011 | R21: Abdul Kalam Jr Coolege | S21: 1000 | T21: =IF(ISNA(VLOOKUP(H21,Info!$J$2:$K$16,2,FALSE)),"",VLOOKUP(H21,Info!$J$2:$K$16,2,FALSE)) -> 4828 | U21: 2000
A22: K.V.RAVANAMMA ( 0807541 ) | B22: 0807541 | C22: K.V.RAVANAMMA | D22: SA (English) | E22: 15280-40510 | F22: MPUPS, Dasaripalli | G22: 21860 | H22: State Bank Of India (SBI) ADB , Atmakur | I22: 10555653 | J22: K.V.Sai Sujith | K22: VIII | L22: 2010-2011 | M22: Rathnam High School, Nelore | N22: 1000 | O22: XXXXXXXXXX | P22: Inter-I | Q22: 2010-2011 | R22: Abdul Kalam Jr Coolege | S22: 1000 | T22: =IF(ISNA(VLOOKUP(H22,Info!$J$2:$K$16,2,FALSE)),"",VLOOKUP(H22,Info!$J$2:$K$16,2,FALSE)) -> 4828 | U22: 2000
A23: K.V.RAVANAMMA ( 0807541 ) | B23: 0807541 | C23: K.V.RAVANAMMA | D23: SA (English) | E23: 15280-40510 | F23: MPUPS, Dasaripalli | G23: 21860 | H23: State Bank Of India (SBI) ADB , Atmakur | I23: 10555653 | J23: K.V.Sai Sujith | K23: VIII | L23: 2010-2011 | M23: Rathnam High School, Nelore | N23: 1000 | O23: XXXXXXXXXX | P23: Inter-I | Q23: 2010-2011 | R23: Abdul Kalam Jr Coolege | S23: 1000 | T23: =IF(ISNA(VLOOKUP(H23,Info!$J$2:$K$16,2,FALSE)),"",VLOOKUP(H23,Info!$J$2:$K$16,2,FALSE)) -> 4828 | U23: 2000
A24: K.V.RAVANAMMA ( 0807541 ) | B24: 0807541 | C24: K.V.RAVANAMMA | D24: SA (English) | E24: 15280-40510 | F24: MPUPS, Dasaripalli | G24: 21860 | H24: State Bank Of India (SBI), Gudur | I24: 10555653 | J24: K.V.Sai Sujith | K24: VIII | L24: 2010-2011 | M24: Rathnam High School, Nelore | N24: 1000 | O24: XXXXXXXXXX | P24: Inter-I | Q24: 2010-2011 | R24: Abdul Kalam Jr Coolege | S24: 1000 | T24: =IF(ISNA(VLOOKUP(H24,Info!$J$2:$K$16,2,FALSE)),"",VLOOKUP(H24,Info!$J$2:$K$16,2,FALSE)) -> 0843 | U24: 2000
A25: K.V.RAVANAMMA ( 0807541 ) | B25: 0807541 | C25: K.V.RAVANAMMA | D25: SA (English) | E25: 15280-40510 | F25: MPUPS, Dasaripalli | G25: 21860 | H25: State Bank Of India (SBI), Gudur | I25: 10555653 | J25: K.V.Sai Sujith | K25: VIII | L25: 2010-2011 | M25: Rathnam High School, Nelore | N25: 1000 | O25: XXXXXXXXXX | P25: Inter-I | Q25: 2010-2011 | R25: Abdul Kalam Jr Coolege | S25: 1000 | T25: =IF(ISNA(VLOOKUP(H25,Info!$J$2:$K$16,2,FALSE)),"",VLOOKUP(H25,Info!$J$2:$K$16,2,FALSE)) -> 0843 | U25: 2000
A26: K.V.RAVANAMMA ( 0807541 ) | B26: 0807541 | C26: K.V.RAVANAMMA | D26: SA (English) | E26: 15280-40510 | F26: MPUPS, Dasaripalli | G26: 21860 | H26: State Bank Of India (SBI), Gudur | I26: 10555653 | J26: K.V.Sai Sujith | K26: VIII | L26: 2010-2011 | M26: Rathnam High School, Nelore | N26: 1000 | O26: XXXXXXXXXX | P26: Inter-I | Q26: 2010-2011 | R26: Abdul Kalam Jr Coolege | S26: 1000 | T26: =IF(ISNA(VLOOKUP(H26,Info!$J$2:$K$16,2,FALSE)),"",VLOOKUP(H26,Info!$J$2:$K$16,2,FALSE)) -> 0843 | U26: 2000
A27: K.V.RAVANAMMA ( 0807541 ) | B27: 0807541 | C27: K.V.RAVANAMMA | D27: SA (English) | E27: 15280-40510 | F27: MPUPS, Dasaripalli | G27: 21860 | H27: State Bank Of India (SBI), Gudur | I27: 10555653 | J27: K.V.Sai Sujith | K27: VIII | L27: 2010-2011 | M27: Rathnam High School, Nelore | N27: 1000 | O27: XXXXXXXXXX | P27: Inter-I | Q27: 2010-2011 | R27: Abdul Kalam Jr Coolege | S27: 1000 | T27: =IF(ISNA(VLOOKUP(H27,Info!$J$2:$K$16,2,FALSE)),"",VLOOKUP(H27,Info!$J$2:$K$16,2,FALSE)) -> 0843 | U27: 2000
A28: K.V.RAVANAMMA ( 0807541 ) | B28: 0807541 | C28: K.V.RAVANAMMA | D28: SA (English) | E28: 15280-40510 | F28: MPUPS, Dasaripalli | G28: 21860 | H28: State Bank Of India (SBI), Gudur | I28: 10555653 | J28: K.V.Sai Sujith | K28: VIII | L28: 2010-2011 | M28: Rathnam High School, Nelore | N28: 1000 | O28: XXXXXXXXXX | P28: Inter-I | Q28: 2010-2011 | R28: Abdul Kalam Jr Coolege | S28: 1000 | T28: =IF(ISNA(VLOOKUP(H28,Info!$J$2:$K$16,2,FALSE)),"",VLOOKUP(H28,Info!$J$2:$K$16,2,FALSE)) -> 0843 | U28: 2000
A29: K.V.RAVANAMMA ( 0807541 ) | B29: 0807541 | C29: K.V.RAVANAMMA | D29: SA (English) | E29: 15280-40510 | F29: MPUPS, Dasaripalli | G29: 21860 | H29: State Bank Of India (SBI), Nellore | I29: 10555653 | J29: K.V.Sai Sujith | K29: VIII | L29: 2010-2011 | M29: Rathnam High School, Nelore | N29: 1000 | O29: XXXXXXXXXX | P29: Inter-I | Q29: 2010-2011 | R29: Abdul Kalam Jr Coolege | S29: 1000 | T29: =IF(ISNA(VLOOKUP(H29,Info!$J$2:$K$16,2,FALSE)),"",VLOOKUP(H29,Info!$J$2:$K$16,2,FALSE)) -> 0887 | U29: 2000
A30: K.V.RAVANAMMA ( 0807541 ) | B30: 0807541 | C30: K.V.RAVANAMMA | D30: SA (English) | E30: 15280-40510 | F30: MPUPS, Dasaripalli | G30: 21860 | H30: State Bank Of India (SBI), Nellore | I30: 10555653 | J30: K.V.Sai Sujith | K30: VIII | L30: 2010-2011 | M30: Rathnam High School, Nelore | N30: 1000 | O30: XXXXXXXXXX | P30: Inter-I | Q30: 2010-2011 | R30: Abdul Kalam Jr Coolege | S30: 1000 | T30: =IF(ISNA(VLOOKUP(H30,Info!$J$2:$K$16,2,FALSE)),"",VLOOKUP(H30,Info!$J$2:$K$16,2,FALSE)) -> 0887 | U30: 2000
A31: K.V.RAVANAMMA ( 0807541 ) | B31: 0807541 | C31: K.V.RAVANAMMA | D31: SA (English) | E31: 15280-40510 | F31: MPUPS, Dasaripalli | G31: 21860 | H31: State Bank Of India (SBI), Nellore | I31: 10555653 | J31: K.V.Sai Sujith | K31: VIII | L31: 2010-2011 | M31: Rathnam High School, Nelore | N31: 1000 | O31: XXXXXXXXXX | P31: Inter-I | Q31: 2010-2011 | R31: Abdul Kalam Jr Coolege | S31: 1000 | T31: =IF(ISNA(VLOOKUP(H31,Info!$J$2:$K$16,2,FALSE)),"",VLOOKUP(H31,Info!$J$2:$K$16,2,FALSE)) -> 0887 | U31: 2000
A32: K.V.RAVANAMMA ( 0807541 ) | B32: 0807541 | C32: K.V.RAVANAMMA | D32: SA (English) | E32: 15280-40510 | F32: MPUPS, Dasaripalli | G32: 21860 | H32: State Bank Of India (SBI), Nellore | I32: 10555653 | J32: K.V.Sai Sujith | K32: VIII | L32: 2010-2011 | M32: Rathnam High School, Nelore | N32: 1000 | O32: XXXXXXXXXX | P32: Inter-I | Q32: 2010-2011 | R32: Abdul Kalam Jr Coolege | S32: 1000 | T32: =IF(ISNA(VLOOKUP(H32,Info!$J$2:$K$16,2,FALSE)),"",VLOOKUP(H32,Info!$J$2:$K$16,2,FALSE)) -> 0887 | U32: 2000
A33: K.V.RAVANAMMA ( 0807541 ) | B33: 0807541 | C33: K.V.RAVANAMMA | D33: SA (English) | E33: 15280-40510 | F33: MPUPS, Dasaripalli | G33: 21860 | H33: State Bank Of India (SBI), Nellore | I33: 10555653 | J33: K.V.Sai Sujith | K33: VIII | L33: 2010-2011 | M33: Rathnam High School, Nelore | N33: 1000 | O33: XXXXXXXXXX | P33: Inter-I | Q33: 2010-2011 | R33: Abdul Kalam Jr Coolege | S33: 1000 | T33: =IF(ISNA(VLOOKUP(H33,Info!$J$2:$K$16,2,FALSE)),"",VLOOKUP(H33,Info!$J$2:$K$16,2,FALSE)) -> 0887 | U33: 2000
A34: K.V.RAVANAMMA ( 0807541 ) | B34: 0807541 | C34: K.V.RAVANAMMA | D34: SA (English) | E34: 15280-40510 | F34: MPUPS, Dasaripalli | G34: 21860 | H34: State Bank Of India (SBI), Nellore | I34: 10555653 | J34: K.V.Sai Sujith | K34: VIII | L34: 2010-2011 | M34: Rathnam High School, Nelore | N34: 1000 | O34: XXXXXXXXXX | P34: Inter-I | Q34: 2010-2011 | R34: Abdul Kalam Jr Coolege | S34: 1000 | T34: =IF(ISNA(VLOOKUP(H34,Info!$J$2:$K$16,2,FALSE)),"",VLOOKUP(H34,Info!$J$2:$K$16,2,FALSE)) -> 0887 | U34: 2000
A35: K.V.RAVANAMMA ( 0807541 ) | B35: 0807541 | C35: K.V.RAVANAMMA | D35: SA (English) | E35: 15280-40510 | F35: MPUPS, Dasaripalli | G35: 21860 | H35: State Bank Of India (SBI), Nellore | I35: 10555653 | J35: K.V.Sai Sujith | K35: VIII | L35: 2010-2011 | M35: Rathnam High School, Nelore | N35: 1000 | O35: XXXXXXXXXX | P35: Inter-I | Q35: 2010-2011 | R35: Abdul Kalam Jr Coolege | S35: 1000 | T35: =IF(ISNA(VLOOKUP(H35,Info!$J$2:$K$16,2,FALSE)),"",VLOOKUP(H35,Info!$J$2:$K$16,2,FALSE)) -> 0887 | U35: 2000
A36: K.V.RAVANAMMA ( 0807541 ) | B36: 0807541 | C36: K.V.RAVANAMMA | D36: SA (English) | E36: 15280-40510 | F36: MPUPS, Dasaripalli | G36: 21860 | H36: State Bank Of India (SBI), Nellore | I36: 10555653 | J36: K.V.Sai Sujith | K36: VIII | L36: 2010-2011 | M36: Rathnam High School, Nelore | N36: 1000 | O36: XXXXXXXXXX | P36: Inter-I | Q36: 2010-2011 | R36: Abdul Kalam Jr Coolege | S36: 1000 | T36: =IF(ISNA(VLOOKUP(H36,Info!$J$2:$K$16,2,FALSE)),"",VLOOKUP(H36,Info!$J$2:$K$16,2,FALSE)) -> 0887 | U36: 2000
A37: K.V.RAVANAMMA ( 0807541 ) | B37: 0807541 | C37: K.V.RAVANAMMA | D37: SA (English) | E37: 15280-40510 | F37: MPUPS, Dasaripalli | G37: 21860 | H37: State Bank Of India (SBI), Nellore | I37: 10555653 | J37: K.V.Sai Sujith | K37: VIII | L37: 2010-2011 | M37: Rathnam High School, Nelore | N37: 1000 | O37: XXXXXXXXXX | P37: Inter-I | Q37: 2010-2011 | R37: Abdul Kalam Jr Coolege | S37: 1000 | T37: =IF(ISNA(VLOOKUP(H37,Info!$J$2:$K$16,2,FALSE)),"",VLOOKUP(H37,Info!$J$2:$K$16,2,FALSE)) -> 0887 | U37: 2000
A38: K.V.RAVANAMMA ( 0807541 ) | B38: 0807541 | C38: K.V.RAVANAMMA | D38: SA (English) | E38: 15280-40510 | F38: MPUPS, Dasaripalli | G38: 21860 | H38: State Bank Of India (SBI), Nellore | I38: 10555653 | J38: K.V.Sai Sujith | K38: VIII | L38: 2010-2011 | M38: Rathnam High School, Nelore | N38: 1000 | O38: XXXXXXXXXX | P38: Inter-I | Q38: 2010-2011 | R38: Abdul Kalam Jr Coolege | S38: 1000 | T38: =IF(ISNA(VLOOKUP(H38,Info!$J$2:$K$16,2,FALSE)),"",VLOOKUP(H38,Info!$J$2:$K$16,2,FALSE)) -> 0887 | U38: 2000
A39: K.V.RAVANAMMA ( 0807541 ) | B39: 0807541 | C39: K.V.RAVANAMMA | D39: SA (English) | E39: 15280-40510 | F39: MPUPS, Dasaripalli | G39: 21860 | H39: State Bank Of India (SBI), Nellore | I39: 10555653 | J39: K.V.Sai Sujith | K39: VIII | L39: 2010-2011 | M39: Rathnam High School, Nelore | N39: 1000 | O39: XXXXXXXXXX | P39: Inter-I | Q39: 2010-2011 | R39: Abdul Kalam Jr Coolege | S39: 1000 | T39: =IF(ISNA(VLOOKUP(H39,Info!$J$2:$K$16,2,FALSE)),"",VLOOKUP(H39,Info!$J$2:$K$16,2,FALSE)) -> 0887 | U39: 2000
A40: K.V.RAVANAMMA ( 0807541 ) | B40: 0807541 | C40: K.V.RAVANAMMA | D40: SA (English) | E40: 15280-40510 | F40: MPUPS, Dasaripalli | G40: 21860 | H40: State Bank Of India (SBI), Nellore | I40: 10555653 | J40: K.V.Sai Sujith | K40: VIII | L40: 2010-2011 | M40: Rathnam High School, Nelore | N40: 1000 | O40: XXXXXXXXXX | P40: Inter-I | Q40: 2010-2011 | R40: Abdul Kalam Jr Coolege | S40: 1000 | T40: =IF(ISNA(VLOOKUP(H40,Info!$J$2:$K$16,2,FALSE)),"",VLOOKUP(H40,Info!$J$2:$K$16,2,FALSE)) -> 0887 | U40: 2000
A41: K.V.RAVANAMMA ( 0807541 ) | B41: 0807541 | C41: K.V.RAVANAMMA | D41: SA (English) | E41: 15280-40510 | F41: MPUPS, Dasaripalli | G41: 21860 | H41: State Bank Of India (SBI), Nellore | I41: 10555653 | J41: K.V.Sai Sujith | K41: VIII | L41: 2010-2011 | M41: Rathnam High School, Nelore | N41: 1000 | O41: XXXXXXXXXX | P41: Inter-I | Q41: 2010-2011 | R41: Abdul Kalam Jr Coolege | S41: 1000 | T41: =IF(ISNA(VLOOKUP(H41,Info!$J$2:$K$16,2,FALSE)),"",VLOOKUP(H41,Info!$J$2:$K$16,2,FALSE)) -> 0887 | U41: 2000
A42: K.V.RAVANAMMA ( 0807541 ) | B42: 0807541 | C42: K.V.RAVANAMMA | D42: SA (English) | E42: 15280-40510 | F42: MPUPS, Dasaripalli | G42: 21860 | H42: State Bank Of India (SBI), Nellore | I42: 10555653 | J42: K.V.Sai Sujith | K42: VIII | L42: 2010-2011 | M42: Rathnam High School, Nelore | N42: 1000 | O42: XXXXXXXXXX | P42: Inter-I | Q42: 2010-2011 | R42: Abdul Kalam Jr Coolege | S42: 1000 | T42: =IF(ISNA(VLOOKUP(H42,Info!$J$2:$K$16,2,FALSE)),"",VLOOKUP(H42,Info!$J$2:$K$16,2,FALSE)) -> 0887 | U42: 2000
A43: K.V.RAVANAMMA ( 0807541 ) | B43: 0807541 | C43: K.V.RAVANAMMA | D43: SA (English) | E43: 15280-40510 | F43: MPUPS, Dasaripalli | G43: 21860 | H43: State Bank Of India (SBI), Nellore | I43: 10555653 | J43: K.V.Sai Sujith | K43: VIII | L43: 2010-2011 | M43: Rathnam High School, Nelore | N43: 1000 | O43: XXXXXXXXXX | P43: Inter-I | Q43: 2010-2011 | R43: Abdul Kalam Jr Coolege | S43: 1000 | T43: =IF(ISNA(VLOOKUP(H43,Info!$J$2:$K$16,2,FALSE)),"",VLOOKUP(H43,Info!$J$2:$K$16,2,FALSE)) -> 0887 | U43: 2000
A44: K.V.RAVANAMMA ( 0807541 ) | B44: 0807541 | C44: K.V.RAVANAMMA | D44: SA (English) | E44: 15280-40510 | F44: MPUPS, Dasaripalli | G44: 21860 | H44: State Bank Of India (SBI), Nellore | I44: 10555653 | J44: K.V.Sai Sujith | K44: VIII | L44: 2010-2011 | M44: Rathnam High School, Nelore | N44: 1000 | O44: XXXXXXXXXX | P44: Inter-I | Q44: 2010-2011 | R44: Abdul Kalam Jr Coolege | S44: 1000 | T44: =IF(ISNA(VLOOKUP(H44,Info!$J$2:$K$16,2,FALSE)),"",VLOOKUP(H44,Info!$J$2:$K$16,2,FALSE)) -> 0887 | U44: 2000
A45: K.V.RAVANAMMA ( 0807541 ) | B45: 0807541 | C45: K.V.RAVANAMMA | D45: SA (English) | E45: 15280-40510 | F45: MPUPS, Dasaripalli | G45: 21860 | H45: State Bank Of India (SBI), Nellore | I45: 10555653 | J45: K.V.Sai Sujith | K45: VIII | L45: 2010-2011 | M45: Rathnam High School, Nelore | N45: 1000 | O45: XXXXXXXXXX | P45: Inter-I | Q45: 2010-2011 | R45: Abdul Kalam Jr Coolege | S45: 1000 | T45: =IF(ISNA(VLOOKUP(H45,Info!$J$2:$K$16,2,FALSE)),"",VLOOKUP(H45,Info!$J$2:$K$16,2,FALSE)) -> 0887 | U45: 2000
A46: K.V.RAVANAMMA ( 0807541 ) | B46: 0807541 | C46: K.V.RAVANAMMA | D46: SA (English) | E46: 15280-40510 | F46: MPUPS, Dasaripalli | G46: 21860 | H46: State Bank Of India (SBI), Nellore | I46: 10555653 | J46: K.V.Sai Sujith | K46: VIII | L46: 2010-2011 | M46: Rathnam High School, Nelore | N46: 1000 | O46: XXXXXXXXXX | P46: Inter-I | Q46: 2010-2011 | R46: Abdul Kalam Jr Coolege | S46: 1000 | T46: =IF(ISNA(VLOOKUP(H46,Info!$J$2:$K$16,2,FALSE)),"",VLOOKUP(H46,Info!$J$2:$K$16,2,FALSE)) -> 0887 | U46: 2000
A47: K.V.RAVANAMMA ( 0807541 ) | B47: 0807541 | C47: K.V.RAVANAMMA | D47: SA (English) | E47: 15280-40510 | F47: MPUPS, Dasaripalli | G47: 21860 | H47: State Bank Of India (SBI), Nellore | I47: 10555653 | J47: K.V.Sai Sujith | K47: VIII | L47: 2010-2011 | M47: Rathnam High School, Nelore | N47: 1000 | O47: XXXXXXXXXX | P47: Inter-I | Q47: 2010-2011 | R47: Abdul Kalam Jr Coolege | S47: 1000 | T47: =IF(ISNA(VLOOKUP(H47,Info!$J$2:$K$16,2,FALSE)),"",VLOOKUP(H47,Info!$J$2:$K$16,2,FALSE)) -> 0887 | U47: 2000
A48: K.V.RAVANAMMA ( 0807541 ) | B48: 0807541 | C48: K.V.RAVANAMMA | D48: SA (English) | E48: 15280-40510 | F48: MPUPS, Dasaripalli | G48: 21860 | H48: State Bank Of India (SBI), Nellore | I48: 10555653 | J48: K.V.Sai Sujith | K48: VIII | L48: 2010-2011 | M48: Rathnam High School, Nelore | N48: 1000 | O48: XXXXXXXXXX | P48: Inter-I | Q48: 2010-2011 | R48: Abdul Kalam Jr Coolege | S48: 1000 | T48: =IF(ISNA(VLOOKUP(H48,Info!$J$2:$K$16,2,FALSE)),"",VLOOKUP(H48,Info!$J$2:$K$16,2,FALSE)) -> 0887 | U48: 2000
A49: K.V.RAVANAMMA ( 0807541 ) | B49: 0807541 | C49: K.V.RAVANAMMA | D49: SA (English) | E49: 15280-40510 | F49: MPUPS, Dasaripalli | G49: 21860 | H49: State Bank Of India (SBI), Nellore | I49: 10555653 | J49: K.V.Sai Sujith | K49: VIII | L49: 2010-2011 | M49: Rathnam High School, Nelore | N49: 1000 | O49: XXXXXXXXXX | P49: Inter-I | Q49: 2010-2011 | R49: Abdul Kalam Jr Coolege | S49: 1000 | T49: =IF(ISNA(VLOOKUP(H49,Info!$J$2:$K$16,2,FALSE)),"",VLOOKUP(H49,Info!$J$2:$K$16,2,FALSE)) -> 0887 | U49: 2000
A50: K.V.RAVANAMMA ( 0807541 ) | B50: 0807541 | C50: K.V.RAVANAMMA | D50: SA (English) | E50: 15280-40510 | F50: MPUPS, Dasaripalli | G50: 21860 | H50: State Bank Of India (SBI), Nellore | I50: 10555653 | J50: K.V.Sai Sujith | K50: VIII | L50: 2010-2011 | M50: Rathnam High School, Nelore | N50: 1000 | O50: XXXXXXXXXX | P50: Inter-I | Q50: 2010-2011 | R50: Abdul Kalam Jr Coolege | S50: 1000 | T50: =IF(ISNA(VLOOKUP(H50,Info!$J$2:$K$16,2,FALSE)),"",VLOOKUP(H50,Info!$J$2:$K$16,2,FALSE)) -> 0887 | U50: 2000
A51: K.V.RAVANAMMA ( 0807541 ) | B51: 0807541 | C51: K.V.RAVANAMMA | D51: SA (English) | E51: 15280-40510 | F51: MPUPS, Dasaripalli | G51: 21860 | H51: State Bank Of India (SBI), Nellore | I51: 10555653 | J51: K.V.Sai Sujith | K51: VIII | L51: 2010-2011 | M51: Rathnam High School, Nelore | N51: 1000 | O51: XXXXXXXXXX | P51: Inter-I | Q51: 2010-2011 | R51: Abdul Kalam Jr Coolege | S51: 1000 | T51: =IF(ISNA(VLOOKUP(H51,Info!$J$2:$K$16,2,FALSE)),"",VLOOKUP(H51,Info!$J$2:$K$16,2,FALSE)) -> 0887 | U51: 2000
A52: K.V.RAVANAMMA ( 0807541 ) | B52: 0807541 | C52: K.V.RAVANAMMA | D52: SA (English) | E52: 15280-40510 | F52: MPUPS, Dasaripalli | G52: 21860 | H52: State Bank Of India (SBI), Nellore | I52: 10555653 | J52: K.V.Sai Sujith | K52: VIII | L52: 2010-2011 | M52: Rathnam High School, Nelore | N52: 1000 | O52: XXXXXXXXXX | P52: Inter-I | Q52: 2010-2011 | R52: Abdul Kalam Jr Coolege | S52: 1000 | T52: =IF(ISNA(VLOOKUP(H52,Info!$J$2:$K$16,2,FALSE)),"",VLOOKUP(H52,Info!$J$2:$K$16,2,FALSE)) -> 0887 | U52: 2000
A53: K.V.RAVANAMMA ( 0807541 ) | B53: 0807541 | C53: K.V.RAVANAMMA | D53: SA (English) | E53: 15280-40510 | F53: MPUPS, Dasaripalli | G53: 21860 | H53: State Bank Of India (SBI), Nellore | I53: 10555653 | J53: K.V.Sai Sujith | K53: VIII | L53: 2010-2011 | M53: Rathnam High School, Nelore | N53: 1000 | O53: XXXXXXXXXX | P53: Inter-I | Q53: 2010-2011 | R53: Abdul Kalam Jr Coolege | S53: 1000 | T53: =IF(ISNA(VLOOKUP(H53,Info!$J$2:$K$16,2,FALSE)),"",VLOOKUP(H53,Info!$J$2:$K$16,2,FALSE)) -> 0887 | U53: 2000
A54: K.V.RAVANAMMA ( 0807541 ) | B54: 0807541 | C54: K.V.RAVANAMMA | D54: SA (English) | E54: 15280-40510 | F54: MPUPS, Dasaripalli | G54: 21860 | H54: State Bank Of India (SBI), Nellore | I54: 10555653 | J54: K.V.Sai Sujith | K54: VIII | L54: 2010-2011 | M54: Rathnam High School, Nelore | N54: 1000 | O54: XXXXXXXXXX | P54: Inter-I | Q54: 2010-2011 | R54: Abdul Kalam Jr Coolege | S54: 1000 | T54: =IF(ISNA(VLOOKUP(H54,Info!$J$2:$K$16,2,FALSE)),"",VLOOKUP(H54,Info!$J$2:$K$16,2,FALSE)) -> 0887 | U54: 2000
A55: K.V.RAVANAMMA ( 0807541 ) | B55: 0807541 | C55: K.V.RAVANAMMA | D55: SA (English) | E55: 15280-40510 | F55: MPUPS, Dasaripalli | G55: 21860 | H55: State Bank Of India (SBI), Nellore | I55: 10555653 | J55: K.V.Sai Sujith | K55: VIII | L55: 2010-2011 | M55: Rathnam High School, Nelore | N55: 1000 | O55: XXXXXXXXXX | P55: Inter-I | Q55: 2010-2011 | R55: Abdul Kalam Jr Coolege | S55: 1000 | T55: =IF(ISNA(VLOOKUP(H55,Info!$J$2:$K$16,2,FALSE)),"",VLOOKUP(H55,Info!$J$2:$K$16,2,FALSE)) -> 0887 | U55: 2000
A56: K.V.RAVANAMMA ( 0807541 ) | B56: 0807541 | C56: K.V.RAVANAMMA | D56: SA (English) | E56: 15280-40510 | F56: MPUPS, Dasaripalli | G56: 21860 | H56: State Bank Of India (SBI), Nellore | I56: 10555653 | J56: K.V.Sai Sujith | K56: VIII | L56: 2010-2011 | M56: Rathnam High School, Nelore | N56: 1000 | O56: XXXXXXXXXX | P56: Inter-I | Q56: 2010-2011 | R56: Abdul Kalam Jr Coolege | S56: 1000 | T56: =IF(ISNA(VLOOKUP(H56,Info!$J$2:$K$16,2,FALSE)),"",VLOOKUP(H56,Info!$J$2:$K$16,2,FALSE)) -> 0887 | U56: 2000
A57: K.V.RAVANAMMA ( 0807541 ) | B57: 0807541 | C57: K.V.RAVANAMMA | D57: SA (English) | E57: 15280-40510 | F57: MPUPS, Dasaripalli | G57: 21860 | H57: State Bank Of India (SBI), Nellore | I57: 10555653 | J57: K.V.Sai Sujith | K57: VIII | L57: 2010-2011 | M57: Rathnam High School, Nelore | N57: 1000 | O57: XXXXXXXXXX | P57: Inter-I | Q57: 2010-2011 | R57: Abdul Kalam Jr Coolege | S57: 1000 | T57: =IF(ISNA(VLOOKUP(H57,Info!$J$2:$K$16,2,FALSE)),"",VLOOKUP(H57,Info!$J$2:$K$16,2,FALSE)) -> 0887 | U57: 2000
A58: K.V.RAVANAMMA ( 0807541 ) | B58: 0807541 | C58: K.V.RAVANAMMA | D58: SA (English) | E58: 15280-40510 | F58: MPUPS, Dasaripalli | G58: 21860 | H58: State Bank Of India (SBI), Nellore | I58: 10555653 | J58: K.V.Sai Sujith | K58: VIII | L58: 2010-2011 | M58: Rathnam High School, Nelore | N58: 1000 | O58: XXXXXXXXXX | P58: Inter-I | Q58: 2010-2011 | R58: Abdul Kalam Jr Coolege | S58: 1000 | T58: =IF(ISNA(VLOOKUP(H58,Info!$J$2:$K$16,2,FALSE)),"",VLOOKUP(H58,Info!$J$2:$K$16,2,FALSE)) -> 0887 | U58: 2000
A59: K.V.RAVANAMMA ( 0807541 ) | B59: 0807541 | C59: K.V.RAVANAMMA | D59: SA (English) | E59: 15280-40510 | F59: MPUPS, Dasaripalli | G59: 21860 | H59: State Bank Of India (SBI), Nellore | I59: 10555653 | J59: K.V.Sai Sujith | K59: VIII | L59: 2010-2011 | M59: Rathnam High School, Nelore | N59: 1000 | O59: XXXXXXXXXX | P59: Inter-I | Q59: 2010-2011 | R59: Abdul Kalam Jr Coolege | S59: 1000 | T59: =IF(ISNA(VLOOKUP(H59,Info!$J$2:$K$16,2,FALSE)),"",VLOOKUP(H59,Info!$J$2:$K$16,2,FALSE)) -> 0887 | U59: 2000
A60: K.V.RAVANAMMA ( 0807541 ) | B60: 0807541 | C60: K.V.RAVANAMMA | D60: SA (English) | E60: 15280-40510 | F60: MPUPS, Dasaripalli | G60: 21860 | H60: State Bank Of India (SBI), Nellore | I60: 10555653 | J60: K.V.Sai Sujith | K60: VIII | L60: 2010-2011 | M60: Rathnam High School, Nelore | N60: 1000 | O60: XXXXXXXXXX | P60: Inter-I | Q60: 2010-2011 | R60: Abdul Kalam Jr Coolege | S60: 1000 | T60: =IF(ISNA(VLOOKUP(H60,Info!$J$2:$K$16,2,FALSE)),"",VLOOKUP(H60,Info!$J$2:$K$16,2,FALSE)) -> 0887 | U60: 2000
A61: K.V.RAVANAMMA ( 0807541 ) | B61: 0807541 | C61: K.V.RAVANAMMA | D61: SA (English) | E61: 15280-40510 | F61: MPUPS, Dasaripalli | G61: 21860 | H61: State Bank Of India (SBI), Nellore | I61: 10555653 | J61: K.V.Sai Sujith | K61: VIII | L61: 2010-2011 | M61: Rathnam High School, Nelore | N61: 1000 | O61: XXXXXXXXXX | P61: Inter-I | Q61: 2010-2011 | R61: Abdul Kalam Jr Coolege | S61: 1000 | T61: =IF(ISNA(VLOOKUP(H61,Info!$J$2:$K$16,2,FALSE)),"",VLOOKUP(H61,Info!$J$2:$K$16,2,FALSE)) -> 0887 | U61: 2000
A62: K.V.RAVANAMMA ( 0807541 ) | B62: 0807541 | C62: K.V.RAVANAMMA | D62: SA (English) | E62: 15280-40510 | F62: MPUPS, Dasaripalli | G62: 21860 | H62: State Bank Of India (SBI), Nellore | I62: 10555653 | J62: K.V.Sai Sujith | K62: VIII | L62: 2010-2011 | M62: Rathnam High School, Nelore | N62: 1000 | O62: XXXXXXXXXX | P62: Inter-I | Q62: 2010-2011 | R62: Abdul Kalam Jr Coolege | S62: 1000 | T62: =IF(ISNA(VLOOKUP(H62,Info!$J$2:$K$16,2,FALSE)),"",VLOOKUP(H62,Info!$J$2:$K$16,2,FALSE)) -> 0887 | U62: 2000
A63: K.V.RAVANAMMA ( 0807541 ) | B63: 0807541 | C63: K.V.RAVANAMMA | D63: SA (English) | E63: 15280-40510 | F63: MPUPS, Dasaripalli | G63: 21860 | H63: State Bank Of India (SBI), Nellore | I63: 10555653 | J63: K.V.Sai Sujith | K63: VIII | L63: 2010-2011 | M63: Rathnam High School, Nelore | N63: 1000 | O63: XXXXXXXXXX | P63: Inter-I | Q63: 2010-2011 | R63: Abdul Kalam Jr Coolege | S63: 1000 | T63: =IF(ISNA(VLOOKUP(H63,Info!$J$2:$K$16,2,FALSE)),"",VLOOKUP(H63,Info!$J$2:$K$16,2,FALSE)) -> 0887 | U63: 2000
A64: K.V.RAVANAMMA ( 0807541 ) | B64: 0807541 | C64: K.V.RAVANAMMA | D64: SA (English) | E64: 15280-40510 | F64: MPUPS, Dasaripalli | G64: 21860 | H64: State Bank Of India (SBI), Nellore | I64: 10555653 | J64: K.V.Sai Sujith | K64: VIII | L64: 2010-2011 | M64: Rathnam High School, Nelore | N64: 1000 | O64: XXXXXXXXXX | P64: Inter-I | Q64: 2010-2011 | R64: Abdul Kalam Jr Coolege | S64: 1000 | T64: =IF(ISNA(VLOOKUP(H64,Info!$J$2:$K$16,2,FALSE)),"",VLOOKUP(H64,Info!$J$2:$K$16,2,FALSE)) -> 0887 | U64: 2000
A65: K.V.RAVANAMMA ( 0807541 ) | B65: 0807541 | C65: K.V.RAVANAMMA | D65: SA (English) | E65: 15280-40510 | F65: MPUPS, Dasaripalli | G65: 21860 | H65: State Bank Of India (SBI), Nellore | I65: 10555653 | J65: K.V.Sai Sujith | K65: VIII | L65: 2010-2011 | M65: Rathnam High School, Nelore | N65: 1000 | O65: XXXXXXXXXX | P65: Inter-I | Q65: 2010-2011 | R65: Abdul Kalam Jr Coolege | S65: 1000 | T65: =IF(ISNA(VLOOKUP(H65,Info!$J$2:$K$16,2,FALSE)),"",VLOOKUP(H65,Info!$J$2:$K$16,2,FALSE)) -> 0887 | U65: 2000
A66: K.V.RAVANAMMA ( 0807541 ) | B66: 0807541 | C66: K.V.RAVANAMMA | D66: SA (English) | E66: 15280-40510 | F66: MPUPS, Dasaripalli | G66: 21860 | H66: State Bank Of India (SBI), Nellore | I66: 10555653 | J66: K.V.Sai Sujith | K66: VIII | L66: 2010-2011 | M66: Rathnam High School, Nelore | N66: 1000 | O66: XXXXXXXXXX | P66: Inter-I | Q66: 2010-2011 | R66: Abdul Kalam Jr Coolege | S66: 1000 | T66: =IF(ISNA(VLOOKUP(H66,Info!$J$2:$K$16,2,FALSE)),"",VLOOKUP(H66,Info!$J$2:$K$16,2,FALSE)) -> 0887 | U66: 2000
A67: K.V.RAVANAMMA ( 0807541 ) | B67: 0807541 | C67: K.V.RAVANAMMA | D67: SA (English) | E67: 15280-40510 | F67: MPUPS, Dasaripalli | G67: 21860 | H67: State Bank Of India (SBI), Nellore | I67: 10555653 | J67: K.V.Sai Sujith | K67: VIII | L67: 2010-2011 | M67: Rathnam High School, Nelore | N67: 1000 | O67: XXXXXXXXXX | P67: Inter-I | Q67: 2010-2011 | R67: Abdul Kalam Jr Coolege | S67: 1000 | T67: =IF(ISNA(VLOOKUP(H67,Info!$J$2:$K$16,2,FALSE)),"",VLOOKUP(H67,Info!$J$2:$K$16,2,FALSE)) -> 0887 | U67: 2000
A68: K.V.RAVANAMMA ( 0807541 ) | B68: 0807541 | C68: K.V.RAVANAMMA | D68: SA (English) | E68: 15280-40510 | F68: MPUPS, Dasaripalli | G68: 21860 | H68: State Bank Of India (SBI), Nellore | I68: 10555653 | J68: K.V.Sai Sujith | K68: VIII | L68: 2010-2011 | M68: Rathnam High School, Nelore | N68: 1000 | O68: XXXXXXXXXX | P68: Inter-I | Q68: 2010-2011 | R68: Abdul Kalam Jr Coolege | S68: 1000 | T68: =IF(ISNA(VLOOKUP(H68,Info!$J$2:$K$16,2,FALSE)),"",VLOOKUP(H68,Info!$J$2:$K$16,2,FALSE)) -> 0887 | U68: 2000
A69: =CONCATENATE(C69," ( ",B69," )") -> K.V.RAVANAMMA ( 0807541 ) | B69: 0807541 | C69: K.V.RAVANAMMA | D69: SA (English) | E69: 15280-40510 | F69: MPUPS, Dasaripalli | G69: 21860 | H69: State Bank Of India (SBI), Nellore | I69: 10555653 | J69: K.V.Sai Sujith | K69: VIII | L69: 2010-2011 | M69: Rathnam High School, Nelore | N69: 1000 | O69: XXXXXXXXXX | P69: Inter-I | Q69: 2010-2011 | R69: Abdul Kalam Jr Coolege | S69: 1000 | T69: =IF(ISNA(VLOOKUP(H69,Info!$J$2:$K$16,2,FALSE)),"",VLOOKUP(H69,Info!$J$2:$K$16,2,FALSE)) -> 0887 | U69: =SUM(N69,S69) -> 2000
A70: K.V.RAVANAMMA ( 0807541 ) | B70: 0807541 | C70: K.V.RAVANAMMA | D70: SA (English) | E70: 15280-40510 | F70: MPUPS, Dasaripalli | G70: 21860 | H70: State Bank Of India (SBI), Nellore | I70: 10555653 | J70: K.V.Sai Sujith | K70: VIII | L70: 2010-2011 | M70: Rathnam High School, Nelore | N70: 1000 | O70: XXXXXXXXXX | P70: Inter-I | Q70: 2010-2011 | R70: Abdul Kalam Jr Coolege | S70: 1000 | T70: =IF(ISNA(VLOOKUP(H70,Info!$J$2:$K$16,2,FALSE)),"",VLOOKUP(H70,Info!$J$2:$K$16,2,FALSE)) -> 0887 | U70: 2000
A71: K.V.RAVANAMMA ( 0807541 ) | B71: 0807541 | C71: K.V.RAVANAMMA | D71: SA (English) | E71: 15280-40510 | F71: MPUPS, Dasaripalli | G71: 21860 | H71: State Bank Of India (SBI), Nellore | I71: 10555653 | J71: K.V.Sai Sujith | K71: VIII | L71: 2010-2011 | M71: Rathnam High School, Nelore | N71: 1000 | O71: XXXXXXXXXX | P71: Inter-I | Q71: 2010-2011 | R71: Abdul Kalam Jr Coolege | S71: 1000 | T71: =IF(ISNA(VLOOKUP(H71,Info!$J$2:$K$16,2,FALSE)),"",VLOOKUP(H71,Info!$J$2:$K$16,2,FALSE)) -> 0887 | U71: 2000
A72: K.V.RAVANAMMA ( 0807541 ) | B72: 0807541 | C72: K.V.RAVANAMMA | D72: SA (English) | E72: 15280-40510 | F72: MPUPS, Dasaripalli | G72: 21860 | H72: State Bank Of India (SBI), Nellore | I72: 10555653 | J72: K.V.Sai Sujith | K72: VIII | L72: 2010-2011 | M72: Rathnam High School, Nelore | N72: 1000 | O72: XXXXXXXXXX | P72: Inter-I | Q72: 2010-2011 | R72: Abdul Kalam Jr Coolege | S72: 1000 | T72: =IF(ISNA(VLOOKUP(H72,Info!$J$2:$K$16,2,FALSE)),"",VLOOKUP(H72,Info!$J$2:$K$16,2,FALSE)) -> 0887 | U72: 2000
A73: K.V.RAVANAMMA ( 0807541 ) | B73: 0807541 | C73: K.V.RAVANAMMA | D73: SA (English) | E73: 15280-40510 | F73: MPUPS, Dasaripalli | G73: 21860 | H73: State Bank Of India (SBI), Nellore | I73: 10555653 | J73: K.V.Sai Sujith | K73: VIII | L73: 2010-2011 | M73: Rathnam High School, Nelore | N73: 1000 | O73: XXXXXXXXXX | P73: Inter-I | Q73: 2010-2011 | R73: Abdul Kalam Jr Coolege | S73: 1000 | T73: =IF(ISNA(VLOOKUP(H73,Info!$J$2:$K$16,2,FALSE)),"",VLOOKUP(H73,Info!$J$2:$K$16,2,FALSE)) -> 0887 | U73: 2000
A74: K.V.RAVANAMMA ( 0807541 ) | B74: 0807541 | C74: K.V.RAVANAMMA | D74: SA (English) | E74: 15280-40510 | F74: MPUPS, Dasaripalli | G74: 21860 | H74: State Bank Of India (SBI), Nellore | I74: 10555653 | J74: K.V.Sai Sujith | K74: VIII | L74: 2010-2011 | M74: Rathnam High School, Nelore | N74: 1000 | O74: XXXXXXXXXX | P74: Inter-I | Q74: 2010-2011 | R74: Abdul Kalam Jr Coolege | S74: 1000 | T74: =IF(ISNA(VLOOKUP(H74,Info!$J$2:$K$16,2,FALSE)),"",VLOOKUP(H74,Info!$J$2:$K$16,2,FALSE)) -> 0887 | U74: 2000
A75: K.V.RAVANAMMA ( 0807541 ) | B75: 0807541 | C75: K.V.RAVANAMMA | D75: SA (English) | E75: 15280-40510 | F75: MPUPS, Dasaripalli | G75: 21860 | H75: State Bank Of India (SBI), Nellore | I75: 10555653 | J75: K.V.Sai Sujith | K75: VIII | L75: 2010-2011 | M75: Rathnam High School, Nelore | N75: 1000 | O75: XXXXXXXXXX | P75: Inter-I | Q75: 2010-2011 | R75: Abdul Kalam Jr Coolege | S75: 1000 | T75: =IF(ISNA(VLOOKUP(H75,Info!$J$2:$K$16,2,FALSE)),"",VLOOKUP(H75,Info!$J$2:$K$16,2,FALSE)) -> 0887 | U75: 2000
A76: K.V.RAVANAMMA ( 0807541 ) | B76: 0807541 | C76: K.V.RAVANAMMA | D76: SA (English) | E76: 15280-40510 | F76: MPUPS, Dasaripalli | G76: 21860 | H76: State Bank Of India (SBI), Nellore | I76: 10555653 | J76: K.V.Sai Sujith | K76: VIII | L76: 2010-2011 | M76: Rathnam High School, Nelore | N76: 1000 | O76: XXXXXXXXXX | P76: Inter-I | Q76: 2010-2011 | R76: Abdul Kalam Jr Coolege | S76: 1000 | T76: =IF(ISNA(VLOOKUP(H76,Info!$J$2:$K$16,2,FALSE)),"",VLOOKUP(H76,Info!$J$2:$K$16,2,FALSE)) -> 0887 | U76: 2000
A77: K.V.RAVANAMMA ( 0807541 ) | B77: 0807541 | C77: K.V.RAVANAMMA | D77: SA (English) | E77: 15280-40510 | F77: MPUPS, Dasaripalli | G77: 21860 | H77: State Bank Of India (SBI), Nellore | I77: 10555653 | J77: K.V.Sai Sujith | K77: VIII | L77: 2010-2011 | M77: Rathnam High School, Nelore | N77: 1000 | O77: XXXXXXXXXX | P77: Inter-I | Q77: 2010-2011 | R77: Abdul Kalam Jr Coolege | S77: 1000 | T77: =IF(ISNA(VLOOKUP(H77,Info!$J$2:$K$16,2,FALSE)),"",VLOOKUP(H77,Info!$J$2:$K$16,2,FALSE)) -> 0887 | U77: 2000
A78: K.V.RAVANAMMA ( 0807541 ) | B78: 0807541 | C78: K.V.RAVANAMMA | D78: SA (English) | E78: 15280-40510 | F78: MPUPS, Dasaripalli | G78: 21860 | H78: State Bank Of India (SBI), Nellore | I78: 10555653 | J78: K.V.Sai Sujith | K78: VIII | L78: 2010-2011 | M78: Rathnam High School, Nelore | N78: 1000 | O78: XXXXXXXXXX | P78: Inter-I | Q78: 2010-2011 | R78: Abdul Kalam Jr Coolege | S78: 1000 | T78: =IF(ISNA(VLOOKUP(H78,Info!$J$2:$K$16,2,FALSE)),"",VLOOKUP(H78,Info!$J$2:$K$16,2,FALSE)) -> 0887 | U78: 2000
A79: K.V.RAVANAMMA ( 0807541 ) | B79: 0807541 | C79: K.V.RAVANAMMA | D79: SA (English) | E79: 15280-40510 | F79: MPUPS, Dasaripalli | G79: 21860 | H79: State Bank Of India (SBI), Nellore | I79: 10555653 | J79: K.V.Sai Sujith | K79: VIII | L79: 2010-2011 | M79: Rathnam High School, Nelore | N79: 1000 | O79: XXXXXXXXXX | P79: Inter-I | Q79: 2010-2011 | R79: Abdul Kalam Jr Coolege | S79: 1000 | T79: =IF(ISNA(VLOOKUP(H79,Info!$J$2:$K$16,2,FALSE)),"",VLOOKUP(H79,Info!$J$2:$K$16,2,FALSE)) -> 0887 | U79: 2000
A80: K.V.RAVANAMMA ( 0807541 ) | B80: 0807541 | C80: K.V.RAVANAMMA | D80: SA (English) | E80: 15280-40510 | F80: MPUPS, Dasaripalli | G80: 21860 | H80: State Bank Of India (SBI), Nellore | I80: 10555653 | J80: K.V.Sai Sujith | K80: VIII | L80: 2010-2011 | M80: Rathnam High School, Nelore | N80: 1000 | O80: XXXXXXXXXX | P80: Inter-I | Q80: 2010-2011 | R80: Abdul Kalam Jr Coolege | S80: 1000 | T80: =IF(ISNA(VLOOKUP(H80,Info!$J$2:$K$16,2,FALSE)),"",VLOOKUP(H80,Info!$J$2:$K$16,2,FALSE)) -> 0887 | U80: 2000
A81: K.V.RAVANAMMA ( 0807541 ) | B81: 0807541 | C81: K.V.RAVANAMMA | D81: SA (English) | E81: 15280-40510 | F81: MPUPS, Dasaripalli | G81: 21860 | H81: State Bank Of India (SBI), Nellore | I81: 10555653 | J81: K.V.Sai Sujith | K81: VIII | L81: 2010-2011 | M81: Rathnam High School, Nelore | N81: 1000 | O81: XXXXXXXXXX | P81: Inter-I | Q81: 2010-2011 | R81: Abdul Kalam Jr Coolege | S81: 1000 | T81: =IF(ISNA(VLOOKUP(H81,Info!$J$2:$K$16,2,FALSE)),"",VLOOKUP(H81,Info!$J$2:$K$16,2,FALSE)) -> 0887 | U81: 2000
A82: K.V.RAVANAMMA ( 0807541 ) | B82: 0807541 | C82: K.V.RAVANAMMA | D82: SA (English) | E82: 15280-40510 | F82: MPUPS, Dasaripalli | G82: 21860 | H82: State Bank Of India (SBI), Nellore | I82: 10555653 | J82: K.V.Sai Sujith | K82: VIII | L82: 2010-2011 | M82: Rathnam High School, Nelore | N82: 1000 | O82: XXXXXXXXXX | P82: Inter-I | Q82: 2010-2011 | R82: Abdul Kalam Jr Coolege | S82: 1000 | T82: =IF(ISNA(VLOOKUP(H82,Info!$J$2:$K$16,2,FALSE)),"",VLOOKUP(H82,Info!$J$2:$K$16,2,FALSE)) -> 0887 | U82: 2000
A83: K.V.RAVANAMMA ( 0807541 ) | B83: 0807541 | C83: K.V.RAVANAMMA | D83: SA (English) | E83: 15280-40510 | F83: MPUPS, Dasaripalli | G83: 21860 | H83: State Bank Of India (SBI), Nellore | I83: 10555653 | J83: K.V.Sai Sujith | K83: VIII | L83: 2010-2011 | M83: Rathnam High School, Nelore | N83: 1000 | O83: XXXXXXXXXX | P83: Inter-I | Q83: 2010-2011 | R83: Abdul Kalam Jr Coolege | S83: 1000 | T83: =IF(ISNA(VLOOKUP(H83,Info!$J$2:$K$16,2,FALSE)),"",VLOOKUP(H83,Info!$J$2:$K$16,2,FALSE)) -> 0887 | U83: 2000
A84: K.V.RAVANAMMA ( 0807541 ) | B84: 0807541 | C84: K.V.RAVANAMMA | D84: SA (English) | E84: 15280-40510 | F84: MPUPS, Dasaripalli | G84: 21860 | H84: State Bank Of India (SBI), Nellore | I84: 10555653 | J84: K.V.Sai Sujith | K84: VIII | L84: 2010-2011 | M84: Rathnam High School, Nelore | N84: 1000 | O84: XXXXXXXXXX | P84: Inter-I | Q84: 2010-2011 | R84: Abdul Kalam Jr Coolege | S84: 1000 | T84: =IF(ISNA(VLOOKUP(H84,Info!$J$2:$K$16,2,FALSE)),"",VLOOKUP(H84,Info!$J$2:$K$16,2,FALSE)) -> 0887 | U84: 2000
A85: K.V.RAVANAMMA ( 0807541 ) | B85: 0807541 | C85: K.V.RAVANAMMA | D85: SA (English) | E85: 15280-40510 | F85: MPUPS, Dasaripalli | G85: 21860 | H85: State Bank Of India (SBI), Nellore | I85: 10555653 | J85: K.V.Sai Sujith | K85: VIII | L85: 2010-2011 | M85: Rathnam High School, Nelore | N85: 1000 | O85: XXXXXXXXXX | P85: Inter-I | Q85: 2010-2011 | R85: Abdul Kalam Jr Coolege | S85: 1000 | T85: =IF(ISNA(VLOOKUP(H85,Info!$J$2:$K$16,2,FALSE)),"",VLOOKUP(H85,Info!$J$2:$K$16,2,FALSE)) -> 0887 | U85: 2000
A86: K.V.RAVANAMMA ( 0807541 ) | B86: 0807541 | C86: K.V.RAVANAMMA | D86: SA (English) | E86: 15280-40510 | F86: MPUPS, Dasaripalli | G86: 21860 | H86: State Bank Of India (SBI), Nellore | I86: 10555653 | J86: K.V.Sai Sujith | K86: VIII | L86: 2010-2011 | M86: Rathnam High School, Nelore | N86: 1000 | O86: XXXXXXXXXX | P86: Inter-I | Q86: 2010-2011 | R86: Abdul Kalam Jr Coolege | S86: 1000 | T86: =IF(ISNA(VLOOKUP(H86,Info!$J$2:$K$16,2,FALSE)),"",VLOOKUP(H86,Info!$J$2:$K$16,2,FALSE)) -> 0887 | U86: 2000
A87: K.V.RAVANAMMA ( 0807541 ) | B87: 0807541 | C87: K.V.RAVANAMMA | D87: SA (English) | E87: 15280-40510 | F87: MPUPS, Dasaripalli | G87: 21860 | H87: State Bank Of India (SBI), Nellore | I87: 10555653 | J87: K.V.Sai Sujith | K87: VIII | L87: 2010-2011 | M87: Rathnam High School, Nelore | N87: 1000 | O87: XXXXXXXXXX | P87: Inter-I | Q87: 2010-2011 | R87: Abdul Kalam Jr Coolege | S87: 1000 | T87: =IF(ISNA(VLOOKUP(H87,Info!$J$2:$K$16,2,FALSE)),"",VLOOKUP(H87,Info!$J$2:$K$16,2,FALSE)) -> 0887 | U87: 2000
A88: K.V.RAVANAMMA ( 0807541 ) | B88: 0807541 | C88: K.V.RAVANAMMA | D88: SA (English) | E88: 15280-40510 | F88: MPUPS, Dasaripalli | G88: 21860 | H88: State Bank Of India (SBI), Nellore | I88: 10555653 | J88: K.V.Sai Sujith | K88: VIII | L88: 2010-2011 | M88: Rathnam High School, Nelore | N88: 1000 | O88: XXXXXXXXXX | P88: Inter-I | Q88: 2010-2011 | R88: Abdul Kalam Jr Coolege | S88: 1000 | T88: =IF(ISNA(VLOOKUP(H88,Info!$J$2:$K$16,2,FALSE)),"",VLOOKUP(H88,Info!$J$2:$K$16,2,FALSE)) -> 0887 | U88: 2000
A89: K.V.RAVANAMMA ( 0807541 ) | B89: 0807541 | C89: K.V.RAVANAMMA | D89: SA (English) | E89: 15280-40510 | F89: MPUPS, Dasaripalli | G89: 21860 | H89: State Bank Of India (SBI), Nellore | I89: 10555653 | J89: K.V.Sai Sujith | K89: VIII | L89: 2010-2011 | M89: Rathnam High School, Nelore | N89: 1000 | O89: XXXXXXXXXX | P89: Inter-I | Q89: 2010-2011 | R89: Abdul Kalam Jr Coolege | S89: 1000 | T89: =IF(ISNA(VLOOKUP(H89,Info!$J$2:$K$16,2,FALSE)),"",VLOOKUP(H89,Info!$J$2:$K$16,2,FALSE)) -> 0887 | U89: 2000
A90: K.V.RAVANAMMA ( 0807541 ) | B90: 0807541 | C90: K.V.RAVANAMMA | D90: SA (English) | E90: 15280-40510 | F90: MPUPS, Dasaripalli | G90: 21860 | H90: State Bank Of India (SBI), Nellore | I90: 10555653 | J90: K.V.Sai Sujith | K90: VIII | L90: 2010-2011 | M90: Rathnam High School, Nelore | N90: 1000 | O90: XXXXXXXXXX | P90: Inter-I | Q90: 2010-2011 | R90: Abdul Kalam Jr Coolege | S90: 1000 | T90: =IF(ISNA(VLOOKUP(H90,Info!$J$2:$K$16,2,FALSE)),"",VLOOKUP(H90,Info!$J$2:$K$16,2,FALSE)) -> 0887 | U90: 2000
A91: K.V.RAVANAMMA ( 0807541 ) | B91: 0807541 | C91: K.V.RAVANAMMA | D91: SA (English) | E91: 15280-40510 | F91: MPUPS, Dasaripalli | G91: 21860 | H91: State Bank Of India (SBI), Nellore | I91: 10555653 | J91: K.V.Sai Sujith | K91: VIII | L91: 2010-2011 | M91: Rathnam High School, Nelore | N91: 1000 | O91: XXXXXXXXXX | P91: Inter-I | Q91: 2010-2011 | R91: Abdul Kalam Jr Coolege | S91: 1000 | T91: =IF(ISNA(VLOOKUP(H91,Info!$J$2:$K$16,2,FALSE)),"",VLOOKUP(H91,Info!$J$2:$K$16,2,FALSE)) -> 0887 | U91: 2000
A92: K.V.RAVANAMMA ( 0807541 ) | B92: 0807541 | C92: K.V.RAVANAMMA | D92: SA (English) | E92: 15280-40510 | F92: MPUPS, Dasaripalli | G92: 21860 | H92: State Bank Of India (SBI), Nellore | I92: 10555653 | J92: K.V.Sai Sujith | K92: VIII | L92: 2010-2011 | M92: Rathnam High School, Nelore | N92: 1000 | O92: XXXXXXXXXX | P92: Inter-I | Q92: 2010-2011 | R92: Abdul Kalam Jr Coolege | S92: 1000 | T92: =IF(ISNA(VLOOKUP(H92,Info!$J$2:$K$16,2,FALSE)),"",VLOOKUP(H92,Info!$J$2:$K$16,2,FALSE)) -> 0887 | U92: 2000
A93: K.V.RAVANAMMA ( 0807541 ) | B93: 0807541 | C93: K.V.RAVANAMMA | D93: SA (English) | E93: 15280-40510 | F93: MPUPS, Dasaripalli | G93: 21860 | H93: State Bank Of India (SBI), Nellore | I93: 10555653 | J93: K.V.Sai Sujith | K93: VIII | L93: 2010-2011 | M93: Rathnam High School, Nelore | N93: 1000 | O93: XXXXXXXXXX | P93: Inter-I | Q93: 2010-2011 | R93: Abdul Kalam Jr Coolege | S93: 1000 | T93: =IF(ISNA(VLOOKUP(H93,Info!$J$2:$K$16,2,FALSE)),"",VLOOKUP(H93,Info!$J$2:$K$16,2,FALSE)) -> 0887 | U93: 2000
A94: K.V.RAVANAMMA ( 0807541 ) | B94: 0807541 | C94: K.V.RAVANAMMA | D94: SA (English) | E94: 15280-40510 | F94: MPUPS, Dasaripalli | G94: 21860 | H94: State Bank Of India (SBI), Nellore | I94: 10555653 | J94: K.V.Sai Sujith | K94: VIII | L94: 2010-2011 | M94: Rathnam High School, Nelore | N94: 1000 | O94: XXXXXXXXXX | P94: Inter-I | Q94: 2010-2011 | R94: Abdul Kalam Jr Coolege | S94: 1000 | T94: =IF(ISNA(VLOOKUP(H94,Info!$J$2:$K$16,2,FALSE)),"",VLOOKUP(H94,Info!$J$2:$K$16,2,FALSE)) -> 0887 | U94: 2000
A95: K.V.RAVANAMMA ( 0807541 ) | B95: 0807541 | C95: K.V.RAVANAMMA | D95: SA (English) | E95: 15280-40510 | F95: MPUPS, Dasaripalli | G95: 21860 | H95: State Bank Of India (SBI), Nellore | I95: 10555653 | J95: K.V.Sai Sujith | K95: VIII | L95: 2010-2011 | M95: Rathnam High School, Nelore | N95: 1000 | O95: XXXXXXXXXX | P95: Inter-I | Q95: 2010-2011 | R95: Abdul Kalam Jr Coolege | S95: 1000 | T95: =IF(ISNA(VLOOKUP(H95,Info!$J$2:$K$16,2,FALSE)),"",VLOOKUP(H95,Info!$J$2:$K$16,2,FALSE)) -> 0887 | U95: 2000
A96: K.V.RAVANAMMA ( 0807541 ) | B96: 0807541 | C96: K.V.RAVANAMMA | D96: SA (English) | E96: 15280-40510 | F96: MPUPS, Dasaripalli | G96: 21860 | H96: State Bank Of India (SBI), Nellore | I96: 10555653 | J96: K.V.Sai Sujith | K96: VIII | L96: 2010-2011 | M96: Rathnam High School, Nelore | N96: 1000 | O96: XXXXXXXXXX | P96: Inter-I | Q96: 2010-2011 | R96: Abdul Kalam Jr Coolege | S96: 1000 | T96: =IF(ISNA(VLOOKUP(H96,Info!$J$2:$K$16,2,FALSE)),"",VLOOKUP(H96,Info!$J$2:$K$16,2,FALSE)) -> 0887 | U96: 2000
A97: K.V.RAVANAMMA ( 0807541 ) | B97: 0807541 | C97: K.V.RAVANAMMA | D97: SA (English) | E97: 15280-40510 | F97: MPUPS, Dasaripalli | G97: 21860 | H97: State Bank Of India (SBI), Nellore | I97: 10555653 | J97: K.V.Sai Sujith | K97: VIII | L97: 2010-2011 | M97: Rathnam High School, Nelore | N97: 1000 | O97: XXXXXXXXXX | P97: Inter-I | Q97: 2010-2011 | R97: Abdul Kalam Jr Coolege | S97: 1000 | T97: =IF(ISNA(VLOOKUP(H97,Info!$J$2:$K$16,2,FALSE)),"",VLOOKUP(H97,Info!$J$2:$K$16,2,FALSE)) -> 0887 | U97: 2000
A98: K.V.RAVANAMMA ( 0807541 ) | B98: 0807541 | C98: K.V.RAVANAMMA | D98: SA (English) | E98: 15280-40510 | F98: MPUPS, Dasaripalli | G98: 21860 | H98: State Bank Of India (SBI), Nellore | I98: 10555653 | J98: K.V.Sai Sujith | K98: VIII | L98: 2010-2011 | M98: Rathnam High School, Nelore | N98: 1000 | O98: XXXXXXXXXX | P98: Inter-I | Q98: 2010-2011 | R98: Abdul Kalam Jr Coolege | S98: 1000 | T98: =IF(ISNA(VLOOKUP(H98,Info!$J$2:$K$16,2,FALSE)),"",VLOOKUP(H98,Info!$J$2:$K$16,2,FALSE)) -> 0887 | U98: 2000
A99: K.V.RAVANAMMA ( 0807541 ) | B99: 0807541 | C99: K.V.RAVANAMMA | D99: SA (English) | E99: 15280-40510 | F99: MPUPS, Dasaripalli | G99: 21860 | H99: State Bank Of India (SBI), Nellore | I99: 10555653 | J99: K.V.Sai Sujith | K99: VIII | L99: 2010-2011 | M99: Rathnam High School, Nelore | N99: 1000 | O99: XXXXXXXXXX | P99: Inter-I | Q99: 2010-2011 | R99: Abdul Kalam Jr Coolege | S99: 1000 | T99: =IF(ISNA(VLOOKUP(H99,Info!$J$2:$K$16,2,FALSE)),"",VLOOKUP(H99,Info!$J$2:$K$16,2,FALSE)) -> 0887 | U99: 2000
A100: K.V.RAVANAMMA ( 0807541 ) | B100: 0807541 | C100: K.V.RAVANAMMA | D100: SA (English) | E100: 15280-40510 | F100: MPUPS, Dasaripalli | G100: 21860 | H100: State Bank Of India (SBI), Nellore | I100: 10555653 | J100: K.V.Sai Sujith | K100: VIII | L100: 2010-2011 | M100: Rathnam High School, Nelore | N100: 1000 | O100: XXXXXXXXXX | P100: Inter-I | Q100: 2010-2011 | R100: Abdul Kalam Jr Coolege | S100: 1000 | T100: =IF(ISNA(VLOOKUP(H100,Info!$J$2:$K$16,2,FALSE)),"",VLOOKUP(H100,Info!$J$2:$K$16,2,FALSE)) -> 0887 | U100: 2000
A101: K.V.RAVANAMMA ( 0807541 ) | B101: 0807541 | C101: K.V.RAVANAMMA | D101: SA (English) | E101: 15280-40510 | F101: MPUPS, Dasaripalli | G101: 21860 | H101: State Bank Of India (SBI), Nellore | I101: 10555653 | J101: K.V.Sai Sujith | K101: VIII | L101: 2010-2011 | M101: Rathnam High School, Nelore | N101: 1000 | O101: XXXXXXXXXX | P101: Inter-I | Q101: 2010-2011 | R101: Abdul Kalam Jr Coolege | S101: 1000 | T101: =IF(ISNA(VLOOKUP(H101,Info!$J$2:$K$16,2,FALSE)),"",VLOOKUP(H101,Info!$J$2:$K$16,2,FALSE)) -> 0887 | U101: 2000
A102: K.V.RAVANAMMA ( 0807541 ) | B102: 0807541 | C102: K.V.RAVANAMMA | D102: SA (English) | E102: 15280-40510 | F102: MPUPS, Dasaripalli | G102: 21860 | H102: State Bank Of India (SBI), Nellore | I102: 10555653 | J102: K.V.Sai Sujith | K102: VIII | L102: 2010-2011 | M102: Rathnam High School, Nelore | N102: 1000 | O102: XXXXXXXXXX | P102: Inter-I | Q102: 2010-2011 | R102: Abdul Kalam Jr Coolege | S102: 1000 | T102: =IF(ISNA(VLOOKUP(H102,Info!$J$2:$K$16,2,FALSE)),"",VLOOKUP(H102,Info!$J$2:$K$16,2,FALSE)) -> 0887 | U102: 2000
A103: K.V.RAVANAMMA ( 0807541 ) | B103: 0807541 | C103: K.V.RAVANAMMA | D103: SA (English) | E103: 15280-40510 | F103: MPUPS, Dasaripalli | G103: 21860 | H103: State Bank Of India (SBI), Nellore | I103: 10555653 | J103: K.V.Sai Sujith | K103: VIII | L103: 2010-2011 | M103: Rathnam High School, Nelore | N103: 1000 | O103: XXXXXXXXXX | P103: Inter-I | Q103: 2010-2011 | R103: Abdul Kalam Jr Coolege | S103: 1000 | T103: =IF(ISNA(VLOOKUP(H103,Info!$J$2:$K$16,2,FALSE)),"",VLOOKUP(H103,Info!$J$2:$K$16,2,FALSE)) -> 0887 | U103: 2000
A104: K.V.RAVANAMMA ( 0807541 ) | B104: 0807541 | C104: K.V.RAVANAMMA | D104: SA (English) | E104: 15280-40510 | F104: MPUPS, Dasaripalli | G104: 21860 | H104: State Bank Of India (SBI), Nellore | I104: 10555653 | J104: K.V.Sai Sujith | K104: VIII | L104: 2010-2011 | M104: Rathnam High School, Nelore | N104: 1000 | O104: XXXXXXXXXX | P104: Inter-I | Q104: 2010-2011 | R104: Abdul Kalam Jr Coolege | S104: 1000 | T104: =IF(ISNA(VLOOKUP(H104,Info!$J$2:$K$16,2,FALSE)),"",VLOOKUP(H104,Info!$J$2:$K$16,2,FALSE)) -> 0887 | U104: 2000
A105: K.V.RAVANAMMA ( 0807541 ) | B105: 0807541 | C105: K.V.RAVANAMMA | D105: SA (English) | E105: 15280-40510 | F105: MPUPS, Dasaripalli | G105: 21860 | H105: State Bank Of India (SBI), Nellore | I105: 10555653 | J105: K.V.Sai Sujith | K105: VIII | L105: 2010-2011 | M105: Rathnam High School, Nelore | N105: 1000 | O105: XXXXXXXXXX | P105: Inter-I | Q105: 2010-2011 | R105: Abdul Kalam Jr Coolege | S105: 1000 | T105: =IF(ISNA(VLOOKUP(H105,Info!$J$2:$K$16,2,FALSE)),"",VLOOKUP(H105,Info!$J$2:$K$16,2,FALSE)) -> 0887 | U105: 2000
A106: K.V.RAVANAMMA ( 0807541 ) | B106: 0807541 | C106: K.V.RAVANAMMA | D106: SA (English) | E106: 15280-40510 | F106: MPUPS, Dasaripalli | G106: 21860 | H106: State Bank Of India (SBI), Nellore | I106: 10555653 | J106: K.V.Sai Sujith | K106: VIII | L106: 2010-2011 | M106: Rathnam High School, Nelore | N106: 1000 | O106: XXXXXXXXXX | P106: Inter-I | Q106: 2010-2011 | R106: Abdul Kalam Jr Coolege | S106: 1000 | T106: =IF(ISNA(VLOOKUP(H106,Info!$J$2:$K$16,2,FALSE)),"",VLOOKUP(H106,Info!$J$2:$K$16,2,FALSE)) -> 0887 | U106: 2000
A107: K.V.RAVANAMMA ( 0807541 ) | B107: 0807541 | C107: K.V.RAVANAMMA | D107: SA (English) | E107: 15280-40510 | F107: MPUPS, Dasaripalli | G107: 21860 | H107: State Bank Of India (SBI), Nellore | I107: 10555653 | J107: K.V.Sai Sujith | K107: VIII | L107: 2010-2011 | M107: Rathnam High School, Nelore | N107: 1000 | O107: XXXXXXXXXX | P107: Inter-I | Q107: 2010-2011 | R107: Abdul Kalam Jr Coolege | S107: 1000 | T107: =IF(ISNA(VLOOKUP(H107,Info!$J$2:$K$16,2,FALSE)),"",VLOOKUP(H107,Info!$J$2:$K$16,2,FALSE)) -> 0887 | U107: 2000
A108: K.V.RAVANAMMA ( 0807541 ) | B108: 0807541 | C108: K.V.RAVANAMMA | D108: SA (English) | E108: 15280-40510 | F108: MPUPS, Dasaripalli | G108: 21860 | H108: State Bank Of India (SBI), Nellore | I108: 10555653 | J108: K.V.Sai Sujith | K108: VIII | L108: 2010-2011 | M108: Rathnam High School, Nelore | N108: 1000 | O108: XXXXXXXXXX | P108: Inter-I | Q108: 2010-2011 | R108: Abdul Kalam Jr Coolege | S108: 1000 | T108: =IF(ISNA(VLOOKUP(H108,Info!$J$2:$K$16,2,FALSE)),"",VLOOKUP(H108,Info!$J$2:$K$16,2,FALSE)) -> 0887 | U108: 2000
A109: K.V.RAVANAMMA ( 0807541 ) | B109: 0807541 | C109: K.V.RAVANAMMA | D109: SA (English) | E109: 15280-40510 | F109: MPUPS, Dasaripalli | G109: 21860 | H109: State Bank Of India (SBI), Nellore | I109: 10555653 | J109: K.V.Sai Sujith | K109: VIII | L109: 2010-2011 | M109: Rathnam High School, Nelore | N109: 1000 | O109: XXXXXXXXXX | P109: Inter-I | Q109: 2010-2011 | R109: Abdul Kalam Jr Coolege | S109: 1000 | T109: =IF(ISNA(VLOOKUP(H109,Info!$J$2:$K$16,2,FALSE)),"",VLOOKUP(H109,Info!$J$2:$K$16,2,FALSE)) -> 0887 | U109: 2000
A110: K.V.RAVANAMMA ( 0807541 ) | B110: 0807541 | C110: K.V.RAVANAMMA | D110: SA (English) | E110: 15280-40510 | F110: MPUPS, Dasaripalli | G110: 21860 | H110: State Bank Of India (SBI), Nellore | I110: 10555653 | J110: K.V.Sai Sujith | K110: VIII | L110: 2010-2011 | M110: Rathnam High School, Nelore | N110: 1000 | O110: XXXXXXXXXX | P110: Inter-I | Q110: 2010-2011 | R110: Abdul Kalam Jr Coolege | S110: 1000 | T110: =IF(ISNA(VLOOKUP(H110,Info!$J$2:$K$16,2,FALSE)),"",VLOOKUP(H110,Info!$J$2:$K$16,2,FALSE)) -> 0887 | U110: 2000
A111: K.V.RAVANAMMA ( 0807541 ) | B111: 0807541 | C111: K.V.RAVANAMMA | D111: SA (English) | E111: 15280-40510 | F111: MPUPS, Dasaripalli | G111: 21860 | H111: State Bank Of India (SBI), Nellore | I111: 10555653 | J111: K.V.Sai Sujith | K111: VIII | L111: 2010-2011 | M111: Rathnam High School, Nelore | N111: 1000 | O111: XXXXXXXXXX | P111: Inter-I | Q111: 2010-2011 | R111: Abdul Kalam Jr Coolege | S111: 1000 | T111: =IF(ISNA(VLOOKUP(H111,Info!$J$2:$K$16,2,FALSE)),"",VLOOKUP(H111,Info!$J$2:$K$16,2,FALSE)) -> 0887 | U111: 2000
A112: K.V.RAVANAMMA ( 0807541 ) | B112: 0807541 | C112: K.V.RAVANAMMA | D112: SA (English) | E112: 15280-40510 | F112: MPUPS, Dasaripalli | G112: 21860 | H112: State Bank Of India (SBI), Nellore | I112: 10555653 | J112: K.V.Sai Sujith | K112: VIII | L112: 2010-2011 | M112: Rathnam High School, Nelore | N112: 1000 | O112: XXXXXXXXXX | P112: Inter-I | Q112: 2010-2011 | R112: Abdul Kalam Jr Coolege | S112: 1000 | T112: =IF(ISNA(VLOOKUP(H112,Info!$J$2:$K$16,2,FALSE)),"",VLOOKUP(H112,Info!$J$2:$K$16,2,FALSE)) -> 0887 | U112: 2000
A113: K.V.RAVANAMMA ( 0807541 ) | B113: 0807541 | C113: K.V.RAVANAMMA | D113: SA (English) | E113: 15280-40510 | F113: MPUPS, Dasaripalli | G113: 21860 | H113: State Bank Of India (SBI), Nellore | I113: 10555653 | J113: K.V.Sai Sujith | K113: VIII | L113: 2010-2011 | M113: Rathnam High School, Nelore | N113: 1000 | O113: XXXXXXXXXX | P113: Inter-I | Q113: 2010-2011 | R113: Abdul Kalam Jr Coolege | S113: 1000 | T113: =IF(ISNA(VLOOKUP(H113,Info!$J$2:$K$16,2,FALSE)),"",VLOOKUP(H113,Info!$J$2:$K$16,2,FALSE)) -> 0887 | U113: 2000
A114: K.V.RAVANAMMA ( 0807541 ) | B114: 0807541 | C114: K.V.RAVANAMMA | D114: SA (English) | E114: 15280-40510 | F114: MPUPS, Dasaripalli | G114: 21860 | H114: State Bank Of India (SBI), Nellore | I114: 10555653 | J114: K.V.Sai Sujith | K114: VIII | L114: 2010-2011 | M114: Rathnam High School, Nelore | N114: 1000 | O114: XXXXXXXXXX | P114: Inter-I | Q114: 2010-2011 | R114: Abdul Kalam Jr Coolege | S114: 1000 | T114: =IF(ISNA(VLOOKUP(H114,Info!$J$2:$K$16,2,FALSE)),"",VLOOKUP(H114,Info!$J$2:$K$16,2,FALSE)) -> 0887 | U114: 2000
A115: K.V.RAVANAMMA ( 0807541 ) | B115: 0807541 | C115: K.V.RAVANAMMA | D115: SA (English) | E115: 15280-40510 | F115: MPUPS, Dasaripalli | G115: 21860 | H115: State Bank Of India (SBI), Nellore | I115: 10555653 | J115: K.V.Sai Sujith | K115: VIII | L115: 2010-2011 | M115: Rathnam High School, Nelore | N115: 1000 | O115: XXXXXXXXXX | P115: Inter-I | Q115: 2010-2011 | R115: Abdul Kalam Jr Coolege | S115: 1000 | T115: =IF(ISNA(VLOOKUP(H115,Info!$J$2:$K$16,2,FALSE)),"",VLOOKUP(H115,Info!$J$2:$K$16,2,FALSE)) -> 0887 | U115: 2000
A116: K.V.RAVANAMMA ( 0807541 ) | B116: 0807541 | C116: K.V.RAVANAMMA | D116: SA (English) | E116: 15280-40510 | F116: MPUPS, Dasaripalli | G116: 21860 | H116: State Bank Of India (SBI), Nellore | I116: 10555653 | J116: K.V.Sai Sujith | K116: VIII | L116: 2010-2011 | M116: Rathnam High School, Nelore | N116: 1000 | O116: XXXXXXXXXX | P116: Inter-I | Q116: 2010-2011 | R116: Abdul Kalam Jr Coolege | S116: 1000 | T116: =IF(ISNA(VLOOKUP(H116,Info!$J$2:$K$16,2,FALSE)),"",VLOOKUP(H116,Info!$J$2:$K$16,2,FALSE)) -> 0887 | U116: 2000
A117: K.V.RAVANAMMA ( 0807541 ) | B117: 0807541 | C117: K.V.RAVANAMMA | D117: SA (English) | E117: 15280-40510 | F117: MPUPS, Dasaripalli | G117: 21860 | H117: State Bank Of India (SBI), Nellore | I117: 10555653 | J117: K.V.Sai Sujith | K117: VIII | L117: 2010-2011 | M117: Rathnam High School, Nelore | N117: 1000 | O117: XXXXXXXXXX | P117: Inter-I | Q117: 2010-2011 | R117: Abdul Kalam Jr Coolege | S117: 1000 | T117: =IF(ISNA(VLOOKUP(H117,Info!$J$2:$K$16,2,FALSE)),"",VLOOKUP(H117,Info!$J$2:$K$16,2,FALSE)) -> 0887 | U117: 2000
A118: K.V.RAVANAMMA ( 0807541 ) | B118: 0807541 | C118: K.V.RAVANAMMA | D118: SA (English) | E118: 15280-40510 | F118: MPUPS, Dasaripalli | G118: 21860 | H118: State Bank Of India (SBI), Nellore | I118: 10555653 | J118: K.V.Sai Sujith | K118: VIII | L118: 2010-2011 | M118: Rathnam High School, Nelore | N118: 1000 | O118: XXXXXXXXXX | P118: Inter-I | Q118: 2010-2011 | R118: Abdul Kalam Jr Coolege | S118: 1000 | T118: =IF(ISNA(VLOOKUP(H118,Info!$J$2:$K$16,2,FALSE)),"",VLOOKUP(H118,Info!$J$2:$K$16,2,FALSE)) -> 0887 | U118: 2000
A119: K.V.RAVANAMMA ( 0807541 ) | B119: 0807541 | C119: K.V.RAVANAMMA | D119: SA (English) | E119: 15280-40510 | F119: MPUPS, Dasaripalli | G119: 21860 | H119: State Bank Of India (SBI), Nellore | I119: 10555653 | J119: K.V.Sai Sujith | K119: VIII | L119: 2010-2011 | M119: Rathnam High School, Nelore | N119: 1000 | O119: XXXXXXXXXX | P119: Inter-I | Q119: 2010-2011 | R119: Abdul Kalam Jr Coolege | S119: 1000 | T119: =IF(ISNA(VLOOKUP(H119,Info!$J$2:$K$16,2,FALSE)),"",VLOOKUP(H119,Info!$J$2:$K$16,2,FALSE)) -> 0887 | U119: 2000
A120: K.V.RAVANAMMA ( 0807541 ) | B120: 0807541 | C120: K.V.RAVANAMMA | D120: SA (English) | E120: 15280-40510 | F120: MPUPS, Dasaripalli | G120: 21860 | H120: State Bank Of India (SBI), Nellore | I120: 10555653 | J120: K.V.Sai Sujith | K120: VIII | L120: 2010-2011 | M120: Rathnam High School, Nelore | N120: 1000 | O120: XXXXXXXXXX | P120: Inter-I | Q120: 2010-2011 | R120: Abdul Kalam Jr Coolege | S120: 1000 | T120: =IF(ISNA(VLOOKUP(H120,Info!$J$2:$K$16,2,FALSE)),"",VLOOKUP(H120,Info!$J$2:$K$16,2,FALSE)) -> 0887 | U120: 2000
A121: K.V.RAVANAMMA ( 0807541 ) | B121: 0807541 | C121: K.V.RAVANAMMA | D121: SA (English) | E121: 15280-40510 | F121: MPUPS, Dasaripalli | G121: 21860 | H121: State Bank Of India (SBI), Nellore | I121: 10555653 | J121: K.V.Sai Sujith | K121: VIII | L121: 2010-2011 | M121: Rathnam High School, Nelore | N121: 1000 | O121: XXXXXXXXXX | P121: Inter-I | Q121: 2010-2011 | R121: Abdul Kalam Jr Coolege | S121: 1000 | T121: =IF(ISNA(VLOOKUP(H121,Info!$J$2:$K$16,2,FALSE)),"",VLOOKUP(H121,Info!$J$2:$K$16,2,FALSE)) -> 0887 | U121: 2000
A122: K.V.RAVANAMMA ( 0807541 ) | B122: 0807541 | C122: K.V.RAVANAMMA | D122: SA (English) | E122: 15280-40510 | F122: MPUPS, Dasaripalli | G122: 21860 | H122: State Bank Of India (SBI), Nellore | I122: 10555653 | J122: K.V.Sai Sujith | K122: VIII | L122: 2010-2011 | M122: Rathnam High School, Nelore | N122: 1000 | O122: XXXXXXXXXX | P122: Inter-I | Q122: 2010-2011 | R122: Abdul Kalam Jr Coolege | S122: 1000 | T122: =IF(ISNA(VLOOKUP(H122,Info!$J$2:$K$16,2,FALSE)),"",VLOOKUP(H122,Info!$J$2:$K$16,2,FALSE)) -> 0887 | U122: 2000
A123: K.V.RAVANAMMA ( 0807541 ) | B123: 0807541 | C123: K.V.RAVANAMMA | D123: SA (English) | E123: 15280-40510 | F123: MPUPS, Dasaripalli | G123: 21860 | H123: State Bank Of India (SBI), Nellore | I123: 10555653 | J123: K.V.Sai Sujith | K123: VIII | L123: 2010-2011 | M123: Rathnam High School, Nelore | N123: 1000 | O123: XXXXXXXXXX | P123: Inter-I | Q123: 2010-2011 | R123: Abdul Kalam Jr Coolege | S123: 1000 | T123: =IF(ISNA(VLOOKUP(H123,Info!$J$2:$K$16,2,FALSE)),"",VLOOKUP(H123,Info!$J$2:$K$16,2,FALSE)) -> 0887 | U123: 2000
A124: K.V.RAVANAMMA ( 0807541 ) | B124: 0807541 | C124: K.V.RAVANAMMA | D124: SA (English) | E124: 15280-40510 | F124: MPUPS, Dasaripalli | G124: 21860 | H124: State Bank Of India (SBI), Nellore | I124: 10555653 | J124: K.V.Sai Sujith | K124: VIII | L124: 2010-2011 | M124: Rathnam High School, Nelore | N124: 1000 | O124: XXXXXXXXXX | P124: Inter-I | Q124: 2010-2011 | R124: Abdul Kalam Jr Coolege | S124: 1000 | T124: =IF(ISNA(VLOOKUP(H124,Info!$J$2:$K$16,2,FALSE)),"",VLOOKUP(H124,Info!$J$2:$K$16,2,FALSE)) -> 0887 | U124: 2000
A125: K.V.RAVANAMMA ( 0807541 ) | B125: 0807541 | C125: K.V.RAVANAMMA | D125: SA (English) | E125: 15280-40510 | F125: MPUPS, Dasaripalli | G125: 21860 | H125: State Bank Of India (SBI), Nellore | I125: 10555653 | J125: K.V.Sai Sujith | K125: VIII | L125: 2010-2011 | M125: Rathnam High School, Nelore | N125: 1000 | O125: XXXXXXXXXX | P125: Inter-I | Q125: 2010-2011 | R125: Abdul Kalam Jr Coolege | S125: 1000 | T125: =IF(ISNA(VLOOKUP(H125,Info!$J$2:$K$16,2,FALSE)),"",VLOOKUP(H125,Info!$J$2:$K$16,2,FALSE)) -> 0887 | U125: 2000
A126: K.V.RAVANAMMA ( 0807541 ) | B126: 0807541 | C126: K.V.RAVANAMMA | D126: SA (English) | E126: 15280-40510 | F126: MPUPS, Dasaripalli | G126: 21860 | H126: State Bank Of India (SBI), Nellore | I126: 10555653 | J126: K.V.Sai Sujith | K126: VIII | L126: 2010-2011 | M126: Rathnam High School, Nelore | N126: 1000 | O126: XXXXXXXXXX | P126: Inter-I | Q126: 2010-2011 | R126: Abdul Kalam Jr Coolege | S126: 1000 | T126: =IF(ISNA(VLOOKUP(H126,Info!$J$2:$K$16,2,FALSE)),"",VLOOKUP(H126,Info!$J$2:$K$16,2,FALSE)) -> 0887 | U126: 2000
A127: K.V.RAVANAMMA ( 0807541 ) | B127: 0807541 | C127: K.V.RAVANAMMA | D127: SA (English) | E127: 15280-40510 | F127: MPUPS, Dasaripalli | G127: 21860 | H127: State Bank Of India (SBI), Nellore | I127: 10555653 | J127: K.V.Sai Sujith | K127: VIII | L127: 2010-2011 | M127: Rathnam High School, Nelore | N127: 1000 | O127: XXXXXXXXXX | P127: Inter-I | Q127: 2010-2011 | R127: Abdul Kalam Jr Coolege | S127: 1000 | T127: =IF(ISNA(VLOOKUP(H127,Info!$J$2:$K$16,2,FALSE)),"",VLOOKUP(H127,Info!$J$2:$K$16,2,FALSE)) -> 0887 | U127: 2000
A128: K.V.RAVANAMMA ( 0807541 ) | B128: 0807541 | C128: K.V.RAVANAMMA | D128: SA (English) | E128: 15280-40510 | F128: MPUPS, Dasaripalli | G128: 21860 | H128: State Bank Of India (SBI), Nellore | I128: 10555653 | J128: K.V.Sai Sujith | K128: VIII | L128: 2010-2011 | M128: Rathnam High School, Nelore | N128: 1000 | O128: XXXXXXXXXX | P128: Inter-I | Q128: 2010-2011 | R128: Abdul Kalam Jr Coolege | S128: 1000 | T128: =IF(ISNA(VLOOKUP(H128,Info!$J$2:$K$16,2,FALSE)),"",VLOOKUP(H128,Info!$J$2:$K$16,2,FALSE)) -> 0887 | U128: 2000
A129: K.V.RAVANAMMA ( 0807541 ) | B129: 0807541 | C129: K.V.RAVANAMMA | D129: SA (English) | E129: 15280-40510 | F129: MPUPS, Dasaripalli | G129: 21860 | H129: State Bank Of India (SBI), Nellore | I129: 10555653 | J129: K.V.Sai Sujith | K129: VIII | L129: 2010-2011 | M129: Rathnam High School, Nelore | N129: 1000 | O129: XXXXXXXXXX | P129: Inter-I | Q129: 2010-2011 | R129: Abdul Kalam Jr Coolege | S129: 1000 | T129: =IF(ISNA(VLOOKUP(H129,Info!$J$2:$K$16,2,FALSE)),"",VLOOKUP(H129,Info!$J$2:$K$16,2,FALSE)) -> 0887 | U129: 2000
A130: K.V.RAVANAMMA ( 0807541 ) | B130: 0807541 | C130: K.V.RAVANAMMA | D130: SA (English) | E130: 15280-40510 | F130: MPUPS, Dasaripalli | G130: 21860 | H130: State Bank Of India (SBI), Nellore | I130: 10555653 | J130: K.V.Sai Sujith | K130: VIII | L130: 2010-2011 | M130: Rathnam High School, Nelore | N130: 1000 | O130: XXXXXXXXXX | P130: Inter-I | Q130: 2010-2011 | R130: Abdul Kalam Jr Coolege | S130: 1000 | T130: =IF(ISNA(VLOOKUP(H130,Info!$J$2:$K$16,2,FALSE)),"",VLOOKUP(H130,Info!$J$2:$K$16,2,FALSE)) -> 0887 | U130: 2000
A131: K.V.RAVANAMMA ( 0807541 ) | B131: 0807541 | C131: K.V.RAVANAMMA | D131: SA (English) | E131: 15280-40510 | F131: MPUPS, Dasaripalli | G131: 21860 | H131: State Bank Of India (SBI), Nellore | I131: 10555653 | J131: K.V.Sai Sujith | K131: VIII | L131: 2010-2011 | M131: Rathnam High School, Nelore | N131: 1000 | O131: XXXXXXXXXX | P131: Inter-I | Q131: 2010-2011 | R131: Abdul Kalam Jr Coolege | S131: 1000 | T131: =IF(ISNA(VLOOKUP(H131,Info!$J$2:$K$16,2,FALSE)),"",VLOOKUP(H131,Info!$J$2:$K$16,2,FALSE)) -> 0887 | U131: 2000
A132: K.V.RAVANAMMA ( 0807541 ) | B132: 0807541 | C132: K.V.RAVANAMMA | D132: SA (English) | E132: 15280-40510 | F132: MPUPS, Dasaripalli | G132: 21860 | H132: State Bank Of India (SBI), Nellore | I132: 10555653 | J132: K.V.Sai Sujith | K132: VIII | L132: 2010-2011 | M132: Rathnam High School, Nelore | N132: 1000 | O132: XXXXXXXXXX | P132: Inter-I | Q132: 2010-2011 | R132: Abdul Kalam Jr Coolege | S132: 1000 | T132: =IF(ISNA(VLOOKUP(H132,Info!$J$2:$K$16,2,FALSE)),"",VLOOKUP(H132,Info!$J$2:$K$16,2,FALSE)) -> 0887 | U132: 2000
A133: =CONCATENATE(C133," ( ",B133," )") -> K.V.RAVANAMMA ( 0807541 ) | B133: 0807541 | C133: K.V.RAVANAMMA | D133: SA (English) | E133: 15280-40510 | F133: MPUPS, Dasaripalli | G133: 21860 | H133: State Bank Of India (SBI), Nellore | I133: 10555653 | J133: K.V.Sai Sujith | K133: VIII | L133: 2010-2011 | M133: Rathnam High School, Nelore | N133: 1000 | O133: XXXXXXXXXX | P133: Inter-I | Q133: 2010-2011 | R133: Abdul Kalam Jr Coolege | S133: 1000 | T133: =IF(ISNA(VLOOKUP(H133,Info!$J$2:$K$16,2,FALSE)),"",VLOOKUP(H133,Info!$J$2:$K$16,2,FALSE)) -> 0887 | U133: =SUM(N133,S133) -> 2000
A134: K.V.RAVANAMMA ( 0807541 ) | B134: 0807541 | C134: K.V.RAVANAMMA | D134: SA (English) | E134: 15280-40510 | F134: MPUPS, Dasaripalli | G134: 21860 | H134: State Bank Of India (SBI), Nellore | I134: 10555653 | J134: K.V.Sai Sujith | K134: VIII | L134: 2010-2011 | M134: Rathnam High School, Nelore | N134: 1000 | O134: XXXXXXXXXX | P134: Inter-I | Q134: 2010-2011 | R134: Abdul Kalam Jr Coolege | S134: 1000 | T134: =IF(ISNA(VLOOKUP(H134,Info!$J$2:$K$16,2,FALSE)),"",VLOOKUP(H134,Info!$J$2:$K$16,2,FALSE)) -> 0887 | U134: 2000
A135: K.V.RAVANAMMA ( 0807541 ) | B135: 0807541 | C135: K.V.RAVANAMMA | D135: SA (English) | E135: 15280-40510 | F135: MPUPS, Dasaripalli | G135: 21860 | H135: State Bank Of India (SBI), Nellore | I135: 10555653 | J135: K.V.Sai Sujith | K135: VIII | L135: 2010-2011 | M135: Rathnam High School, Nelore | N135: 1000 | O135: XXXXXXXXXX | P135: Inter-I | Q135: 2010-2011 | R135: Abdul Kalam Jr Coolege | S135: 1000 | T135: =IF(ISNA(VLOOKUP(H135,Info!$J$2:$K$16,2,FALSE)),"",VLOOKUP(H135,Info!$J$2:$K$16,2,FALSE)) -> 0887 | U135: 2000
A136: K.V.RAVANAMMA ( 0807541 ) | B136: 0807541 | C136: K.V.RAVANAMMA | D136: SA (English) | E136: 15280-40510 | F136: MPUPS, Dasaripalli | G136: 21860 | H136: State Bank Of India (SBI), Nellore | I136: 10555653 | J136: K.V.Sai Sujith | K136: VIII | L136: 2010-2011 | M136: Rathnam High School, Nelore | N136: 1000 | O136: XXXXXXXXXX | P136: Inter-I | Q136: 2010-2011 | R136: Abdul Kalam Jr Coolege | S136: 1000 | T136: =IF(ISNA(VLOOKUP(H136,Info!$J$2:$K$16,2,FALSE)),"",VLOOKUP(H136,Info!$J$2:$K$16,2,FALSE)) -> 0887 | U136: 2000
A137: K.V.RAVANAMMA ( 0807541 ) | B137: 0807541 | C137: K.V.RAVANAMMA | D137: SA (English) | E137: 15280-40510 | F137: MPUPS, Dasaripalli | G137: 21860 | H137: State Bank Of India (SBI), Nellore | I137: 10555653 | J137: K.V.Sai Sujith | K137: VIII | L137: 2010-2011 | M137: Rathnam High School, Nelore | N137: 1000 | O137: XXXXXXXXXX | P137: Inter-I | Q137: 2010-2011 | R137: Abdul Kalam Jr Coolege | S137: 1000 | T137: =IF(ISNA(VLOOKUP(H137,Info!$J$2:$K$16,2,FALSE)),"",VLOOKUP(H137,Info!$J$2:$K$16,2,FALSE)) -> 0887 | U137: 2000
A138: K.V.RAVANAMMA ( 0807541 ) | B138: 0807541 | C138: K.V.RAVANAMMA | D138: SA (English) | E138: 15280-40510 | F138: MPUPS, Dasaripalli | G138: 21860 | H138: State Bank Of India (SBI), Nellore | I138: 10555653 | J138: K.V.Sai Sujith | K138: VIII | L138: 2010-2011 | M138: Rathnam High School, Nelore | N138: 1000 | O138: XXXXXXXXXX | P138: Inter-I | Q138: 2010-2011 | R138: Abdul Kalam Jr Coolege | S138: 1000 | T138: =IF(ISNA(VLOOKUP(H138,Info!$J$2:$K$16,2,FALSE)),"",VLOOKUP(H138,Info!$J$2:$K$16,2,FALSE)) -> 0887 | U138: 2000
A139: K.V.RAVANAMMA ( 0807541 ) | B139: 0807541 | C139: K.V.RAVANAMMA | D139: SA (English) | E139: 15280-40510 | F139: MPUPS, Dasaripalli | G139: 21860 | H139: State Bank Of India (SBI), Nellore | I139: 10555653 | J139: K.V.Sai Sujith | K139: VIII | L139: 2010-2011 | M139: Rathnam High School, Nelore | N139: 1000 | O139: XXXXXXXXXX | P139: Inter-I | Q139: 2010-2011 | R139: Abdul Kalam Jr Coolege | S139: 1000 | T139: =IF(ISNA(VLOOKUP(H139,Info!$J$2:$K$16,2,FALSE)),"",VLOOKUP(H139,Info!$J$2:$K$16,2,FALSE)) -> 0887 | U139: 2000
A140: K.V.RAVANAMMA ( 0807541 ) | B140: 0807541 | C140: K.V.RAVANAMMA | D140: SA (English) | E140: 15280-40510 | F140: MPUPS, Dasaripalli | G140: 21860 | H140: State Bank Of India (SBI), Nellore | I140: 10555653 | J140: K.V.Sai Sujith | K140: VIII | L140: 2010-2011 | M140: Rathnam High School, Nelore | N140: 1000 | O140: XXXXXXXXXX | P140: Inter-I | Q140: 2010-2011 | R140: Abdul Kalam Jr Coolege | S140: 1000 | T140: =IF(ISNA(VLOOKUP(H140,Info!$J$2:$K$16,2,FALSE)),"",VLOOKUP(H140,Info!$J$2:$K$16,2,FALSE)) -> 0887 | U140: 2000
A141: K.V.RAVANAMMA ( 0807541 ) | B141: 0807541 | C141: K.V.RAVANAMMA | D141: SA (English) | E141: 15280-40510 | F141: MPUPS, Dasaripalli | G141: 21860 | H141: State Bank Of India (SBI), Nellore | I141: 10555653 | J141: K.V.Sai Sujith | K141: VIII | L141: 2010-2011 | M141: Rathnam High School, Nelore | N141: 1000 | O141: XXXXXXXXXX | P141: Inter-I | Q141: 2010-2011 | R141: Abdul Kalam Jr Coolege | S141: 1000 | T141: =IF(ISNA(VLOOKUP(H141,Info!$J$2:$K$16,2,FALSE)),"",VLOOKUP(H141,Info!$J$2:$K$16,2,FALSE)) -> 0887 | U141: 2000
A142: K.V.RAVANAMMA ( 0807541 ) | B142: 0807541 | C142: K.V.RAVANAMMA | D142: SA (English) | E142: 15280-40510 | F142: MPUPS, Dasaripalli | G142: 21860 | H142: State Bank Of India (SBI), Nellore | I142: 10555653 | J142: K.V.Sai Sujith | K142: VIII | L142: 2010-2011 | M142: Rathnam High School, Nelore | N142: 1000 | O142: XXXXXXXXXX | P142: Inter-I | Q142: 2010-2011 | R142: Abdul Kalam Jr Coolege | S142: 1000 | T142: =IF(ISNA(VLOOKUP(H142,Info!$J$2:$K$16,2,FALSE)),"",VLOOKUP(H142,Info!$J$2:$K$16,2,FALSE)) -> 0887 | U142: 2000
A143: K.V.RAVANAMMA ( 0807541 ) | B143: 0807541 | C143: K.V.RAVANAMMA | D143: SA (English) | E143: 15280-40510 | F143: MPUPS, Dasaripalli | G143: 21860 | H143: State Bank Of India (SBI), Nellore | I143: 10555653 | J143: K.V.Sai Sujith | K143: VIII | L143: 2010-2011 | M143: Rathnam High School, Nelore | N143: 1000 | O143: XXXXXXXXXX | P143: Inter-I | Q143: 2010-2011 | R143: Abdul Kalam Jr Coolege | S143: 1000 | T143: =IF(ISNA(VLOOKUP(H143,Info!$J$2:$K$16,2,FALSE)),"",VLOOKUP(H143,Info!$J$2:$K$16,2,FALSE)) -> 0887 | U143: 2000
A144: K.V.RAVANAMMA ( 0807541 ) | B144: 0807541 | C144: K.V.RAVANAMMA | D144: SA (English) | E144: 15280-40510 | F144: MPUPS, Dasaripalli | G144: 21860 | H144: State Bank Of India (SBI), Nellore | I144: 10555653 | J144: K.V.Sai Sujith | K144: VIII | L144: 2010-2011 | M144: Rathnam High School, Nelore | N144: 1000 | O144: XXXXXXXXXX | P144: Inter-I | Q144: 2010-2011 | R144: Abdul Kalam Jr Coolege | S144: 1000 | T144: =IF(ISNA(VLOOKUP(H144,Info!$J$2:$K$16,2,FALSE)),"",VLOOKUP(H144,Info!$J$2:$K$16,2,FALSE)) -> 0887 | U144: 2000
A145: K.V.RAVANAMMA ( 0807541 ) | B145: 0807541 | C145: K.V.RAVANAMMA | D145: SA (English) | E145: 15280-40510 | F145: MPUPS, Dasaripalli | G145: 21860 | H145: State Bank Of India (SBI), Nellore | I145: 10555653 | J145: K.V.Sai Sujith | K145: VIII | L145: 2010-2011 | M145: Rathnam High School, Nelore | N145: 1000 | O145: XXXXXXXXXX | P145: Inter-I | Q145: 2010-2011 | R145: Abdul Kalam Jr Coolege | S145: 1000 | T145: =IF(ISNA(VLOOKUP(H145,Info!$J$2:$K$16,2,FALSE)),"",VLOOKUP(H145,Info!$J$2:$K$16,2,FALSE)) -> 0887 | U145: 2000
A146: K.V.RAVANAMMA ( 0807541 ) | B146: 0807541 | C146: K.V.RAVANAMMA | D146: SA (English) | E146: 15280-40510 | F146: MPUPS, Dasaripalli | G146: 21860 | H146: State Bank Of India (SBI), Nellore | I146: 10555653 | J146: K.V.Sai Sujith | K146: VIII | L146: 2010-2011 | M146: Rathnam High School, Nelore | N146: 1000 | O146: XXXXXXXXXX | P146: Inter-I | Q146: 2010-2011 | R146: Abdul Kalam Jr Coolege | S146: 1000 | T146: =IF(ISNA(VLOOKUP(H146,Info!$J$2:$K$16,2,FALSE)),"",VLOOKUP(H146,Info!$J$2:$K$16,2,FALSE)) -> 0887 | U146: 2000
A147: K.V.RAVANAMMA ( 0807541 ) | B147: 0807541 | C147: K.V.RAVANAMMA | D147: SA (English) | E147: 15280-40510 | F147: MPUPS, Dasaripalli | G147: 21860 | H147: State Bank Of India (SBI), Nellore | I147: 10555653 | J147: K.V.Sai Sujith | K147: VIII | L147: 2010-2011 | M147: Rathnam High School, Nelore | N147: 1000 | O147: XXXXXXXXXX | P147: Inter-I | Q147: 2010-2011 | R147: Abdul Kalam Jr Coolege | S147: 1000 | T147: =IF(ISNA(VLOOKUP(H147,Info!$J$2:$K$16,2,FALSE)),"",VLOOKUP(H147,Info!$J$2:$K$16,2,FALSE)) -> 0887 | U147: 2000
A148: K.V.RAVANAMMA ( 0807541 ) | B148: 0807541 | C148: K.V.RAVANAMMA | D148: SA (English) | E148: 15280-40510 | F148: MPUPS, Dasaripalli | G148: 21860 | H148: State Bank Of India (SBI), Nellore | I148: 10555653 | J148: K.V.Sai Sujith | K148: VIII | L148: 2010-2011 | M148: Rathnam High School, Nelore | N148: 1000 | O148: XXXXXXXXXX | P148: Inter-I | Q148: 2010-2011 | R148: Abdul Kalam Jr Coolege | S148: 1000 | T148: =IF(ISNA(VLOOKUP(H148,Info!$J$2:$K$16,2,FALSE)),"",VLOOKUP(H148,Info!$J$2:$K$16,2,FALSE)) -> 0887 | U148: 2000
A149: K.V.RAVANAMMA ( 0807541 ) | B149: 0807541 | C149: K.V.RAVANAMMA | D149: SA (English) | E149: 15280-40510 | F149: MPUPS, Dasaripalli | G149: 21860 | H149: State Bank Of India (SBI), Nellore | I149: 10555653 | J149: K.V.Sai Sujith | K149: VIII | L149: 2010-2011 | M149: Rathnam High School, Nelore | N149: 1000 | O149: XXXXXXXXXX | P149: Inter-I | Q149: 2010-2011 | R149: Abdul Kalam Jr Coolege | S149: 1000 | T149: =IF(ISNA(VLOOKUP(H149,Info!$J$2:$K$16,2,FALSE)),"",VLOOKUP(H149,Info!$J$2:$K$16,2,FALSE)) -> 0887 | U149: 2000
A150: K.V.RAVANAMMA ( 0807541 ) | B150: 0807541 | C150: K.V.RAVANAMMA | D150: SA (English) | E150: 15280-40510 | F150: MPUPS, Dasaripalli | G150: 21860 | H150: State Bank Of India (SBI), Nellore | I150: 10555653 | J150: K.V.Sai Sujith | K150: VIII | L150: 2010-2011 | M150: Rathnam High School, Nelore | N150: 1000 | O150: XXXXXXXXXX | P150: Inter-I | Q150: 2010-2011 | R150: Abdul Kalam Jr Coolege | S150: 1000 | T150: =IF(ISNA(VLOOKUP(H150,Info!$J$2:$K$16,2,FALSE)),"",VLOOKUP(H150,Info!$J$2:$K$16,2,FALSE)) -> 0887 | U150: 2000
A151: K.V.RAVANAMMA ( 0807541 ) | B151: 0807541 | C151: K.V.RAVANAMMA | D151: SA (English) | E151: 15280-40510 | F151: MPUPS, Dasaripalli | G151: 21860 | H151: State Bank Of India (SBI), Nellore | I151: 10555653 | J151: K.V.Sai Sujith | K151: VIII | L151: 2010-2011 | M151: Rathnam High School, Nelore | N151: 1000 | O151: XXXXXXXXXX | P151: Inter-I | Q151: 2010-2011 | R151: Abdul Kalam Jr Coolege | S151: 1000 | T151: =IF(ISNA(VLOOKUP(H151,Info!$J$2:$K$16,2,FALSE)),"",VLOOKUP(H151,Info!$J$2:$K$16,2,FALSE)) -> 0887 | U151: 2000
A152: K.V.RAVANAMMA ( 0807541 ) | B152: 0807541 | C152: K.V.RAVANAMMA | D152: SA (English) | E152: 15280-40510 | F152: MPUPS, Dasaripalli | G152: 21860 | H152: State Bank Of India (SBI), Nellore | I152: 10555653 | J152: K.V.Sai Sujith | K152: VIII | L152: 2010-2011 | M152: Rathnam High School, Nelore | N152: 1000 | O152: XXXXXXXXXX | P152: Inter-I | Q152: 2010-2011 | R152: Abdul Kalam Jr Coolege | S152: 1000 | T152: =IF(ISNA(VLOOKUP(H152,Info!$J$2:$K$16,2,FALSE)),"",VLOOKUP(H152,Info!$J$2:$K$16,2,FALSE)) -> 0887 | U152: 2000
A153: K.V.RAVANAMMA ( 0807541 ) | B153: 0807541 | C153: K.V.RAVANAMMA | D153: SA (English) | E153: 15280-40510 | F153: MPUPS, Dasaripalli | G153: 21860 | H153: State Bank Of India (SBI), Nellore | I153: 10555653 | J153: K.V.Sai Sujith | K153: VIII | L153: 2010-2011 | M153: Rathnam High School, Nelore | N153: 1000 | O153: XXXXXXXXXX | P153: Inter-I | Q153: 2010-2011 | R153: Abdul Kalam Jr Coolege | S153: 1000 | T153: =IF(ISNA(VLOOKUP(H153,Info!$J$2:$K$16,2,FALSE)),"",VLOOKUP(H153,Info!$J$2:$K$16,2,FALSE)) -> 0887 | U153: 2000
A154: K.V.RAVANAMMA ( 0807541 ) | B154: 0807541 | C154: K.V.RAVANAMMA | D154: SA (English) | E154: 15280-40510 | F154: MPUPS, Dasaripalli | G154: 21860 | H154: State Bank Of India (SBI), Nellore | I154: 10555653 | J154: K.V.Sai Sujith | K154: VIII | L154: 2010-2011 | M154: Rathnam High School, Nelore | N154: 1000 | O154: XXXXXXXXXX | P154: Inter-I | Q154: 2010-2011 | R154: Abdul Kalam Jr Coolege | S154: 1000 | T154: =IF(ISNA(VLOOKUP(H154,Info!$J$2:$K$16,2,FALSE)),"",VLOOKUP(H154,Info!$J$2:$K$16,2,FALSE)) -> 0887 | U154: 2000
A155: K.V.RAVANAMMA ( 0807541 ) | B155: 0807541 | C155: K.V.RAVANAMMA | D155: SA (English) | E155: 15280-40510 | F155: MPUPS, Dasaripalli | G155: 21860 | H155: State Bank Of India (SBI), Nellore | I155: 10555653 | J155: K.V.Sai Sujith | K155: VIII | L155: 2010-2011 | M155: Rathnam High School, Nelore | N155: 1000 | O155: XXXXXXXXXX | P155: Inter-I | Q155: 2010-2011 | R155: Abdul Kalam Jr Coolege | S155: 1000 | T155: =IF(ISNA(VLOOKUP(H155,Info!$J$2:$K$16,2,FALSE)),"",VLOOKUP(H155,Info!$J$2:$K$16,2,FALSE)) -> 0887 | U155: 2000
A156: K.V.RAVANAMMA ( 0807541 ) | B156: 0807541 | C156: K.V.RAVANAMMA | D156: SA (English) | E156: 15280-40510 | F156: MPUPS, Dasaripalli | G156: 21860 | H156: State Bank Of India (SBI), Nellore | I156: 10555653 | J156: K.V.Sai Sujith | K156: VIII | L156: 2010-2011 | M156: Rathnam High School, Nelore | N156: 1000 | O156: XXXXXXXXXX | P156: Inter-I | Q156: 2010-2011 | R156: Abdul Kalam Jr Coolege | S156: 1000 | T156: =IF(ISNA(VLOOKUP(H156,Info!$J$2:$K$16,2,FALSE)),"",VLOOKUP(H156,Info!$J$2:$K$16,2,FALSE)) -> 0887 | U156: 2000
A157: K.V.RAVANAMMA ( 0807541 ) | B157: 0807541 | C157: K.V.RAVANAMMA | D157: SA (English) | E157: 15280-40510 | F157: MPUPS, Dasaripalli | G157: 21860 | H157: State Bank Of India (SBI), Nellore | I157: 10555653 | J157: K.V.Sai Sujith | K157: VIII | L157: 2010-2011 | M157: Rathnam High School, Nelore | N157: 1000 | O157: XXXXXXXXXX | P157: Inter-I | Q157: 2010-2011 | R157: Abdul Kalam Jr Coolege | S157: 1000 | T157: =IF(ISNA(VLOOKUP(H157,Info!$J$2:$K$16,2,FALSE)),"",VLOOKUP(H157,Info!$J$2:$K$16,2,FALSE)) -> 0887 | U157: 2000
A158: K.V.RAVANAMMA ( 0807541 ) | B158: 0807541 | C158: K.V.RAVANAMMA | D158: SA (English) | E158: 15280-40510 | F158: MPUPS, Dasaripalli | G158: 21860 | H158: State Bank Of India (SBI), Nellore | I158: 10555653 | J158: K.V.Sai Sujith | K158: VIII | L158: 2010-2011 | M158: Rathnam High School, Nelore | N158: 1000 | O158: XXXXXXXXXX | P158: Inter-I | Q158: 2010-2011 | R158: Abdul Kalam Jr Coolege | S158: 1000 | T158: =IF(ISNA(VLOOKUP(H158,Info!$J$2:$K$16,2,FALSE)),"",VLOOKUP(H158,Info!$J$2:$K$16,2,FALSE)) -> 0887 | U158: 2000
A159: K.V.RAVANAMMA ( 0807541 ) | B159: 0807541 | C159: K.V.RAVANAMMA | D159: SA (English) | E159: 15280-40510 | F159: MPUPS, Dasaripalli | G159: 21860 | H159: State Bank Of India (SBI), Nellore | I159: 10555653 | J159: K.V.Sai Sujith | K159: VIII | L159: 2010-2011 | M159: Rathnam High School, Nelore | N159: 1000 | O159: XXXXXXXXXX | P159: Inter-I | Q159: 2010-2011 | R159: Abdul Kalam Jr Coolege | S159: 1000 | T159: =IF(ISNA(VLOOKUP(H159,Info!$J$2:$K$16,2,FALSE)),"",VLOOKUP(H159,Info!$J$2:$K$16,2,FALSE)) -> 0887 | U159: 2000
A160: K.V.RAVANAMMA ( 0807541 ) | B160: 0807541 | C160: K.V.RAVANAMMA | D160: SA (English) | E160: 15280-40510 | F160: MPUPS, Dasaripalli | G160: 21860 | H160: State Bank Of India (SBI), Nellore | I160: 10555653 | J160: K.V.Sai Sujith | K160: VIII | L160: 2010-2011 | M160: Rathnam High School, Nelore | N160: 1000 | O160: XXXXXXXXXX | P160: Inter-I | Q160: 2010-2011 | R160: Abdul Kalam Jr Coolege | S160: 1000 | T160: =IF(ISNA(VLOOKUP(H160,Info!$J$2:$K$16,2,FALSE)),"",VLOOKUP(H160,Info!$J$2:$K$16,2,FALSE)) -> 0887 | U160: 2000
A161: K.V.RAVANAMMA ( 0807541 ) | B161: 0807541 | C161: K.V.RAVANAMMA | D161: SA (English) | E161: 15280-40510 | F161: MPUPS, Dasaripalli | G161: 21860 | H161: State Bank Of India (SBI), Nellore | I161: 10555653 | J161: K.V.Sai Sujith | K161: VIII | L161: 2010-2011 | M161: Rathnam High School, Nelore | N161: 1000 | O161: XXXXXXXXXX | P161: Inter-I | Q161: 2010-2011 | R161: Abdul Kalam Jr Coolege | S161: 1000 | T161: =IF(ISNA(VLOOKUP(H161,Info!$J$2:$K$16,2,FALSE)),"",VLOOKUP(H161,Info!$J$2:$K$16,2,FALSE)) -> 0887 | U161: 2000
A162: K.V.RAVANAMMA ( 0807541 ) | B162: 0807541 | C162: K.V.RAVANAMMA | D162: SA (English) | E162: 15280-40510 | F162: MPUPS, Dasaripalli | G162: 21860 | H162: State Bank Of India (SBI), Nellore | I162: 10555653 | J162: K.V.Sai Sujith | K162: VIII | L162: 2010-2011 | M162: Rathnam High School, Nelore | N162: 1000 | O162: XXXXXXXXXX | P162: Inter-I | Q162: 2010-2011 | R162: Abdul Kalam Jr Coolege | S162: 1000 | T162: =IF(ISNA(VLOOKUP(H162,Info!$J$2:$K$16,2,FALSE)),"",VLOOKUP(H162,Info!$J$2:$K$16,2,FALSE)) -> 0887 | U162: 2000
A163: K.V.RAVANAMMA ( 0807541 ) | B163: 0807541 | C163: K.V.RAVANAMMA | D163: SA (English) | E163: 15280-40510 | F163: MPUPS, Dasaripalli | G163: 21860 | H163: State Bank Of India (SBI), Nellore | I163: 10555653 | J163: K.V.Sai Sujith | K163: VIII | L163: 2010-2011 | M163: Rathnam High School, Nelore | N163: 1000 | O163: XXXXXXXXXX | P163: Inter-I | Q163: 2010-2011 | R163: Abdul Kalam Jr Coolege | S163: 1000 | T163: =IF(ISNA(VLOOKUP(H163,Info!$J$2:$K$16,2,FALSE)),"",VLOOKUP(H163,Info!$J$2:$K$16,2,FALSE)) -> 0887 | U163: 2000
A164: K.V.RAVANAMMA ( 0807541 ) | B164: 0807541 | C164: K.V.RAVANAMMA | D164: SA (English) | E164: 15280-40510 | F164: MPUPS, Dasaripalli | G164: 21860 | H164: State Bank Of India (SBI), Nellore | I164: 10555653 | J164: K.V.Sai Sujith | K164: VIII | L164: 2010-2011 | M164: Rathnam High School, Nelore | N164: 1000 | O164: XXXXXXXXXX | P164: Inter-I | Q164: 2010-2011 | R164: Abdul Kalam Jr Coolege | S164: 1000 | T164: =IF(ISNA(VLOOKUP(H164,Info!$J$2:$K$16,2,FALSE)),"",VLOOKUP(H164,Info!$J$2:$K$16,2,FALSE)) -> 0887 | U164: 2000
A165: K.V.RAVANAMMA ( 0807541 ) | B165: 0807541 | C165: K.V.RAVANAMMA | D165: SA (English) | E165: 15280-40510 | F165: MPUPS, Dasaripalli | G165: 21860 | H165: State Bank Of India (SBI), Nellore | I165: 10555653 | J165: K.V.Sai Sujith | K165: VIII | L165: 2010-2011 | M165: Rathnam High School, Nelore | N165: 1000 | O165: XXXXXXXXXX | P165: Inter-I | Q165: 2010-2011 | R165: Abdul Kalam Jr Coolege | S165: 1000 | T165: =IF(ISNA(VLOOKUP(H165,Info!$J$2:$K$16,2,FALSE)),"",VLOOKUP(H165,Info!$J$2:$K$16,2,FALSE)) -> 0887 | U165: 2000
A166: K.V.RAVANAMMA ( 0807541 ) | B166: 0807541 | C166: K.V.RAVANAMMA | D166: SA (English) | E166: 15280-40510 | F166: MPUPS, Dasaripalli | G166: 21860 | H166: State Bank Of India (SBI), Nellore | I166: 10555653 | J166: K.V.Sai Sujith | K166: VIII | L166: 2010-2011 | M166: Rathnam High School, Nelore | N166: 1000 | O166: XXXXXXXXXX | P166: Inter-I | Q166: 2010-2011 | R166: Abdul Kalam Jr Coolege | S166: 1000 | T166: =IF(ISNA(VLOOKUP(H166,Info!$J$2:$K$16,2,FALSE)),"",VLOOKUP(H166,Info!$J$2:$K$16,2,FALSE)) -> 0887 | U166: 2000
A167: K.V.RAVANAMMA ( 0807541 ) | B167: 0807541 | C167: K.V.RAVANAMMA | D167: SA (English) | E167: 15280-40510 | F167: MPUPS, Dasaripalli | G167: 21860 | H167: State Bank Of India (SBI), Nellore | I167: 10555653 | J167: K.V.Sai Sujith | K167: VIII | L167: 2010-2011 | M167: Rathnam High School, Nelore | N167: 1000 | O167: XXXXXXXXXX | P167: Inter-I | Q167: 2010-2011 | R167: Abdul Kalam Jr Coolege | S167: 1000 | T167: =IF(ISNA(VLOOKUP(H167,Info!$J$2:$K$16,2,FALSE)),"",VLOOKUP(H167,Info!$J$2:$K$16,2,FALSE)) -> 0887 | U167: 2000
A168: K.V.RAVANAMMA ( 0807541 ) | B168: 0807541 | C168: K.V.RAVANAMMA | D168: SA (English) | E168: 15280-40510 | F168: MPUPS, Dasaripalli | G168: 21860 | H168: State Bank Of India (SBI), Nellore | I168: 10555653 | J168: K.V.Sai Sujith | K168: VIII | L168: 2010-2011 | M168: Rathnam High School, Nelore | N168: 1000 | O168: XXXXXXXXXX | P168: Inter-I | Q168: 2010-2011 | R168: Abdul Kalam Jr Coolege | S168: 1000 | T168: =IF(ISNA(VLOOKUP(H168,Info!$J$2:$K$16,2,FALSE)),"",VLOOKUP(H168,Info!$J$2:$K$16,2,FALSE)) -> 0887 | U168: 2000
A169: K.V.RAVANAMMA ( 0807541 ) | B169: 0807541 | C169: K.V.RAVANAMMA | D169: SA (English) | E169: 15280-40510 | F169: MPUPS, Dasaripalli | G169: 21860 | H169: State Bank Of India (SBI), Nellore | I169: 10555653 | J169: K.V.Sai Sujith | K169: VIII | L169: 2010-2011 | M169: Rathnam High School, Nelore | N169: 1000 | O169: XXXXXXXXXX | P169: Inter-I | Q169: 2010-2011 | R169: Abdul Kalam Jr Coolege | S169: 1000 | T169: =IF(ISNA(VLOOKUP(H169,Info!$J$2:$K$16,2,FALSE)),"",VLOOKUP(H169,Info!$J$2:$K$16,2,FALSE)) -> 0887 | U169: 2000
A170: K.V.RAVANAMMA ( 0807541 ) | B170: 0807541 | C170: K.V.RAVANAMMA | D170: SA (English) | E170: 15280-40510 | F170: MPUPS, Dasaripalli | G170: 21860 | H170: State Bank Of India (SBI), Nellore | I170: 10555653 | J170: K.V.Sai Sujith | K170: VIII | L170: 2010-2011 | M170: Rathnam High School, Nelore | N170: 1000 | O170: XXXXXXXXXX | P170: Inter-I | Q170: 2010-2011 | R170: Abdul Kalam Jr Coolege | S170: 1000 | T170: =IF(ISNA(VLOOKUP(H170,Info!$J$2:$K$16,2,FALSE)),"",VLOOKUP(H170,Info!$J$2:$K$16,2,FALSE)) -> 0887 | U170: 2000
A171: K.V.RAVANAMMA ( 0807541 ) | B171: 0807541 | C171: K.V.RAVANAMMA | D171: SA (English) | E171: 15280-40510 | F171: MPUPS, Dasaripalli | G171: 21860 | H171: State Bank Of India (SBI), Nellore | I171: 10555653 | J171: K.V.Sai Sujith | K171: VIII | L171: 2010-2011 | M171: Rathnam High School, Nelore | N171: 1000 | O171: XXXXXXXXXX | P171: Inter-I | Q171: 2010-2011 | R171: Abdul Kalam Jr Coolege | S171: 1000 | T171: =IF(ISNA(VLOOKUP(H171,Info!$J$2:$K$16,2,FALSE)),"",VLOOKUP(H171,Info!$J$2:$K$16,2,FALSE)) -> 0887 | U171: 2000
A172: K.V.RAVANAMMA ( 0807541 ) | B172: 0807541 | C172: K.V.RAVANAMMA | D172: SA (English) | E172: 15280-40510 | F172: MPUPS, Dasaripalli | G172: 21860 | H172: State Bank Of India (SBI), Nellore | I172: 10555653 | J172: K.V.Sai Sujith | K172: VIII | L172: 2010-2011 | M172: Rathnam High School, Nelore | N172: 1000 | O172: XXXXXXXXXX | P172: Inter-I | Q172: 2010-2011 | R172: Abdul Kalam Jr Coolege | S172: 1000 | T172: =IF(ISNA(VLOOKUP(H172,Info!$J$2:$K$16,2,FALSE)),"",VLOOKUP(H172,Info!$J$2:$K$16,2,FALSE)) -> 0887 | U172: 2000
A173: K.V.RAVANAMMA ( 0807541 ) | B173: 0807541 | C173: K.V.RAVANAMMA | D173: SA (English) | E173: 15280-40510 | F173: MPUPS, Dasaripalli | G173: 21860 | H173: State Bank Of India (SBI), Nellore | I173: 10555653 | J173: K.V.Sai Sujith | K173: VIII | L173: 2010-2011 | M173: Rathnam High School, Nelore | N173: 1000 | O173: XXXXXXXXXX | P173: Inter-I | Q173: 2010-2011 | R173: Abdul Kalam Jr Coolege | S173: 1000 | T173: =IF(ISNA(VLOOKUP(H173,Info!$J$2:$K$16,2,FALSE)),"",VLOOKUP(H173,Info!$J$2:$K$16,2,FALSE)) -> 0887 | U173: 2000
A174: K.V.RAVANAMMA ( 0807541 ) | B174: 0807541 | C174: K.V.RAVANAMMA | D174: SA (English) | E174: 15280-40510 | F174: MPUPS, Dasaripalli | G174: 21860 | H174: State Bank Of India (SBI), Nellore | I174: 10555653 | J174: K.V.Sai Sujith | K174: VIII | L174: 2010-2011 | M174: Rathnam High School, Nelore | N174: 1000 | O174: XXXXXXXXXX | P174: Inter-I | Q174: 2010-2011 | R174: Abdul Kalam Jr Coolege | S174: 1000 | T174: =IF(ISNA(VLOOKUP(H174,Info!$J$2:$K$16,2,FALSE)),"",VLOOKUP(H174,Info!$J$2:$K$16,2,FALSE)) -> 0887 | U174: 2000
A175: K.V.RAVANAMMA ( 0807541 ) | B175: 0807541 | C175: K.V.RAVANAMMA | D175: SA (English) | E175: 15280-40510 | F175: MPUPS, Dasaripalli | G175: 21860 | H175: State Bank Of India (SBI), Nellore | I175: 10555653 | J175: K.V.Sai Sujith | K175: VIII | L175: 2010-2011 | M175: Rathnam High School, Nelore | N175: 1000 | O175: XXXXXXXXXX | P175: Inter-I | Q175: 2010-2011 | R175: Abdul Kalam Jr Coolege | S175: 1000 | T175: =IF(ISNA(VLOOKUP(H175,Info!$J$2:$K$16,2,FALSE)),"",VLOOKUP(H175,Info!$J$2:$K$16,2,FALSE)) -> 0887 | U175: 2000
A176: K.V.RAVANAMMA ( 0807541 ) | B176: 0807541 | C176: K.V.RAVANAMMA | D176: SA (English) | E176: 15280-40510 | F176: MPUPS, Dasaripalli | G176: 21860 | H176: State Bank Of India (SBI), Nellore | I176: 10555653 | J176: K.V.Sai Sujith | K176: VIII | L176: 2010-2011 | M176: Rathnam High School, Nelore | N176: 1000 | O176: XXXXXXXXXX | P176: Inter-I | Q176: 2010-2011 | R176: Abdul Kalam Jr Coolege | S176: 1000 | T176: =IF(ISNA(VLOOKUP(H176,Info!$J$2:$K$16,2,FALSE)),"",VLOOKUP(H176,Info!$J$2:$K$16,2,FALSE)) -> 0887 | U176: 2000
A177: K.V.RAVANAMMA ( 0807541 ) | B177: 0807541 | C177: K.V.RAVANAMMA | D177: SA (English) | E177: 15280-40510 | F177: MPUPS, Dasaripalli | G177: 21860 | H177: State Bank Of India (SBI), Nellore | I177: 10555653 | J177: K.V.Sai Sujith | K177: VIII | L177: 2010-2011 | M177: Rathnam High School, Nelore | N177: 1000 | O177: XXXXXXXXXX | P177: Inter-I | Q177: 2010-2011 | R177: Abdul Kalam Jr Coolege | S177: 1000 | T177: =IF(ISNA(VLOOKUP(H177,Info!$J$2:$K$16,2,FALSE)),"",VLOOKUP(H177,Info!$J$2:$K$16,2,FALSE)) -> 0887 | U177: 2000
A178: K.V.RAVANAMMA ( 0807541 ) | B178: 0807541 | C178: K.V.RAVANAMMA | D178: SA (English) | E178: 15280-40510 | F178: MPUPS, Dasaripalli | G178: 21860 | H178: State Bank Of India (SBI), Nellore | I178: 10555653 | J178: K.V.Sai Sujith | K178: VIII | L178: 2010-2011 | M178: Rathnam High School, Nelore | N178: 1000 | O178: XXXXXXXXXX | P178: Inter-I | Q178: 2010-2011 | R178: Abdul Kalam Jr Coolege | S178: 1000 | T178: =IF(ISNA(VLOOKUP(H178,Info!$J$2:$K$16,2,FALSE)),"",VLOOKUP(H178,Info!$J$2:$K$16,2,FALSE)) -> 0887 | U178: 2000
A179: K.V.RAVANAMMA ( 0807541 ) | B179: 0807541 | C179: K.V.RAVANAMMA | D179: SA (English) | E179: 15280-40510 | F179: MPUPS, Dasaripalli | G179: 21860 | H179: State Bank Of India (SBI), Nellore | I179: 10555653 | J179: K.V.Sai Sujith | K179: VIII | L179: 2010-2011 | M179: Rathnam High School, Nelore | N179: 1000 | O179: XXXXXXXXXX | P179: Inter-I | Q179: 2010-2011 | R179: Abdul Kalam Jr Coolege | S179: 1000 | T179: =IF(ISNA(VLOOKUP(H179,Info!$J$2:$K$16,2,FALSE)),"",VLOOKUP(H179,Info!$J$2:$K$16,2,FALSE)) -> 0887 | U179: 2000
A180: K.V.RAVANAMMA ( 0807541 ) | B180: 0807541 | C180: K.V.RAVANAMMA | D180: SA (English) | E180: 15280-40510 | F180: MPUPS, Dasaripalli | G180: 21860 | H180: State Bank Of India (SBI), Nellore | I180: 10555653 | J180: K.V.Sai Sujith | K180: VIII | L180: 2010-2011 | M180: Rathnam High School, Nelore | N180: 1000 | O180: XXXXXXXXXX | P180: Inter-I | Q180: 2010-2011 | R180: Abdul Kalam Jr Coolege | S180: 1000 | T180: =IF(ISNA(VLOOKUP(H180,Info!$J$2:$K$16,2,FALSE)),"",VLOOKUP(H180,Info!$J$2:$K$16,2,FALSE)) -> 0887 | U180: 2000
A181: K.V.RAVANAMMA ( 0807541 ) | B181: 0807541 | C181: K.V.RAVANAMMA | D181: SA (English) | E181: 15280-40510 | F181: MPUPS, Dasaripalli | G181: 21860 | H181: State Bank Of India (SBI), Nellore | I181: 10555653 | J181: K.V.Sai Sujith | K181: VIII | L181: 2010-2011 | M181: Rathnam High School, Nelore | N181: 1000 | O181: XXXXXXXXXX | P181: Inter-I | Q181: 2010-2011 | R181: Abdul Kalam Jr Coolege | S181: 1000 | T181: =IF(ISNA(VLOOKUP(H181,Info!$J$2:$K$16,2,FALSE)),"",VLOOKUP(H181,Info!$J$2:$K$16,2,FALSE)) -> 0887 | U181: 2000
A182: K.V.RAVANAMMA ( 0807541 ) | B182: 0807541 | C182: K.V.RAVANAMMA | D182: SA (English) | E182: 15280-40510 | F182: MPUPS, Dasaripalli | G182: 21860 | H182: State Bank Of India (SBI), Nellore | I182: 10555653 | J182: K.V.Sai Sujith | K182: VIII | L182: 2010-2011 | M182: Rathnam High School, Nelore | N182: 1000 | O182: XXXXXXXXXX | P182: Inter-I | Q182: 2010-2011 | R182: Abdul Kalam Jr Coolege | S182: 1000 | T182: =IF(ISNA(VLOOKUP(H182,Info!$J$2:$K$16,2,FALSE)),"",VLOOKUP(H182,Info!$J$2:$K$16,2,FALSE)) -> 0887 | U182: 2000
A183: K.V.RAVANAMMA ( 0807541 ) | B183: 0807541 | C183: K.V.RAVANAMMA | D183: SA (English) | E183: 15280-40510 | F183: MPUPS, Dasaripalli | G183: 21860 | H183: State Bank Of India (SBI), Nellore | I183: 10555653 | J183: K.V.Sai Sujith | K183: VIII | L183: 2010-2011 | M183: Rathnam High School, Nelore | N183: 1000 | O183: XXXXXXXXXX | P183: Inter-I | Q183: 2010-2011 | R183: Abdul Kalam Jr Coolege | S183: 1000 | T183: =IF(ISNA(VLOOKUP(H183,Info!$J$2:$K$16,2,FALSE)),"",VLOOKUP(H183,Info!$J$2:$K$16,2,FALSE)) -> 0887 | U183: 2000
A184: K.V.RAVANAMMA ( 0807541 ) | B184: 0807541 | C184: K.V.RAVANAMMA | D184: SA (English) | E184: 15280-40510 | F184: MPUPS, Dasaripalli | G184: 21860 | H184: State Bank Of India (SBI), Nellore | I184: 10555653 | J184: K.V.Sai Sujith | K184: VIII | L184: 2010-2011 | M184: Rathnam High School, Nelore | N184: 1000 | O184: XXXXXXXXXX | P184: Inter-I | Q184: 2010-2011 | R184: Abdul Kalam Jr Coolege | S184: 1000 | T184: =IF(ISNA(VLOOKUP(H184,Info!$J$2:$K$16,2,FALSE)),"",VLOOKUP(H184,Info!$J$2:$K$16,2,FALSE)) -> 0887 | U184: 2000
A185: K.V.RAVANAMMA ( 0807541 ) | B185: 0807541 | C185: K.V.RAVANAMMA | D185: SA (English) | E185: 15280-40510 | F185: MPUPS, Dasaripalli | G185: 21860 | H185: State Bank Of India (SBI), Nellore | I185: 10555653 | J185: K.V.Sai Sujith | K185: VIII | L185: 2010-2011 | M185: Rathnam High School, Nelore | N185: 1000 | O185: XXXXXXXXXX | P185: Inter-I | Q185: 2010-2011 | R185: Abdul Kalam Jr Coolege | S185: 1000 | T185: =IF(ISNA(VLOOKUP(H185,Info!$J$2:$K$16,2,FALSE)),"",VLOOKUP(H185,Info!$J$2:$K$16,2,FALSE)) -> 0887 | U185: 2000
A186: K.V.RAVANAMMA ( 0807541 ) | B186: 0807541 | C186: K.V.RAVANAMMA | D186: SA (English) | E186: 15280-40510 | F186: MPUPS, Dasaripalli | G186: 21860 | H186: State Bank Of India (SBI), Nellore | I186: 10555653 | J186: K.V.Sai Sujith | K186: VIII | L186: 2010-2011 | M186: Rathnam High School, Nelore | N186: 1000 | O186: XXXXXXXXXX | P186: Inter-I | Q186: 2010-2011 | R186: Abdul Kalam Jr Coolege | S186: 1000 | T186: =IF(ISNA(VLOOKUP(H186,Info!$J$2:$K$16,2,FALSE)),"",VLOOKUP(H186,Info!$J$2:$K$16,2,FALSE)) -> 0887 | U186: 2000
A187: K.V.RAVANAMMA ( 0807541 ) | B187: 0807541 | C187: K.V.RAVANAMMA | D187: SA (English) | E187: 15280-40510 | F187: MPUPS, Dasaripalli | G187: 21860 | H187: State Bank Of India (SBI), Nellore | I187: 10555653 | J187: K.V.Sai Sujith | K187: VIII | L187: 2010-2011 | M187: Rathnam High School, Nelore | N187: 1000 | O187: XXXXXXXXXX | P187: Inter-I | Q187: 2010-2011 | R187: Abdul Kalam Jr Coolege | S187: 1000 | T187: =IF(ISNA(VLOOKUP(H187,Info!$J$2:$K$16,2,FALSE)),"",VLOOKUP(H187,Info!$J$2:$K$16,2,FALSE)) -> 0887 | U187: 2000
A188: K.V.RAVANAMMA ( 0807541 ) | B188: 0807541 | C188: K.V.RAVANAMMA | D188: SA (English) | E188: 15280-40510 | F188: MPUPS, Dasaripalli | G188: 21860 | H188: State Bank Of India (SBI), Nellore | I188: 10555653 | J188: K.V.Sai Sujith | K188: VIII | L188: 2010-2011 | M188: Rathnam High School, Nelore | N188: 1000 | O188: XXXXXXXXXX | P188: Inter-I | Q188: 2010-2011 | R188: Abdul Kalam Jr Coolege | S188: 1000 | T188: =IF(ISNA(VLOOKUP(H188,Info!$J$2:$K$16,2,FALSE)),"",VLOOKUP(H188,Info!$J$2:$K$16,2,FALSE)) -> 0887 | U188: 2000
A189: K.V.RAVANAMMA ( 0807541 ) | B189: 0807541 | C189: K.V.RAVANAMMA | D189: SA (English) | E189: 15280-40510 | F189: MPUPS, Dasaripalli | G189: 21860 | H189: State Bank Of India (SBI), Nellore | I189: 10555653 | J189: K.V.Sai Sujith | K189: VIII | L189: 2010-2011 | M189: Rathnam High School, Nelore | N189: 1000 | O189: XXXXXXXXXX | P189: Inter-I | Q189: 2010-2011 | R189: Abdul Kalam Jr Coolege | S189: 1000 | T189: =IF(ISNA(VLOOKUP(H189,Info!$J$2:$K$16,2,FALSE)),"",VLOOKUP(H189,Info!$J$2:$K$16,2,FALSE)) -> 0887 | U189: 2000
A190: K.V.RAVANAMMA ( 0807541 ) | B190: 0807541 | C190: K.V.RAVANAMMA | D190: SA (English) | E190: 15280-40510 | F190: MPUPS, Dasaripalli | G190: 21860 | H190: State Bank Of India (SBI), Nellore | I190: 10555653 | J190: K.V.Sai Sujith | K190: VIII | L190: 2010-2011 | M190: Rathnam High School, Nelore | N190: 1000 | O190: XXXXXXXXXX | P190: Inter-I | Q190: 2010-2011 | R190: Abdul Kalam Jr Coolege | S190: 1000 | T190: =IF(ISNA(VLOOKUP(H190,Info!$J$2:$K$16,2,FALSE)),"",VLOOKUP(H190,Info!$J$2:$K$16,2,FALSE)) -> 0887 | U190: 2000
A191: K.V.RAVANAMMA ( 0807541 ) | B191: 0807541 | C191: K.V.RAVANAMMA | D191: SA (English) | E191: 15280-40510 | F191: MPUPS, Dasaripalli | G191: 21860 | H191: State Bank Of India (SBI), Nellore | I191: 10555653 | J191: K.V.Sai Sujith | K191: VIII | L191: 2010-2011 | M191: Rathnam High School, Nelore | N191: 1000 | O191: XXXXXXXXXX | P191: Inter-I | Q191: 2010-2011 | R191: Abdul Kalam Jr Coolege | S191: 1000 | T191: =IF(ISNA(VLOOKUP(H191,Info!$J$2:$K$16,2,FALSE)),"",VLOOKUP(H191,Info!$J$2:$K$16,2,FALSE)) -> 0887 | U191: 2000
A192: K.V.RAVANAMMA ( 0807541 ) | B192: 0807541 | C192: K.V.RAVANAMMA | D192: SA (English) | E192: 15280-40510 | F192: MPUPS, Dasaripalli | G192: 21860 | H192: State Bank Of India (SBI), Nellore | I192: 10555653 | J192: K.V.Sai Sujith | K192: VIII | L192: 2010-2011 | M192: Rathnam High School, Nelore | N192: 1000 | O192: XXXXXXXXXX | P192: Inter-I | Q192: 2010-2011 | R192: Abdul Kalam Jr Coolege | S192: 1000 | T192: =IF(ISNA(VLOOKUP(H192,Info!$J$2:$K$16,2,FALSE)),"",VLOOKUP(H192,Info!$J$2:$K$16,2,FALSE)) -> 0887 | U192: 2000
A193: K.V.RAVANAMMA ( 0807541 ) | B193: 0807541 | C193: K.V.RAVANAMMA | D193: SA (English) | E193: 15280-40510 | F193: MPUPS, Dasaripalli | G193: 21860 | H193: State Bank Of India (SBI), Nellore | I193: 10555653 | J193: K.V.Sai Sujith | K193: VIII | L193: 2010-2011 | M193: Rathnam High School, Nelore | N193: 1000 | O193: XXXXXXXXXX | P193: Inter-I | Q193: 2010-2011 | R193: Abdul Kalam Jr Coolege | S193: 1000 | T193: =IF(ISNA(VLOOKUP(H193,Info!$J$2:$K$16,2,FALSE)),"",VLOOKUP(H193,Info!$J$2:$K$16,2,FALSE)) -> 0887 | U193: 2000
A194: ( ) | T194: =IF(ISNA(VLOOKUP(H194,Info!$J$2:$K$16,2,FALSE)),"",VLOOKUP(H194,Info!$J$2:$K$16,2,FALSE)) ->  | U194: 0
A195: ( ) | T195: =IF(ISNA(VLOOKUP(H195,Info!$J$2:$K$16,2,FALSE)),"",VLOOKUP(H195,Info!$J$2:$K$16,2,FALSE)) ->  | U195: 0
A196: ( ) | T196: =IF(ISNA(VLOOKUP(H196,Info!$J$2:$K$16,2,FALSE)),"",VLOOKUP(H196,Info!$J$2:$K$16,2,FALSE)) ->  | U196: 0
A197: =CONCATENATE(C197," ( ",B197," )") -> ( ) | T197: =IF(ISNA(VLOOKUP(H197,Info!$J$2:$K$16,2,FALSE)),"",VLOOKUP(H197,Info!$J$2:$K$16,2,FALSE)) ->  | U197: =SUM(N197,S197) -> 0
A198: ( ) | T198: =IF(ISNA(VLOOKUP(H198,Info!$J$2:$K$16,2,FALSE)),"",VLOOKUP(H198,Info!$J$2:$K$16,2,FALSE)) ->  | U198: 0
A199: ( ) | T199: =IF(ISNA(VLOOKUP(H199,Info!$J$2:$K$16,2,FALSE)),"",VLOOKUP(H199,Info!$J$2:$K$16,2,FALSE)) ->  | U199: 0
A200: ( ) | T200: =IF(ISNA(VLOOKUP(H200,Info!$J$2:$K$16,2,FALSE)),"",VLOOKUP(H200,Info!$J$2:$K$16,2,FALSE)) ->  | U200: 0
... 303 more rows

Sheet APPLICATION
A1: APPLICATION FOR THE GRANT OF THE CONCESSION TO CHILDREN OF N.G.O.s [G.O.Ms.No.2 Edn(SE..SER.I V) Dept, Dt:05/01/2011 ]
H3: Select The Name of the Employee
A4: 1 | B4: Particulars of Children | E4: Pupil- I | F4: Pupil- II
B5: a) | C5: Name of the Pupil | D5: : | E5: =IF(ISNA($H$6),"",VLOOKUP($H$6,Main!$A$4:$W$503,10,FALSE)) -> K.V.Sai Sujith | F5: =IF(ISNA($H$6),"",VLOOKUP($H$6,Main!$A$4:$W$503,15,FALSE)) -> XXXXXXXXXX
B6: b) | C6: Class and Section in which the pupil is Studing. | D6: : | E6: =IF(ISNA($H$6),"",VLOOKUP($H$6,Main!$A$4:$W$503,11,FALSE)) -> VIII | F6: =IF(ISNA($H$6),"",VLOOKUP($H$6,Main!$A$4:$W$503,16,FALSE)) -> Inter-I | H6: K.V.RAVANAMMA ( 0807541 )
B7: c) | C7: Acadamic Year | D7: : | E7: =IF(ISNA($H$6),"",VLOOKUP($H$6,Main!$A$4:$W$503,12,FALSE)) -> 2010-2011 | F7: =IF(ISNA($H$6),"",VLOOKUP($H$6,Main!$A$4:$W$503,17,FALSE)) -> 2010-2011
B8: d) | C8: Name of the School | D8: : | E8: =IF(ISNA($H$6),"",VLOOKUP($H$6,Main!$A$4:$W$503,13,FALSE)) -> Rathnam High School, Nelore | F8: =IF(ISNA($H$6),"",VLOOKUP($H$6,Main!$A$4:$W$503,18,FALSE)) -> Abdul Kalam Jr Coolege
B9: e) | C9: Whether the pupils is promoted to to the class shown against Col. 1b of detailes. | D9: : | E9: =IF(E8=0,"","YES") -> YES | F9: =IF(F8=0,"","YES") -> YES
A10: 2 | B10: Parents Name | D10: : | E10: =UPPER(IF(ISNA($H$6),"",VLOOKUP($H$6,Main!$A$4:$W$503,3,FALSE))) -> K.V.RAVANAMMA
A11: 3 | B11: How employed ( Full particulars of the post held, Dept., etc.,should be stated here against relevant head below ) | D11: : | E11: =UPPER(IF(IF(ISNA($H$6),"",VLOOKUP($H$6,Main!$A$4:$W$503,6,FALSE))>0,CONCATENATE(IF(ISNA($H$6),"",VLOOKUP($H$6,Main!$A$4:$W$503,4,FALSE)),", ",IF(ISNA($H$6),"",VLOOKUP($H$6,Main!$A$4:$W$503,6,FALSE)),", ",Info!G12," Mandal, ",Info!E12," District "),CONCATENATE(IF(ISNA($H$6),"",VLOOKUP($H$6,Main!$A$4:$W$503,4,FALSE)),", ",Info!E11,", ",Info!G12, " Mandal, ",Info!E12," District "))) -> SA (ENGLISH), MPUPS, DASARIPALLI, UDAYAGIRI MANDAL, SRI POTTISREERAMULU NELLORE DISTRICT
B12: A) Non Gazetted Officer B) Dist Board Employee C) Muncipal Employee D) Teacher in Aided /M.P/ZP Schools
A13: 4 | B13: Salary of the Parent | D13: : | E13: =IF(ISNA($H$6),"",CONCATENATE("Rs: ",VLOOKUP($H$6,Main!$A$4:$W$503,7,FALSE)," / - ")) -> Rs: 21860 / -
A14: 5 | B14: Concession claimed Full/ Half | D14: : | E14: FULL
A17: 6 | B17: Description by the parent
C19: I here by declare that shown against col.No: 1 of the application is My Son / Daughter and certify that My Wife / Husband is not a govt. servant.
E20: Signature of the Parent with date
A23: 7 | B23: Certified by Head of office
C25: =CONCATENATE(" I here by certify that the person shown against col No:2 of this office application is working as ",UPPER(E11)," and He / She is likely to be in service to the end of the school year ",E7,".") -> I here by certify that the person shown against col No:2 of this office application is working as SA (ENGLISH), MPUPS, DASARIPALLI, UDAYAGIRI MANDAL, SRI POTTISREERAMULU NELLORE DISTRICT and He / She is likely to be in service to the end of the school year 2010-2011.
C26: Office Seal | F26: Signature of the DDO
A29: 8 | B29: Head of the Institutions Remarks :
C30: Fees concession applied for is recommended for sanction
C31: =C26 -> Office Seal | F31: Signature of the DDO
A34: 9 | B34: Order of the Fee sanctioning authority
B35: =CONCATENATE(" Proc.",Info!E8," ",Info!F8," ",Info!E9," ",Info!F9," of the ",Info!E3,", ",Info!E4, ".") -> Proc.R.C.No: ____________ Date: _______________ of the Mandal Educational Officer, Mandal Parishad Udayagiri.
A37: STUDY CERTIFICATE | H37: R.C.No | I37: 255/15/2011-12
A38: =CONCATENATE(" Certified that Master / Baby ",UPPER($E$5)," S/o,D/o. ",UPPER($E$10)," is studying Class ",$E$6," in ",UPPER($E$8)," for the Acadamic year ",$E$7,". The School / College is Recognised by Govt. of A.P. vide ",H37," ",I37,", ",H38," ",I38," of the ",I40,".") -> Certified that Master / Baby K.V.SAI SUJITH S/o,D/o. K.V.RAVANAMMA is studying Class VIII in RATHNAM HIGH SCHOOL, NELORE for the Acadamic year 2010-2011. The School / College is Recognised by Govt. of A.P. vide R.C.No 255/15/2011-12, Date: 07/11/2009 of the District Educational Officer, Nellore. | H38: Date: | I38: 07/11/2009
A40: =CONCATENATE(" The following amount has been collected towards Tution Fee from ",$E$10,", ",$E$11," during the said Acadamic year ",$E$7,". As per Receipts ") -> The following amount has been collected towards Tution Fee from K.V.RAVANAMMA, SA (ENGLISH), MPUPS, DASARIPALLI, UDAYAGIRI MANDAL, SRI POTTISREERAMULU NELLORE DISTRICT during the said Acadamic year 2010-2011. As per Receipts | H40: School Recognition Authority | I40: District Educational Officer, Nellore
B42: Tution Fee Details
C43: Q1 | E43: Rs: | F43: 500
C44: Q2 | E44: Rs: | F44: 1000
C45: Q3 | E45: Rs:
C46: Q4 | E46: Rs: | F46: 5000
C47: Total | E47: Rs: | F47: =SUM(F43:F46) -> 6500
A48: =CONCATENATE(" Total Amount Rs : ",F47," /- ( Rupees: ",Info!W71," Only )") -> Total Amount Rs : 6500 /- ( Rupees: SIX THOUSAND AND FIVE HUNDRED Only )
A49: He is not granted N.G.O.s concession from the school during this year.
B50: Place: | E50: Signature of the Head of Institution
B51: Date:
A54: =IF(F5=0,"","STUDY CERTIFICATE") -> STUDY CERTIFICATE | H54: R.C.No | I54: 255/15/2011-12
A55: =IF(F5=0,"",CONCATENATE(" Certified that Master / Baby ",UPPER($F$5)," S/o,D/o. ",UPPER($F$10)," is studying Class ",$F$6," in ",UPPER($F$8)," for the Acadamic year ",$F$7,". The School / College is Recognised by Govt. of A.P. vide ",H54," ",I54,", ",H55," ",I55," of the ",I57,".")) -> Certified that Master / Baby XXXXXXXXXX S/o,D/o. is studying Class Inter-I in ABDUL KALAM JR COOLEGE for the Acadamic year 2010-2011. The School / College is Recognised by Govt. of A.P. vide R.C.No 255/15/2011-12, Date: 07/11/2009 of the District Educational Officer, Nellore. | H55: Date: | I55: 07/11/2009
A57: =IF(F5=0,"",CONCATENATE(" The following amount has been collected towards Tution Fee from ",$E$10,", ",$E$11," during the said Acadamic year ",$E$7,". As per Receipts ")) -> The following amount has been collected towards Tution Fee from K.V.RAVANAMMA, SA (ENGLISH), MPUPS, DASARIPALLI, UDAYAGIRI MANDAL, SRI POTTISREERAMULU NELLORE DISTRICT during the said Acadamic year 2010-2011. As per Receipts | H57: School Recognition Authority | I57: District Educational Officer, Nellore
B59: =IF(F5=0,"","Tution Fee Details") -> Tution Fee Details
C60: Q1 | E60: Rs: | F60: 500
C61: Q2 | E61: Rs: | F61: 1000
C62: Q3 | E62: Rs: | F62: 450
C63: Q4 | E63: Rs: | F63: 4500
C64: Total | E64: Rs: | F64: =SUM(F60:F63) -> 6450
A65: =IF(F5=0,"",CONCATENATE(" Total Amount Rs : ",F64," /- ( Rupees: ",Info!W72," Only )")) -> Total Amount Rs : 6450 /- ( Rupees: SIX THOUSAND FOUR HUNDRED AND FIFTY Only )
A66: =IF(F5=0,"","He is not granted N.G.O.s concession from the school during this year.") -> He is not granted N.G.O.s concession from the school during this year.
B67: =IF(F5=0,"","Place:") -> Place: | E67: =IF(F5=0,"","Signature of the Head of Institution") -> Signature of the Head of Institution
B68: =IF(F5=0,"","Date:") -> Date:

Sheet Pro
A1: =IF(Info!G3>0,CONCATENATE("Proceedings of the ",Info!E3,", ",Info!E4,", ",Info!E6," ",Info!C6,", ",Info!E5," ",Info!C5,"."),CONCATENATE("Proceedings of the ",Info!E3,", ",Info!E4,".")) -> Proceedings of the Mandal Educational Officer, Mandal Parishad Udayagiri, Udayagiri Mandal, Sri Pottisreeramulu Nellore District.
A2: =CONCATENATE("Present: ",Info!E7) -> Present: Sri _____________
A4: =CONCATENATE(Info!E8," ",Info!F8," ",Info!E9," ",Info!F9) -> R.C.No: ____________ Date: _______________
B6: Sub: | C6: =CONCATENATE("Secondary Education - ",Info!E4,", ",Info!E6," ",Info!C6,", ",Info!E5," ",Info!C5, " - ",Info!J2," - "," Reimbursement of education tution fees Rs. 1,000/- per annum, per pupil, to the children, not exceeding two, of Non-Gazetted Officers and Class-IV employees studying in all the classes from LKG to Intermediate / 12th Class -Sanctioned - Orders - Issued.") -> Secondary Education - Mandal Parishad Udayagiri, Udayagiri Mandal, Sri Pottisreeramulu Nellore District - State Bank Of India (SBI) ADB , Atmakur - Reimbursement of education tution fees Rs. 1,000/- per annum, per pupil, to the children, not exceeding two, of Non-Gazetted Officers and Class-IV employees studying in all the classes from LKG to Intermediate / 12th Class -Sanctioned - Orders - Issued. | K6: =EXACT(I1018,SUM(I18:I1017)) -> TRUE
A8: 1 | B8: Ref: | C8: 1. | D8: G.O.Ms.NO:40 Edn (Ser-V) Dept; Dt :07/05/2002
A9: 2 | C9: 2. | D9: G.O.Ms. No. 2 Edn., S.E(Gen-I) Dept., Dated 05-01-2011
A10: 3 | C10: =IF(D10="","","3.") -> 3. | D10: Representation of the individuals. | K10: 1
K11: 1
A12: ORDER: | K12: 1
A13: =CONCATENATE(" In pursuance of the reference 2nd cited above, The following Staff Working at ",Info!E4,", ",Info!E6," ",Info!C6,", ",Info!E5," ",Info!C5," are here by Sanctioned Reimbursement of tution fees Rs.1,000/-, per annum, per pupil, to the children, not exceeding two, of all the Class-IV employees ","and Non-Gazetted Officers studying in all the classes from LKG to Intermediate / 12th Class, subject to the other usual conditions regarding the "," Submission of receipts, certificate, etc., as per existing Rules and Regulations."," As Shown details are given below.") -> In pursuance of the reference 2nd cited above, The following Staff Working at Mandal Parishad Udayagiri, Udayagiri Mandal, Sri Pottisreeramulu Nellore District are here by Sanctioned Reimbursement of tution fees Rs.1,000/-, per annum, per pupil, to the children, not exceeding two, of all the Class-IV employees and Non-Gazetted Officers studying in all the classes from LKG to Intermediate / 12th Class, subject to the other usual conditions regarding the Submission of receipts, certificate, etc., as per existing Rules and Regulations. As Shown details are given below. | K13: 1
K14: 1
A15: SL No | B15: Employee Name & Designation | E15: Child information | K15: 1
E16: Name | F16: Class | G16: Academic year | H16: Name of the school | I16: Reimbursement of tuition fee Amount | K16: 1
A17: 1 | B17: 2 | E17: 3 | F17: 4 | G17: 5 | H17: 6 | I17: 7 | K17: 1
A18: =IF(K19="","",SUM($L$18:L19)) -> 1 | B18: =IF(I19="","",CONCATENATE(Main!C4,", ",Main!D4,IF(Main!F4>0,CONCATENATE(", ",Main!F4),""))) -> K.V.RAVANAMMA, SA (English), MPUPS, Dasaripalli | E18: =IF(I18="","",Main!O4) -> XXXXXXXXXX | F18: =IF(I18="","",Main!P4) -> Inter-I | G18: =IF(I18="","",Main!Q4) -> 2010-2011 | H18: =IF(I18="","",Main!R4) -> Abdul Kalam Jr Coolege | I18: =IF(Main!S4="","",Main!S4) -> 1000 | K18: =IF(I18="","",1) -> 1
E19: =IF(I19="","",Main!J4) -> K.V.Sai Sujith | F19: =IF(I19="","",Main!K4) -> VIII | G19: =IF(I19="","",Main!L4) -> 2010-2011 | H19: =IF(I19="","",Main!M4) -> Rathnam High School, Nelore | I19: =IF(Main!N4="","",Main!N4) -> 1000 | K19: 1 | L19: =K19 -> 1
A20: =IF(K21="","",SUM($L$18:L21)) -> 2 | B20: =IF(I21="","",CONCATENATE(Main!C5,", ",Main!D5,IF(Main!F5>0,CONCATENATE(", ",Main!F5),""))) -> K.V.RAVANAMMA, SA (English), MPUPS, Dasaripalli | E20: =IF(I20="","",Main!O5) ->  | F20: =IF(I20="","",Main!P5) ->  | G20: =IF(I20="","",Main!Q5) ->  | H20: =IF(I20="","",Main!R5) ->  | I20: =IF(Main!S5="","",Main!S5) -> 
E21: =IF(I21="","",Main!J5) -> K.V.Sai Sujith | F21: =IF(I21="","",Main!K5) -> VIII | G21: =IF(I21="","",Main!L5) -> 2010-2011 | H21: =IF(I21="","",Main!M5) -> Rathnam High School, Nelore | I21: =IF(Main!N5="","",Main!N5) -> 1000 | K21: 1 | L21: =K21 -> 1
A22: =IF(K23="","",SUM($L$18:L23)) -> 3 | B22: =IF(I23="","",CONCATENATE(Main!C6,", ",Main!D6,IF(Main!F6>0,CONCATENATE(", ",Main!F6),""))) -> K.V.RAVANAMMA, SA (English), MPUPS, Dasaripalli | E22: =IF(I22="","",Main!O6) ->  | F22: =IF(I22="","",Main!P6) ->  | G22: =IF(I22="","",Main!Q6) ->  | H22: =IF(I22="","",Main!R6) ->  | I22: =IF(Main!S6="","",Main!S6) -> 
E23: =IF(I23="","",Main!J6) -> K.V.Sai Sujith | F23: =IF(I23="","",Main!K6) -> VIII | G23: =IF(I23="","",Main!L6) -> 2010-2011 | H23: =IF(I23="","",Main!M6) -> Rathnam High School, Nelore | I23: =IF(Main!N6="","",Main!N6) -> 1000 | K23: 1 | L23: =K23 -> 1
A24: =IF(K25="","",SUM($L$18:L25)) -> 4 | B24: =IF(I25="","",CONCATENATE(Main!C7,", ",Main!D7,IF(Main!F7>0,CONCATENATE(", ",Main!F7),""))) -> K.V.RAVANAMMA, SA (English), MPUPS, Dasaripalli | E24: =IF(I24="","",Main!O7) ->  | F24: =IF(I24="","",Main!P7) ->  | G24: =IF(I24="","",Main!Q7) ->  | H24: =IF(I24="","",Main!R7) ->  | I24: =IF(Main!S7="","",Main!S7) -> 
E25: =IF(I25="","",Main!J7) -> K.V.Sai Sujith | F25: =IF(I25="","",Main!K7) -> VIII | G25: =IF(I25="","",Main!L7) -> 2010-2011 | H25: =IF(I25="","",Main!M7) -> Rathnam High School, Nelore | I25: =IF(Main!N7="","",Main!N7) -> 1000 | K25: 1 | L25: =K25 -> 1
A26: =IF(K27="","",SUM($L$18:L27)) -> 5 | B26: =IF(I27="","",CONCATENATE(Main!C8,", ",Main!D8,IF(Main!F8>0,CONCATENATE(", ",Main!F8),""))) -> K.V.RAVANAMMA, SA (English), MPUPS, Dasaripalli | E26: =IF(I26="","",Main!O8) ->  | F26: =IF(I26="","",Main!P8) ->  | G26: =IF(I26="","",Main!Q8) ->  | H26: =IF(I26="","",Main!R8) ->  | I26: =IF(Main!S8="","",Main!S8) -> 
E27: =IF(I27="","",Main!J8) -> K.V.Sai Sujith | F27: =IF(I27="","",Main!K8) -> VIII | G27: =IF(I27="","",Main!L8) -> 2010-2011 | H27: =IF(I27="","",Main!M8) -> Rathnam High School, Nelore | I27: =IF(Main!N8="","",Main!N8) -> 1000 | K27: 1 | L27: =K27 -> 1
A28: =IF(K29="","",SUM($L$18:L29)) -> 6 | B28: =IF(I29="","",CONCATENATE(Main!C9,", ",Main!D9,IF(Main!F9>0,CONCATENATE(", ",Main!F9),""))) -> K.V.RAVANAMMA, SA (English), MPUPS, Dasaripalli | E28: =IF(I28="","",Main!O9) ->  | F28: =IF(I28="","",Main!P9) ->  | G28: =IF(I28="","",Main!Q9) ->  | H28: =IF(I28="","",Main!R9) ->  | I28: =IF(Main!S9="","",Main!S9) -> 
E29: =IF(I29="","",Main!J9) -> K.V.Sai Sujith | F29: =IF(I29="","",Main!K9) -> VIII | G29: =IF(I29="","",Main!L9) -> 2010-2011 | H29: =IF(I29="","",Main!M9) -> Rathnam High School, Nelore | I29: =IF(Main!N9="","",Main!N9) -> 1000 | K29: 1 | L29: =K29 -> 1
A30: =IF(K31="","",SUM($L$18:L31)) -> 7 | B30: =IF(I31="","",CONCATENATE(Main!C10,", ",Main!D10,IF(Main!F10>0,CONCATENATE(", ",Main!F10),""))) -> K.V.RAVANAMMA, SA (English), MPUPS, Dasaripalli | E30: =IF(I30="","",Main!O10) ->  | F30: =IF(I30="","",Main!P10) ->  | G30: =IF(I30="","",Main!Q10) ->  | H30: =IF(I30="","",Main!R10) ->  | I30: =IF(Main!S10="","",Main!S10) -> 
E31: =IF(I31="","",Main!J10) -> K.V.Sai Sujith | F31: =IF(I31="","",Main!K10) -> VIII | G31: =IF(I31="","",Main!L10) -> 2010-2011 | H31: =IF(I31="","",Main!M10) -> Rathnam High School, Nelore | I31: =IF(Main!N10="","",Main!N10) -> 1000 | K31: 1 | L31: =K31 -> 1
A32: =IF(K33="","",SUM($L$18:L33)) -> 8 | B32: =IF(I33="","",CONCATENATE(Main!C11,", ",Main!D11,IF(Main!F11>0,CONCATENATE(", ",Main!F11),""))) -> K.V.RAVANAMMA, SA (English), MPUPS, Dasaripalli | E32: =IF(I32="","",Main!O11) ->  | F32: =IF(I32="","",Main!P11) ->  | G32: =IF(I32="","",Main!Q11) ->  | H32: =IF(I32="","",Main!R11) ->  | I32: =IF(Main!S11="","",Main!S11) -> 
E33: =IF(I33="","",Main!J11) -> K.V.Sai Sujith | F33: =IF(I33="","",Main!K11) -> VIII | G33: =IF(I33="","",Main!L11) -> 2010-2011 | H33: =IF(I33="","",Main!M11) -> Rathnam High School, Nelore | I33: =IF(Main!N11="","",Main!N11) -> 1000 | K33: 1 | L33: =K33 -> 1
A34: =IF(K35="","",SUM($L$18:L35)) -> 9 | B34: =IF(I35="","",CONCATENATE(Main!C12,", ",Main!D12,IF(Main!F12>0,CONCATENATE(", ",Main!F12),""))) -> K.V.RAVANAMMA, SA (English), MPUPS, Dasaripalli | E34: =IF(I34="","",Main!O12) ->  | F34: =IF(I34="","",Main!P12) ->  | G34: =IF(I34="","",Main!Q12) ->  | H34: =IF(I34="","",Main!R12) ->  | I34: =IF(Main!S12="","",Main!S12) -> 
E35: =IF(I35="","",Main!J12) -> K.V.Sai Sujith | F35: =IF(I35="","",Main!K12) -> VIII | G35: =IF(I35="","",Main!L12) -> 2010-2011 | H35: =IF(I35="","",Main!M12) -> Rathnam High School, Nelore | I35: =IF(Main!N12="","",Main!N12) -> 1000 | K35: 1 | L35: =K35 -> 1
A36: =IF(K37="","",SUM($L$18:L37)) -> 10 | B36: =IF(I37="","",CONCATENATE(Main!C13,", ",Main!D13,IF(Main!F13>0,CONCATENATE(", ",Main!F13),""))) -> K.V.RAVANAMMA, SA (English), MPUPS, Dasaripalli | E36: =IF(I36="","",Main!O13) ->  | F36: =IF(I36="","",Main!P13) ->  | G36: =IF(I36="","",Main!Q13) ->  | H36: =IF(I36="","",Main!R13) ->  | I36: =IF(Main!S13="","",Main!S13) -> 
E37: =IF(I37="","",Main!J13) -> K.V.Sai Sujith | F37: =IF(I37="","",Main!K13) -> VIII | G37: =IF(I37="","",Main!L13) -> 2010-2011 | H37: =IF(I37="","",Main!M13) -> Rathnam High School, Nelore | I37: =IF(Main!N13="","",Main!N13) -> 1000 | K37: 1 | L37: =K37 -> 1
A38: =IF(K39="","",SUM($L$18:L39)) -> 11 | B38: =IF(I39="","",CONCATENATE(Main!C14,", ",Main!D14,IF(Main!F14>0,CONCATENATE(", ",Main!F14),""))) -> K.V.RAVANAMMA, SA (English), MPUPS, Dasaripalli | E38: =IF(I38="","",Main!O14) -> XXXXXXXXXX | F38: =IF(I38="","",Main!P14) -> Inter-I | G38: =IF(I38="","",Main!Q14) -> 2010-2011 | H38: =IF(I38="","",Main!R14) -> Abdul Kalam Jr Coolege | I38: =IF(Main!S14="","",Main!S14) -> 1000 | K38: 1
E39: =IF(I39="","",Main!J14) -> K.V.Sai Sujith | F39: =IF(I39="","",Main!K14) -> VIII | G39: =IF(I39="","",Main!L14) -> 2010-2011 | H39: =IF(I39="","",Main!M14) -> Rathnam High School, Nelore | I39: =IF(Main!N14="","",Main!N14) -> 1000 | K39: 1 | L39: =K39 -> 1
A40: =IF(K41="","",SUM($L$18:L41)) -> 12 | B40: =IF(I41="","",CONCATENATE(Main!C15,", ",Main!D15,IF(Main!F15>0,CONCATENATE(", ",Main!F15),""))) -> K.V.RAVANAMMA, SA (English), MPUPS, Dasaripalli | E40: =IF(I40="","",Main!O15) -> XXXXXXXXXX | F40: =IF(I40="","",Main!P15) -> Inter-I | G40: =IF(I40="","",Main!Q15) -> 2010-2011 | H40: =IF(I40="","",Main!R15) -> Abdul Kalam Jr Coolege | I40: =IF(Main!S15="","",Main!S15) -> 1000 | K40: 1
E41: =IF(I41="","",Main!J15) -> K.V.Sai Sujith | F41: =IF(I41="","",Main!K15) -> VIII | G41: =IF(I41="","",Main!L15) -> 2010-2011 | H41: =IF(I41="","",Main!M15) -> Rathnam High School, Nelore | I41: =IF(Main!N15="","",Main!N15) -> 1000 | K41: 1 | L41: =K41 -> 1
A42: =IF(K43="","",SUM($L$18:L43)) -> 13 | B42: =IF(I43="","",CONCATENATE(Main!C16,", ",Main!D16,IF(Main!F16>0,CONCATENATE(", ",Main!F16),""))) -> K.V.RAVANAMMA, SA (English), MPUPS, Dasaripalli | E42: =IF(I42="","",Main!O16) -> XXXXXXXXXX | F42: =IF(I42="","",Main!P16) -> Inter-I | G42: =IF(I42="","",Main!Q16) -> 2010-2011 | H42: =IF(I42="","",Main!R16) -> Abdul Kalam Jr Coolege | I42: =IF(Main!S16="","",Main!S16) -> 1000 | K42: 1
E43: =IF(I43="","",Main!J16) -> K.V.Sai Sujith | F43: =IF(I43="","",Main!K16) -> VIII | G43: =IF(I43="","",Main!L16) -> 2010-2011 | H43: =IF(I43="","",Main!M16) -> Rathnam High School, Nelore | I43: =IF(Main!N16="","",Main!N16) -> 1000 | K43: 1 | L43: =K43 -> 1
A44: =IF(K45="","",SUM($L$18:L45)) -> 14 | B44: =IF(I45="","",CONCATENATE(Main!C17,", ",Main!D17,IF(Main!F17>0,CONCATENATE(", ",Main!F17),""))) -> K.V.RAVANAMMA, SA (English), MPUPS, Dasaripalli | E44: =IF(I44="","",Main!O17) -> XXXXXXXXXX | F44: =IF(I44="","",Main!P17) -> Inter-I | G44: =IF(I44="","",Main!Q17) -> 2010-2011 | H44: =IF(I44="","",Main!R17) -> Abdul Kalam Jr Coolege | I44: =IF(Main!S17="","",Main!S17) -> 1000 | K44: 1
E45: =IF(I45="","",Main!J17) -> K.V.Sai Sujith | F45: =IF(I45="","",Main!K17) -> VIII | G45: =IF(I45="","",Main!L17) -> 2010-2011 | H45: =IF(I45="","",Main!M17) -> Rathnam High School, Nelore | I45: =IF(Main!N17="","",Main!N17) -> 1000 | K45: 1 | L45: =K45 -> 1
A46: =IF(K47="","",SUM($L$18:L47)) -> 15 | B46: =IF(I47="","",CONCATENATE(Main!C18,", ",Main!D18,IF(Main!F18>0,CONCATENATE(", ",Main!F18),""))) -> K.V.RAVANAMMA, SA (English), MPUPS, Dasaripalli | E46: =IF(I46="","",Main!O18) -> XXXXXXXXXX | F46: =IF(I46="","",Main!P18) -> Inter-I | G46: =IF(I46="","",Main!Q18) -> 2010-2011 | H46: =IF(I46="","",Main!R18) -> Abdul Kalam Jr Coolege | I46: =IF(Main!S18="","",Main!S18) -> 1000 | K46: 1
E47: =IF(I47="","",Main!J18) -> K.V.Sai Sujith | F47: =IF(I47="","",Main!K18) -> VIII | G47: =IF(I47="","",Main!L18) -> 2010-2011 | H47: =IF(I47="","",Main!M18) -> Rathnam High School, Nelore | I47: =IF(Main!N18="","",Main!N18) -> 1000 | K47: 1 | L47: =K47 -> 1
A48: =IF(K49="","",SUM($L$18:L49)) -> 16 | B48: =IF(I49="","",CONCATENATE(Main!C19,", ",Main!D19,IF(Main!F19>0,CONCATENATE(", ",Main!F19),""))) -> K.V.RAVANAMMA, SA (English), MPUPS, Dasaripalli | E48: =IF(I48="","",Main!O19) -> XXXXXXXXXX | F48: =IF(I48="","",Main!P19) -> Inter-I | G48: =IF(I48="","",Main!Q19) -> 2010-2011 | H48: =IF(I48="","",Main!R19) -> Abdul Kalam Jr Coolege | I48: =IF(Main!S19="","",Main!S19) -> 1000 | K48: 1
E49: =IF(I49="","",Main!J19) -> K.V.Sai Sujith | F49: =IF(I49="","",Main!K19) -> VIII | G49: =IF(I49="","",Main!L19) -> 2010-2011 | H49: =IF(I49="","",Main!M19) -> Rathnam High School, Nelore | I49: =IF(Main!N19="","",Main!N19) -> 1000 | K49: 1 | L49: =K49 -> 1
A50: =IF(K51="","",SUM($L$18:L51)) -> 17 | B50: =IF(I51="","",CONCATENATE(Main!C20,", ",Main!D20,IF(Main!F20>0,CONCATENATE(", ",Main!F20),""))) -> K.V.RAVANAMMA, SA (English), MPUPS, Dasaripalli | E50: =IF(I50="","",Main!O20) -> XXXXXXXXXX | F50: =IF(I50="","",Main!P20) -> Inter-I | G50: =IF(I50="","",Main!Q20) -> 2010-2011 | H50: =IF(I50="","",Main!R20) -> Abdul Kalam Jr Coolege | I50: =IF(Main!S20="","",Main!S20) -> 1000 | K50: 1
E51: =IF(I51="","",Main!J20) -> K.V.Sai Sujith | F51: =IF(I51="","",Main!K20) -> VIII | G51: =IF(I51="","",Main!L20) -> 2010-2011 | H51: =IF(I51="","",Main!M20) -> Rathnam High School, Nelore | I51: =IF(Main!N20="","",Main!N20) -> 1000 | K51: 1 | L51: =K51 -> 1
A52: =IF(K53="","",SUM($L$18:L53)) -> 18 | B52: =IF(I53="","",CONCATENATE(Main!C21,", ",Main!D21,IF(Main!F21>0,CONCATENATE(", ",Main!F21),""))) -> K.V.RAVANAMMA, SA (English), MPUPS, Dasaripalli | E52: =IF(I52="","",Main!O21) -> XXXXXXXXXX | F52: =IF(I52="","",Main!P21) -> Inter-I | G52: =IF(I52="","",Main!Q21) -> 2010-2011 | H52: =IF(I52="","",Main!R21) -> Abdul Kalam Jr Coolege | I52: =IF(Main!S21="","",Main!S21) -> 1000 | K52: 1
E53: =IF(I53="","",Main!J21) -> K.V.Sai Sujith | F53: =IF(I53="","",Main!K21) -> VIII | G53: =IF(I53="","",Main!L21) -> 2010-2011 | H53: =IF(I53="","",Main!M21) -> Rathnam High School, Nelore | I53: =IF(Main!N21="","",Main!N21) -> 1000 | K53: 1 | L53: =K53 -> 1
A54: =IF(K55="","",SUM($L$18:L55)) -> 19 | B54: =IF(I55="","",CONCATENATE(Main!C22,", ",Main!D22,IF(Main!F22>0,CONCATENATE(", ",Main!F22),""))) -> K.V.RAVANAMMA, SA (English), MPUPS, Dasaripalli | E54: =IF(I54="","",Main!O22) -> XXXXXXXXXX | F54: =IF(I54="","",Main!P22) -> Inter-I | G54: =IF(I54="","",Main!Q22) -> 2010-2011 | H54: =IF(I54="","",Main!R22) -> Abdul Kalam Jr Coolege | I54: =IF(Main!S22="","",Main!S22) -> 1000 | K54: 1
E55: =IF(I55="","",Main!J22) -> K.V.Sai Sujith | F55: =IF(I55="","",Main!K22) -> VIII | G55: =IF(I55="","",Main!L22) -> 2010-2011 | H55: =IF(I55="","",Main!M22) -> Rathnam High School, Nelore | I55: =IF(Main!N22="","",Main!N22) -> 1000 | K55: 1 | L55: =K55 -> 1
A56: =IF(K57="","",SUM($L$18:L57)) -> 20 | B56: =IF(I57="","",CONCATENATE(Main!C23,", ",Main!D23,IF(Main!F23>0,CONCATENATE(", ",Main!F23),""))) -> K.V.RAVANAMMA, SA (English), MPUPS, Dasaripalli | E56: =IF(I56="","",Main!O23) -> XXXXXXXXXX | F56: =IF(I56="","",Main!P23) -> Inter-I | G56: =IF(I56="","",Main!Q23) -> 2010-2011 | H56: =IF(I56="","",Main!R23) -> Abdul Kalam Jr Coolege | I56: =IF(Main!S23="","",Main!S23) -> 1000 | K56: 1
E57: =IF(I57="","",Main!J23) -> K.V.Sai Sujith | F57: =IF(I57="","",Main!K23) -> VIII | G57: =IF(I57="","",Main!L23) -> 2010-2011 | H57: =IF(I57="","",Main!M23) -> Rathnam High School, Nelore | I57: =IF(Main!N23="","",Main!N23) -> 1000 | K57: 1 | L57: =K57 -> 1
A58: =IF(K59="","",SUM($L$18:L59)) -> 21 | B58: =IF(I59="","",CONCATENATE(Main!C24,", ",Main!D24,IF(Main!F24>0,CONCATENATE(", ",Main!F24),""))) -> K.V.RAVANAMMA, SA (English), MPUPS, Dasaripalli | E58: =IF(I58="","",Main!O24) -> XXXXXXXXXX | F58: =IF(I58="","",Main!P24) -> Inter-I | G58: =IF(I58="","",Main!Q24) -> 2010-2011 | H58: =IF(I58="","",Main!R24) -> Abdul Kalam Jr Coolege | I58: =IF(Main!S24="","",Main!S24) -> 1000 | K58: 1
E59: =IF(I59="","",Main!J24) -> K.V.Sai Sujith | F59: =IF(I59="","",Main!K24) -> VIII | G59: =IF(I59="","",Main!L24) -> 2010-2011 | H59: =IF(I59="","",Main!M24) -> Rathnam High School, Nelore | I59: =IF(Main!N24="","",Main!N24) -> 1000 | K59: 1 | L59: =K59 -> 1
A60: =IF(K61="","",SUM($L$18:L61)) -> 22 | B60: =IF(I61="","",CONCATENATE(Main!C25,", ",Main!D25,IF(Main!F25>0,CONCATENATE(", ",Main!F25),""))) -> K.V.RAVANAMMA, SA (English), MPUPS, Dasaripalli | E60: =IF(I60="","",Main!O25) -> XXXXXXXXXX | F60: =IF(I60="","",Main!P25) -> Inter-I | G60: =IF(I60="","",Main!Q25) -> 2010-2011 | H60: =IF(I60="","",Main!R25) -> Abdul Kalam Jr Coolege | I60: =IF(Main!S25="","",Main!S25) -> 1000 | K60: 1
E61: =IF(I61="","",Main!J25) -> K.V.Sai Sujith | F61: =IF(I61="","",Main!K25) -> VIII | G61: =IF(I61="","",Main!L25) -> 2010-2011 | H61: =IF(I61="","",Main!M25) -> Rathnam High School, Nelore | I61: =IF(Main!N25="","",Main!N25) -> 1000 | K61: 1 | L61: =K61 -> 1
A62: =IF(K63="","",SUM($L$18:L63)) -> 23 | B62: =IF(I63="","",CONCATENATE(Main!C26,", ",Main!D26,IF(Main!F26>0,CONCATENATE(", ",Main!F26),""))) -> K.V.RAVANAMMA, SA (English), MPUPS, Dasaripalli | E62: =IF(I62="","",Main!O26) -> XXXXXXXXXX | F62: =IF(I62="","",Main!P26) -> Inter-I | G62: =IF(I62="","",Main!Q26) -> 2010-2011 | H62: =IF(I62="","",Main!R26) -> Abdul Kalam Jr Coolege | I62: =IF(Main!S26="","",Main!S26) -> 1000 | K62: 1
E63: =IF(I63="","",Main!J26) -> K.V.Sai Sujith | F63: =IF(I63="","",Main!K26) -> VIII | G63: =IF(I63="","",Main!L26) -> 2010-2011 | H63: =IF(I63="","",Main!M26) -> Rathnam High School, Nelore | I63: =IF(Main!N26="","",Main!N26) -> 1000 | K63: 1 | L63: =K63 -> 1
A64: =IF(K65="","",SUM($L$18:L65)) -> 24 | B64: =IF(I65="","",CONCATENATE(Main!C27,", ",Main!D27,IF(Main!F27>0,CONCATENATE(", ",Main!F27),""))) -> K.V.RAVANAMMA, SA (English), MPUPS, Dasaripalli | E64: =IF(I64="","",Main!O27) -> XXXXXXXXXX | F64: =IF(I64="","",Main!P27) -> Inter-I | G64: =IF(I64="","",Main!Q27) -> 2010-2011 | H64: =IF(I64="","",Main!R27) -> Abdul Kalam Jr Coolege | I64: =IF(Main!S27="","",Main!S27) -> 1000 | K64: 1
E65: =IF(I65="","",Main!J27) -> K.V.Sai Sujith | F65: =IF(I65="","",Main!K27) -> VIII | G65: =IF(I65="","",Main!L27) -> 2010-2011 | H65: =IF(I65="","",Main!M27) -> Rathnam High School, Nelore | I65: =IF(Main!N27="","",Main!N27) -> 1000 | K65: 1 | L65: =K65 -> 1
A66: =IF(K67="","",SUM($L$18:L67)) -> 25 | B66: =IF(I67="","",CONCATENATE(Main!C28,", ",Main!D28,IF(Main!F28>0,CONCATENATE(", ",Main!F28),""))) -> K.V.RAVANAMMA, SA (English), MPUPS, Dasaripalli | E66: =IF(I66="","",Main!O28) -> XXXXXXXXXX | F66: =IF(I66="","",Main!P28) -> Inter-I | G66: =IF(I66="","",Main!Q28) -> 2010-2011 | H66: =IF(I66="","",Main!R28) -> Abdul Kalam Jr Coolege | I66: =IF(Main!S28="","",Main!S28) -> 1000 | K66: 1
E67: =IF(I67="","",Main!J28) -> K.V.Sai Sujith | F67: =IF(I67="","",Main!K28) -> VIII | G67: =IF(I67="","",Main!L28) -> 2010-2011 | H67: =IF(I67="","",Main!M28) -> Rathnam High School, Nelore | I67: =IF(Main!N28="","",Main!N28) -> 1000 | K67: 1 | L67: =K67 -> 1
A68: =IF(K69="","",SUM($L$18:L69)) -> 26 | B68: =IF(I69="","",CONCATENATE(Main!C29,", ",Main!D29,IF(Main!F29>0,CONCATENATE(", ",Main!F29),""))) -> K.V.RAVANAMMA, SA (English), MPUPS, Dasaripalli | E68: =IF(I68="","",Main!O29) -> XXXXXXXXXX | F68: =IF(I68="","",Main!P29) -> Inter-I | G68: =IF(I68="","",Main!Q29) -> 2010-2011 | H68: =IF(I68="","",Main!R29) -> Abdul Kalam Jr Coolege | I68: =IF(Main!S29="","",Main!S29) -> 1000 | K68: 1
E69: =IF(I69="","",Main!J29) -> K.V.Sai Sujith | F69: =IF(I69="","",Main!K29) -> VIII | G69: =IF(I69="","",Main!L29) -> 2010-2011 | H69: =IF(I69="","",Main!M29) -> Rathnam High School, Nelore | I69: =IF(Main!N29="","",Main!N29) -> 1000 | K69: 1 | L69: =K69 -> 1
A70: =IF(K71="","",SUM($L$18:L71)) -> 27 | B70: =IF(I71="","",CONCATENATE(Main!C30,", ",Main!D30,IF(Main!F30>0,CONCATENATE(", ",Main!F30),""))) -> K.V.RAVANAMMA, SA (English), MPUPS, Dasaripalli | E70: =IF(I70="","",Main!O30) -> XXXXXXXXXX | F70: =IF(I70="","",Main!P30) -> Inter-I | G70: =IF(I70="","",Main!Q30) -> 2010-2011 | H70: =IF(I70="","",Main!R30) -> Abdul Kalam Jr Coolege | I70: =IF(Main!S30="","",Main!S30) -> 1000 | K70: 1
E71: =IF(I71="","",Main!J30) -> K.V.Sai Sujith | F71: =IF(I71="","",Main!K30) -> VIII | G71: =IF(I71="","",Main!L30) -> 2010-2011 | H71: =IF(I71="","",Main!M30) -> Rathnam High School, Nelore | I71: =IF(Main!N30="","",Main!N30) -> 1000 | K71: 1 | L71: =K71 -> 1
A72: =IF(K73="","",SUM($L$18:L73)) -> 28 | B72: =IF(I73="","",CONCATENATE(Main!C31,", ",Main!D31,IF(Main!F31>0,CONCATENATE(", ",Main!F31),""))) -> K.V.RAVANAMMA, SA (English), MPUPS, Dasaripalli | E72: =IF(I72="","",Main!O31) -> XXXXXXXXXX | F72: =IF(I72="","",Main!P31) -> Inter-I | G72: =IF(I72="","",Main!Q31) -> 2010-2011 | H72: =IF(I72="","",Main!R31) -> Abdul Kalam Jr Coolege | I72: =IF(Main!S31="","",Main!S31) -> 1000 | K72: 1
E73: =IF(I73="","",Main!J31) -> K.V.Sai Sujith | F73: =IF(I73="","",Main!K31) -> VIII | G73: =IF(I73="","",Main!L31) -> 2010-2011 | H73: =IF(I73="","",Main!M31) -> Rathnam High School, Nelore | I73: =IF(Main!N31="","",Main!N31) -> 1000 | K73: 1 | L73: =K73 -> 1
A74: =IF(K75="","",SUM($L$18:L75)) -> 29 | B74: =IF(I75="","",CONCATENATE(Main!C32,", ",Main!D32,IF(Main!F32>0,CONCATENATE(", ",Main!F32),""))) -> K.V.RAVANAMMA, SA (English), MPUPS, Dasaripalli | E74: =IF(I74="","",Main!O32) -> XXXXXXXXXX | F74: =IF(I74="","",Main!P32) -> Inter-I | G74: =IF(I74="","",Main!Q32) -> 2010-2011 | H74: =IF(I74="","",Main!R32) -> Abdul Kalam Jr Coolege | I74: =IF(Main!S32="","",Main!S32) -> 1000 | K74: 1
E75: =IF(I75="","",Main!J32) -> K.V.Sai Sujith | F75: =IF(I75="","",Main!K32) -> VIII | G75: =IF(I75="","",Main!L32) -> 2010-2011 | H75: =IF(I75="","",Main!M32) -> Rathnam High School, Nelore | I75: =IF(Main!N32="","",Main!N32) -> 1000 | K75: 1 | L75: =K75 -> 1
A76: =IF(K77="","",SUM($L$18:L77)) -> 30 | B76: =IF(I77="","",CONCATENATE(Main!C33,", ",Main!D33,IF(Main!F33>0,CONCATENATE(", ",Main!F33),""))) -> K.V.RAVANAMMA, SA (English), MPUPS, Dasaripalli | E76: =IF(I76="","",Main!O33) -> XXXXXXXXXX | F76: =IF(I76="","",Main!P33) -> Inter-I | G76: =IF(I76="","",Main!Q33) -> 2010-2011 | H76: =IF(I76="","",Main!R33) -> Abdul Kalam Jr Coolege | I76: =IF(Main!S33="","",Main!S33) -> 1000 | K76: 1
E77: =IF(I77="","",Main!J33) -> K.V.Sai Sujith | F77: =IF(I77="","",Main!K33) -> VIII | G77: =IF(I77="","",Main!L33) -> 2010-2011 | H77: =IF(I77="","",Main!M33) -> Rathnam High School, Nelore | I77: =IF(Main!N33="","",Main!N33) -> 1000 | K77: 1 | L77: =K77 -> 1
A78: =IF(K79="","",SUM($L$18:L79)) -> 31 | B78: =IF(I79="","",CONCATENATE(Main!C34,", ",Main!D34,IF(Main!F34>0,CONCATENATE(", ",Main!F34),""))) -> K.V.RAVANAMMA, SA (English), MPUPS, Dasaripalli | E78: =IF(I78="","",Main!O34) -> XXXXXXXXXX | F78: =IF(I78="","",Main!P34) -> Inter-I | G78: =IF(I78="","",Main!Q34) -> 2010-2011 | H78: =IF(I78="","",Main!R34) -> Abdul Kalam Jr Coolege | I78: =IF(Main!S34="","",Main!S34) -> 1000 | K78: 1
E79: =IF(I79="","",Main!J34) -> K.V.Sai Sujith | F79: =IF(I79="","",Main!K34) -> VIII | G79: =IF(I79="","",Main!L34) -> 2010-2011 | H79: =IF(I79="","",Main!M34) -> Rathnam High School, Nelore | I79: =IF(Main!N34="","",Main!N34) -> 1000 | K79: 1 | L79: =K79 -> 1
A80: =IF(K81="","",SUM($L$18:L81)) -> 32 | B80: =IF(I81="","",CONCATENATE(Main!C35,", ",Main!D35,IF(Main!F35>0,CONCATENATE(", ",Main!F35),""))) -> K.V.RAVANAMMA, SA (English), MPUPS, Dasaripalli | E80: =IF(I80="","",Main!O35) -> XXXXXXXXXX | F80: =IF(I80="","",Main!P35) -> Inter-I | G80: =IF(I80="","",Main!Q35) -> 2010-2011 | H80: =IF(I80="","",Main!R35) -> Abdul Kalam Jr Coolege | I80: =IF(Main!S35="","",Main!S35) -> 1000 | K80: 1
E81: =IF(I81="","",Main!J35) -> K.V.Sai Sujith | F81: =IF(I81="","",Main!K35) -> VIII | G81: =IF(I81="","",Main!L35) -> 2010-2011 | H81: =IF(I81="","",Main!M35) -> Rathnam High School, Nelore | I81: =IF(Main!N35="","",Main!N35) -> 1000 | K81: 1 | L81: =K81 -> 1
A82: =IF(K83="","",SUM($L$18:L83)) -> 33 | B82: =IF(I83="","",CONCATENATE(Main!C36,", ",Main!D36,IF(Main!F36>0,CONCATENATE(", ",Main!F36),""))) -> K.V.RAVANAMMA, SA (English), MPUPS, Dasaripalli | E82: =IF(I82="","",Main!O36) -> XXXXXXXXXX | F82: =IF(I82="","",Main!P36) -> Inter-I | G82: =IF(I82="","",Main!Q36) -> 2010-2011 | H82: =IF(I82="","",Main!R36) -> Abdul Kalam Jr Coolege | I82: =IF(Main!S36="","",Main!S36) -> 1000 | K82: 1
E83: =IF(I83="","",Main!J36) -> K.V.Sai Sujith | F83: =IF(I83="","",Main!K36) -> VIII | G83: =IF(I83="","",Main!L36) -> 2010-2011 | H83: =IF(I83="","",Main!M36) -> Rathnam High School, Nelore | I83: =IF(Main!N36="","",Main!N36) -> 1000 | K83: =IF(I83="","",1) -> 1 | L83: =K83 -> 1
A84: =IF(K85="","",SUM($L$18:L85)) -> 34 | B84: =IF(I85="","",CONCATENATE(Main!C37,", ",Main!D37,IF(Main!F37>0,CONCATENATE(", ",Main!F37),""))) -> K.V.RAVANAMMA, SA (English), MPUPS, Dasaripalli | E84: =IF(I84="","",Main!O37) -> XXXXXXXXXX | F84: =IF(I84="","",Main!P37) -> Inter-I | G84: =IF(I84="","",Main!Q37) -> 2010-2011 | H84: =IF(I84="","",Main!R37) -> Abdul Kalam Jr Coolege | I84: =IF(Main!S37="","",Main!S37) -> 1000 | K84: 1
E85: =IF(I85="","",Main!J37) -> K.V.Sai Sujith | F85: =IF(I85="","",Main!K37) -> VIII | G85: =IF(I85="","",Main!L37) -> 2010-2011 | H85: =IF(I85="","",Main!M37) -> Rathnam High School, Nelore | I85: =IF(Main!N37="","",Main!N37) -> 1000 | K85: 1 | L85: =K85 -> 1
A86: =IF(K87="","",SUM($L$18:L87)) -> 35 | B86: =IF(I87="","",CONCATENATE(Main!C38,", ",Main!D38,IF(Main!F38>0,CONCATENATE(", ",Main!F38),""))) -> K.V.RAVANAMMA, SA (English), MPUPS, Dasaripalli | E86: =IF(I86="","",Main!O38) -> XXXXXXXXXX | F86: =IF(I86="","",Main!P38) -> Inter-I | G86: =IF(I86="","",Main!Q38) -> 2010-2011 | H86: =IF(I86="","",Main!R38) -> Abdul Kalam Jr Coolege | I86: =IF(Main!S38="","",Main!S38) -> 1000 | K86: 1
E87: =IF(I87="","",Main!J38) -> K.V.Sai Sujith | F87: =IF(I87="","",Main!K38) -> VIII | G87: =IF(I87="","",Main!L38) -> 2010-2011 | H87: =IF(I87="","",Main!M38) -> Rathnam High School, Nelore | I87: =IF(Main!N38="","",Main!N38) -> 1000 | K87: 1 | L87: =K87 -> 1
A88: =IF(K89="","",SUM($L$18:L89)) -> 36 | B88: =IF(I89="","",CONCATENATE(Main!C39,", ",Main!D39,IF(Main!F39>0,CONCATENATE(", ",Main!F39),""))) -> K.V.RAVANAMMA, SA (English), MPUPS, Dasaripalli | E88: =IF(I88="","",Main!O39) -> XXXXXXXXXX | F88: =IF(I88="","",Main!P39) -> Inter-I | G88: =IF(I88="","",Main!Q39) -> 2010-2011 | H88: =IF(I88="","",Main!R39) -> Abdul Kalam Jr Coolege | I88: =IF(Main!S39="","",Main!S39) -> 1000 | K88: 1
E89: =IF(I89="","",Main!J39) -> K.V.Sai Sujith | F89: =IF(I89="","",Main!K39) -> VIII | G89: =IF(I89="","",Main!L39) -> 2010-2011 | H89: =IF(I89="","",Main!M39) -> Rathnam High School, Nelore | I89: =IF(Main!N39="","",Main!N39) -> 1000 | K89: 1 | L89: =K89 -> 1
A90: =IF(K91="","",SUM($L$18:L91)) -> 37 | B90: =IF(I91="","",CONCATENATE(Main!C40,", ",Main!D40,IF(Main!F40>0,CONCATENATE(", ",Main!F40),""))) -> K.V.RAVANAMMA, SA (English), MPUPS, Dasaripalli | E90: =IF(I90="","",Main!O40) -> XXXXXXXXXX | F90: =IF(I90="","",Main!P40) -> Inter-I | G90: =IF(I90="","",Main!Q40) -> 2010-2011 | H90: =IF(I90="","",Main!R40) -> Abdul Kalam Jr Coolege | I90: =IF(Main!S40="","",Main!S40) -> 1000 | K90: 1
E91: =IF(I91="","",Main!J40) -> K.V.Sai Sujith | F91: =IF(I91="","",Main!K40) -> VIII | G91: =IF(I91="","",Main!L40) -> 2010-2011 | H91: =IF(I91="","",Main!M40) -> Rathnam High School, Nelore | I91: =IF(Main!N40="","",Main!N40) -> 1000 | K91: 1 | L91: =K91 -> 1
A92: =IF(K93="","",SUM($L$18:L93)) -> 38 | B92: =IF(I93="","",CONCATENATE(Main!C41,", ",Main!D41,IF(Main!F41>0,CONCATENATE(", ",Main!F41),""))) -> K.V.RAVANAMMA, SA (English), MPUPS, Dasaripalli | E92: =IF(I92="","",Main!O41) -> XXXXXXXXXX | F92: =IF(I92="","",Main!P41) -> Inter-I | G92: =IF(I92="","",Main!Q41) -> 2010-2011 | H92: =IF(I92="","",Main!R41) -> Abdul Kalam Jr Coolege | I92: =IF(Main!S41="","",Main!S41) -> 1000 | K92: 1
E93: =IF(I93="","",Main!J41) -> K.V.Sai Sujith | F93: =IF(I93="","",Main!K41) -> VIII | G93: =IF(I93="","",Main!L41) -> 2010-2011 | H93: =IF(I93="","",Main!M41) -> Rathnam High School, Nelore | I93: =IF(Main!N41="","",Main!N41) -> 1000 | K93: 1 | L93: =K93 -> 1
A94: =IF(K95="","",SUM($L$18:L95)) -> 39 | B94: =IF(I95="","",CONCATENATE(Main!C42,", ",Main!D42,IF(Main!F42>0,CONCATENATE(", ",Main!F42),""))) -> K.V.RAVANAMMA, SA (English), MPUPS, Dasaripalli | E94: =IF(I94="","",Main!O42) -> XXXXXXXXXX | F94: =IF(I94="","",Main!P42) -> Inter-I | G94: =IF(I94="","",Main!Q42) -> 2010-2011 | H94: =IF(I94="","",Main!R42) -> Abdul Kalam Jr Coolege | I94: =IF(Main!S42="","",Main!S42) -> 1000 | K94: 1
E95: =IF(I95="","",Main!J42) -> K.V.Sai Sujith | F95: =IF(I95="","",Main!K42) -> VIII | G95: =IF(I95="","",Main!L42) -> 2010-2011 | H95: =IF(I95="","",Main!M42) -> Rathnam High School, Nelore | I95: =IF(Main!N42="","",Main!N42) -> 1000 | K95: 1 | L95: =K95 -> 1
A96: =IF(K97="","",SUM($L$18:L97)) -> 40 | B96: =IF(I97="","",CONCATENATE(Main!C43,", ",Main!D43,IF(Main!F43>0,CONCATENATE(", ",Main!F43),""))) -> K.V.RAVANAMMA, SA (English), MPUPS, Dasaripalli | E96: =IF(I96="","",Main!O43) -> XXXXXXXXXX | F96: =IF(I96="","",Main!P43) -> Inter-I | G96: =IF(I96="","",Main!Q43) -> 2010-2011 | H96: =IF(I96="","",Main!R43) -> Abdul Kalam Jr Coolege | I96: =IF(Main!S43="","",Main!S43) -> 1000 | K96: 1
E97: =IF(I97="","",Main!J43) -> K.V.Sai Sujith | F97: =IF(I97="","",Main!K43) -> VIII | G97: =IF(I97="","",Main!L43) -> 2010-2011 | H97: =IF(I97="","",Main!M43) -> Rathnam High School, Nelore | I97: =IF(Main!N43="","",Main!N43) -> 1000 | K97: 1 | L97: =K97 -> 1
A98: =IF(K99="","",SUM($L$18:L99)) -> 41 | B98: =IF(I99="","",CONCATENATE(Main!C44,", ",Main!D44,IF(Main!F44>0,CONCATENATE(", ",Main!F44),""))) -> K.V.RAVANAMMA, SA (English), MPUPS, Dasaripalli | E98: =IF(I98="","",Main!O44) -> XXXXXXXXXX | F98: =IF(I98="","",Main!P44) -> Inter-I | G98: =IF(I98="","",Main!Q44) -> 2010-2011 | H98: =IF(I98="","",Main!R44) -> Abdul Kalam Jr Coolege | I98: =IF(Main!S44="","",Main!S44) -> 1000 | K98: 1
E99: =IF(I99="","",Main!J44) -> K.V.Sai Sujith | F99: =IF(I99="","",Main!K44) -> VIII | G99: =IF(I99="","",Main!L44) -> 2010-2011 | H99: =IF(I99="","",Main!M44) -> Rathnam High School, Nelore | I99: =IF(Main!N44="","",Main!N44) -> 1000 | K99: 1 | L99: =K99 -> 1
A100: =IF(K101="","",SUM($L$18:L101)) -> 42 | B100: =IF(I101="","",CONCATENATE(Main!C45,", ",Main!D45,IF(Main!F45>0,CONCATENATE(", ",Main!F45),""))) -> K.V.RAVANAMMA, SA (English), MPUPS, Dasaripalli | E100: =IF(I100="","",Main!O45) -> XXXXXXXXXX | F100: =IF(I100="","",Main!P45) -> Inter-I | G100: =IF(I100="","",Main!Q45) -> 2010-2011 | H100: =IF(I100="","",Main!R45) -> Abdul Kalam Jr Coolege | I100: =IF(Main!S45="","",Main!S45) -> 1000 | K100: 1
E101: =IF(I101="","",Main!J45) -> K.V.Sai Sujith | F101: =IF(I101="","",Main!K45) -> VIII | G101: =IF(I101="","",Main!L45) -> 2010-2011 | H101: =IF(I101="","",Main!M45) -> Rathnam High School, Nelore | I101: =IF(Main!N45="","",Main!N45) -> 1000 | K101: 1 | L101: =K101 -> 1
A102: =IF(K103="","",SUM($L$18:L103)) -> 43 | B102: =IF(I103="","",CONCATENATE(Main!C46,", ",Main!D46,IF(Main!F46>0,CONCATENATE(", ",Main!F46),""))) -> K.V.RAVANAMMA, SA (English), MPUPS, Dasaripalli | E102: =IF(I102="","",Main!O46) -> XXXXXXXXXX | F102: =IF(I102="","",Main!P46) -> Inter-I | G102: =IF(I102="","",Main!Q46) -> 2010-2011 | H102: =IF(I102="","",Main!R46) -> Abdul Kalam Jr Coolege | I102: =IF(Main!S46="","",Main!S46) -> 1000 | K102: 1
E103: =IF(I103="","",Main!J46) -> K.V.Sai Sujith | F103: =IF(I103="","",Main!K46) -> VIII | G103: =IF(I103="","",Main!L46) -> 2010-2011 | H103: =IF(I103="","",Main!M46) -> Rathnam High School, Nelore | I103: =IF(Main!N46="","",Main!N46) -> 1000 | K103: 1 | L103: =K103 -> 1
A104: =IF(K105="","",SUM($L$18:L105)) -> 44 | B104: =IF(I105="","",CONCATENATE(Main!C47,", ",Main!D47,IF(Main!F47>0,CONCATENATE(", ",Main!F47),""))) -> K.V.RAVANAMMA, SA (English), MPUPS, Dasaripalli | E104: =IF(I104="","",Main!O47) -> XXXXXXXXXX | F104: =IF(I104="","",Main!P47) -> Inter-I | G104: =IF(I104="","",Main!Q47) -> 2010-2011 | H104: =IF(I104="","",Main!R47) -> Abdul Kalam Jr Coolege | I104: =IF(Main!S47="","",Main!S47) -> 1000 | K104: 1
E105: =IF(I105="","",Main!J47) -> K.V.Sai Sujith | F105: =IF(I105="","",Main!K47) -> VIII | G105: =IF(I105="","",Main!L47) -> 2010-2011 | H105: =IF(I105="","",Main!M47) -> Rathnam High School, Nelore | I105: =IF(Main!N47="","",Main!N47) -> 1000 | K105: 1 | L105: =K105 -> 1
A106: =IF(K107="","",SUM($L$18:L107)) -> 45 | B106: =IF(I107="","",CONCATENATE(Main!C48,", ",Main!D48,IF(Main!F48>0,CONCATENATE(", ",Main!F48),""))) -> K.V.RAVANAMMA, SA (English), MPUPS, Dasaripalli | E106: =IF(I106="","",Main!O48) -> XXXXXXXXXX | F106: =IF(I106="","",Main!P48) -> Inter-I | G106: =IF(I106="","",Main!Q48) -> 2010-2011 | H106: =IF(I106="","",Main!R48) -> Abdul Kalam Jr Coolege | I106: =IF(Main!S48="","",Main!S48) -> 1000 | K106: 1
E107: =IF(I107="","",Main!J48) -> K.V.Sai Sujith | F107: =IF(I107="","",Main!K48) -> VIII | G107: =IF(I107="","",Main!L48) -> 2010-2011 | H107: =IF(I107="","",Main!M48) -> Rathnam High School, Nelore | I107: =IF(Main!N48="","",Main!N48) -> 1000 | K107: 1 | L107: =K107 -> 1
A108: =IF(K109="","",SUM($L$18:L109)) -> 46 | B108: =IF(I109="","",CONCATENATE(Main!C49,", ",Main!D49,IF(Main!F49>0,CONCATENATE(", ",Main!F49),""))) -> K.V.RAVANAMMA, SA (English), MPUPS, Dasaripalli | E108: =IF(I108="","",Main!O49) -> XXXXXXXXXX | F108: =IF(I108="","",Main!P49) -> Inter-I | G108: =IF(I108="","",Main!Q49) -> 2010-2011 | H108: =IF(I108="","",Main!R49) -> Abdul Kalam Jr Coolege | I108: =IF(Main!S49="","",Main!S49) -> 1000 | K108: 1
